Workbook

Sheet Examples (hidden)
B2: IPART colour codes for models, spreadsheets and information requests
B3: NB ALWAYS DESCRIBE THE COLOUR CODE USED IN YOUR MODEL
B4: Note: If you use the formats for the inputs provided in this template, input cells will always be unprotected even when you protect the worksheet
H5: use this column cell to "paint" input cells for numbers (NOT for percentages)
I6: use this column cell to "paint" input cells for percentages (NOT numbers)
B7: Models and spreadsheets
G8: numbers | H8: %
B9: Inputs | G9: 4232 | H9: 0.08
B10: Inputs with default values, default values are shown in italics next to or below | G10: 34345 | H10: 0.08
B11: Hard-coded values used that should not be changed, eg credit ratings or '1' at the start of an index series.
B12: Key outputs
B13: Links from other files (green)
B14: Error check (check =0)
B15: Error warnings, messages and unusual calculation assumptions
B16: Indicate change in formula across row with a double red line
B17: Note: You can combine options for inputs, eg: | E17: Inputs can be links to other files
E18: You can drawn attention to unusual inputs
H20: use this column cell to "paint" input cells for numbers (NOT for percentages)
B21: Information Requests | I21: use this column cell to "paint" input cells for percentages (NOT numbers)
G22: numbers | H22: %
B23: Inputs for historical years (actual values) | G23: 234 | H23: 0.24
B24: Forecast inputs | G24: 6667 | H24: 0.05
B25: Error warnings and messages
B26: Error check (check =0)
B28: QA notes - annotation or documenation by QA staff
A31: User Instructions - IPART CHARTS
B33: Blue | C33: Mid Grey | D33: Pale Blue | E33: Green | F33: Charcoal | G33: Orange | H33: Purple | I33: Pink | L33: Blue | M33: Mid Grey | N33: Pale Blue | O33: Green | P33: Charcoal | Q33: Orange | S33: X value | T33: 1st Y value | U33: 2nd Y value | X33: Black | Y33: Red 100% | Z33: Red 70% | AA33: Grey 40%
A34: 1975-76 | B34: 36.19 | C34: 36.88 | D34: 21.56 | E34: 5.36 | F34: 3.01 | G34: 10 | H34: 3.01 | I34: 10 | K34: 1975-76 | L34: 33.19 | M34: 36.88 | N34: 21.56 | O34: 5.36 | P34: 3.01 | Q34: 10 | S34: 1.8 | T34: 10 | U34: 17 | W34: 1975-76 | X34: 33.19 | Y34: 36.88 | Z34: 21.56 | AA34: 5.36
A35: 1983-84 | B35: 39.39 | C35: 32.02 | D35: 21.6 | E35: 7.01 | F35: 3.36 | G35: 12 | H35: 3.36 | I35: 12 | K35: 1983-84 | L35: 39.39 | M35: 32.02 | N35: 21.6 | O35: 7.01 | P35: 3.36 | Q35: 12 | S35: 2.3 | T35: 12 | U35: 9 | W35: 1983-84 | X35: 39.39 | Y35: 32.02 | Z35: 21.6 | AA35: 7.01
A36: 1988-89 | B36: 42.78 | C36: 29.91 | D36: 18.35 | E36: 6.33 | F36: 2.63 | G36: 14 | H36: 2.63 | I36: 14 | K36: 1988-89 | L36: 42.78 | M36: 29.91 | N36: 18.35 | O36: 6.33 | P36: 2.63 | Q36: 14 | S36: 3.7 | T36: 16 | U36: 14 | W36: 1988-89 | X36: 42.78 | Y36: 29.91 | Z36: 18.35 | AA36: 6.33
A37: 1993-94 | B37: 42.13 | C37: 26.53 | D37: 21.6 | E37: 7.01 | F37: 2.72 | G37: 16 | H37: 2.72 | I37: 16 | K37: 1993-94 | L37: 42.13 | M37: 26.53 | N37: 21.6 | O37: 7.01 | P37: 2.72 | Q37: 16 | S37: 4.1 | T37: 8 | U37: 23 | W37: 1993-94 | X37: 42.13 | Y37: 26.53 | Z37: 21.6 | AA37: 7.01
A38: 1996-97 | B38: 41.69 | C38: 24.76 | D38: 23.98 | E38: 7 | F38: 2.57 | G38: 18 | H38: 2.57 | I38: 18 | K38: 1996-97 | L38: 41.69 | M38: 24.76 | N38: 23.98 | O38: 7 | P38: 2.57 | Q38: 18 | S38: 5.5 | T38: 14 | U38: 27 | W38: 1996-97 | X38: 41.69 | Y38: 24.76 | Z38: 23.98 | AA38: 7
A39: 1997-98 | B39: 39.39 | C39: 32.02 | D39: 21.6 | E39: 7.01 | F39: 3.36 | G39: 12 | H39: 3.36 | I39: 12 | K39: 1997-98 | L39: 39.39 | M39: 32.02 | N39: 21.6 | O39: 7.01 | P39: 3.36 | Q39: 12 | W39: 1997-98 | X39: 39.39 | Y39: 32.02 | Z39: 21.6 | AA39: 7.01
A40: 1998-99 | B40: 42.13 | C40: 26.53 | D40: 21.6 | E40: 7.01 | F40: 2.72 | G40: 16 | H40: 2.72 | I40: 16 | K40: 1998-99 | L40: 42.13 | M40: 26.53 | N40: 21.6 | O40: 7.01 | P40: 2.72 | Q40: 16 | W40: 1998-99 | X40: 42.13 | Y40: 26.53 | Z40: 21.6 | AA40: 7.01
A41: 1999-00 | B41: 45 | C41: 22 | D41: 26 | E41: 8 | F41: 2 | G41: 20 | H41: 2 | I41: 20 | K41: 1999-00 | L41: 45 | M41: 22 | N41: 26 | O41: 8 | P41: 2 | Q41: 20 | W41: 1999-00 | X41: 45 | Y41: 22 | Z41: 26 | AA41: 8
A42: – en rule for when needed

Sheet Other QA scope (hidden)
B2: Review that the QA is for | E2: 2023-24 Special Variations
B3: Name of model | E3: <not required for simple spreadsheets if the file name is sufficiently descriptive>
B4: File name(s):
B8: Name of modeller | E8: Jisoo Mok
B9: Planned date of QA: | E9: Week of 19 September 2022
B10: Risk rating for the review: | E10: Low
B11: Note: low risk models do not require independent QA, however the modeller should indicate in section 2.3 what steps have been taken to ensure accuracy of results.
B13: 1. PURPOSE OF MODEL
B14: The modeller provides a concise summary of the model's purpose(s)
B15: Main changes:
B16: WK7 - Financials: Request for five years of historical data (i.e. addition of yr -5 and -4).
B17: WK7 - Financials: Addition of three extra tables that request for IPPE financials and net cash flows from operating activities.
B18: WK9 - Ratios: Request for five years of historical data (i.e. addition of yr -5 and -4).
B21: 2. CONTEXT AND SCOPE OF QA
B22: The modeller provides information about the context of the QA and the scope of work.
B24: 2.1 The model/spreadsheet is for (context)
B36: 2.2 The scope of the QA is to check
C38: Logic checks | F38: Input checks
B52: * provide details of requirements for "simplified duplication of analysis" and/or "sampling of inputs" in section 2.3 below.
B55: 2.3 Detailed scope of QA
B56: Specify clearly how to identify what needs to be checked (e.g. "check all calculations and inputs highlighted in green on the following worksheets: …")
B57: For "simplified duplications of analysis" (if applicable), specify how you and the QAer have agreed the analysis will be duplicated
B58: For "sampling of inputs" (if applicable), specify how you and the QAer have agreed the inputs will be sampled
B59: WK 0 - Input data:
B60: Check cell D44 = 2023
B61: Check that formulas in rows 54 to 60 are still correct as historical yrs 4 & 5 were added.
B62: Check that correct rate pegs have been copied into L269:N398 from D22/19313 -> pop factors
B63: Sense check to ensure index match populated correct rate pegs to each council in D270:D398
B64: Check all the FALSEs in E270:E398 and ensure that the return of FALSE was simply due to the same council being referred to by different names/naming conventions.
B66: WK 7 - Financials
B67: Check all formulas (i.e. white cells only) in the sheet.
B69: WK 9 - Ratios
B70: Check all formulas (i.e. white cells only) in the sheet.
B71: Check all hyperlinks in column Y work.
B73: Export
B74: Check that tables from row 1436 to 1532 reference the correct cells in the relevant sheets.
B94: 3. QA CHECK LIST
B96: 3.1 Pre-QA check list (for both medium and high risk QAs)
C98: Select an option
C100: Yes | D100: Is the model consistent with good modelling practice? | J100: DO NOT DELETE
C101: Yes | D101: Tables, inputs and outputs are clearly labelled, e.g.: | J101: Yes
D102: – Units e.g. $m, $’000, $ or cents, kL, MWh, GJ, etc | J102: No
D103: – Nominal or real | J103: NA
D104: – Including or excluding GST
C105: Yes | D105: The QAer can easily identify the parts of the model that need to be checked | J105: High
C106: No | D106: The model inputs reflect Tribunal decisions or information from the source documents or related models | J106: Medium
C107: No | D107: The source documents (or references) have all been located and provided to the QAer/s | J107: Low
J108: select
C109: No | D109: Has the QA scope been reviewed by the Chief Modeller? (Only applicable for external models and high risk price determinations)
B112: 3.2 QA check list (for RStudio scripts only)
C114: No | D114: Code was rerun successfully; or an alternative calculation successfully replicated results
C115: No | D115: Code is easy to follow, with comments highlighting different sections in code
C116: No | D116: Variable names are easy to understand
C117: No | D117: Test variables are used to check that data is not duplicated or excluded in error when joining data sources
C118: No | D118: If this QA is an update to an existing RStudio script, changes are highlighted and easy to find (e.g. a text comparison tool is used to compare scripts before and after change)
B121: 4 INDUSTRY TEAM REMINDER – POST QA SIGN OFF IN CM9
B123: Has the post-QA deliverable been CM9ed?
B124: Has the QA been signed off via action tracking in CM9 by the QA analyst and Director?

Sheet Export (hidden)
A1: Hide sheet before publishing
B3: EXPORT SHEET
B5: ='WK1 - Identification'!$F$5 -> WORKSHEET 1
B6: ='WK1 - Identification'!C13 -> Council Name: | D6: ='WK2 - Notional General Income'!$C$3 -> Queanbeyan-Palerang Regional Council
B7: Type of application | D7: ='WK1 - Identification'!K28 -> s508A
B8: Has existing SV? | D8: ='WK1 - Identification'!K24 -> no
B9: Yrs SV applies | D9: ='WK1 - Identification'!S31 -> 3
B10: Permanent or temporary? | D10: ='WK1 - Identification'!K30 -> Permanent
B11: No yrs if temporary | D11: ='WK1 - Identification'!K31 -> 0
B15: ='WK1 - Identification'!$F$5 -> WORKSHEET 1 | C15: Expiring exising SVs
D16: Expiry date
B17: ='WK1 - Identification'!I38 -> 1st Expiring SV | D17: ='WK1 - Identification'!K38 -> na
B18: ='WK1 - Identification'!I39 -> 2nd Expiring SV | D18: ='WK1 - Identification'!K39 -> na
B22: ='WK1 - Identification'!$F$5 -> WORKSHEET 1
B23: ='WK1 - Identification'!C49 -> E. Requested annual percentage increases and expiring SV amounts
H24: ='WK1 - Identification'!F55 -> Year 0 | I24: ='WK1 - Identification'!G55 -> Year 1 | J24: ='WK1 - Identification'!H55 -> Year 2 | K24: ='WK1 - Identification'!I55 -> Year 3 | L24: ='WK1 - Identification'!J55 -> Year 4 | M24: ='WK1 - Identification'!K55 -> Year 5 | N24: ='WK1 - Identification'!L55 -> Year 6 | O24: ='WK1 - Identification'!M55 -> Year 7
B25: ='WK1 - Identification'!C56 -> Financial year | H25: ='WK1 - Identification'!F56 -> 2022-23 | I25: ='WK1 - Identification'!G56 -> 2023-24 | J25: ='WK1 - Identification'!H56 -> 2024-25 | K25: ='WK1 - Identification'!I56 -> 2025-26 | L25: ='WK1 - Identification'!J56 -> 2026-27 | M25: ='WK1 - Identification'!K56 -> 2027-28 | N25: ='WK1 - Identification'!L56 -> 2028-29 | O25: ='WK1 - Identification'!M56 -> 2029-30
B26: ='WK1 - Identification'!C57 -> 1= included in SV period | I26: ='WK1 - Identification'!G57 -> 1 | J26: ='WK1 - Identification'!H57 -> 1 | K26: ='WK1 - Identification'!I57 -> 1 | L26: ='WK1 - Identification'!J57 -> 0 | M26: ='WK1 - Identification'!K57 -> 0 | N26: ='WK1 - Identification'!L57 -> 0 | O26: ='WK1 - Identification'!M57 -> 0
B27: ='WK1 - Identification'!C58 -> 0 = beyond temporary SV period | I27: ='WK1 - Identification'!G58 -> 1 | J27: ='WK1 - Identification'!H58 -> 1 | K27: ='WK1 - Identification'!I58 -> 1 | L27: ='WK1 - Identification'!J58 -> 1 | M27: ='WK1 - Identification'!K58 -> 1 | N27: ='WK1 - Identification'!L58 -> 1 | O27: ='WK1 - Identification'!M58 -> 1
B28: ='WK1 - Identification'!C59 -> Annual % increases
B29: ='WK1 - Identification'!C60 -> na - leave blank | I29: =IF($D$8="no",0,'WK1 - Identification'!G60) -> 0 | J29: =IF($D$8="no",0,'WK1 - Identification'!H60) -> 0 | K29: =IF($D$8="no",0,'WK1 - Identification'!I60) -> 0 | L29: =IF($D$8="no",0,'WK1 - Identification'!J60) -> 0 | M29: =IF($D$8="no",0,'WK1 - Identification'!K60) -> 0 | N29: =IF($D$8="no",0,'WK1 - Identification'!L60) -> 0 | O29: =IF($D$8="no",0,'WK1 - Identification'!M60) -> 0
B31: ='WK1 - Identification'!C62 -> Rate peg only | I31: ='WK1 - Identification'!G62 -> 0.046 | J31: ='WK1 - Identification'!H62 -> 0.025 | K31: ='WK1 - Identification'!I62 -> 0.025 | L31: ='WK1 - Identification'!J62 -> 0.025 | M31: ='WK1 - Identification'!K62 -> 0.025 | N31: ='WK1 - Identification'!L62 -> 0.025 | O31: ='WK1 - Identification'!M62 -> 0.025
B32: ='WK1 - Identification'!C63 -> plus | C32: ='WK1 - Identification'!D63 -> na | I32: ='WK1 - Identification'!G63 -> 0 | J32: ='WK1 - Identification'!H63 -> 0 | K32: ='WK1 - Identification'!I63 -> 0 | L32: ='WK1 - Identification'!J63 -> 0 | M32: ='WK1 - Identification'!K63 -> 0 | N32: ='WK1 - Identification'!L63 -> 0 | O32: ='WK1 - Identification'!M63 -> 0
B33: ='WK1 - Identification'!C64 -> plus | C33: ='WK1 - Identification'!D64 -> percentage above the rate peg | I33: ='WK1 - Identification'!G64 -> 0.134 | J33: ='WK1 - Identification'!H64 -> 0.155 | K33: ='WK1 - Identification'!I64 -> 0.155 | L33: ='WK1 - Identification'!J64 -> 0 | M33: ='WK1 - Identification'!K64 -> 0 | N33: ='WK1 - Identification'!L64 -> 0 | O33: ='WK1 - Identification'!M64 -> 0
B34: ='WK1 - Identification'!C65 -> plus | C34: ='WK1 - Identification'!D65 -> na - ignore this row | I34: =CHOOSE('WK1 - Identification'!$S$35,'WK1 - Identification'!G65,0) -> 0 | J34: =CHOOSE('WK1 - Identification'!$S$35,'WK1 - Identification'!H65,0) -> 0 | K34: =CHOOSE('WK1 - Identification'!$S$35,'WK1 - Identification'!I65,0) -> 0 | L34: =CHOOSE('WK1 - Identification'!$S$35,'WK1 - Identification'!J65,0) -> 0 | M34: =CHOOSE('WK1 - Identification'!$S$35,'WK1 - Identification'!K65,0) -> 0 | N34: =CHOOSE('WK1 - Identification'!$S$35,'WK1 - Identification'!L65,0) -> 0 | O34: =CHOOSE('WK1 - Identification'!$S$35,'WK1 - Identification'!M65,0) -> 0
B35: ='WK1 - Identification'!C66 -> plus | C35: ='WK1 - Identification'!D66 -> Crown Land adjustment | I35: ='WK1 - Identification'!G66 -> 0 | J35: ='WK1 - Identification'!H66 -> 0 | K35: ='WK1 - Identification'!I66 -> 0 | L35: ='WK1 - Identification'!J66 -> 0 | M35: ='WK1 - Identification'!K66 -> 0 | N35: ='WK1 - Identification'!L66 -> 0 | O35: ='WK1 - Identification'!M66 -> 0
B36: ='WK1 - Identification'!C67 -> Proposed SV | I36: =IF(I27=0,0,IF(I26=0,I31+I32,'WK1 - Identification'!G67)) -> 0.18 | J36: =IF(J27=0,0,IF(J26=0,J31+J32,'WK1 - Identification'!H67)) -> 0.18 | K36: =IF(K27=0,0,IF(K26=0,K31+K32,'WK1 - Identification'!I67)) -> 0.18 | L36: =IF(L27=0,0,IF(L26=0,L31+L32,'WK1 - Identification'!J67)) -> 0.025 | M36: =IF(M27=0,0,IF(M26=0,M31+M32,'WK1 - Identification'!K67)) -> 0.025 | N36: =IF(N27=0,0,IF(N26=0,N31+N32,'WK1 - Identification'!L67)) -> 0.025 | O36: =IF(O27=0,0,IF(O26=0,O31+O32,'WK1 - Identification'!M67)) -> 0.025
B37: ='WK1 - Identification'!C68 -> Cumulative % increase
B38: ='WK1 - Identification'!C69 -> Rate peg only | I38: ='WK1 - Identification'!G69 -> 0.046 | J38: ='WK1 - Identification'!H69 -> 0.07215 | K38: ='WK1 - Identification'!I69 -> 0.09895375 | L38: ='WK1 - Identification'!J69 -> 0.1264275937 | M38: ='WK1 - Identification'!K69 -> 0.1545882836 | N38: ='WK1 - Identification'!L69 -> 0.1834529907 | O38: ='WK1 - Identification'!M69 -> 0.2130393155
B39: ='WK1 - Identification'!C70 -> plus | C39: ='WK1 - Identification'!D70 -> additional increases | I39: ='WK1 - Identification'!G70 -> 0.134 | J39: ='WK1 - Identification'!H70 -> 0.32025 | K39: ='WK1 - Identification'!I70 -> 0.54407825 | L39: ='WK1 - Identification'!J70 -> 0 | M39: ='WK1 - Identification'!K70 -> 0 | N39: ='WK1 - Identification'!L70 -> 0 | O39: ='WK1 - Identification'!M70 -> 0
B40: ='WK1 - Identification'!C71 -> Proposed SV | I40: ='WK1 - Identification'!G71 -> 0.18 | J40: ='WK1 - Identification'!H71 -> 0.3924 | K40: ='WK1 - Identification'!I71 -> 0.643032 | L40: ='WK1 - Identification'!J71 -> 0.6841078 | M40: ='WK1 - Identification'!K71 -> 0.726210495 | N40: ='WK1 - Identification'!L71 -> 0.7693657574 | O40: ='WK1 - Identification'!M71 -> 0.8135999013
B42: ='WK1 - Identification'!C73 -> Expiring special variations
B43: ='WK1 - Identification'!C74 -> $ value of expiring special | I43: ='WK1 - Identification'!G74 -> 0 | J43: ='WK1 - Identification'!H74 -> 0 | K43: ='WK1 - Identification'!I74 -> 0 | L43: ='WK1 - Identification'!J74 -> 0 | M43: ='WK1 - Identification'!K74 -> 0 | N43: ='WK1 - Identification'!L74 -> 0 | O43: ='WK1 - Identification'!M74 -> 0
B44: ='WK1 - Identification'!C75 -> variations (ESV) | I44: ='WK1 - Identification'!G75 -> 0 | J44: ='WK1 - Identification'!H75 -> 0 | K44: ='WK1 - Identification'!I75 -> 0 | L44: ='WK1 - Identification'!J75 -> 0 | M44: ='WK1 - Identification'!K75 -> 0 | N44: ='WK1 - Identification'!L75 -> 0 | O44: ='WK1 - Identification'!M75 -> 0
B46: check = 0 | I46: =I36-SUM(I31:I35) -> 0 | J46: 0 | K46: 0 | L46: 0 | M46: 0 | N46: 0 | O46: 0
B49: ='WK4 - PGI summary'!$E$5 -> WORKSHEET 4
B50: ='WK4 - PGI summary'!B38 -> Note: PGI estimates for years beyond proposed and/or exisiting SV period shown in light grey font. PGI beyond a temporary SV period = 0
B51: ='WK0 - Input data'!B$54 -> Year number | E51: ='WK0 - Input data'!E$55 -> Hist yr 3 | F51: ='WK0 - Input data'!F$55 -> Hist yr 2 | G51: ='WK0 - Input data'!G$55 -> Hist yr 1 | H51: ='WK0 - Input data'!H$55 -> Year 0 | I51: ='WK0 - Input data'!I$55 -> Year 1 | J51: ='WK0 - Input data'!J$55 -> Year 2 | K51: ='WK0 - Input data'!K$55 -> Year 3 | L51: ='WK0 - Input data'!L$55 -> Year 4 | M51: ='WK0 - Input data'!M$55 -> Year 5 | N51: ='WK0 - Input data'!N$55 -> Year 6 | O51: ='WK0 - Input data'!O$55 -> Year 7 | P51: ='WK0 - Input data'!P$55 -> Year 8 | Q51: ='WK0 - Input data'!Q$55 -> Year 9 | R51: ='WK0 - Input data'!R$55 -> Year 10 | S51: ='WK4 - PGI summary'!N39 -> Total | T51: ='WK4 - PGI summary'!O39 -> increase
B52: ='WK0 - Input data'!B$58 -> Financial year | E52: ='WK0 - Input data'!E$58 -> 2019-20 | F52: ='WK0 - Input data'!F$58 -> 2020-21 | G52: ='WK0 - Input data'!G$58 -> 2021-22 | H52: ='WK0 - Input data'!H$58 -> 2022-23 | I52: ='WK0 - Input data'!I$58 -> 2023-24 | J52: ='WK0 - Input data'!J$58 -> 2024-25 | K52: ='WK0 - Input data'!K$58 -> 2025-26 | L52: ='WK0 - Input data'!L$58 -> 2026-27 | M52: ='WK0 - Input data'!M$58 -> 2027-28 | N52: ='WK0 - Input data'!N$58 -> 2028-29 | O52: ='WK0 - Input data'!O$58 -> 2029-30 | P52: ='WK0 - Input data'!P$58 -> 2030-31 | Q52: ='WK0 - Input data'!Q$58 -> 2031-32 | R52: ='WK0 - Input data'!R$58 -> 2032-33 | S52: ='WK4 - PGI summary'!N40 -> $ nominal | T52: ='WK4 - PGI summary'!O40 -> %
B54: ='WK4 - PGI summary'!C44 -> PGI with proposed SV
B55: ='WK4 - PGI summary'!C45 -> Prior year Notional General Income (NGI) | I55: ='WK4 - PGI summary'!G45 -> 42811496.07 | J55: ='WK4 - PGI summary'!H45 -> 50517551.37 | K55: ='WK4 - PGI summary'!I45 -> 59610710.61 | L55: ='WK4 - PGI summary'!J45 -> 70340638.52 | M55: ='WK4 - PGI summary'!K45 -> 72099154.48 | N55: ='WK4 - PGI summary'!L45 -> 73901633.35 | O55: ='WK4 - PGI summary'!M45 -> 75749174.18
B56: ='WK4 - PGI summary'!C46 -> less | C56: ='WK4 - PGI summary'!D46 -> expiry of a prior special variation | I56: ='WK4 - PGI summary'!G46 -> 0 | J56: ='WK4 - PGI summary'!H46 -> 0 | K56: ='WK4 - PGI summary'!I46 -> 0 | L56: ='WK4 - PGI summary'!J46 -> 0 | M56: ='WK4 - PGI summary'!K46 -> 0 | N56: ='WK4 - PGI summary'!L46 -> 0 | O56: ='WK4 - PGI summary'!M46 -> 0
B57: ='WK4 - PGI summary'!C47 -> Adjusted Notional General income | I57: ='WK4 - PGI summary'!G47 -> 42811496.07 | J57: ='WK4 - PGI summary'!H47 -> 50517551.37 | K57: ='WK4 - PGI summary'!I47 -> 59610710.61 | L57: ='WK4 - PGI summary'!J47 -> 70340638.52 | M57: ='WK4 - PGI summary'!K47 -> 72099154.48 | N57: ='WK4 - PGI summary'!L47 -> 73901633.35 | O57: ='WK4 - PGI summary'!M47 -> 75749174.18
B59: ='WK4 - PGI summary'!C49 -> plus | C59: ='WK4 - PGI summary'!D49 -> rate peg increase | I59: ='WK4 - PGI summary'!G49 -> 1969328.819 | J59: ='WK4 - PGI summary'!H49 -> 1262938.784 | K59: ='WK4 - PGI summary'!I49 -> 1490267.765 | L59: ='WK4 - PGI summary'!J49 -> 1758515.963 | M59: ='WK4 - PGI summary'!K49 -> 1802478.862 | N59: ='WK4 - PGI summary'!L49 -> 1847540.834 | O59: ='WK4 - PGI summary'!M49 -> 1893729.355
B60: ='WK4 - PGI summary'!C50 -> plus | C60: ='WK4 - PGI summary'!D50 -> na | I60: ='WK4 - PGI summary'!G50 -> 0 | J60: ='WK4 - PGI summary'!H50 -> 0 | K60: ='WK4 - PGI summary'!I50 -> 0 | L60: ='WK4 - PGI summary'!J50 -> 0 | M60: ='WK4 - PGI summary'!K50 -> 0 | N60: ='WK4 - PGI summary'!L50 -> 0 | O60: ='WK4 - PGI summary'!M50 -> 0
B61: ='WK4 - PGI summary'!C51 -> plus | C61: ='WK4 - PGI summary'!D51 -> additional increase | I61: ='WK4 - PGI summary'!G51 -> 5736740.474 | J61: ='WK4 - PGI summary'!H51 -> 7830220.462 | K61: ='WK4 - PGI summary'!I51 -> 9239660.145 | L61: ='WK4 - PGI summary'!J51 -> 0 | M61: ='WK4 - PGI summary'!K51 -> 0 | N61: ='WK4 - PGI summary'!L51 -> 0 | O61: ='WK4 - PGI summary'!M51 -> 0
B62: ='WK4 - PGI summary'!C52 -> plus | C62: ='WK4 - PGI summary'!D52 -> na | I62: ='WK4 - PGI summary'!G52 -> 0 | J62: ='WK4 - PGI summary'!H52 -> 0 | K62: ='WK4 - PGI summary'!I52 -> 0 | L62: ='WK4 - PGI summary'!J52 -> 0 | M62: ='WK4 - PGI summary'!K52 -> 0 | N62: ='WK4 - PGI summary'!L52 -> 0 | O62: ='WK4 - PGI summary'!M52 -> 0
B63: ='WK4 - PGI summary'!C53 -> plus | C63: ='WK4 - PGI summary'!D53 -> Crown Land adjustment | I63: ='WK4 - PGI summary'!G53 -> 0 | J63: ='WK4 - PGI summary'!H53 -> 0 | K63: ='WK4 - PGI summary'!I53 -> 0 | L63: ='WK4 - PGI summary'!J53 -> 0 | M63: ='WK4 - PGI summary'!K53 -> 0 | N63: ='WK4 - PGI summary'!L53 -> 0 | O63: ='WK4 - PGI summary'!M53 -> 0
B64: ='WK4 - PGI summary'!C54 -> Total proposed SV | I64: ='WK4 - PGI summary'!G54 -> 7706069.293 | J64: ='WK4 - PGI summary'!H54 -> 9093159.246 | K64: ='WK4 - PGI summary'!I54 -> 10729927.91 | L64: ='WK4 - PGI summary'!J54 -> 1758515.963 | M64: ='WK4 - PGI summary'!K54 -> 1802478.862 | N64: ='WK4 - PGI summary'!L54 -> 1847540.834 | O64: ='WK4 - PGI summary'!M54 -> 1893729.355
B66: ='WK4 - PGI summary'!C56 -> Notional General Income after SV applied | I66: ='WK4 - PGI summary'!G56 -> 50517565.37 | J66: ='WK4 - PGI summary'!H56 -> 59610710.61 | K66: ='WK4 - PGI summary'!I56 -> 70340638.52 | L66: ='WK4 - PGI summary'!J56 -> 72099154.48 | M66: ='WK4 - PGI summary'!K56 -> 73901633.35 | N66: ='WK4 - PGI summary'!L56 -> 75749174.18 | O66: ='WK4 - PGI summary'!M56 -> 77642903.53
B67: ='WK4 - PGI summary'!C57 -> plus | C67: ='WK4 - PGI summary'!D57 -> other 1st-year adjustments | I67: ='WK4 - PGI summary'!G57 -> -14 | J67: ='WK4 - PGI summary'!H57 -> 0 | K67: ='WK4 - PGI summary'!I57 -> 0 | L67: ='WK4 - PGI summary'!J57 -> 0 | M67: ='WK4 - PGI summary'!K57 -> 0 | N67: ='WK4 - PGI summary'!L57 -> 0 | O67: ='WK4 - PGI summary'!M57 -> 0
B68: ='WK4 - PGI summary'!C58 -> PGI with proposed SV | H68: ='WK4 - PGI summary'!F58 -> 42811496.07 | I68: ='WK4 - PGI summary'!G58 -> 50517551.37 | J68: ='WK4 - PGI summary'!H58 -> 59610710.61 | K68: ='WK4 - PGI summary'!I58 -> 70340638.52 | L68: ='WK4 - PGI summary'!J58 -> 72099154.48 | M68: ='WK4 - PGI summary'!K58 -> 73901633.35 | N68: ='WK4 - PGI summary'!L58 -> 75749174.18 | O68: ='WK4 - PGI summary'!M58 -> 77642903.53 | S68: ='WK4 - PGI summary'!N58 -> 27529142.45 | T68: ='WK4 - PGI summary'!O58 -> 0.6430315447
B69: check = 0 | I69: =I55-I56+SUM(I59:I63)+I67-I68 -> 0 | J69: =J55-J56+SUM(J59:J63)+J67-J68 -> 0 | K69: 0 | L69: 0 | M69: 0 | N69: 0 | O69: 0 | S69: =INDEX(H68:O68,1,$D$9+1)-H68-S68 -> 0
B71: ='WK4 - PGI summary'!C61 -> PGI if only the rate peg applied
B72: ='WK4 - PGI summary'!C62 -> Prior year Notional General Income (NGI) | I72: ='WK4 - PGI summary'!G62 -> 42811496.07 | J72: ='WK4 - PGI summary'!H62 -> 44780810.89 | K72: ='WK4 - PGI summary'!I62 -> 45900331.16 | L72: ='WK4 - PGI summary'!J62 -> 47047839.44 | M72: ='WK4 - PGI summary'!K62 -> 48224035.43 | N72: ='WK4 - PGI summary'!L62 -> 49429636.32 | O72: ='WK4 - PGI summary'!M62 -> 50665377.22
B73: ='WK4 - PGI summary'!C63 -> less | C73: ='WK4 - PGI summary'!D63 -> expiry of a prior special variation | I73: ='WK4 - PGI summary'!G63 -> 0 | J73: ='WK4 - PGI summary'!H63 -> 0 | K73: ='WK4 - PGI summary'!I63 -> 0 | L73: ='WK4 - PGI summary'!J63 -> 0 | M73: ='WK4 - PGI summary'!K63 -> 0 | N73: ='WK4 - PGI summary'!L63 -> 0 | O73: ='WK4 - PGI summary'!M63 -> 0
B74: ='WK4 - PGI summary'!C64 -> Adjusted Notional General income | I74: ='WK4 - PGI summary'!G64 -> 42811496.07 | J74: ='WK4 - PGI summary'!H64 -> 44780810.89 | K74: ='WK4 - PGI summary'!I64 -> 45900331.16 | L74: ='WK4 - PGI summary'!J64 -> 47047839.44 | M74: ='WK4 - PGI summary'!K64 -> 48224035.43 | N74: ='WK4 - PGI summary'!L64 -> 49429636.32 | O74: ='WK4 - PGI summary'!M64 -> 50665377.22
B75: ='WK4 - PGI summary'!C65 -> plus | C75: ='WK4 - PGI summary'!D65 -> rate peg increase | I75: ='WK4 - PGI summary'!G65 -> 1969328.819 | J75: ='WK4 - PGI summary'!H65 -> 1119520.272 | K75: ='WK4 - PGI summary'!I65 -> 1147508.279 | L75: ='WK4 - PGI summary'!J65 -> 1176195.986 | M75: ='WK4 - PGI summary'!K65 -> 1205600.886 | N75: ='WK4 - PGI summary'!L65 -> 1235740.908 | O75: ='WK4 - PGI summary'!M65 -> 1266634.431
B76: ='WK4 - PGI summary'!C66 -> plus | C76: ='WK4 - PGI summary'!D66 -> na | I76: ='WK4 - PGI summary'!G66 -> 0 | J76: ='WK4 - PGI summary'!H66 -> 0 | K76: ='WK4 - PGI summary'!I66 -> 0 | L76: ='WK4 - PGI summary'!J66 -> 0 | M76: ='WK4 - PGI summary'!K66 -> 0 | N76: ='WK4 - PGI summary'!L66 -> 0 | O76: ='WK4 - PGI summary'!M66 -> 0
B77: ='WK4 - PGI summary'!C67 -> plus | C77: ='WK4 - PGI summary'!D67 -> other 1st-year adjustments | I77: ='WK4 - PGI summary'!G67 -> -14 | J77: ='WK4 - PGI summary'!H67 -> 0 | K77: ='WK4 - PGI summary'!I67 -> 0 | L77: ='WK4 - PGI summary'!J67 -> 0 | M77: ='WK4 - PGI summary'!K67 -> 0 | N77: ='WK4 - PGI summary'!L67 -> 0 | O77: ='WK4 - PGI summary'!M67 -> 0
B78: ='WK4 - PGI summary'!C68 -> PGI if only the rate peg applied | H78: ='WK4 - PGI summary'!F68 -> 42811496.07 | I78: ='WK4 - PGI summary'!G68 -> 44780810.89 | J78: ='WK4 - PGI summary'!H68 -> 45900331.16 | K78: ='WK4 - PGI summary'!I68 -> 47047839.44 | L78: ='WK4 - PGI summary'!J68 -> 48224035.43 | M78: ='WK4 - PGI summary'!K68 -> 49429636.32 | N78: ='WK4 - PGI summary'!L68 -> 50665377.22 | O78: ='WK4 - PGI summary'!M68 -> 51932011.65 | S78: ='WK4 - PGI summary'!N68 -> 4236343.371 | T78: ='WK4 - PGI summary'!O68 -> 0.09895340643
B79: check = 0 | I79: =I72-I73+SUM(I75:I77)-I78 -> 0 | J79: =J72-J73+SUM(J75:J77)-J78 -> 0 | K79: 0 | L79: 0 | M79: 0 | N79: 0 | O79: 0 | S79: =INDEX(H78:O78,1,$D$9+1)-H78-S78 -> 0
B81: ='WK4 - PGI summary'!C71 -> PGI if expiring SV renewed and only rate peg applied
B82: ='WK4 - PGI summary'!C72 -> Prior year Notional General Income (NGI) | I82: ='WK4 - PGI summary'!G72 -> 42811496.07 | J82: ='WK4 - PGI summary'!H72 -> 44780810.89 | K82: ='WK4 - PGI summary'!I72 -> 45900331.16 | L82: ='WK4 - PGI summary'!J72 -> 47047839.44 | M82: ='WK4 - PGI summary'!K72 -> 48224035.43 | N82: ='WK4 - PGI summary'!L72 -> 49429636.32 | O82: ='WK4 - PGI summary'!M72 -> 50665377.22
B83: ='WK4 - PGI summary'!C73 -> plus | C83: ='WK4 - PGI summary'!D73 -> rate peg increase | I83: ='WK4 - PGI summary'!G73 -> 1969328.819 | J83: ='WK4 - PGI summary'!H73 -> 1119520.272 | K83: ='WK4 - PGI summary'!I73 -> 1147508.279 | L83: ='WK4 - PGI summary'!J73 -> 1176195.986 | M83: ='WK4 - PGI summary'!K73 -> 1205600.886 | N83: ='WK4 - PGI summary'!L73 -> 1235740.908 | O83: ='WK4 - PGI summary'!M73 -> 1266634.431
B84: ='WK4 - PGI summary'!C74 -> plus | C84: ='WK4 - PGI summary'!D74 -> na | I84: ='WK4 - PGI summary'!G74 -> 0 | J84: ='WK4 - PGI summary'!H74 -> 0 | K84: ='WK4 - PGI summary'!I74 -> 0 | L84: ='WK4 - PGI summary'!J74 -> 0 | M84: ='WK4 - PGI summary'!K74 -> 0 | N84: ='WK4 - PGI summary'!L74 -> 0 | O84: ='WK4 - PGI summary'!M74 -> 0
B85: ='WK4 - PGI summary'!C75 -> plus | C85: ='WK4 - PGI summary'!D75 -> other 1st-year adjustments | I85: ='WK4 - PGI summary'!G75 -> -14 | J85: ='WK4 - PGI summary'!H75 -> 0 | K85: ='WK4 - PGI summary'!I75 -> 0 | L85: ='WK4 - PGI summary'!J75 -> 0 | M85: ='WK4 - PGI summary'!K75 -> 0 | N85: ='WK4 - PGI summary'!L75 -> 0 | O85: ='WK4 - PGI summary'!M75 -> 0
B86: ='WK4 - PGI summary'!C76 -> PGI if expiring SV renewed and only rate peg applied | H86: ='WK4 - PGI summary'!F76 -> 42811496.07 | I86: ='WK4 - PGI summary'!G76 -> 44780810.89 | J86: ='WK4 - PGI summary'!H76 -> 45900331.16 | K86: ='WK4 - PGI summary'!I76 -> 47047839.44 | L86: ='WK4 - PGI summary'!J76 -> 48224035.43 | M86: ='WK4 - PGI summary'!K76 -> 49429636.32 | N86: ='WK4 - PGI summary'!L76 -> 50665377.22 | O86: ='WK4 - PGI summary'!M76 -> 51932011.65 | S86: ='WK4 - PGI summary'!N76 -> 4236343.371 | T86: ='WK4 - PGI summary'!O76 -> 0.09895340643
B87: check = 0 | I87: =I82+SUM(I83:I85)-I86 -> 0 | J87: =J82+SUM(J83:J85)-J86 -> 0 | K87: 0 | L87: 0 | M87: 0 | N87: 0 | O87: 0 | S87: =INDEX(H86:O86,1,$D$9+1)-H86-S86 -> 0
B91: ='WK4 - PGI summary'!$E$5 -> WORKSHEET 4
B92: ='WK4 - PGI summary'!B81 -> INCREASES IN PERMISSABLE GENERAL INCOME (PGI) OVER PROPOSED SV PERIOD (nominal)
B93: =B$51 -> Year number | E93: =E$51 -> Hist yr 3 | F93: Hist yr 2 | G93: Hist yr 1 | H93: Year 0 | I93: Year 1 | J93: Year 2 | K93: Year 3 | L93: Year 4 | M93: Year 5 | N93: Year 6 | O93: Year 7 | P93: Year 8 | Q93: Year 9 | R93: Year 10 | S93: ='WK4 - PGI summary'!N83 -> Total | T93: ='WK4 - PGI summary'!O83 -> increase
B94: =B$52 -> Financial year | E94: =E$52 -> 2019-20 | F94: 2020-21 | G94: 2021-22 | H94: 2022-23 | I94: 2023-24 | J94: 2024-25 | K94: 2025-26 | L94: 2026-27 | M94: 2027-28 | N94: 2028-29 | O94: 2029-30 | P94: 2030-31 | Q94: 2031-32 | R94: 2032-33 | S94: ='WK4 - PGI summary'!N84 -> $ nominal | T94: ='WK4 - PGI summary'!O84 -> %
B96: ='WK4 - PGI summary'!C86 -> Annual % increase in PGI
B97: ='WK4 - PGI summary'!C87 -> PGI with proposed SV | D97: ='WK4 - PGI summary'!E87 -> % | I97: ='WK4 - PGI summary'!G87 -> 0.179999673 | J97: ='WK4 - PGI summary'!H87 -> 0.18 | K97: ='WK4 - PGI summary'!I87 -> 0.18 | L97: ='WK4 - PGI summary'!J87 -> 0.025 | M97: ='WK4 - PGI summary'!K87 -> 0.025 | N97: ='WK4 - PGI summary'!L87 -> 0.025 | O97: ='WK4 - PGI summary'!M87 -> 0.025 | T97: ='WK4 - PGI summary'!O87 -> 0.6430315447
B98: ='WK4 - PGI summary'!C88 -> PGI if only the rate peg applied | D98: ='WK4 - PGI summary'!E88 -> % | I98: ='WK4 - PGI summary'!G88 -> 0.04599967299 | J98: ='WK4 - PGI summary'!H88 -> 0.025 | K98: ='WK4 - PGI summary'!I88 -> 0.025 | L98: ='WK4 - PGI summary'!J88 -> 0.025 | M98: ='WK4 - PGI summary'!K88 -> 0.025 | N98: ='WK4 - PGI summary'!L88 -> 0.025 | O98: ='WK4 - PGI summary'!M88 -> 0.025 | T98: ='WK4 - PGI summary'!O88 -> 0.09895340643
B99: ='WK4 - PGI summary'!C89 -> PGI if expiring SV renewed and only rate peg applied | D99: ='WK4 - PGI summary'!E89 -> % | I99: ='WK4 - PGI summary'!G89 -> 0.04599967299 | J99: ='WK4 - PGI summary'!H89 -> 0.025 | K99: ='WK4 - PGI summary'!I89 -> 0.025 | L99: ='WK4 - PGI summary'!J89 -> 0.025 | M99: ='WK4 - PGI summary'!K89 -> 0.025 | N99: ='WK4 - PGI summary'!L89 -> 0.025 | O99: ='WK4 - PGI summary'!M89 -> 0.025 | T99: ='WK4 - PGI summary'!O89 -> 0.09895340643
B101: ='WK4 - PGI summary'!C91 -> Annual $ increase in PGI
B102: ='WK4 - PGI summary'!C92 -> PGI with proposed SV | D102: ='WK4 - PGI summary'!E92 -> $ nominal | I102: ='WK4 - PGI summary'!G92 -> 7706055.293 | J102: ='WK4 - PGI summary'!H92 -> 9093159.246 | K102: ='WK4 - PGI summary'!I92 -> 10729927.91 | L102: ='WK4 - PGI summary'!J92 -> 1758515.963 | M102: ='WK4 - PGI summary'!K92 -> 1802478.862 | N102: ='WK4 - PGI summary'!L92 -> 1847540.834 | O102: ='WK4 - PGI summary'!M92 -> 1893729.355 | S102: ='WK4 - PGI summary'!N92 -> 27529142.45 | T102: ='WK4 - PGI summary'!O92 -> 0.6430315447
B103: ='WK4 - PGI summary'!C93 -> PGI if only the rate peg applied | D103: ='WK4 - PGI summary'!E93 -> $ nominal | I103: ='WK4 - PGI summary'!G93 -> 1969314.819 | J103: ='WK4 - PGI summary'!H93 -> 1119520.272 | K103: ='WK4 - PGI summary'!I93 -> 1147508.279 | L103: ='WK4 - PGI summary'!J93 -> 1176195.986 | M103: ='WK4 - PGI summary'!K93 -> 1205600.886 | N103: ='WK4 - PGI summary'!L93 -> 1235740.908 | O103: ='WK4 - PGI summary'!M93 -> 1266634.431 | S103: ='WK4 - PGI summary'!N93 -> 4236343.371 | T103: ='WK4 - PGI summary'!O93 -> 0.09895340643
B104: ='WK4 - PGI summary'!C94 -> PGI if expiring SV renewed and only rate peg applied | D104: ='WK4 - PGI summary'!E94 -> $ nominal | I104: ='WK4 - PGI summary'!G94 -> 1969314.819 | J104: ='WK4 - PGI summary'!H94 -> 1119520.272 | K104: ='WK4 - PGI summary'!I94 -> 1147508.279 | L104: ='WK4 - PGI summary'!J94 -> 1176195.986 | M104: ='WK4 - PGI summary'!K94 -> 1205600.886 | N104: ='WK4 - PGI summary'!L94 -> 1235740.908 | O104: ='WK4 - PGI summary'!M94 -> 1266634.431 | S104: ='WK4 - PGI summary'!N94 -> 4236343.371 | T104: ='WK4 - PGI summary'!O94 -> 0.09895340643
B106: ='WK4 - PGI summary'!C96 -> Annual $ increase in PGI with proposed SV more than:
B107: ='WK4 - PGI summary'!C97 -> PGI if only the rate peg applied | D107: ='WK4 - PGI summary'!E97 -> $ nominal | I107: ='WK4 - PGI summary'!G97 -> 5736740.474 | J107: ='WK4 - PGI summary'!H97 -> 7973638.974 | K107: ='WK4 - PGI summary'!I97 -> 9582419.631 | L107: ='WK4 - PGI summary'!J97 -> 582319.977 | M107: ='WK4 - PGI summary'!K97 -> 596877.9764 | N107: ='WK4 - PGI summary'!L97 -> 611799.9258 | O107: ='WK4 - PGI summary'!M97 -> 627094.9239 | S107: ='WK4 - PGI summary'!N97 -> 23292799.08 | T107: ='WK4 - PGI summary'!O97 -> 0.5440781382
B108: ='WK4 - PGI summary'!C98 -> PGI if expiring SV renewed and only rate peg applied | D108: ='WK4 - PGI summary'!E98 -> $ nominal | I108: ='WK4 - PGI summary'!G98 -> 5736740.474 | J108: ='WK4 - PGI summary'!H98 -> 7973638.974 | K108: ='WK4 - PGI summary'!I98 -> 9582419.631 | L108: ='WK4 - PGI summary'!J98 -> 582319.977 | M108: ='WK4 - PGI summary'!K98 -> 596877.9764 | N108: ='WK4 - PGI summary'!L98 -> 611799.9258 | O108: ='WK4 - PGI summary'!M98 -> 627094.9239 | S108: ='WK4 - PGI summary'!N98 -> 23292799.08 | T108: ='WK4 - PGI summary'!O98 -> 0.5440781382
B110: ='WK4 - PGI summary'!C100 -> Cumulative PGI
B111: ='WK4 - PGI summary'!C101 -> PGI with proposed SV | D111: ='WK4 - PGI summary'!E101 -> $ nominal | I111: ='WK4 - PGI summary'!G101 -> 50517551.37 | J111: ='WK4 - PGI summary'!H101 -> 110128262 | K111: ='WK4 - PGI summary'!I101 -> 180468900.5 | L111: ='WK4 - PGI summary'!J101 -> 252568055 | M111: ='WK4 - PGI summary'!K101 -> 326469688.3 | N111: ='WK4 - PGI summary'!L101 -> 402218862.5 | O111: ='WK4 - PGI summary'!M101 -> 479861766 | S111: ='WK4 - PGI summary'!N101 -> 341114713.8 | T111: ='WK4 - PGI summary'!O101 -> 0
B112: ='WK4 - PGI summary'!C102 -> PGI if only the rate peg applied | D112: ='WK4 - PGI summary'!E102 -> $ nominal | I112: ='WK4 - PGI summary'!G102 -> 44780810.89 | J112: ='WK4 - PGI summary'!H102 -> 90681142.06 | K112: ='WK4 - PGI summary'!I102 -> 137728981.5 | L112: ='WK4 - PGI summary'!J102 -> 185953016.9 | M112: ='WK4 - PGI summary'!K102 -> 235382653.2 | N112: ='WK4 - PGI summary'!L102 -> 286048030.5 | O112: ='WK4 - PGI summary'!M102 -> 337980042.1 | S112: ='WK4 - PGI summary'!N102 -> 273190934.4 | T112: ='WK4 - PGI summary'!O102 -> 0
B117: ='WK5a - Impact on Rates'!$F$5 -> WORKSHEET 5a
B118: IMPACT ON AVERAGE RATES | D118: ='WK5a - Impact on Rates'!H21 -> $ nominal per year
B119: =B$51 -> Year number | E119: =E$51 -> Hist yr 3 | F119: Hist yr 2 | G119: Hist yr 1 | H119: Year 0 | I119: Year 1 | J119: Year 2 | K119: Year 3 | L119: Year 4 | M119: Year 5 | N119: Year 6 | O119: Year 7 | P119: Year 8 | Q119: Year 9 | R119: Year 10
B120: =B$52 -> Financial year | E120: =E$52 -> 2019-20 | F120: 2020-21 | G120: 2021-22 | H120: 2022-23 | I120: 2023-24 | J120: 2024-25 | K120: 2025-26 | L120: 2026-27 | M120: 2027-28 | N120: 2028-29 | O120: 2029-30 | P120: 2030-31 | Q120: 2031-32 | R120: 2032-33
B122: ='WK5a - Impact on Rates'!C21 -> Minimum Rates - with proposed special variation
B123: ='WK5a - Impact on Rates'!C24 -> Residential | C123: ='WK5a - Impact on Rates'!D24 -> General | H123: ='WK5a - Impact on Rates'!E24 -> 0 | I123: ='WK5a - Impact on Rates'!F24 -> 0 | J123: ='WK5a - Impact on Rates'!G24 -> 0 | K123: ='WK5a - Impact on Rates'!H24 -> 0 | L123: ='WK5a - Impact on Rates'!I24 -> 0 | M123: ='WK5a - Impact on Rates'!J24 -> 0 | N123: ='WK5a - Impact on Rates'!K24 -> 0 | O123: ='WK5a - Impact on Rates'!L24 -> 0
B124: ='WK5a - Impact on Rates'!C25 -> Residential | C124: ='WK5a - Impact on Rates'!D25 -> Queanbeyan- Urban | H124: ='WK5a - Impact on Rates'!E25 -> 0 | I124: ='WK5a - Impact on Rates'!F25 -> 0 | J124: ='WK5a - Impact on Rates'!G25 -> 0 | K124: ='WK5a - Impact on Rates'!H25 -> 0 | L124: ='WK5a - Impact on Rates'!I25 -> 0 | M124: ='WK5a - Impact on Rates'!J25 -> 0 | N124: ='WK5a - Impact on Rates'!K25 -> 0 | O124: ='WK5a - Impact on Rates'!L25 -> 0
B125: ='WK5a - Impact on Rates'!C26 -> Residential | C125: ='WK5a - Impact on Rates'!D26 -> Googong | H125: ='WK5a - Impact on Rates'!E26 -> 0 | I125: ='WK5a - Impact on Rates'!F26 -> 0 | J125: ='WK5a - Impact on Rates'!G26 -> 0 | K125: ='WK5a - Impact on Rates'!H26 -> 0 | L125: ='WK5a - Impact on Rates'!I26 -> 0 | M125: ='WK5a - Impact on Rates'!J26 -> 0 | N125: ='WK5a - Impact on Rates'!K26 -> 0 | O125: ='WK5a - Impact on Rates'!L26 -> 0
B126: ='WK5a - Impact on Rates'!C27 -> Residential | C126: ='WK5a - Impact on Rates'!D27 -> Bungendore | H126: ='WK5a - Impact on Rates'!E27 -> 0 | I126: ='WK5a - Impact on Rates'!F27 -> 0 | J126: ='WK5a - Impact on Rates'!G27 -> 0 | K126: ='WK5a - Impact on Rates'!H27 -> 0 | L126: ='WK5a - Impact on Rates'!I27 -> 0 | M126: ='WK5a - Impact on Rates'!J27 -> 0 | N126: ='WK5a - Impact on Rates'!K27 -> 0 | O126: ='WK5a - Impact on Rates'!L27 -> 0
B127: ='WK5a - Impact on Rates'!C28 -> Residential | C127: ='WK5a - Impact on Rates'!D28 -> Braidwood | H127: ='WK5a - Impact on Rates'!E28 -> 0 | I127: ='WK5a - Impact on Rates'!F28 -> 0 | J127: ='WK5a - Impact on Rates'!G28 -> 0 | K127: ='WK5a - Impact on Rates'!H28 -> 0 | L127: ='WK5a - Impact on Rates'!I28 -> 0 | M127: ='WK5a - Impact on Rates'!J28 -> 0 | N127: ='WK5a - Impact on Rates'!K28 -> 0 | O127: ='WK5a - Impact on Rates'!L28 -> 0
B128: ='WK5a - Impact on Rates'!C29 -> Residential | C128: ='WK5a - Impact on Rates'!D29 ->  | H128: ='WK5a - Impact on Rates'!E29 -> 0 | I128: ='WK5a - Impact on Rates'!F29 -> 0 | J128: ='WK5a - Impact on Rates'!G29 -> 0 | K128: ='WK5a - Impact on Rates'!H29 -> 0 | L128: ='WK5a - Impact on Rates'!I29 -> 0 | M128: ='WK5a - Impact on Rates'!J29 -> 0 | N128: ='WK5a - Impact on Rates'!K29 -> 0 | O128: ='WK5a - Impact on Rates'!L29 -> 0
B129: ='WK5a - Impact on Rates'!C30 -> Residential | C129: ='WK5a - Impact on Rates'!D30 ->  | H129: ='WK5a - Impact on Rates'!E30 -> 0 | I129: ='WK5a - Impact on Rates'!F30 -> 0 | J129: ='WK5a - Impact on Rates'!G30 -> 0 | K129: ='WK5a - Impact on Rates'!H30 -> 0 | L129: ='WK5a - Impact on Rates'!I30 -> 0 | M129: ='WK5a - Impact on Rates'!J30 -> 0 | N129: ='WK5a - Impact on Rates'!K30 -> 0 | O129: ='WK5a - Impact on Rates'!L30 -> 0
B130: ='WK5a - Impact on Rates'!C31 -> Residential | C130: ='WK5a - Impact on Rates'!D31 ->  | H130: ='WK5a - Impact on Rates'!E31 -> 0 | I130: ='WK5a - Impact on Rates'!F31 -> 0 | J130: ='WK5a - Impact on Rates'!G31 -> 0 | K130: ='WK5a - Impact on Rates'!H31 -> 0 | L130: ='WK5a - Impact on Rates'!I31 -> 0 | M130: ='WK5a - Impact on Rates'!J31 -> 0 | N130: ='WK5a - Impact on Rates'!K31 -> 0 | O130: ='WK5a - Impact on Rates'!L31 -> 0
B131: ='WK5a - Impact on Rates'!C32 -> Residential | C131: ='WK5a - Impact on Rates'!D32 ->  | H131: ='WK5a - Impact on Rates'!E32 -> 0 | I131: ='WK5a - Impact on Rates'!F32 -> 0 | J131: ='WK5a - Impact on Rates'!G32 -> 0 | K131: ='WK5a - Impact on Rates'!H32 -> 0 | L131: ='WK5a - Impact on Rates'!I32 -> 0 | M131: ='WK5a - Impact on Rates'!J32 -> 0 | N131: ='WK5a - Impact on Rates'!K32 -> 0 | O131: ='WK5a - Impact on Rates'!L32 -> 0
B132: ='WK5a - Impact on Rates'!C33 -> Residential | C132: ='WK5a - Impact on Rates'!D33 ->  | H132: ='WK5a - Impact on Rates'!E33 -> 0 | I132: ='WK5a - Impact on Rates'!F33 -> 0 | J132: ='WK5a - Impact on Rates'!G33 -> 0 | K132: ='WK5a - Impact on Rates'!H33 -> 0 | L132: ='WK5a - Impact on Rates'!I33 -> 0 | M132: ='WK5a - Impact on Rates'!J33 -> 0 | N132: ='WK5a - Impact on Rates'!K33 -> 0 | O132: ='WK5a - Impact on Rates'!L33 -> 0
B133: ='WK5a - Impact on Rates'!C34 -> Residential | C133: ='WK5a - Impact on Rates'!D34 ->  | H133: ='WK5a - Impact on Rates'!E34 -> 0 | I133: ='WK5a - Impact on Rates'!F34 -> 0 | J133: ='WK5a - Impact on Rates'!G34 -> 0 | K133: ='WK5a - Impact on Rates'!H34 -> 0 | L133: ='WK5a - Impact on Rates'!I34 -> 0 | M133: ='WK5a - Impact on Rates'!J34 -> 0 | N133: ='WK5a - Impact on Rates'!K34 -> 0 | O133: ='WK5a - Impact on Rates'!L34 -> 0
B134: ='WK5a - Impact on Rates'!C35 -> Residential | C134: ='WK5a - Impact on Rates'!D35 ->  | H134: ='WK5a - Impact on Rates'!E35 -> 0 | I134: ='WK5a - Impact on Rates'!F35 -> 0 | J134: ='WK5a - Impact on Rates'!G35 -> 0 | K134: ='WK5a - Impact on Rates'!H35 -> 0 | L134: ='WK5a - Impact on Rates'!I35 -> 0 | M134: ='WK5a - Impact on Rates'!J35 -> 0 | N134: ='WK5a - Impact on Rates'!K35 -> 0 | O134: ='WK5a - Impact on Rates'!L35 -> 0
B135: ='WK5a - Impact on Rates'!C36 -> Residential | C135: ='WK5a - Impact on Rates'!D36 ->  | H135: ='WK5a - Impact on Rates'!E36 -> 0 | I135: ='WK5a - Impact on Rates'!F36 -> 0 | J135: ='WK5a - Impact on Rates'!G36 -> 0 | K135: ='WK5a - Impact on Rates'!H36 -> 0 | L135: ='WK5a - Impact on Rates'!I36 -> 0 | M135: ='WK5a - Impact on Rates'!J36 -> 0 | N135: ='WK5a - Impact on Rates'!K36 -> 0 | O135: ='WK5a - Impact on Rates'!L36 -> 0
B136: ='WK5a - Impact on Rates'!C37 -> Residential | C136: ='WK5a - Impact on Rates'!D37 ->  | H136: ='WK5a - Impact on Rates'!E37 -> 0 | I136: ='WK5a - Impact on Rates'!F37 -> 0 | J136: ='WK5a - Impact on Rates'!G37 -> 0 | K136: ='WK5a - Impact on Rates'!H37 -> 0 | L136: ='WK5a - Impact on Rates'!I37 -> 0 | M136: ='WK5a - Impact on Rates'!J37 -> 0 | N136: ='WK5a - Impact on Rates'!K37 -> 0 | O136: ='WK5a - Impact on Rates'!L37 -> 0
B137: ='WK5a - Impact on Rates'!C38 -> Residential | C137: ='WK5a - Impact on Rates'!D38 ->  | H137: ='WK5a - Impact on Rates'!E38 -> 0 | I137: ='WK5a - Impact on Rates'!F38 -> 0 | J137: ='WK5a - Impact on Rates'!G38 -> 0 | K137: ='WK5a - Impact on Rates'!H38 -> 0 | L137: ='WK5a - Impact on Rates'!I38 -> 0 | M137: ='WK5a - Impact on Rates'!J38 -> 0 | N137: ='WK5a - Impact on Rates'!K38 -> 0 | O137: ='WK5a - Impact on Rates'!L38 -> 0
B138: ='WK5a - Impact on Rates'!C39 -> Residential | C138: ='WK5a - Impact on Rates'!D39 ->  | H138: ='WK5a - Impact on Rates'!E39 -> 0 | I138: ='WK5a - Impact on Rates'!F39 -> 0 | J138: ='WK5a - Impact on Rates'!G39 -> 0 | K138: ='WK5a - Impact on Rates'!H39 -> 0 | L138: ='WK5a - Impact on Rates'!I39 -> 0 | M138: ='WK5a - Impact on Rates'!J39 -> 0 | N138: ='WK5a - Impact on Rates'!K39 -> 0 | O138: ='WK5a - Impact on Rates'!L39 -> 0
B139: ='WK5a - Impact on Rates'!C40 -> Residential | C139: ='WK5a - Impact on Rates'!D40 ->  | H139: ='WK5a - Impact on Rates'!E40 -> 0 | I139: ='WK5a - Impact on Rates'!F40 -> 0 | J139: ='WK5a - Impact on Rates'!G40 -> 0 | K139: ='WK5a - Impact on Rates'!H40 -> 0 | L139: ='WK5a - Impact on Rates'!I40 -> 0 | M139: ='WK5a - Impact on Rates'!J40 -> 0 | N139: ='WK5a - Impact on Rates'!K40 -> 0 | O139: ='WK5a - Impact on Rates'!L40 -> 0
B140: ='WK5a - Impact on Rates'!C41 -> Residential | C140: ='WK5a - Impact on Rates'!D41 ->  | H140: ='WK5a - Impact on Rates'!E41 -> 0 | I140: ='WK5a - Impact on Rates'!F41 -> 0 | J140: ='WK5a - Impact on Rates'!G41 -> 0 | K140: ='WK5a - Impact on Rates'!H41 -> 0 | L140: ='WK5a - Impact on Rates'!I41 -> 0 | M140: ='WK5a - Impact on Rates'!J41 -> 0 | N140: ='WK5a - Impact on Rates'!K41 -> 0 | O140: ='WK5a - Impact on Rates'!L41 -> 0
B141: ='WK5a - Impact on Rates'!C42 -> Residential | C141: ='WK5a - Impact on Rates'!D42 ->  | H141: ='WK5a - Impact on Rates'!E42 -> 0 | I141: ='WK5a - Impact on Rates'!F42 -> 0 | J141: ='WK5a - Impact on Rates'!G42 -> 0 | K141: ='WK5a - Impact on Rates'!H42 -> 0 | L141: ='WK5a - Impact on Rates'!I42 -> 0 | M141: ='WK5a - Impact on Rates'!J42 -> 0 | N141: ='WK5a - Impact on Rates'!K42 -> 0 | O141: ='WK5a - Impact on Rates'!L42 -> 0
B142: ='WK5a - Impact on Rates'!C43 -> Residential | C142: ='WK5a - Impact on Rates'!D43 ->  | H142: ='WK5a - Impact on Rates'!E43 -> 0 | I142: ='WK5a - Impact on Rates'!F43 -> 0 | J142: ='WK5a - Impact on Rates'!G43 -> 0 | K142: ='WK5a - Impact on Rates'!H43 -> 0 | L142: ='WK5a - Impact on Rates'!I43 -> 0 | M142: ='WK5a - Impact on Rates'!J43 -> 0 | N142: ='WK5a - Impact on Rates'!K43 -> 0 | O142: ='WK5a - Impact on Rates'!L43 -> 0
B143: ='WK5a - Impact on Rates'!C45 -> Business | C143: ='WK5a - Impact on Rates'!D45 -> General | H143: ='WK5a - Impact on Rates'!E45 -> 0 | I143: ='WK5a - Impact on Rates'!F45 -> 0 | J143: ='WK5a - Impact on Rates'!G45 -> 0 | K143: ='WK5a - Impact on Rates'!H45 -> 0 | L143: ='WK5a - Impact on Rates'!I45 -> 0 | M143: ='WK5a - Impact on Rates'!J45 -> 0 | N143: ='WK5a - Impact on Rates'!K45 -> 0 | O143: ='WK5a - Impact on Rates'!L45 -> 0
B144: ='WK5a - Impact on Rates'!C46 -> Business | C144: ='WK5a - Impact on Rates'!D46 -> CBD - Queanbeyan | H144: ='WK5a - Impact on Rates'!E46 -> 0 | I144: ='WK5a - Impact on Rates'!F46 -> 0 | J144: ='WK5a - Impact on Rates'!G46 -> 0 | K144: ='WK5a - Impact on Rates'!H46 -> 0 | L144: ='WK5a - Impact on Rates'!I46 -> 0 | M144: ='WK5a - Impact on Rates'!J46 -> 0 | N144: ='WK5a - Impact on Rates'!K46 -> 0 | O144: ='WK5a - Impact on Rates'!L46 -> 0
B145: ='WK5a - Impact on Rates'!C47 -> Business | C145: ='WK5a - Impact on Rates'!D47 -> Googong | H145: ='WK5a - Impact on Rates'!E47 -> 0 | I145: ='WK5a - Impact on Rates'!F47 -> 0 | J145: ='WK5a - Impact on Rates'!G47 -> 0 | K145: ='WK5a - Impact on Rates'!H47 -> 0 | L145: ='WK5a - Impact on Rates'!I47 -> 0 | M145: ='WK5a - Impact on Rates'!J47 -> 0 | N145: ='WK5a - Impact on Rates'!K47 -> 0 | O145: ='WK5a - Impact on Rates'!L47 -> 0
B146: ='WK5a - Impact on Rates'!C48 -> Business | C146: ='WK5a - Impact on Rates'!D48 -> Poplars Business Park | H146: ='WK5a - Impact on Rates'!E48 -> 0 | I146: ='WK5a - Impact on Rates'!F48 -> 0 | J146: ='WK5a - Impact on Rates'!G48 -> 0 | K146: ='WK5a - Impact on Rates'!H48 -> 0 | L146: ='WK5a - Impact on Rates'!I48 -> 0 | M146: ='WK5a - Impact on Rates'!J48 -> 0 | N146: ='WK5a - Impact on Rates'!K48 -> 0 | O146: ='WK5a - Impact on Rates'!L48 -> 0
B147: ='WK5a - Impact on Rates'!C49 -> Business | C147: ='WK5a - Impact on Rates'!D49 -> Queanbeyan urban | H147: ='WK5a - Impact on Rates'!E49 -> 0 | I147: ='WK5a - Impact on Rates'!F49 -> 0 | J147: ='WK5a - Impact on Rates'!G49 -> 0 | K147: ='WK5a - Impact on Rates'!H49 -> 0 | L147: ='WK5a - Impact on Rates'!I49 -> 0 | M147: ='WK5a - Impact on Rates'!J49 -> 0 | N147: ='WK5a - Impact on Rates'!K49 -> 0 | O147: ='WK5a - Impact on Rates'!L49 -> 0
B148: ='WK5a - Impact on Rates'!C50 -> Business | C148: ='WK5a - Impact on Rates'!D50 -> Industrial | H148: ='WK5a - Impact on Rates'!E50 -> 0 | I148: ='WK5a - Impact on Rates'!F50 -> 0 | J148: ='WK5a - Impact on Rates'!G50 -> 0 | K148: ='WK5a - Impact on Rates'!H50 -> 0 | L148: ='WK5a - Impact on Rates'!I50 -> 0 | M148: ='WK5a - Impact on Rates'!J50 -> 0 | N148: ='WK5a - Impact on Rates'!K50 -> 0 | O148: ='WK5a - Impact on Rates'!L50 -> 0
B149: ='WK5a - Impact on Rates'!C51 -> Business | C149: ='WK5a - Impact on Rates'!D51 ->  | H149: ='WK5a - Impact on Rates'!E51 -> 0 | I149: ='WK5a - Impact on Rates'!F51 -> 0 | J149: ='WK5a - Impact on Rates'!G51 -> 0 | K149: ='WK5a - Impact on Rates'!H51 -> 0 | L149: ='WK5a - Impact on Rates'!I51 -> 0 | M149: ='WK5a - Impact on Rates'!J51 -> 0 | N149: ='WK5a - Impact on Rates'!K51 -> 0 | O149: ='WK5a - Impact on Rates'!L51 -> 0
B150: ='WK5a - Impact on Rates'!C52 -> Business | C150: ='WK5a - Impact on Rates'!D52 ->  | H150: ='WK5a - Impact on Rates'!E52 -> 0 | I150: ='WK5a - Impact on Rates'!F52 -> 0 | J150: ='WK5a - Impact on Rates'!G52 -> 0 | K150: ='WK5a - Impact on Rates'!H52 -> 0 | L150: ='WK5a - Impact on Rates'!I52 -> 0 | M150: ='WK5a - Impact on Rates'!J52 -> 0 | N150: ='WK5a - Impact on Rates'!K52 -> 0 | O150: ='WK5a - Impact on Rates'!L52 -> 0
B151: ='WK5a - Impact on Rates'!C53 -> Business | C151: ='WK5a - Impact on Rates'!D53 ->  | H151: ='WK5a - Impact on Rates'!E53 -> 0 | I151: ='WK5a - Impact on Rates'!F53 -> 0 | J151: ='WK5a - Impact on Rates'!G53 -> 0 | K151: ='WK5a - Impact on Rates'!H53 -> 0 | L151: ='WK5a - Impact on Rates'!I53 -> 0 | M151: ='WK5a - Impact on Rates'!J53 -> 0 | N151: ='WK5a - Impact on Rates'!K53 -> 0 | O151: ='WK5a - Impact on Rates'!L53 -> 0
B152: ='WK5a - Impact on Rates'!C54 -> Business | C152: ='WK5a - Impact on Rates'!D54 ->  | H152: ='WK5a - Impact on Rates'!E54 -> 0 | I152: ='WK5a - Impact on Rates'!F54 -> 0 | J152: ='WK5a - Impact on Rates'!G54 -> 0 | K152: ='WK5a - Impact on Rates'!H54 -> 0 | L152: ='WK5a - Impact on Rates'!I54 -> 0 | M152: ='WK5a - Impact on Rates'!J54 -> 0 | N152: ='WK5a - Impact on Rates'!K54 -> 0 | O152: ='WK5a - Impact on Rates'!L54 -> 0
B153: ='WK5a - Impact on Rates'!C55 -> Business | C153: ='WK5a - Impact on Rates'!D55 ->  | H153: ='WK5a - Impact on Rates'!E55 -> 0 | I153: ='WK5a - Impact on Rates'!F55 -> 0 | J153: ='WK5a - Impact on Rates'!G55 -> 0 | K153: ='WK5a - Impact on Rates'!H55 -> 0 | L153: ='WK5a - Impact on Rates'!I55 -> 0 | M153: ='WK5a - Impact on Rates'!J55 -> 0 | N153: ='WK5a - Impact on Rates'!K55 -> 0 | O153: ='WK5a - Impact on Rates'!L55 -> 0
B154: ='WK5a - Impact on Rates'!C56 -> Business | C154: ='WK5a - Impact on Rates'!D56 ->  | H154: ='WK5a - Impact on Rates'!E56 -> 0 | I154: ='WK5a - Impact on Rates'!F56 -> 0 | J154: ='WK5a - Impact on Rates'!G56 -> 0 | K154: ='WK5a - Impact on Rates'!H56 -> 0 | L154: ='WK5a - Impact on Rates'!I56 -> 0 | M154: ='WK5a - Impact on Rates'!J56 -> 0 | N154: ='WK5a - Impact on Rates'!K56 -> 0 | O154: ='WK5a - Impact on Rates'!L56 -> 0
B155: ='WK5a - Impact on Rates'!C57 -> Business | C155: ='WK5a - Impact on Rates'!D57 ->  | H155: ='WK5a - Impact on Rates'!E57 -> 0 | I155: ='WK5a - Impact on Rates'!F57 -> 0 | J155: ='WK5a - Impact on Rates'!G57 -> 0 | K155: ='WK5a - Impact on Rates'!H57 -> 0 | L155: ='WK5a - Impact on Rates'!I57 -> 0 | M155: ='WK5a - Impact on Rates'!J57 -> 0 | N155: ='WK5a - Impact on Rates'!K57 -> 0 | O155: ='WK5a - Impact on Rates'!L57 -> 0
B156: ='WK5a - Impact on Rates'!C58 -> Business | C156: ='WK5a - Impact on Rates'!D58 ->  | H156: ='WK5a - Impact on Rates'!E58 -> 0 | I156: ='WK5a - Impact on Rates'!F58 -> 0 | J156: ='WK5a - Impact on Rates'!G58 -> 0 | K156: ='WK5a - Impact on Rates'!H58 -> 0 | L156: ='WK5a - Impact on Rates'!I58 -> 0 | M156: ='WK5a - Impact on Rates'!J58 -> 0 | N156: ='WK5a - Impact on Rates'!K58 -> 0 | O156: ='WK5a - Impact on Rates'!L58 -> 0
B157: ='WK5a - Impact on Rates'!C59 -> Business | C157: ='WK5a - Impact on Rates'!D59 ->  | H157: ='WK5a - Impact on Rates'!E59 -> 0 | I157: ='WK5a - Impact on Rates'!F59 -> 0 | J157: ='WK5a - Impact on Rates'!G59 -> 0 | K157: ='WK5a - Impact on Rates'!H59 -> 0 | L157: ='WK5a - Impact on Rates'!I59 -> 0 | M157: ='WK5a - Impact on Rates'!J59 -> 0 | N157: ='WK5a - Impact on Rates'!K59 -> 0 | O157: ='WK5a - Impact on Rates'!L59 -> 0
B158: ='WK5a - Impact on Rates'!C60 -> Business | C158: ='WK5a - Impact on Rates'!D60 ->  | H158: ='WK5a - Impact on Rates'!E60 -> 0 | I158: ='WK5a - Impact on Rates'!F60 -> 0 | J158: ='WK5a - Impact on Rates'!G60 -> 0 | K158: ='WK5a - Impact on Rates'!H60 -> 0 | L158: ='WK5a - Impact on Rates'!I60 -> 0 | M158: ='WK5a - Impact on Rates'!J60 -> 0 | N158: ='WK5a - Impact on Rates'!K60 -> 0 | O158: ='WK5a - Impact on Rates'!L60 -> 0
B159: ='WK5a - Impact on Rates'!C61 -> Business | C159: ='WK5a - Impact on Rates'!D61 ->  | H159: ='WK5a - Impact on Rates'!E61 -> 0 | I159: ='WK5a - Impact on Rates'!F61 -> 0 | J159: ='WK5a - Impact on Rates'!G61 -> 0 | K159: ='WK5a - Impact on Rates'!H61 -> 0 | L159: ='WK5a - Impact on Rates'!I61 -> 0 | M159: ='WK5a - Impact on Rates'!J61 -> 0 | N159: ='WK5a - Impact on Rates'!K61 -> 0 | O159: ='WK5a - Impact on Rates'!L61 -> 0
B160: ='WK5a - Impact on Rates'!C62 -> Business | C160: ='WK5a - Impact on Rates'!D62 ->  | H160: ='WK5a - Impact on Rates'!E62 -> 0 | I160: ='WK5a - Impact on Rates'!F62 -> 0 | J160: ='WK5a - Impact on Rates'!G62 -> 0 | K160: ='WK5a - Impact on Rates'!H62 -> 0 | L160: ='WK5a - Impact on Rates'!I62 -> 0 | M160: ='WK5a - Impact on Rates'!J62 -> 0 | N160: ='WK5a - Impact on Rates'!K62 -> 0 | O160: ='WK5a - Impact on Rates'!L62 -> 0
B161: ='WK5a - Impact on Rates'!C63 -> Business | C161: ='WK5a - Impact on Rates'!D63 ->  | H161: ='WK5a - Impact on Rates'!E63 -> 0 | I161: ='WK5a - Impact on Rates'!F63 -> 0 | J161: ='WK5a - Impact on Rates'!G63 -> 0 | K161: ='WK5a - Impact on Rates'!H63 -> 0 | L161: ='WK5a - Impact on Rates'!I63 -> 0 | M161: ='WK5a - Impact on Rates'!J63 -> 0 | N161: ='WK5a - Impact on Rates'!K63 -> 0 | O161: ='WK5a - Impact on Rates'!L63 -> 0
B162: ='WK5a - Impact on Rates'!C64 -> Business | C162: ='WK5a - Impact on Rates'!D64 ->  | H162: ='WK5a - Impact on Rates'!E64 -> 0 | I162: ='WK5a - Impact on Rates'!F64 -> 0 | J162: ='WK5a - Impact on Rates'!G64 -> 0 | K162: ='WK5a - Impact on Rates'!H64 -> 0 | L162: ='WK5a - Impact on Rates'!I64 -> 0 | M162: ='WK5a - Impact on Rates'!J64 -> 0 | N162: ='WK5a - Impact on Rates'!K64 -> 0 | O162: ='WK5a - Impact on Rates'!L64 -> 0
B163: ='WK5a - Impact on Rates'!C65 -> Business | C163: ='WK5a - Impact on Rates'!D65 ->  | H163: ='WK5a - Impact on Rates'!E65 -> 0 | I163: ='WK5a - Impact on Rates'!F65 -> 0 | J163: ='WK5a - Impact on Rates'!G65 -> 0 | K163: ='WK5a - Impact on Rates'!H65 -> 0 | L163: ='WK5a - Impact on Rates'!I65 -> 0 | M163: ='WK5a - Impact on Rates'!J65 -> 0 | N163: ='WK5a - Impact on Rates'!K65 -> 0 | O163: ='WK5a - Impact on Rates'!L65 -> 0
B164: ='WK5a - Impact on Rates'!C66 -> Business | C164: ='WK5a - Impact on Rates'!D66 ->  | H164: ='WK5a - Impact on Rates'!E66 -> 0 | I164: ='WK5a - Impact on Rates'!F66 -> 0 | J164: ='WK5a - Impact on Rates'!G66 -> 0 | K164: ='WK5a - Impact on Rates'!H66 -> 0 | L164: ='WK5a - Impact on Rates'!I66 -> 0 | M164: ='WK5a - Impact on Rates'!J66 -> 0 | N164: ='WK5a - Impact on Rates'!K66 -> 0 | O164: ='WK5a - Impact on Rates'!L66 -> 0
B165: ='WK5a - Impact on Rates'!C67 -> Business | C165: ='WK5a - Impact on Rates'!D67 ->  | H165: ='WK5a - Impact on Rates'!E67 -> 0 | I165: ='WK5a - Impact on Rates'!F67 -> 0 | J165: ='WK5a - Impact on Rates'!G67 -> 0 | K165: ='WK5a - Impact on Rates'!H67 -> 0 | L165: ='WK5a - Impact on Rates'!I67 -> 0 | M165: ='WK5a - Impact on Rates'!J67 -> 0 | N165: ='WK5a - Impact on Rates'!K67 -> 0 | O165: ='WK5a - Impact on Rates'!L67 -> 0
B166: ='WK5a - Impact on Rates'!C68 -> Business | C166: ='WK5a - Impact on Rates'!D68 ->  | H166: ='WK5a - Impact on Rates'!E68 -> 0 | I166: ='WK5a - Impact on Rates'!F68 -> 0 | J166: ='WK5a - Impact on Rates'!G68 -> 0 | K166: ='WK5a - Impact on Rates'!H68 -> 0 | L166: ='WK5a - Impact on Rates'!I68 -> 0 | M166: ='WK5a - Impact on Rates'!J68 -> 0 | N166: ='WK5a - Impact on Rates'!K68 -> 0 | O166: ='WK5a - Impact on Rates'!L68 -> 0
B167: ='WK5a - Impact on Rates'!C69 -> Business | C167: ='WK5a - Impact on Rates'!D69 ->  | H167: ='WK5a - Impact on Rates'!E69 -> 0 | I167: ='WK5a - Impact on Rates'!F69 -> 0 | J167: ='WK5a - Impact on Rates'!G69 -> 0 | K167: ='WK5a - Impact on Rates'!H69 -> 0 | L167: ='WK5a - Impact on Rates'!I69 -> 0 | M167: ='WK5a - Impact on Rates'!J69 -> 0 | N167: ='WK5a - Impact on Rates'!K69 -> 0 | O167: ='WK5a - Impact on Rates'!L69 -> 0
B168: ='WK5a - Impact on Rates'!C71 -> Farmland | C168: ='WK5a - Impact on Rates'!D71 -> General | H168: ='WK5a - Impact on Rates'!E71 -> 0 | I168: ='WK5a - Impact on Rates'!F71 -> 0 | J168: ='WK5a - Impact on Rates'!G71 -> 0 | K168: ='WK5a - Impact on Rates'!H71 -> 0 | L168: ='WK5a - Impact on Rates'!I71 -> 0 | M168: ='WK5a - Impact on Rates'!J71 -> 0 | N168: ='WK5a - Impact on Rates'!K71 -> 0 | O168: ='WK5a - Impact on Rates'!L71 -> 0
B169: ='WK5a - Impact on Rates'!C72 -> Farmland | C169: ='WK5a - Impact on Rates'!D72 ->  | H169: ='WK5a - Impact on Rates'!E72 -> 0 | I169: ='WK5a - Impact on Rates'!F72 -> 0 | J169: ='WK5a - Impact on Rates'!G72 -> 0 | K169: ='WK5a - Impact on Rates'!H72 -> 0 | L169: ='WK5a - Impact on Rates'!I72 -> 0 | M169: ='WK5a - Impact on Rates'!J72 -> 0 | N169: ='WK5a - Impact on Rates'!K72 -> 0 | O169: ='WK5a - Impact on Rates'!L72 -> 0
B170: ='WK5a - Impact on Rates'!C73 -> Farmland | C170: ='WK5a - Impact on Rates'!D73 ->  | H170: ='WK5a - Impact on Rates'!E73 -> 0 | I170: ='WK5a - Impact on Rates'!F73 -> 0 | J170: ='WK5a - Impact on Rates'!G73 -> 0 | K170: ='WK5a - Impact on Rates'!H73 -> 0 | L170: ='WK5a - Impact on Rates'!I73 -> 0 | M170: ='WK5a - Impact on Rates'!J73 -> 0 | N170: ='WK5a - Impact on Rates'!K73 -> 0 | O170: ='WK5a - Impact on Rates'!L73 -> 0
B171: ='WK5a - Impact on Rates'!C74 -> Farmland | C171: ='WK5a - Impact on Rates'!D74 ->  | H171: ='WK5a - Impact on Rates'!E74 -> 0 | I171: ='WK5a - Impact on Rates'!F74 -> 0 | J171: ='WK5a - Impact on Rates'!G74 -> 0 | K171: ='WK5a - Impact on Rates'!H74 -> 0 | L171: ='WK5a - Impact on Rates'!I74 -> 0 | M171: ='WK5a - Impact on Rates'!J74 -> 0 | N171: ='WK5a - Impact on Rates'!K74 -> 0 | O171: ='WK5a - Impact on Rates'!L74 -> 0
B172: ='WK5a - Impact on Rates'!C75 -> Farmland | C172: ='WK5a - Impact on Rates'!D75 ->  | H172: ='WK5a - Impact on Rates'!E75 -> 0 | I172: ='WK5a - Impact on Rates'!F75 -> 0 | J172: ='WK5a - Impact on Rates'!G75 -> 0 | K172: ='WK5a - Impact on Rates'!H75 -> 0 | L172: ='WK5a - Impact on Rates'!I75 -> 0 | M172: ='WK5a - Impact on Rates'!J75 -> 0 | N172: ='WK5a - Impact on Rates'!K75 -> 0 | O172: ='WK5a - Impact on Rates'!L75 -> 0
B173: ='WK5a - Impact on Rates'!C76 -> Farmland | C173: ='WK5a - Impact on Rates'!D76 ->  | H173: ='WK5a - Impact on Rates'!E76 -> 0 | I173: ='WK5a - Impact on Rates'!F76 -> 0 | J173: ='WK5a - Impact on Rates'!G76 -> 0 | K173: ='WK5a - Impact on Rates'!H76 -> 0 | L173: ='WK5a - Impact on Rates'!I76 -> 0 | M173: ='WK5a - Impact on Rates'!J76 -> 0 | N173: ='WK5a - Impact on Rates'!K76 -> 0 | O173: ='WK5a - Impact on Rates'!L76 -> 0
B174: ='WK5a - Impact on Rates'!C77 -> Farmland | C174: ='WK5a - Impact on Rates'!D77 ->  | H174: ='WK5a - Impact on Rates'!E77 -> 0 | I174: ='WK5a - Impact on Rates'!F77 -> 0 | J174: ='WK5a - Impact on Rates'!G77 -> 0 | K174: ='WK5a - Impact on Rates'!H77 -> 0 | L174: ='WK5a - Impact on Rates'!I77 -> 0 | M174: ='WK5a - Impact on Rates'!J77 -> 0 | N174: ='WK5a - Impact on Rates'!K77 -> 0 | O174: ='WK5a - Impact on Rates'!L77 -> 0
B175: ='WK5a - Impact on Rates'!C78 -> Farmland | C175: ='WK5a - Impact on Rates'!D78 ->  | H175: ='WK5a - Impact on Rates'!E78 -> 0 | I175: ='WK5a - Impact on Rates'!F78 -> 0 | J175: ='WK5a - Impact on Rates'!G78 -> 0 | K175: ='WK5a - Impact on Rates'!H78 -> 0 | L175: ='WK5a - Impact on Rates'!I78 -> 0 | M175: ='WK5a - Impact on Rates'!J78 -> 0 | N175: ='WK5a - Impact on Rates'!K78 -> 0 | O175: ='WK5a - Impact on Rates'!L78 -> 0
B176: ='WK5a - Impact on Rates'!C79 -> Farmland | C176: ='WK5a - Impact on Rates'!D79 ->  | H176: ='WK5a - Impact on Rates'!E79 -> 0 | I176: ='WK5a - Impact on Rates'!F79 -> 0 | J176: ='WK5a - Impact on Rates'!G79 -> 0 | K176: ='WK5a - Impact on Rates'!H79 -> 0 | L176: ='WK5a - Impact on Rates'!I79 -> 0 | M176: ='WK5a - Impact on Rates'!J79 -> 0 | N176: ='WK5a - Impact on Rates'!K79 -> 0 | O176: ='WK5a - Impact on Rates'!L79 -> 0
B177: ='WK5a - Impact on Rates'!C80 -> Farmland | C177: ='WK5a - Impact on Rates'!D80 ->  | H177: ='WK5a - Impact on Rates'!E80 -> 0 | I177: ='WK5a - Impact on Rates'!F80 -> 0 | J177: ='WK5a - Impact on Rates'!G80 -> 0 | K177: ='WK5a - Impact on Rates'!H80 -> 0 | L177: ='WK5a - Impact on Rates'!I80 -> 0 | M177: ='WK5a - Impact on Rates'!J80 -> 0 | N177: ='WK5a - Impact on Rates'!K80 -> 0 | O177: ='WK5a - Impact on Rates'!L80 -> 0
B178: ='WK5a - Impact on Rates'!C82 -> Mining | C178: ='WK5a - Impact on Rates'!D82 -> General | H178: ='WK5a - Impact on Rates'!E82 -> 0 | I178: ='WK5a - Impact on Rates'!F82 -> 0 | J178: ='WK5a - Impact on Rates'!G82 -> 0 | K178: ='WK5a - Impact on Rates'!H82 -> 0 | L178: ='WK5a - Impact on Rates'!I82 -> 0 | M178: ='WK5a - Impact on Rates'!J82 -> 0 | N178: ='WK5a - Impact on Rates'!K82 -> 0 | O178: ='WK5a - Impact on Rates'!L82 -> 0
B179: ='WK5a - Impact on Rates'!C83 -> Mining | C179: ='WK5a - Impact on Rates'!D83 ->  | H179: ='WK5a - Impact on Rates'!E83 -> 0 | I179: ='WK5a - Impact on Rates'!F83 -> 0 | J179: ='WK5a - Impact on Rates'!G83 -> 0 | K179: ='WK5a - Impact on Rates'!H83 -> 0 | L179: ='WK5a - Impact on Rates'!I83 -> 0 | M179: ='WK5a - Impact on Rates'!J83 -> 0 | N179: ='WK5a - Impact on Rates'!K83 -> 0 | O179: ='WK5a - Impact on Rates'!L83 -> 0
B180: ='WK5a - Impact on Rates'!C84 -> Mining | C180: ='WK5a - Impact on Rates'!D84 ->  | H180: ='WK5a - Impact on Rates'!E84 -> 0 | I180: ='WK5a - Impact on Rates'!F84 -> 0 | J180: ='WK5a - Impact on Rates'!G84 -> 0 | K180: ='WK5a - Impact on Rates'!H84 -> 0 | L180: ='WK5a - Impact on Rates'!I84 -> 0 | M180: ='WK5a - Impact on Rates'!J84 -> 0 | N180: ='WK5a - Impact on Rates'!K84 -> 0 | O180: ='WK5a - Impact on Rates'!L84 -> 0
B181: ='WK5a - Impact on Rates'!C85 -> Mining | C181: ='WK5a - Impact on Rates'!D85 ->  | H181: ='WK5a - Impact on Rates'!E85 -> 0 | I181: ='WK5a - Impact on Rates'!F85 -> 0 | J181: ='WK5a - Impact on Rates'!G85 -> 0 | K181: ='WK5a - Impact on Rates'!H85 -> 0 | L181: ='WK5a - Impact on Rates'!I85 -> 0 | M181: ='WK5a - Impact on Rates'!J85 -> 0 | N181: ='WK5a - Impact on Rates'!K85 -> 0 | O181: ='WK5a - Impact on Rates'!L85 -> 0
B182: ='WK5a - Impact on Rates'!C86 -> Mining | C182: ='WK5a - Impact on Rates'!D86 ->  | H182: ='WK5a - Impact on Rates'!E86 -> 0 | I182: ='WK5a - Impact on Rates'!F86 -> 0 | J182: ='WK5a - Impact on Rates'!G86 -> 0 | K182: ='WK5a - Impact on Rates'!H86 -> 0 | L182: ='WK5a - Impact on Rates'!I86 -> 0 | M182: ='WK5a - Impact on Rates'!J86 -> 0 | N182: ='WK5a - Impact on Rates'!K86 -> 0 | O182: ='WK5a - Impact on Rates'!L86 -> 0
B183: ='WK5a - Impact on Rates'!C87 -> Mining | C183: ='WK5a - Impact on Rates'!D87 ->  | H183: ='WK5a - Impact on Rates'!E87 -> 0 | I183: ='WK5a - Impact on Rates'!F87 -> 0 | J183: ='WK5a - Impact on Rates'!G87 -> 0 | K183: ='WK5a - Impact on Rates'!H87 -> 0 | L183: ='WK5a - Impact on Rates'!I87 -> 0 | M183: ='WK5a - Impact on Rates'!J87 -> 0 | N183: ='WK5a - Impact on Rates'!K87 -> 0 | O183: ='WK5a - Impact on Rates'!L87 -> 0
B184: ='WK5a - Impact on Rates'!C88 -> Mining | C184: ='WK5a - Impact on Rates'!D88 ->  | H184: ='WK5a - Impact on Rates'!E88 -> 0 | I184: ='WK5a - Impact on Rates'!F88 -> 0 | J184: ='WK5a - Impact on Rates'!G88 -> 0 | K184: ='WK5a - Impact on Rates'!H88 -> 0 | L184: ='WK5a - Impact on Rates'!I88 -> 0 | M184: ='WK5a - Impact on Rates'!J88 -> 0 | N184: ='WK5a - Impact on Rates'!K88 -> 0 | O184: ='WK5a - Impact on Rates'!L88 -> 0
B185: ='WK5a - Impact on Rates'!C89 -> Mining | C185: ='WK5a - Impact on Rates'!D89 ->  | H185: ='WK5a - Impact on Rates'!E89 -> 0 | I185: ='WK5a - Impact on Rates'!F89 -> 0 | J185: ='WK5a - Impact on Rates'!G89 -> 0 | K185: ='WK5a - Impact on Rates'!H89 -> 0 | L185: ='WK5a - Impact on Rates'!I89 -> 0 | M185: ='WK5a - Impact on Rates'!J89 -> 0 | N185: ='WK5a - Impact on Rates'!K89 -> 0 | O185: ='WK5a - Impact on Rates'!L89 -> 0
B186: ='WK5a - Impact on Rates'!C90 -> Mining | C186: ='WK5a - Impact on Rates'!D90 ->  | H186: ='WK5a - Impact on Rates'!E90 -> 0 | I186: ='WK5a - Impact on Rates'!F90 -> 0 | J186: ='WK5a - Impact on Rates'!G90 -> 0 | K186: ='WK5a - Impact on Rates'!H90 -> 0 | L186: ='WK5a - Impact on Rates'!I90 -> 0 | M186: ='WK5a - Impact on Rates'!J90 -> 0 | N186: ='WK5a - Impact on Rates'!K90 -> 0 | O186: ='WK5a - Impact on Rates'!L90 -> 0
B187: ='WK5a - Impact on Rates'!C91 -> Mining | C187: ='WK5a - Impact on Rates'!D91 ->  | H187: ='WK5a - Impact on Rates'!E91 -> 0 | I187: ='WK5a - Impact on Rates'!F91 -> 0 | J187: ='WK5a - Impact on Rates'!G91 -> 0 | K187: ='WK5a - Impact on Rates'!H91 -> 0 | L187: ='WK5a - Impact on Rates'!I91 -> 0 | M187: ='WK5a - Impact on Rates'!J91 -> 0 | N187: ='WK5a - Impact on Rates'!K91 -> 0 | O187: ='WK5a - Impact on Rates'!L91 -> 0
B189: ='WK5a - Impact on Rates'!C95 -> Average Ordinary and Special Rates - with proposed special variation
B190: ='WK5a - Impact on Rates'!C98 -> Residential | C190: ='WK5a - Impact on Rates'!D98 -> General | H190: ='WK5a - Impact on Rates'!E98 -> 1164.160983 | I190: ='WK5a - Impact on Rates'!F98 -> 1373.695669 | J190: ='WK5a - Impact on Rates'!G98 -> 1621.003942 | K190: ='WK5a - Impact on Rates'!H98 -> 1912.779881 | L190: ='WK5a - Impact on Rates'!I98 -> 1960.599378 | M190: ='WK5a - Impact on Rates'!J98 -> 2009.614362 | N190: ='WK5a - Impact on Rates'!K98 -> 2059.854721 | O190: ='WK5a - Impact on Rates'!L98 -> 2111.351089
B191: ='WK5a - Impact on Rates'!C99 -> Residential | C191: ='WK5a - Impact on Rates'!D99 -> Queanbeyan- Urban | H191: ='WK5a - Impact on Rates'!E99 -> 1303.679422 | I191: ='WK5a - Impact on Rates'!F99 -> 1527.607494 | J191: ='WK5a - Impact on Rates'!G99 -> 1802.499328 | K191: ='WK5a - Impact on Rates'!H99 -> 2126.869127 | L191: ='WK5a - Impact on Rates'!I99 -> 2180.040855 | M191: ='WK5a - Impact on Rates'!J99 -> 2234.541877 | N191: ='WK5a - Impact on Rates'!K99 -> 2290.405424 | O191: ='WK5a - Impact on Rates'!L99 -> 2347.665559
B192: ='WK5a - Impact on Rates'!C100 -> Residential | C192: ='WK5a - Impact on Rates'!D100 -> Googong | H192: ='WK5a - Impact on Rates'!E100 -> 1529.751849 | I192: ='WK5a - Impact on Rates'!F100 -> 1867.042852 | J192: ='WK5a - Impact on Rates'!G100 -> 2203.32923 | K192: ='WK5a - Impact on Rates'!H100 -> 2600.357762 | L192: ='WK5a - Impact on Rates'!I100 -> 2665.366706 | M192: ='WK5a - Impact on Rates'!J100 -> 2732.000874 | N192: ='WK5a - Impact on Rates'!K100 -> 2800.300896 | O192: ='WK5a - Impact on Rates'!L100 -> 2870.308418
B193: ='WK5a - Impact on Rates'!C101 -> Residential | C193: ='WK5a - Impact on Rates'!D101 -> Bungendore | H193: ='WK5a - Impact on Rates'!E101 -> 1037.320308 | I193: ='WK5a - Impact on Rates'!F101 -> 1219.703719 | J193: ='WK5a - Impact on Rates'!G101 -> 1439.281397 | K193: ='WK5a - Impact on Rates'!H101 -> 1698.345078 | L193: ='WK5a - Impact on Rates'!I101 -> 1740.803705 | M193: ='WK5a - Impact on Rates'!J101 -> 1784.323798 | N193: ='WK5a - Impact on Rates'!K101 -> 1828.931893 | O193: ='WK5a - Impact on Rates'!L101 -> 1874.65519
B194: ='WK5a - Impact on Rates'!C102 -> Residential | C194: ='WK5a - Impact on Rates'!D102 -> Braidwood | H194: ='WK5a - Impact on Rates'!E102 -> 778.2215038 | I194: ='WK5a - Impact on Rates'!F102 -> 927.3639542 | J194: ='WK5a - Impact on Rates'!G102 -> 1094.208933 | K194: ='WK5a - Impact on Rates'!H102 -> 1291.154577 | L194: ='WK5a - Impact on Rates'!I102 -> 1323.433441 | M194: ='WK5a - Impact on Rates'!J102 -> 1356.519277 | N194: ='WK5a - Impact on Rates'!K102 -> 1390.432259 | O194: ='WK5a - Impact on Rates'!L102 -> 1425.193065
B195: ='WK5a - Impact on Rates'!C103 -> Residential | C195: ='WK5a - Impact on Rates'!D103 ->  | H195: ='WK5a - Impact on Rates'!E103 -> . | I195: ='WK5a - Impact on Rates'!F103 -> . | J195: ='WK5a - Impact on Rates'!G103 -> 0 | K195: ='WK5a - Impact on Rates'!H103 -> 0 | L195: ='WK5a - Impact on Rates'!I103 -> 0 | M195: ='WK5a - Impact on Rates'!J103 -> 0 | N195: ='WK5a - Impact on Rates'!K103 -> 0 | O195: ='WK5a - Impact on Rates'!L103 -> 0
B196: ='WK5a - Impact on Rates'!C104 -> Residential | C196: ='WK5a - Impact on Rates'!D104 ->  | H196: ='WK5a - Impact on Rates'!E104 -> . | I196: ='WK5a - Impact on Rates'!F104 -> . | J196: ='WK5a - Impact on Rates'!G104 -> 0 | K196: ='WK5a - Impact on Rates'!H104 -> 0 | L196: ='WK5a - Impact on Rates'!I104 -> 0 | M196: ='WK5a - Impact on Rates'!J104 -> 0 | N196: ='WK5a - Impact on Rates'!K104 -> 0 | O196: ='WK5a - Impact on Rates'!L104 -> 0
B197: ='WK5a - Impact on Rates'!C105 -> Residential | C197: ='WK5a - Impact on Rates'!D105 ->  | H197: ='WK5a - Impact on Rates'!E105 -> . | I197: ='WK5a - Impact on Rates'!F105 -> . | J197: ='WK5a - Impact on Rates'!G105 -> 0 | K197: ='WK5a - Impact on Rates'!H105 -> 0 | L197: ='WK5a - Impact on Rates'!I105 -> 0 | M197: ='WK5a - Impact on Rates'!J105 -> 0 | N197: ='WK5a - Impact on Rates'!K105 -> 0 | O197: ='WK5a - Impact on Rates'!L105 -> 0
B198: ='WK5a - Impact on Rates'!C106 -> Residential | C198: ='WK5a - Impact on Rates'!D106 ->  | H198: ='WK5a - Impact on Rates'!E106 -> . | I198: ='WK5a - Impact on Rates'!F106 -> . | J198: ='WK5a - Impact on Rates'!G106 -> 0 | K198: ='WK5a - Impact on Rates'!H106 -> 0 | L198: ='WK5a - Impact on Rates'!I106 -> 0 | M198: ='WK5a - Impact on Rates'!J106 -> 0 | N198: ='WK5a - Impact on Rates'!K106 -> 0 | O198: ='WK5a - Impact on Rates'!L106 -> 0
B199: ='WK5a - Impact on Rates'!C107 -> Residential | C199: ='WK5a - Impact on Rates'!D107 ->  | H199: ='WK5a - Impact on Rates'!E107 -> . | I199: ='WK5a - Impact on Rates'!F107 -> . | J199: ='WK5a - Impact on Rates'!G107 -> 0 | K199: ='WK5a - Impact on Rates'!H107 -> 0 | L199: ='WK5a - Impact on Rates'!I107 -> 0 | M199: ='WK5a - Impact on Rates'!J107 -> 0 | N199: ='WK5a - Impact on Rates'!K107 -> 0 | O199: ='WK5a - Impact on Rates'!L107 -> 0
B200: ='WK5a - Impact on Rates'!C108 -> Residential | C200: ='WK5a - Impact on Rates'!D108 ->  | H200: ='WK5a - Impact on Rates'!E108 -> . | I200: ='WK5a - Impact on Rates'!F108 -> . | J200: ='WK5a - Impact on Rates'!G108 -> 0 | K200: ='WK5a - Impact on Rates'!H108 -> 0 | L200: ='WK5a - Impact on Rates'!I108 -> 0 | M200: ='WK5a - Impact on Rates'!J108 -> 0 | N200: ='WK5a - Impact on Rates'!K108 -> 0 | O200: ='WK5a - Impact on Rates'!L108 -> 0
B201: ='WK5a - Impact on Rates'!C109 -> Residential | C201: ='WK5a - Impact on Rates'!D109 ->  | H201: ='WK5a - Impact on Rates'!E109 -> . | I201: ='WK5a - Impact on Rates'!F109 -> . | J201: ='WK5a - Impact on Rates'!G109 -> 0 | K201: ='WK5a - Impact on Rates'!H109 -> 0 | L201: ='WK5a - Impact on Rates'!I109 -> 0 | M201: ='WK5a - Impact on Rates'!J109 -> 0 | N201: ='WK5a - Impact on Rates'!K109 -> 0 | O201: ='WK5a - Impact on Rates'!L109 -> 0
B202: ='WK5a - Impact on Rates'!C110 -> Residential | C202: ='WK5a - Impact on Rates'!D110 ->  | H202: ='WK5a - Impact on Rates'!E110 -> . | I202: ='WK5a - Impact on Rates'!F110 -> . | J202: ='WK5a - Impact on Rates'!G110 -> 0 | K202: ='WK5a - Impact on Rates'!H110 -> 0 | L202: ='WK5a - Impact on Rates'!I110 -> 0 | M202: ='WK5a - Impact on Rates'!J110 -> 0 | N202: ='WK5a - Impact on Rates'!K110 -> 0 | O202: ='WK5a - Impact on Rates'!L110 -> 0
B203: ='WK5a - Impact on Rates'!C111 -> Residential | C203: ='WK5a - Impact on Rates'!D111 ->  | H203: ='WK5a - Impact on Rates'!E111 -> . | I203: ='WK5a - Impact on Rates'!F111 -> . | J203: ='WK5a - Impact on Rates'!G111 -> 0 | K203: ='WK5a - Impact on Rates'!H111 -> 0 | L203: ='WK5a - Impact on Rates'!I111 -> 0 | M203: ='WK5a - Impact on Rates'!J111 -> 0 | N203: ='WK5a - Impact on Rates'!K111 -> 0 | O203: ='WK5a - Impact on Rates'!L111 -> 0
B204: ='WK5a - Impact on Rates'!C112 -> Residential | C204: ='WK5a - Impact on Rates'!D112 ->  | H204: ='WK5a - Impact on Rates'!E112 -> . | I204: ='WK5a - Impact on Rates'!F112 -> . | J204: ='WK5a - Impact on Rates'!G112 -> 0 | K204: ='WK5a - Impact on Rates'!H112 -> 0 | L204: ='WK5a - Impact on Rates'!I112 -> 0 | M204: ='WK5a - Impact on Rates'!J112 -> 0 | N204: ='WK5a - Impact on Rates'!K112 -> 0 | O204: ='WK5a - Impact on Rates'!L112 -> 0
B205: ='WK5a - Impact on Rates'!C113 -> Residential | C205: ='WK5a - Impact on Rates'!D113 ->  | H205: ='WK5a - Impact on Rates'!E113 -> . | I205: ='WK5a - Impact on Rates'!F113 -> . | J205: ='WK5a - Impact on Rates'!G113 -> 0 | K205: ='WK5a - Impact on Rates'!H113 -> 0 | L205: ='WK5a - Impact on Rates'!I113 -> 0 | M205: ='WK5a - Impact on Rates'!J113 -> 0 | N205: ='WK5a - Impact on Rates'!K113 -> 0 | O205: ='WK5a - Impact on Rates'!L113 -> 0
B206: ='WK5a - Impact on Rates'!C114 -> Residential | C206: ='WK5a - Impact on Rates'!D114 ->  | H206: ='WK5a - Impact on Rates'!E114 -> . | I206: ='WK5a - Impact on Rates'!F114 -> . | J206: ='WK5a - Impact on Rates'!G114 -> 0 | K206: ='WK5a - Impact on Rates'!H114 -> 0 | L206: ='WK5a - Impact on Rates'!I114 -> 0 | M206: ='WK5a - Impact on Rates'!J114 -> 0 | N206: ='WK5a - Impact on Rates'!K114 -> 0 | O206: ='WK5a - Impact on Rates'!L114 -> 0
B207: ='WK5a - Impact on Rates'!C115 -> Residential | C207: ='WK5a - Impact on Rates'!D115 ->  | H207: ='WK5a - Impact on Rates'!E115 -> . | I207: ='WK5a - Impact on Rates'!F115 -> . | J207: ='WK5a - Impact on Rates'!G115 -> 0 | K207: ='WK5a - Impact on Rates'!H115 -> 0 | L207: ='WK5a - Impact on Rates'!I115 -> 0 | M207: ='WK5a - Impact on Rates'!J115 -> 0 | N207: ='WK5a - Impact on Rates'!K115 -> 0 | O207: ='WK5a - Impact on Rates'!L115 -> 0
B208: ='WK5a - Impact on Rates'!C116 -> Residential | C208: ='WK5a - Impact on Rates'!D116 ->  | H208: ='WK5a - Impact on Rates'!E116 -> . | I208: ='WK5a - Impact on Rates'!F116 -> . | J208: ='WK5a - Impact on Rates'!G116 -> 0 | K208: ='WK5a - Impact on Rates'!H116 -> 0 | L208: ='WK5a - Impact on Rates'!I116 -> 0 | M208: ='WK5a - Impact on Rates'!J116 -> 0 | N208: ='WK5a - Impact on Rates'!K116 -> 0 | O208: ='WK5a - Impact on Rates'!L116 -> 0
B209: ='WK5a - Impact on Rates'!C117 -> Residential | C209: ='WK5a - Impact on Rates'!D117 ->  | H209: ='WK5a - Impact on Rates'!E117 -> . | I209: ='WK5a - Impact on Rates'!F117 -> . | J209: ='WK5a - Impact on Rates'!G117 -> 0 | K209: ='WK5a - Impact on Rates'!H117 -> 0 | L209: ='WK5a - Impact on Rates'!I117 -> 0 | M209: ='WK5a - Impact on Rates'!J117 -> 0 | N209: ='WK5a - Impact on Rates'!K117 -> 0 | O209: ='WK5a - Impact on Rates'!L117 -> 0
B210: ='WK5a - Impact on Rates'!C118 -> Special rate | C210: ='WK5a - Impact on Rates'!D118 ->  | H210: ='WK5a - Impact on Rates'!E118 -> . | I210: ='WK5a - Impact on Rates'!F118 -> . | J210: ='WK5a - Impact on Rates'!G118 -> 0 | K210: ='WK5a - Impact on Rates'!H118 -> 0 | L210: ='WK5a - Impact on Rates'!I118 -> 0 | M210: ='WK5a - Impact on Rates'!J118 -> 0 | N210: ='WK5a - Impact on Rates'!K118 -> 0 | O210: ='WK5a - Impact on Rates'!L118 -> 0
B211: ='WK5a - Impact on Rates'!C119 -> Special rate | C211: ='WK5a - Impact on Rates'!D119 ->  | H211: ='WK5a - Impact on Rates'!E119 -> . | I211: ='WK5a - Impact on Rates'!F119 -> . | J211: ='WK5a - Impact on Rates'!G119 -> 0 | K211: ='WK5a - Impact on Rates'!H119 -> 0 | L211: ='WK5a - Impact on Rates'!I119 -> 0 | M211: ='WK5a - Impact on Rates'!J119 -> 0 | N211: ='WK5a - Impact on Rates'!K119 -> 0 | O211: ='WK5a - Impact on Rates'!L119 -> 0
B212: ='WK5a - Impact on Rates'!C120 -> Special rate | C212: ='WK5a - Impact on Rates'!D120 ->  | H212: ='WK5a - Impact on Rates'!E120 -> . | I212: ='WK5a - Impact on Rates'!F120 -> . | J212: ='WK5a - Impact on Rates'!G120 -> 0 | K212: ='WK5a - Impact on Rates'!H120 -> 0 | L212: ='WK5a - Impact on Rates'!I120 -> 0 | M212: ='WK5a - Impact on Rates'!J120 -> 0 | N212: ='WK5a - Impact on Rates'!K120 -> 0 | O212: ='WK5a - Impact on Rates'!L120 -> 0
B213: ='WK5a - Impact on Rates'!C121 -> Special rate | C213: ='WK5a - Impact on Rates'!D121 ->  | H213: ='WK5a - Impact on Rates'!E121 -> . | I213: ='WK5a - Impact on Rates'!F121 -> . | J213: ='WK5a - Impact on Rates'!G121 -> 0 | K213: ='WK5a - Impact on Rates'!H121 -> 0 | L213: ='WK5a - Impact on Rates'!I121 -> 0 | M213: ='WK5a - Impact on Rates'!J121 -> 0 | N213: ='WK5a - Impact on Rates'!K121 -> 0 | O213: ='WK5a - Impact on Rates'!L121 -> 0
B214: ='WK5a - Impact on Rates'!C122 -> Special rate | C214: ='WK5a - Impact on Rates'!D122 ->  | H214: ='WK5a - Impact on Rates'!E122 -> . | I214: ='WK5a - Impact on Rates'!F122 -> . | J214: ='WK5a - Impact on Rates'!G122 -> 0 | K214: ='WK5a - Impact on Rates'!H122 -> 0 | L214: ='WK5a - Impact on Rates'!I122 -> 0 | M214: ='WK5a - Impact on Rates'!J122 -> 0 | N214: ='WK5a - Impact on Rates'!K122 -> 0 | O214: ='WK5a - Impact on Rates'!L122 -> 0
B215: ='WK5a - Impact on Rates'!C123 -> Special rate | C215: ='WK5a - Impact on Rates'!D123 ->  | H215: ='WK5a - Impact on Rates'!E123 -> . | I215: ='WK5a - Impact on Rates'!F123 -> . | J215: ='WK5a - Impact on Rates'!G123 -> 0 | K215: ='WK5a - Impact on Rates'!H123 -> 0 | L215: ='WK5a - Impact on Rates'!I123 -> 0 | M215: ='WK5a - Impact on Rates'!J123 -> 0 | N215: ='WK5a - Impact on Rates'!K123 -> 0 | O215: ='WK5a - Impact on Rates'!L123 -> 0
B216: ='WK5a - Impact on Rates'!C124 -> Special rate | C216: ='WK5a - Impact on Rates'!D124 ->  | H216: ='WK5a - Impact on Rates'!E124 -> . | I216: ='WK5a - Impact on Rates'!F124 -> . | J216: ='WK5a - Impact on Rates'!G124 -> 0 | K216: ='WK5a - Impact on Rates'!H124 -> 0 | L216: ='WK5a - Impact on Rates'!I124 -> 0 | M216: ='WK5a - Impact on Rates'!J124 -> 0 | N216: ='WK5a - Impact on Rates'!K124 -> 0 | O216: ='WK5a - Impact on Rates'!L124 -> 0
B217: ='WK5a - Impact on Rates'!C125 -> Special rate | C217: ='WK5a - Impact on Rates'!D125 ->  | H217: ='WK5a - Impact on Rates'!E125 -> . | I217: ='WK5a - Impact on Rates'!F125 -> . | J217: ='WK5a - Impact on Rates'!G125 -> 0 | K217: ='WK5a - Impact on Rates'!H125 -> 0 | L217: ='WK5a - Impact on Rates'!I125 -> 0 | M217: ='WK5a - Impact on Rates'!J125 -> 0 | N217: ='WK5a - Impact on Rates'!K125 -> 0 | O217: ='WK5a - Impact on Rates'!L125 -> 0
B218: ='WK5a - Impact on Rates'!C126 -> Special rate | C218: ='WK5a - Impact on Rates'!D126 ->  | H218: ='WK5a - Impact on Rates'!E126 -> . | I218: ='WK5a - Impact on Rates'!F126 -> . | J218: ='WK5a - Impact on Rates'!G126 -> 0 | K218: ='WK5a - Impact on Rates'!H126 -> 0 | L218: ='WK5a - Impact on Rates'!I126 -> 0 | M218: ='WK5a - Impact on Rates'!J126 -> 0 | N218: ='WK5a - Impact on Rates'!K126 -> 0 | O218: ='WK5a - Impact on Rates'!L126 -> 0
B219: ='WK5a - Impact on Rates'!C127 -> Special rate | C219: ='WK5a - Impact on Rates'!D127 ->  | H219: ='WK5a - Impact on Rates'!E127 -> . | I219: ='WK5a - Impact on Rates'!F127 -> . | J219: ='WK5a - Impact on Rates'!G127 -> 0 | K219: ='WK5a - Impact on Rates'!H127 -> 0 | L219: ='WK5a - Impact on Rates'!I127 -> 0 | M219: ='WK5a - Impact on Rates'!J127 -> 0 | N219: ='WK5a - Impact on Rates'!K127 -> 0 | O219: ='WK5a - Impact on Rates'!L127 -> 0
B220: =B190 -> Residential | C220: ='WK5a - Impact on Rates'!D128 -> TOTAL AVERAGE | H220: ='WK5a - Impact on Rates'!E128 -> 1266.167446 | I220: ='WK5a - Impact on Rates'!F128 -> 1494.090744 | J220: ='WK5a - Impact on Rates'!G128 -> 1763.012307 | K220: ='WK5a - Impact on Rates'!H128 -> 2080.349463 | L220: ='WK5a - Impact on Rates'!I128 -> 2132.3582 | M220: ='WK5a - Impact on Rates'!J128 -> 2185.667155 | N220: ='WK5a - Impact on Rates'!K128 -> 2240.308834 | O220: ='WK5a - Impact on Rates'!L128 -> 2296.316554
B221: ='WK5a - Impact on Rates'!C129 -> Business | C221: ='WK5a - Impact on Rates'!D129 -> General | H221: ='WK5a - Impact on Rates'!E129 -> 1011.75539 | I221: ='WK5a - Impact on Rates'!F129 -> 1193.859454 | J221: ='WK5a - Impact on Rates'!G129 -> 1408.786265 | K221: ='WK5a - Impact on Rates'!H129 -> 1662.361578 | L221: ='WK5a - Impact on Rates'!I129 -> 1703.920618 | M221: ='WK5a - Impact on Rates'!J129 -> 1746.518633 | N221: ='WK5a - Impact on Rates'!K129 -> 1790.181599 | O221: ='WK5a - Impact on Rates'!L129 -> 1834.936139
B222: ='WK5a - Impact on Rates'!C130 -> Business | C222: ='WK5a - Impact on Rates'!D130 -> CBD - Queanbeyan | H222: ='WK5a - Impact on Rates'!E130 -> 11557.82845 | I222: ='WK5a - Impact on Rates'!F130 -> 14777.52325 | J222: ='WK5a - Impact on Rates'!G130 -> 17437.54385 | K222: ='WK5a - Impact on Rates'!H130 -> 20576.30624 | L222: ='WK5a - Impact on Rates'!I130 -> 21090.71389 | M222: ='WK5a - Impact on Rates'!J130 -> 21617.98174 | N222: ='WK5a - Impact on Rates'!K130 -> 22158.43129 | O222: ='WK5a - Impact on Rates'!L130 -> 22712.39207
B223: ='WK5a - Impact on Rates'!C131 -> Business | C223: ='WK5a - Impact on Rates'!D131 -> Googong | H223: ='WK5a - Impact on Rates'!E131 -> 6526.113745 | I223: ='WK5a - Impact on Rates'!F131 -> 6820.376087 | J223: ='WK5a - Impact on Rates'!G131 -> 8048.345882 | K223: ='WK5a - Impact on Rates'!H131 -> 9497.06147 | L223: ='WK5a - Impact on Rates'!I131 -> 9734.488007 | M223: ='WK5a - Impact on Rates'!J131 -> 9977.850207 | N223: ='WK5a - Impact on Rates'!K131 -> 10227.29646 | O223: ='WK5a - Impact on Rates'!L131 -> 10482.97887
B224: ='WK5a - Impact on Rates'!C132 -> Business | C224: ='WK5a - Impact on Rates'!D132 -> Poplars Business Park | H224: ='WK5a - Impact on Rates'!E132 -> 48584.66139 | I224: ='WK5a - Impact on Rates'!F132 -> 34638.26287 | J224: ='WK5a - Impact on Rates'!G132 -> 40872.62835 | K224: ='WK5a - Impact on Rates'!H132 -> 48229.68389 | L224: ='WK5a - Impact on Rates'!I132 -> 49435.42599 | M224: ='WK5a - Impact on Rates'!J132 -> 50671.31164 | N224: ='WK5a - Impact on Rates'!K132 -> 51938.09443 | O224: ='WK5a - Impact on Rates'!L132 -> 53236.54679
B225: ='WK5a - Impact on Rates'!C133 -> Business | C225: ='WK5a - Impact on Rates'!D133 -> Queanbeyan urban | H225: ='WK5a - Impact on Rates'!E133 -> 10100.97941 | I225: ='WK5a - Impact on Rates'!F133 -> 11919.11982 | J225: ='WK5a - Impact on Rates'!G133 -> 14064.61646 | K225: ='WK5a - Impact on Rates'!H133 -> 16596.25755 | L225: ='WK5a - Impact on Rates'!I133 -> 17011.16399 | M225: ='WK5a - Impact on Rates'!J133 -> 17436.44309 | N225: ='WK5a - Impact on Rates'!K133 -> 17872.35417 | O225: ='WK5a - Impact on Rates'!L133 -> 18319.16302
B226: ='WK5a - Impact on Rates'!C134 -> Business | C226: ='WK5a - Impact on Rates'!D134 -> Industrial | H226: ='WK5a - Impact on Rates'!E134 -> 4046.94366 | I226: ='WK5a - Impact on Rates'!F134 -> 4775.379788 | J226: ='WK5a - Impact on Rates'!G134 -> 5634.947295 | K226: ='WK5a - Impact on Rates'!H134 -> 6649.229949 | L226: ='WK5a - Impact on Rates'!I134 -> 6815.460697 | M226: ='WK5a - Impact on Rates'!J134 -> 6985.847215 | N226: ='WK5a - Impact on Rates'!K134 -> 7160.493395 | O226: ='WK5a - Impact on Rates'!L134 -> 7339.50573
B227: ='WK5a - Impact on Rates'!C135 -> Business | C227: ='WK5a - Impact on Rates'!D135 ->  | H227: ='WK5a - Impact on Rates'!E135 -> . | I227: ='WK5a - Impact on Rates'!F135 -> . | J227: ='WK5a - Impact on Rates'!G135 -> 0 | K227: ='WK5a - Impact on Rates'!H135 -> 0 | L227: ='WK5a - Impact on Rates'!I135 -> 0 | M227: ='WK5a - Impact on Rates'!J135 -> 0 | N227: ='WK5a - Impact on Rates'!K135 -> 0 | O227: ='WK5a - Impact on Rates'!L135 -> 0
B228: ='WK5a - Impact on Rates'!C136 -> Business | C228: ='WK5a - Impact on Rates'!D136 ->  | H228: ='WK5a - Impact on Rates'!E136 -> . | I228: ='WK5a - Impact on Rates'!F136 -> . | J228: ='WK5a - Impact on Rates'!G136 -> 0 | K228: ='WK5a - Impact on Rates'!H136 -> 0 | L228: ='WK5a - Impact on Rates'!I136 -> 0 | M228: ='WK5a - Impact on Rates'!J136 -> 0 | N228: ='WK5a - Impact on Rates'!K136 -> 0 | O228: ='WK5a - Impact on Rates'!L136 -> 0
B229: ='WK5a - Impact on Rates'!C137 -> Business | C229: ='WK5a - Impact on Rates'!D137 ->  | H229: ='WK5a - Impact on Rates'!E137 -> . | I229: ='WK5a - Impact on Rates'!F137 -> . | J229: ='WK5a - Impact on Rates'!G137 -> 0 | K229: ='WK5a - Impact on Rates'!H137 -> 0 | L229: ='WK5a - Impact on Rates'!I137 -> 0 | M229: ='WK5a - Impact on Rates'!J137 -> 0 | N229: ='WK5a - Impact on Rates'!K137 -> 0 | O229: ='WK5a - Impact on Rates'!L137 -> 0
B230: ='WK5a - Impact on Rates'!C138 -> Business | C230: ='WK5a - Impact on Rates'!D138 ->  | H230: ='WK5a - Impact on Rates'!E138 -> . | I230: ='WK5a - Impact on Rates'!F138 -> . | J230: ='WK5a - Impact on Rates'!G138 -> 0 | K230: ='WK5a - Impact on Rates'!H138 -> 0 | L230: ='WK5a - Impact on Rates'!I138 -> 0 | M230: ='WK5a - Impact on Rates'!J138 -> 0 | N230: ='WK5a - Impact on Rates'!K138 -> 0 | O230: ='WK5a - Impact on Rates'!L138 -> 0
B231: ='WK5a - Impact on Rates'!C139 -> Business | C231: ='WK5a - Impact on Rates'!D139 ->  | H231: ='WK5a - Impact on Rates'!E139 -> . | I231: ='WK5a - Impact on Rates'!F139 -> . | J231: ='WK5a - Impact on Rates'!G139 -> 0 | K231: ='WK5a - Impact on Rates'!H139 -> 0 | L231: ='WK5a - Impact on Rates'!I139 -> 0 | M231: ='WK5a - Impact on Rates'!J139 -> 0 | N231: ='WK5a - Impact on Rates'!K139 -> 0 | O231: ='WK5a - Impact on Rates'!L139 -> 0
... 1217 more rows

Sheet WK0 - Input data (hidden)
A1: Hide sheet before publishing
B2: This worksheet is for IPART Analyst use only.
B5: Instructions:
B6: ="1. Enter the required information in the blue input cells in Section "&B23 -> 1. Enter the required information in the blue input cells in Section 1. Inputs
B7: ="2. Check the list of council names and update if necessary in Section "&B67 -> 2. Check the list of council names and update if necessary in Section 2. Council Name
B10: Contents | J10: row
B11: =B23 -> 1. Inputs | J11: =ROW(B23) -> 23
B12: =B26 -> Table 1 - Analyst and TSO details | J12: =ROW(B26) -> 26
B13: =B42 -> Table 2 - SV year and rate peg | J13: =ROW(B42) -> 42
B14: =B52 -> Table 3 - SV year, rate peg and units in display format | J14: =ROW(B52) -> 52
B15: =B67 -> 2. Council Name | J15: =ROW(B67) -> 67
B16: =B225 -> 3. Lists for expiring special variations and other questions | J16: =ROW(B225) -> 225
B17: =B227 -> 2. Is the council applying for a one-year increase (s508(2)) or a multi-year increase (s508A)? | J17: =ROW(B227) -> 227
B18: =B231 -> 3. For s508A applications: for how many years is the council requesting % increases as part of this application? | J18: =ROW(B231) -> 231
B19: =B242 -> 4. For s508A & s508(2) applications: is the special variation permanent or temporary? | J19: =ROW(B242) -> 242
B20: =B251 -> 7. Does the council have an expiring variation? If yes, please specify when. | J20: =ROW(B251) -> 251
B23: 1. Inputs | C23: Enter the required information in the blue input cells
B26: Table 1 - Analyst and TSO details
B28: Who is the Analyst in charge?
B29: First Name | D29: Edward
B30: Last Name | D30: Jenkins
B31: Email | D31: Edward_jenkins@ipart.nsw.gov.au
B32: Phone | D32: (02) 9113 7774
B34: Who is the TSO supporting the Analyst?
B35: First Name | D35: Arsh
B36: Last Name | D36: Suri
B37: Email | D37: arsh_suri@ipart.nsw.gov.au
B38: Phone | D38: (02) 9113 7730
B42: Table 2 - SV year and rate peg
B44: SV for period commencing 1 July | C44: year | D44: 2023
B45: Financial year | D45: =D44&"-"&RIGHT(D44+1,2) -> 2023-24
B46: Rate pegs
B47: Rate peg for Year 1 | C47: % | D47: =IF(ISBLANK('WK1 - Identification'!$K$32),'WK0 - Input data'!$D$48,'WK1 - Identification'!$K$32) -> 0.046
B48: Rate peg for Year 2 - 7 | C48: % | D48: 0.025
B52: Table 3 - SV year, rate peg and units in display format | D52: Added yrs -5 and -4
B53: Years
B54: Year number | C54: =D54-1 -> -5 | D54: =E54-1 -> -4 | E54: =F54-1 -> -3 | F54: -2 | G54: =H54-1 -> -1 | H54: 0 | I54: =H54+1 -> 1 | J54: 2 | K54: 3 | L54: 4 | M54: 5 | N54: 6 | O54: 7 | P54: 8 | Q54: 9 | R54: 10
B55: Year name | C55: ="Hist yr "&-C54 -> Hist yr 5 | D55: Hist yr 4 | E55: ="Hist yr "&-E54 -> Hist yr 3 | F55: Hist yr 2 | G55: ="Hist yr "&-G54 -> Hist yr 1 | H55: ="Year "&H54 -> Year 0 | I55: ="Year "&I54 -> Year 1 | J55: Year 2 | K55: Year 3 | L55: Year 4 | M55: Year 5 | N55: Year 6 | O55: Year 7 | P55: Year 8 | Q55: Year 9 | R55: Year 10
B57: Year commencing 1 July | C57: =D57-1 -> 2017 | D57: 2018 | E57: =F57-1 -> 2019 | F57: =G57-1 -> 2020 | G57: =H57-1 -> 2021 | H57: =D44-1 -> 2022 | I57: =D44 -> 2023 | J57: =I57+1 -> 2024 | K57: 2025 | L57: 2026 | M57: 2027 | N57: 2028 | O57: 2029 | P57: 2030 | Q57: 2031 | R57: 2032
B58: Financial year | C58: =C57&"-"&RIGHT(C57+1,2) -> 2017-18 | D58: 2018-19 | E58: 2019-20 | F58: =F57&"-"&RIGHT(F57+1,2) -> 2020-21 | G58: 2021-22 | H58: 2022-23 | I58: 2023-24 | J58: 2024-25 | K58: 2025-26 | L58: 2026-27 | M58: 2027-28 | N58: 2028-29 | O58: 2029-30 | P58: 2030-31 | Q58: 2031-32 | R58: 2032-33
B60: Rate peg | I60: =$D$47 -> 0.046 | J60: =$D$48 -> 0.025 | K60: 0.025 | L60: 0.025 | M60: 0.025 | N60: 0.025 | O60: 0.025 | P60: 0.025 | Q60: 0.025 | R60: 0.025
B62: Units for labels | C62: $ nominal
C63: =C62&" per year" -> $ nominal per year
B67: 2. Council Name | C67: Check and update the list as necessary
B68: 1 | C68: Albury City Council
B69: =B68+1 -> 2 | C69: Armidale Regional Council
B70: 3 | C70: Ballina Shire Council
B71: 4 | C71: Balranald Shire Council
B72: 5 | C72: Bathurst Regional Council
B73: 6 | C73: Bayside Council
B74: 7 | C74: Bega Valley Shire Council
B75: 8 | C75: Bellingen Shire Council
B76: 9 | C76: Berrigan Shire Council
B77: 10 | C77: Blacktown City Council
B78: 11 | C78: Bland Shire Council
B79: 12 | C79: Blayney Shire Council
B80: 13 | C80: Blue Mountains City Council
B81: 14 | C81: Bogan Shire Council
B82: 15 | C82: Bourke Shire Council
B83: 16 | C83: Brewarrina Shire Council
B84: 17 | C84: Broken Hill City Council
B85: 18 | C85: Burwood Council
B86: 19 | C86: Byron Shire Council
B87: 20 | C87: Cabonne Council
B88: 21 | C88: Camden Council
B89: 22 | C89: Campbelltown City Council
B90: 23 | C90: Canterbury-Bankstown Council
B91: 24 | C91: Carrathool Shire Council
B92: 25 | C92: Central Coast Council
B93: 26 | C93: Central Darling Shire Council
B94: 27 | C94: Cessnock City Council
B95: 28 | C95: City of Canada Bay Council
B96: 29 | C96: City of Parramatta Council
B97: 30 | C97: City of Ryde Council
B98: 31 | C98: City of Sydney Council
B99: 32 | C99: Clarence Valley Council
B100: 33 | C100: Cobar Shire Council
B101: =B100+1 -> 34 | C101: Coffs Harbour City Council
B102: 35 | C102: Coolamon Shire Council
B103: 36 | C103: Coonamble Shire Council
B104: 37 | C104: Cootamundra-Gundagai Council
B105: 38 | C105: Cowra Shire Council
B106: 39 | C106: Cumberland Council
B107: 40 | C107: Dubbo Regional Council
B108: 41 | C108: Dungog Shire Council
B109: 42 | C109: Edward River Council
B110: 43 | C110: Eurobodalla Shire Council
B111: 44 | C111: Fairfield City Council
B112: 45 | C112: Federation Council
B113: 46 | C113: Forbes Shire Council
B114: 47 | C114: Georges River Council
B115: 48 | C115: Gilgandra Shire Council
B116: 49 | C116: Glen Innes Severn Shire Council
B117: 50 | C117: Goulburn Mulwaree Council
B118: 51 | C118: Greater Hume Shire Council
B119: 52 | C119: Griffith City Council
B120: 53 | C120: Gunnedah Shire Council
B121: 54 | C121: Gwydir Shire Council
B122: 55 | C122: Hawkesbury City Council
B123: 56 | C123: Hay Shire Council
B124: 57 | C124: Hills Shire Council, The
B125: 58 | C125: Hilltops Council
B126: 59 | C126: Hornsby, The Council of the Shire of
B127: 60 | C127: Hunters Hill, The Council of the Municipality of
B128: 61 | C128: Inner West Council
B129: 62 | C129: Inverell Shire Council
B130: 63 | C130: Junee Shire Council
B131: 64 | C131: Kempsey Shire Council
B132: 65 | C132: Kiama, The Council of the Municipality of
B133: =B132+1 -> 66 | C133: Ku-ring-gai Municipal Council
B134: 67 | C134: Kyogle Council
B135: 68 | C135: Lachlan Shire Council
B136: 69 | C136: Lake Macquarie City Council
B137: 70 | C137: Lane Cove Council
B138: 71 | C138: Leeton Shire Council
B139: 72 | C139: Lismore City Council
B140: 73 | C140: Lithgow Council, City of
B141: 74 | C141: Liverpool City Council
B142: 75 | C142: Liverpool Plains Shire Council
B143: 76 | C143: Lockhart Shire Council
B144: 77 | C144: Maitland City Council
B145: 78 | C145: MidCoast Council
B146: 79 | C146: Mid-Western Regional Council
B147: 80 | C147: Moree Plains Shire Council
B148: 81 | C148: Mosman Municipal Council
B149: 82 | C149: Murray River Council
B150: 83 | C150: Murrumbidgee Shire Council
B151: 84 | C151: Muswellbrook Shire Council
B152: 85 | C152: Nambucca Shire Council
B153: 86 | C153: Narrabri Shire Council
B154: 87 | C154: Narrandera Shire Council
B155: 88 | C155: Narromine Shire Council
B156: 89 | C156: Newcastle City Council
B157: 90 | C157: Northern Beaches Council
B158: 91 | C158: North Sydney Council
B159: 92 | C159: Oberon Council
B160: 93 | C160: Orange City Council
B161: 94 | C161: Parkes Shire Council
B162: 95 | C162: Penrith City Council
B163: 96 | C163: Port Macquarie-Hastings Council
B164: 97 | C164: Port Stephens Council
B165: =B164+1 -> 98 | C165: Queanbeyan-Palerang Regional Council
B166: 99 | C166: Randwick City Council
B167: 100 | C167: Richmond Valley Council
B168: 101 | C168: Shellharbour City Council
B169: 102 | C169: Shoalhaven City Council
B170: 103 | C170: Singleton Shire Council
B171: 104 | C171: Snowy Monaro Regional Council
B172: 105 | C172: Snowy Valleys Council
B173: 106 | C173: Strathfield Municipal Council
B174: 107 | C174: Sutherland Shire Council
B175: 108 | C175: Tamworth Regional Council
B176: 109 | C176: Temora Shire Council
B177: 110 | C177: Tenterfield Shire Council
B178: 111 | C178: Tweed Shire Council
B179: 112 | C179: Upper Hunter Shire Council
B180: 113 | C180: Upper Lachlan Shire Council
B181: 114 | C181: Uralla Shire Council
B182: 115 | C182: Wagga Wagga City Council
B183: 116 | C183: Walcha Council
B184: 117 | C184: Walgett Shire Council
B185: 118 | C185: Warren Shire Council
B186: 119 | C186: Warrumbungle Shire Council
B187: 120 | C187: Waverley Council
B188: 121 | C188: Weddin Shire Council
B189: 122 | C189: Wentworth Shire Council
B190: 123 | C190: Willoughby City Council
B191: 124 | C191: Wingecarribee Shire Council
B192: 125 | C192: Wollondilly Shire Council
B193: 126 | C193: Wollongong City Council
B194: 127 | C194: Woollahra Municipal Council
B195: 128 | C195: Yass Valley Council
B196: 129
B197: =B196+1 -> 130
B198: 131
B199: 132
B200: 133
B201: 134
B202: 135
B203: 136
B204: 137
B205: 138
B206: 139
B207: 140
B208: 141
B209: 142
B210: 143
B211: 144
B212: 145
B213: 146
B214: 147
B215: 148
B216: 149
B217: 150
B218: 151
B219: 152
B220: 153
B221: 154
B222: 155 | F222: add rows above this one if you need more
B225: 3. Lists for expiring special variations and other questions
... 165 more rows

Sheet Instructions
H6: THE INDEPENDENT PRICING AND REGULATORY TRIBUNAL OF NSW
H8: APPLICATION FOR A SPECIAL VARIATION
H9: TO GENERAL INCOME
H10: under Section 508A and 508(2) of the Local Government Act 1993
H13: SECTION 508A & 508(2) APPLICATION FORM
H14: ="PART A "&'WK0 - Input data'!$D$45 -> PART A 2023-24
H16: Before completing this form, you MUST read the Office of Local Government's
H17: Guidelines for the preparation of an application for a special variation to general income
H19: All dollars in nominal terms
D21: The Guidelines are available on the Office’s website at www.olg.nsw.gov.au.
D23: NOTE: | E23: This part of the application must be completed in conjunction with Part B
E24: ="(Special Variation Application Form "&'WK0 - Input data'!$D$45&"- Part B)." -> (Special Variation Application Form 2023-24- Part B).
H26: Overview
C29: A Section 508A special variation allows a council to increase general income by a percentage that is greater than the rate peg
C30: each year, up to a maximum of 7 years.
C32: Section 508(2) allows a council to increase general income by a percentage that is greater than the rate peg in a single year.
C34: You must identify the percentage increase requested for each year inclusive of the rate peg.
C36: You must also identify percentage increases in minimum rates for each year, if the increases result in a minimum rate
C37: which exceeds the statutory limit.
C39: Note: IPART can approve a percentage increase to minimum rates above the statutory limit that differs from the
C40: proposed special variation percentage increase as long as you have justified and properly consulted on that percentage.
C41: See Attachment 4 of the Guidelines for further details.
C43: Both Part A and Part B of the application should be submitted to IPART (us) via the Council Portal on our
C44: website at www.ipart.nsw.gov.au.
C46: Part A consists of 9 worksheets:
C47: ► | D47: Worksheet 1 (Identification): Identifies your council and a council contact officer, collects information
E48: about your proposed special variation and any existing special variations (SVs).
E49: It also collects information about Crown Land adjustments, catch-ups or excess adjustments
E50: and valuation objections.
C51: ► | D51: Worksheet 2 (current year Notional General Income): Calculates the council's Notional General Income
E52: ="for the current year (Year 0 in the application, "&'WK0 - Input data'!$H$58&"). " -> for the current year (Year 0 in the application, 2022-23).
C53: ► | D53: Worksheet 3 (first year Notional General Income): Calculates the council's proposed Notional General
E54: ="Income for next year (Year 1 in the application, "&'WK0 - Input data'!$I$58&")." -> Income for next year (Year 1 in the application, 2023-24).
C55: ► | D55: Worksheet 4 (PGI): Summarises the council's Permissible General Income based on the 1st year's percentage
E56: for the proposed SV and Crown Land adjustments, plus other income adjustments. It also shows the
E57: the council's PGI over the proposed SV period and the annual and cumulative impacts of the proposed SV.
C58: ► | D58: Worksheet 5a (Impact on Rates): Calculates the average annual and cumulative increases in rates
E59: for each category/sub-category for each year of the proposed SV, with and without the proposed SV.
C60: ► | D60: Worksheet 6 (Additional SV Income and Expenditure): Collects data on how the council intends to use the
E61: additional funds (above the rate peg) from the proposed SV.
C62: ► | D62: Worksheet 7 (Financials): Collects historical information from your financial statements and forecasts for
D63: selected balance sheet items from you long term financial plan (LTFP).
C64: ► | D64: Worksheet 8 (Long Term Financial Plan): Collects information on your Long Term Financial Plan
E65: including scenarios with and without the proposed special variation.
C66: ► | D66: Worksheet 9 (Financial ratios): Captures financial ratios, some of which are calculated while others
E67: are entered as inputs.
D70: Enquiries regarding the completion of this application should be directed to:
E72: ='WK0 - Input data'!$D$29&" "&'WK0 - Input data'!$D$30 -> Edward Jenkins | H72: ='WK0 - Input data'!D32 -> (02) 9113 7774
H73: ='WK0 - Input data'!D31 -> Edward_jenkins@ipart.nsw.gov.au
E75: ='WK0 - Input data'!$D$35&" "&'WK0 - Input data'!$D$36&" (who in "&'WK0 - Input data'!D29&"'s absence, will direct you to the appropriate IPART officer)" -> Arsh Suri (who in Edward's absence, will direct you to the appropriate IPART officer)
H76: ='WK0 - Input data'!D38 -> (02) 9113 7730
H77: ='WK0 - Input data'!D37 -> arsh_suri@ipart.nsw.gov.au
C83: Colour code
C85: Enter data in the blue input cells
C86: Hard-coded values that should not be changed
C87: Key outputs
C88: Special instructions
C89: Error checks
C90: Double red line indicates a change in formula
I94: Step-by-step instructions on completing the worksheets
C98: Worksheet 1 - Identification
C100: > | D100: Select council name from the drop down list and enter contact details.
C101: > | D101: Indicate whether you have any existing SVs by selecting 'yes' or 'no' from the drop down box, where the existing SV
D102: means you have an existing increase(s) above the rate peg for any year from Year 1 onwards.
C103: =$C$100 -> > | D103: Select (or enter) the type and duration of the proposed special variation.
C104: =$C$100 -> > | D104: Enter the additional percentage being sought above the rate peg (excluding other adjustments).
C105: =$C$100 -> > | D105: Answer the questions about expiring SVs.
D106: * | E106: If the council does not have any SVs due to expire in the period of the proposed SV, leave the
E107: field blank or select 'na'.
D108: =$D$106 -> * | E108: ="Enter the $ value of expiring SVs in Table 1 (row "&ROW('WK1 - Identification'!C74)&")" -> Enter the $ value of expiring SVs in Table 1 (row 74)
D109: =$D$106 -> * | E109: Any amounts entered need to be verified by the OLG before the application is submitted to us.
C111: =$C$100 -> > | D111: Answer the questions about Crown land adjustments, catch ups and valuation objections.
D112: =$D$106 -> * | E112: If the council does not have any adjustments, leave the fields in this section blank
D113: =$D$106 -> * | E113: Note that applications for Crown land adjustments still need to be separately made to OLG.
C114: =$C$100 -> > | D114: Enter the requested percentage increases in general income (including the rate peg) from year 2 (Table 1).
D115: =$D$106 -> * | E115: The annual and cumulative increases in the white cells are automatically calculated once the requested
E116: percentage increases have been entered.
D117: =$D$106 -> * | E117: The worksheet automatically assumes a rate peg of 2.5% for each of the forward years (Year 2 and thereafter).
E118: If the rate peg turns out to be different from that assumed, the total % increase in general income with an
E119: approved SV does not change.
C121: ="Worksheet 2 - Notional General Income "&'WK0 - Input data'!$H$58 -> Worksheet 2 - Notional General Income 2022-23
C123: This worksheet calculates the Notional General Income for the current year (Year 0), by applying the
C124: rating structure used in the previous year to land values, adjusted by supplementary valuations
C125: received during that year.
C127: Any inclusion in WK2 as a “supplementary valuation” must agree with section 4 of the Valuation of Land Act 1916.
C129: ="Worksheet 3 - Notional General Income "&'WK0 - Input data'!$I$58 -> Worksheet 3 - Notional General Income 2023-24
C131: This worksheet calculates the proposed Notional General Income (Year 1). It should apply the proposed rating structure,
C132: including the proposed SV increase, to land values adjusted by any supplementary valuations.
C134: The rating structure entered here must be checked by OLG.
C136: Worksheet 4 - Calculation
C138: This worksheet calculates Permissible General Income and the value of the proposed SV after taking into
C139: account various adjustments. Income adjustments and expiring SV amounts are to be verified
C140: by OLG before the application is submitted to us. | M140: Example of PGI calculation for Year 1
C142: NO INPUTS ARE REQUIRED | K142: XYZ Council
M143: WORKSHEET 4
C144: Expiring SV
C145: ="If the council has a SV due to expire on 30 June "&'WK0 - Input data'!$I$57&", " -> If the council has a SV due to expire on 30 June 2023, | M145: PERMISSIBLE GENERAL INCOME SUMMARY FOR 2018-19
C146: Notional General Income must be reduced before | M146: All dollars in nominal terms
C147: ="calculating Permissable General Income in "&'WK0 - Input data'!$I$58&"." -> calculating Permissable General Income in 2023-24. | M147: Please check all income adjustments and expiring variation amounts with OLG
M148: before submitting the application.
C149: Additional percentage increase | K149: Prior year Notional General Income | Q149: 20000000
C150: This is the additional percentage increase being sought | K150: Less: | L150: Expiry of a prior special variation | Q150: 10000
C151: above the rate peg, excluding any other income
C152: adjustments. | K152: Adjusted first year Notional General Income | P152: $ | Q152: =Q149-Q150 -> 19990000
C154: Crown Land Adjustment | K154: Plus: | L154: Rate peg increase - first year | O154: 0.023 | Q154: =ROUND(Q152*O154,9) -> 459770
C155: Crown land claims will increase Permissible General | K155: Plus: | L155: Additional increase - first year | O155: 0.037 | Q155: =ROUND(Q152*O155,9) -> 739630
C156: Income. The $ amount of any Crown land adjustment is | K156: Plus: | L156: Crown Land adjustment - first year | O156: 0.000638253745 | Q156: 10000
C157: converted into a % amount to be included in the final
C158: special variation for consideration by IPART. | L158: Total special variation - first year | O158: =SUM(O154:O156) -> 0.06063825375 | P158: $ | Q158: =SUM(Q154:Q156) -> 1209400
C160: Other adjustments | K160: Other First Year Adjustments:
C161: There are two other possible adjustments that are not included | K161: Plus/Minus: | L161: Prior year Catch-up/(Excess) | Q161: -5000
C162: in the proposed SV % but will affect Permissible General Income: | K162: Minus: | L162: Valuation Objections claimed in prior year | Q162: -30
C163: 1. Prior year result. This is the catch up or excess amount
C164: from the previous year, as advised by OLG. | O164: Total Adjustments | Q164: =SUM(Q161:Q162) -> -5030
C165: 2. Valuation objections: if you successfully claimed valuation
C166: objections in the previous year, PGI must be reduced to | L166: First year Permissible General Income | P166: $ | Q166: =Q152+Q158+Q164 -> 21194370
C167: remove the extra income claimed from the revenue base.
C170: Worksheet 5a - Impact on Ratepayers
C172: The aim of this sheet is to show the minimum rate increase (if applicable), the average rate increase per sub-category
C173: (inclusive of all relevant rates) and the proposed annual charges in each year of the proposed special variation.
C174: It also aims to compare average rates with and without the proposed special variation.
C175: Enter the required data in the blue input cells. The values in the white cells will calculated automatically.
C177: Minimum rates
C178: Enter in the minimum rates per category/sub-category as if the SV were approved for each year as requested
C179: These figures are intended to illustrate the impact of the proposed SV on any specific minimum rate.
C181: Ordinary and Special Average Rates
C182: Enter in the average rates per sub-category as if the proposed SV were approved for each year as requested
C183: AND the average rates as if the proposed SV were not approved (only the rate peg would then apply).
C185: These figures should include the impact of changes in minimum rates and are calculated as per below.
C187: Annual Charges
C188: Enter any proposed annual charges for each year of the proposed variation.
C190: Note:
C191: * | D191: An average rate equals total income in a category or sub-category divided by the number
D192: of assessments in that same category or sub-category (i.e. including assessments on the minimum rate).
C193: =C191 -> * | D193: These figures should reflect the reduction from any expiring SVs so that the net change in rates is measured.
C195: Worksheet 6 - Proposed Additional SRV Income and Expenditure
C197: This worksheet is designed to show how the council proposes to use the additional funding
C198: above the rate peg generated from the proposed SV.
C200: The worksheet automatically calculates additional SRV income for Years 1 to 10.
C202: Councils must enter each category of expenditure, and if applicable, individual program/project names,
C203: in column C under one of the headings provided.
C205: The spreadsheet will calculate the difference between the additional income from the proposed special variation and what it is
C206: spent on. A positive difference means that the additional income is not all spent on operating expenditure or capital expenditure.
C208: * Part B of the application provides councils with the opportunity to explain their expenditure plans
C209: and the impacts on their financial position.
C211: Worksheet 7 - Historical financial information
C212: This sheet captures the council's historical financial information as reported in its financial statements.
C214: Worksheet 8 - Long Term Financial Plan
C216: This worksheet is designed to show how the council's Long Term Financial Plan varies
C217: with and without the proposed special variation
C218: Councils must complete the information from the Long Term Financial Plan for both the Special Variation Scenario
C219: and the Base Case Scenario (without proposed special variation).
C221: Councils must enter each category of income and expenditure under the headings provided
C222: This worksheet automatically calculates total amounts for each column
C224: Worksheet 9 - Financial ratios
C225: This worksheet captures financial ratios for three historical years as well as the current and forecast years (0 to 10).
C226: All the historical ratios and two of the forecast ratios are calculated from information provided in Worksheet 7 and Worksheet 8.
C227: Enter forecast values for the two compulsory ratios (Infrastructure Renewals Ratio and Infrastructure Backlog Ratio).
C228: Enter forecasts for the optional ratios only if they are relevant to your council's application.

Sheet WK1 - Identification
E3: APPLICATION FOR SPECIAL VARIATION TO GENERAL INCOME | M3: ='WK0 - Input data'!$D$45 -> 2023-24
F5: WORKSHEET 1
D7: Step 1: Fill out council details
D8: Step 2: Fill out any existing variation information
D9: Step 3: Fill out crown land adjustments, catch up & excess, valuation objections
D10: Step 4: Fill out proposed special variation amounts
C11: All dollars in nominal terms
C13: Council Name: | E13: Queanbeyan-Palerang Regional Council | I13: ="If your councils' name is not in the list, please enter it in cell E"&ROW(C14) -> If your councils' name is not in the list, please enter it in cell E14
C14: Council Name if not listed:
C16: Contact Details:
C17: Name: | E17: Kate Monaghan
C18: Position: | E18: Director Corporate Services
C19: Telephone:
C20: Email:
C21: Note: Please provide direct contact information for relevant council officer. Contact details will be redacted before publication.
C23: A. Existing special variations (SVs) | S23: DO NOT DELETE
C24: ="1. Does the council have any existing SV(s) that means it has an increase above the rate peg for any year from "&G56&" ("&G55&") onwards?" -> 1. Does the council have any existing SV(s) that means it has an increase above the rate peg for any year from 2023-24 (Year 1) onwards? | K24: no | S24: =IF(K24='WK0 - Input data'!B248,1,2) -> 2
C26: B. Proposed special variations (SVs)
C28: 2. Is the council applying for a one-year increase (s508(2)) or a multi-year increase (s508A)? | J28: select option | K28: s508A | S28: =IF(K28="",0,MATCH(K28,'WK0 - Input data'!B228:B229,0)) -> 2
C29: 3. For s508A applications: for how many years is the council requesting % increases as part of this application? | J29: select option | K29: 3 years | L29: =IF(AND(S28=1,S29>1),"Error, s508(2) is for one year",IF(AND(S28=2,S29=1),"Please select number of years","ok")) -> ok | S29: =IF(K29="",0,MATCH(K29,'WK0 - Input data'!E234:E240,0)) -> 3
C30: 4. For s508A & s508(2) applications: is the special variation permanent or temporary? | J30: select option | K30: Permanent
C31: If temporary or combined, enter the number of years before the (temporary part of the) special variation is due to expire. | J31: enter years | S31: =IF(S28+S29=0,0,IF(S28=1,1,S29)) -> 3
C32: ="5. Percentage rate peg for the first year of the SV period ("&$M$3&"). This will autofill with the selection of Council." -> 5. Percentage rate peg for the first year of the SV period (2023-24). This will autofill with the selection of Council. | K32: =IF(ISBLANK(E13),'WK0 - Input data'!D48,INDEX('WK0 - Input data'!D271:D398,MATCH('WK1 - Identification'!E13,'WK0 - Input data'!B271:B398,0))) -> 0.046
C33: =CHOOSE($S$24,"6. Enter the percentage above the existing full SV (ie, incl rate peg) the council is applying for in the first year ","6. Enter the percentage above the rate peg the council is applying for in the first year") -> 6. Enter the percentage above the rate peg the council is applying for in the first year | J33: enter % | K33: =0.18-0.046 -> 0.134
C34: =IF($S$35=1," - percentage of the Combined SV that this temporary"," na - ignore this row") -> na - ignore this row | J34: =IF($K$30='WK0 - Input data'!$B$245,"enter %","na - ignore") -> na - ignore | S34: DO NOT DELETE
C35: =IF($S$35=1," - percentage of the Combined SV that this permanent"," na - ignore this row") -> na - ignore this row | J35: % | K35: =IF(K30='WK0 - Input data'!$B$245,K33-K34,0) -> 0 | S35: =IF(K30='WK0 - Input data'!$B$245,1,2) -> 2
C37: C. Expiring special variations (SVs)
C38: 7. Does the council have an expiring variation? If yes, please specify when. | I38: 1st Expiring SV | J38: select option | K38: na
I39: 2nd Expiring SV | J39: select option | K39: na
C41: ="8. If the council has an expiring variation, enter the $ amount expiring in row "&ROW(C73)&" below." -> 8. If the council has an expiring variation, enter the $ amount expiring in row 73 below.
C43: D. Crown Land adjustments, catch ups, valuation objections | K43: $ | L43: % Y 0 income
C44: 9. Enter the amount of any Crown Land adjustments required | J44: enter $ | K44: 0 | L44: =IF('WK2 - Notional General Income'!$M$161-$F$74=0,0,K44/('WK2 - Notional General Income'!$M$161-$F$74)) -> 0
C45: 10. Enter the amount for any catch ups or excess adjustments required | J45: =J44 -> enter $ | K45: -14 | L45: =IF('WK2 - Notional General Income'!$M$161-$F$74=0,0,K45/('WK2 - Notional General Income'!$M$161-$F$74)) -> -3.270149676e-07
C46: 11. Enter any valuation objections required (input as a positive whole number) | J46: =J45 -> enter $ | K46: 0 | L46: =IF('WK2 - Notional General Income'!$M$161-$F$74=0,0,K46/('WK2 - Notional General Income'!$M$161-$F$74)) -> 0
C49: E. Requested annual percentage increases and expiring SV amounts
C50: A special variation is the total % increase permitted in a council's general income, Including the rate peg and Crown land adjustments, before adjustments are made for
C51: catch ups/excesses and valuation objections.
C52: Note: Approved SV% increases do not change if the actual rate peg turns out to be different from that assumed for a particular year.
C54: Table 1 | D54: Requested annual percentage increases and expiring SV amounts
F55: ='WK0 - Input data'!H$55 -> Year 0 | G55: ='WK0 - Input data'!I$55 -> Year 1 | H55: ='WK0 - Input data'!J$55 -> Year 2 | I55: ='WK0 - Input data'!K$55 -> Year 3 | J55: ='WK0 - Input data'!L$55 -> Year 4 | K55: ='WK0 - Input data'!M$55 -> Year 5 | L55: ='WK0 - Input data'!N$55 -> Year 6 | M55: ='WK0 - Input data'!O$55 -> Year 7
C56: ='WK0 - Input data'!B$58 -> Financial year | F56: ='WK0 - Input data'!H$58 -> 2022-23 | G56: ='WK0 - Input data'!I$58 -> 2023-24 | H56: ='WK0 - Input data'!J$58 -> 2024-25 | I56: ='WK0 - Input data'!K$58 -> 2025-26 | J56: ='WK0 - Input data'!L$58 -> 2026-27 | K56: ='WK0 - Input data'!M$58 -> 2027-28 | L56: ='WK0 - Input data'!N$58 -> 2028-29 | M56: ='WK0 - Input data'!O$58 -> 2029-30
C57: 1= included in SV period | F57: =IF(VALUE(RIGHT(F55,1))>$S$31,0,1) -> 1 | G57: 1 | H57: 1 | I57: 1 | J57: 0 | K57: 0 | L57: 0 | M57: 0
C58: 0 = beyond temporary SV period | F58: =IF($K$30='WK0 - Input data'!$B$243,1,IF($K$31<VALUE(RIGHT(F55,1)),0,1)) -> 1 | G58: =IF($K$30='WK0 - Input data'!$B$243,1,IF($K$31<VALUE(RIGHT(G55,1)),0,1)) -> 1 | H58: =IF($K$30='WK0 - Input data'!$B$243,1,IF($K$31<VALUE(RIGHT(H55,1)),0,1)) -> 1 | I58: =IF($K$30='WK0 - Input data'!$B$243,1,IF($K$31<VALUE(RIGHT(I55,1)),0,1)) -> 1 | J58: =IF($K$30='WK0 - Input data'!$B$243,1,IF($K$31<VALUE(RIGHT(J55,1)),0,1)) -> 1 | K58: =IF($K$30='WK0 - Input data'!$B$243,1,IF($K$31<VALUE(RIGHT(K55,1)),0,1)) -> 1 | L58: =IF($K$30='WK0 - Input data'!$B$243,1,IF($K$31<VALUE(RIGHT(L55,1)),0,1)) -> 1 | M58: =IF($K$30='WK0 - Input data'!$B$243,1,IF($K$31<VALUE(RIGHT(M55,1)),0,1)) -> 1
C59: Annual % increases
C60: =CHOOSE($S$24," Enter existing full SV (ie, incl the rate peg) in the years in which it applies","na - leave blank") -> na - leave blank
C62: Rate peg only | G62: =IF(G58=0,0,'WK0 - Input data'!I60) -> 0.046 | H62: =IF(H58=0,0,'WK0 - Input data'!J60) -> 0.025 | I62: =IF(I58=0,0,'WK0 - Input data'!K60) -> 0.025 | J62: =IF(J58=0,0,'WK0 - Input data'!L60) -> 0.025 | K62: =IF(K58=0,0,'WK0 - Input data'!M60) -> 0.025 | L62: =IF(L58=0,0,'WK0 - Input data'!N60) -> 0.025 | M62: =IF(M58=0,0,'WK0 - Input data'!O60) -> 0.025
C63: plus | D63: =CHOOSE($S$24,"existing SV above rate peg"," na") -> na | G63: =IF(OR($S$24=2,G60=""),0,G60-G62) -> 0 | H63: 0 | I63: 0 | J63: 0 | K63: =IF(OR($S$24=2,K60=""),0,K60-K62) -> 0 | L63: 0 | M63: 0 | S63: DO NOT DELETE
C64: plus | D64: =$S$64&S65 -> percentage above the rate peg | G64: =CHOOSE($S$35,K34,K33) -> 0.134 | H64: =IF(H57=0,0,MAX(0,H67-H62-H63-CHOOSE($S$35,H65,0))) -> 0.155 | I64: =IF(I57=0,0,MAX(0,I67-I62-I63-CHOOSE($S$35,I65,0))) -> 0.155 | J64: 0 | K64: 0 | L64: 0 | M64: 0 | S64: =CHOOSE($S$24,"percentage above the existing full SV (incl rate peg)","percentage above the rate peg") -> percentage above the rate peg
C65: plus | D65: =CHOOSE($S$35,$S$64&S66,"na - ignore this row") -> na - ignore this row | G65: =K35 -> 0 | S65: =CHOOSE($S$35," that is temporary","") -> 
C66: =$C$64 -> plus | D66: Crown Land adjustment | G66: =L44 -> 0 | H66: 0 | I66: 0 | J66: 0 | K66: 0 | L66: 0 | M66: 0 | S66: =CHOOSE($S$35," that is permanent","") -> 
C67: =CHOOSE($S$24," Proposed SV (total proposed and existing SV)"," Proposed SV ") -> Proposed SV | F67: na | G67: =SUM(G62:G66) -> 0.18 | H67: 0.18 | I67: 0.18
C68: Cumulative % increase
C69: =CHOOSE($S$24,"Exising full SV (including rate peg) followed by rate peg only","Rate peg only") -> Rate peg only | G69: =SUM(G62:G63) -> 0.046 | H69: =IF(H58=0,0,(1+G69)*(1+H62+H63)-1) -> 0.07215 | I69: =IF(I58=0,0,(1+H69)*(1+I62+I63)-1) -> 0.09895375 | J69: 0.1264275937 | K69: 0.1545882836 | L69: 0.1834529907 | M69: 0.2130393155
C70: =C64 -> plus | D70: additional increases | G70: =IF(G64=0,".",G64+CHOOSE($S$35,G65,0)) -> 0.134 | H70: =IF(OR(H57=0,H58=0),0,MAX(0,H71-H69)) -> 0.32025 | I70: =IF(I58=0,0,IF(I57=0,0,MAX(0,I71-I69))) -> 0.54407825 | J70: 0 | K70: 0 | L70: 0 | M70: 0
C71: =C67 -> Proposed SV | F71: na | G71: =IF(G67=0,".",G67) -> 0.18 | H71: =IF(H58=0,0,IF(H57=0,(1+G71)*(1+H62+H63)-1,(1+G71)*(1+H67)-1)) -> 0.3924 | I71: =IF(I58=0,0,IF(I57=0,(1+H71)*(1+I62+I63)-1,(1+H71)*(1+I67)-1)) -> 0.643032 | J71: =IF(J58=0,0,IF(J57=0,(1+I71)*(1+J62+J63)-1,(1+I71)*(1+J67)-1)) -> 0.6841078 | K71: 0.726210495 | L71: 0.7693657574 | M71: 0.8135999013
C73: Expiring special variations
C74: $ value of expiring special | E74: $ (nominal) | F74: 0 | G74: 0 | H74: 0 | I74: 0 | J74: 0 | K74: 0 | L74: 0 | M74: 0
C75: variations (ESV) | E75: % value of ESV | F75: =IF('WK4 - PGI summary'!F58=0,".",F74/'WK4 - PGI summary'!F58) -> 0 | G75: =IF('WK4 - PGI summary'!G58=0,".",G74/'WK4 - PGI summary'!G58) -> 0 | H75: =IF('WK4 - PGI summary'!H58=0,".",H74/'WK4 - PGI summary'!H58) -> 0 | I75: =IF('WK4 - PGI summary'!I58=0,".",I74/'WK4 - PGI summary'!I58) -> 0 | J75: =IF('WK4 - PGI summary'!J58=0,".",J74/'WK4 - PGI summary'!J58) -> 0 | K75: =IF('WK4 - PGI summary'!K58=0,".",K74/'WK4 - PGI summary'!K58) -> 0 | L75: =IF('WK4 - PGI summary'!L58=0,".",L74/'WK4 - PGI summary'!L58) -> 0 | M75: =IF('WK4 - PGI summary'!M58=0,".",M74/'WK4 - PGI summary'!M58) -> 0

Sheet WK2 - Notional General Income
C3: =IF(ISBLANK('WK1 - Identification'!$E$13),'WK1 - Identification'!$E$14,'WK1 - Identification'!$E$13) -> Queanbeyan-Palerang Regional Council
H5: WORKSHEET 2
H7: ="CALCULATION OF NOTIONAL GENERAL INCOME "&'WK0 - Input data'!$H$58 -> CALCULATION OF NOTIONAL GENERAL INCOME 2022-23
H8: Applicable to the first year of the application
H10: All dollars in nominal terms
H11: This worksheet must reflect the rating structure levied in the previous year
E12: ="NOTE: Valuations used here are to be taken from Council's valuation list on 1 July "&'WK0 - Input data'!$H$57&" and are to include:" -> NOTE: Valuations used here are to be taken from Council's valuation list on 1 July 2022 and are to include:
E13: (i) supplementaries having the same base date and furnished to Council during that year, and
E14: (ii) estimates of increases in valuations provided to the Council under section 513.
H16: Calculation of Notional General Income - Ordinary Rates
C18: Rating Category (s514-518) | D18: Name of sub-category | E18: Number of Assessments | F18: Ad Valorem Rate (cents) | G18: Base Amount $ | H18: Base Amount % | I18: Minimum Amount $ | J18: Number on Minimum | K18: Land Value (see note above) $ | L18: Land Value of Land on Minimum | M18: Notional General Income
C19: Residential | D19: General | E19: 5594 | F19: 0.18215 | G19: 387 | H19: =IF(G19="",".",E19*G19/M19) -> 0.3324282514 | K19: 2386735405 | M19: =IF(E19="",".",IF(G19<>"",G19*E19+K19*(F19/100),(K19-L19)*(F19/100)+I19*J19)) -> 6512316.54
C20: Residential | D20: Queanbeyan- Urban | E20: 15567 | F20: 0.34571 | G20: 428 | H20: =IF(G20="",".",E20*G20/M20) -> 0.3283015691 | K20: 3943103054 | M20: 20294377.57
C21: Residential | D21: Googong | E21: 2704 | F21: 0.34571 | G21: 502 | H21: 0.3281577991 | K21: 803864800 | M21: 4136449
C22: Residential | D22: Bungendore | E22: 1565 | F22: 0.22268 | G22: 387 | H22: 0.373076664 | K22: 457046561 | M22: 1623406.282
C23: Residential | D23: Braidwood | E23: 754 | F23: 0.22268 | G23: 387 | H23: 0.4972877235 | K23: 132468571 | M23: =IF(E23="",".",IF(G23<>"",G23*E23+K23*(F23/100),(K23-L23)*(F23/100)+I23*J23)) -> 586779.0139
C24: Residential | H24: . | M24: .
C25: Residential | H25: . | M25: .
C26: Residential | H26: . | M26: .
C27: Residential | H27: . | M27: .
C28: Residential | H28: . | M28: .
C29: Residential | H29: . | M29: .
C30: Residential | H30: . | M30: .
C31: Residential | H31: . | M31: .
C32: Residential | H32: . | M32: .
C33: Residential | H33: . | M33: .
C34: Residential | H34: . | M34: .
C35: Residential | H35: . | M35: .
C36: Residential | H36: . | M36: .
C37: Residential | H37: . | M37: .
C38: Residential | H38: . | M38: .
D39: Total Residential | E39: =SUM(E19:E38) -> 26184 | J39: =SUM(J19:J38) -> 0 | K39: =SUM(K19:K38) -> 7723218391 | L39: =SUM(L19:L38) -> 0 | M39: =SUM(M19:M38) -> 33153328.4
C40: Business | D40: General | E40: 257 | F40: 0.18215 | G40: 428 | H40: 0.4230271508 | K40: 82363511 | M40: =IF(E40="",".",IF(G40<>"",G40*E40+K40*(F40/100),(K40-L40)*(F40/100)+I40*J40)) -> 260021.1353
C41: Business | D41: CBD - Queanbeyan | E41: 145 | F41: 1.85971 | G41: 690 | H41: 0.05969979595 | K41: 84735530 | M41: 1675885.125
C42: Business | D42: Googong | E42: 33 | F42: 1.85971 | G42: 690 | H42: 0.1057290797 | K42: 10356010 | M42: 215361.7536
C43: Business | D43: Poplars Business Park | E43: 6 | F43: 1.85971 | G43: 690 | H43: 0.01420201315 | K43: 15452300 | M43: 291507.9683
C44: Business | D44: Queanbeyan urban | E44: 124 | F44: 1.33575 | G44: 470 | H44: 0.04653014139 | K44: 89406060 | M44: 1252521.446
C45: Business | D45: Industrial | E45: 792 | F45: 0.828 | G45: 470 | H45: 0.1161370258 | K45: 342142437 | M45: 3205179.378
C46: Business | H46: . | M46: .
C47: Business | H47: . | M47: .
C48: Business | H48: . | M48: .
C49: Business | H49: . | M49: .
C50: Business | H50: . | M50: .
C51: Business | H51: . | M51: .
C52: Business | H52: . | M52: .
C53: Business | H53: . | M53: .
C54: Business | H54: . | M54: .
C55: Business | H55: . | M55: .
C56: Business | H56: . | M56: .
C57: Business | H57: . | M57: .
C58: Business | H58: . | M58: .
C59: Business | H59: . | M59: .
C60: Business | H60: . | M60: .
C61: Business | H61: . | M61: .
C62: Business | H62: . | M62: .
C63: Business | H63: . | M63: .
C64: Business | H64: . | M64: .
D65: Total Business | E65: =SUM(E40:E64) -> 1357 | J65: =SUM(J40:J64) -> 0 | K65: =SUM(K40:K64) -> 624455848 | L65: =SUM(L40:L64) -> 0 | M65: =SUM(M40:M64) -> 6900476.807
C66: Farmland | D66: General | E66: 1046 | F66: 0.134264 | G66: 1171 | H66: 0.4481244079 | K66: 1123496143 | M66: =IF(E66="",".",IF(G66<>"",G66*E66+K66*(F66/100),(K66-L66)*(F66/100)+I66*J66)) -> 2733316.861
C67: Farmland | H67: . | M67: .
C68: Farmland | H68: . | M68: .
C69: Farmland | H69: . | M69: .
C70: Farmland | H70: . | M70: .
C71: Farmland | H71: . | M71: .
C72: Farmland | H72: . | M72: .
C73: Farmland | H73: . | M73: .
C74: Farmland | H74: . | M74: .
C75: Farmland | H75: . | M75: =IF(E75="",".",IF(G75<>"",G75*E75+K75*(F75/100),(K75-L75)*(F75/100)+I75*J75)) -> .
D76: Total Farmland | E76: =SUM(E66:E75) -> 1046 | J76: =SUM(J66:J75) -> 0 | K76: =SUM(K66:K75) -> 1123496143 | L76: =SUM(L66:L75) -> 0 | M76: =SUM(M66:M75) -> 2733316.861
C77: Mining | D77: General | E77: 1 | F77: 0.5806 | G77: 1150 | H77: 0.04718142283 | K77: 4000000 | M77: =IF(E77="",".",IF(G77<>"",G77*E77+K77*(F77/100),(K77-L77)*(F77/100)+I77*J77)) -> 24374
C78: Mining | H78: . | M78: .
C79: Mining | H79: . | M79: .
C80: Mining | H80: . | M80: .
C81: Mining | H81: . | M81: .
C82: Mining | H82: . | M82: .
C83: Mining | H83: . | M83: .
C84: Mining | H84: =IF(G84="",".",E84*G84/M84) -> . | M84: .
C85: Mining | H85: . | M85: .
C86: Mining | H86: . | M86: =IF(E86="",".",IF(G86<>"",G86*E86+K86*(F86/100),(K86-L86)*(F86/100)+I86*J86)) -> .
D87: Total Mining | E87: =SUM(E77:E86) -> 1 | J87: =SUM(J77:J86) -> 0 | K87: =SUM(K77:K86) -> 4000000 | L87: =SUM(L77:L86) -> 0 | M87: =SUM(M77:M86) -> 24374
C88: Total Assessments: | E88: =E39+E65+E76+E87 -> 28588 | H88: Total Rateable Land Value: | K88: =K39+K65+K76+K87 -> 9475170382 | L88: Sub-Total: | M88: =M39+M65+M76+M87 -> 42811496.07
H91: Calculation of Notional General Income - Special Rates
C93: Rating Category (s514-518) | D93: Name of special rate | E93: Number of Assessments | F93: Ad Valorem Rate | G93: Base Amount $ | H93: Base Amount % | I93: Minimum Amount $ | J93: Number on Minimum | K93: Land Value (see note above) | L93: Land Value of Land on Minimum | M93: Notional Income
C94: Residential | H94: =IF(G94="",".",E94*G94/M94) -> . | M94: =IF(E94="",".",IF(G94<>"",G94*E94+K94*(F94/100),(K94-L94)*(F94/100)+I94*J94)) -> .
C95: Residential | H95: . | M95: .
C96: Residential | H96: . | M96: .
C97: Residential | H97: . | M97: .
C98: Residential | H98: . | M98: .
C99: Residential | H99: . | M99: .
C100: Residential | H100: . | M100: .
C101: Residential | H101: . | M101: .
C102: Residential | H102: . | M102: .
C103: Residential | H103: . | M103: .
C104: Business | H104: . | M104: .
C105: Business | H105: . | M105: .
C106: Business | H106: . | M106: .
C107: Business | H107: . | M107: .
C108: Business | H108: . | M108: .
C109: Business | H109: . | M109: .
C110: Business | H110: . | M110: .
C111: Business | H111: . | M111: .
C112: Business | H112: . | M112: .
C113: Business | H113: . | M113: .
C114: Business | H114: . | M114: .
C115: Business | H115: . | M115: .
C116: Business | H116: . | M116: .
C117: Business | H117: . | M117: .
C118: Business | H118: . | M118: .
C119: Business | H119: . | M119: .
C120: Business | H120: . | M120: .
C121: Business | H121: . | M121: .
C122: Business | H122: . | M122: .
C123: Business | H123: . | M123: .
C124: Farmland | H124: . | M124: .
C125: Farmland | H125: . | M125: .
C126: Farmland | H126: =IF(G126="",".",E126*G126/M126) -> . | M126: .
C127: Farmland | H127: . | M127: .
C128: Farmland | H128: . | M128: .
C129: Farmland | H129: . | M129: .
C130: Farmland | H130: . | M130: .
C131: Farmland | H131: . | M131: .
C132: Farmland | H132: . | M132: .
C133: Farmland | H133: . | M133: .
C134: Mining | H134: . | M134: .
C135: Mining | H135: . | M135: .
C136: Mining | H136: . | M136: .
C137: Mining | H137: . | M137: .
C138: Mining | H138: . | M138: .
C139: Mining | H139: . | M139: .
C140: Mining | H140: . | M140: .
C141: Mining | H141: . | M141: .
C142: Mining | H142: . | M142: .
C143: Mining | H143: . | M143: =IF(E143="",".",IF(G143<>"",G143*E143+K143*(F143/100),(K143-L143)*(F143/100)+I143*J143)) -> .
L144: Sub-Total: | M144: =SUM(M94:M143) -> 0
H147: Calculation of Notional General Income - Annual Charges
C149: Annual Charges (excluding water supply, sewerage and domestic and non-domestic waste management services) | K149: Number of Assessments | L149: Amount of Charge $ | M149: Notional Income
M150: =IF(C150="",".",K150*L150) -> .
M151: =IF(C151="",".",K151*L151) -> .
M152: .
M153: .
M154: .
M155: .
M156: .
M157: .
L158: Sub-Total: | M158: =SUM(M150:M157) -> 0
K161: Total Notional General Income: | M161: =M88+M144+M158 -> 42811496.07
C163: Note: Section 505(a) of the Act provides for those rates and charges that are to be included in general income, including certain section 501 annual charges.

Sheet WK3 - Notional GI Yr1 YIELD
C3: ='WK2 - Notional General Income'!$C$3 -> Queanbeyan-Palerang Regional Council
H5: WORKSHEET 3
H7: ="CALCULATION OF NOTIONAL GENERAL INCOME "&'WK0 - Input data'!$I$58 -> CALCULATION OF NOTIONAL GENERAL INCOME 2023-24
H9: All dollars in nominal terms
H11: This worksheet must contain the rating structure proposed for the first year of the special variation application.
H12: Note: A rating structure that does not comply with the legislation may not be approved. It is Council's responsibility to check its rating structure with OLG before submission to IPART.
H14: Calculation of Notional General Income - Ordinary Rates
C18: Rating Category (s514-518) | D18: Name of sub-category | E18: Number of Assessments | F18: Ad valorem rate (cents) | G18: Base Amount $ | H18: Base Amount % | I18: Minimum Amount $ | J18: Number on Minimum | K18: Land Value as at start of year $ | L18: Land Value of Land on Minimum $ | M18: Notional General Income
C19: Residential | D19: =IF('WK2 - Notional General Income'!D19="","",'WK2 - Notional General Income'!D19) -> General | E19: 5594 | F19: 0.12039 | G19: 457 | H19: =IF(G19="",".",E19*G19/M19) -> 0.3326792172 | K19: 4259486315 | M19: =IF(E19="",".",IF(G19<>"",G19*E19+K19*(F19/100),(K19-L19)*(F19/100)+I19*J19)) -> 7684453.575
C20: Residential | D20: =IF('WK2 - Notional General Income'!D20="","",'WK2 - Notional General Income'!D20) -> Queanbeyan- Urban | E20: 15567 | F20: 0.23734 | G20: 505 | H20: =IF(G20="",".",E20*G20/M20) -> 0.3305823007 | K20: 6707226285 | M20: 23780265.86
C21: Residential | D21: =IF('WK2 - Notional General Income'!D21="","",'WK2 - Notional General Income'!D21) -> Googong | E21: 2704 | F21: 0.23734 | G21: 592 | H21: 0.3170789569 | K21: 1452648467 | M21: 5048483.872
C22: Residential | D22: =IF('WK2 - Notional General Income'!D22="","",'WK2 - Notional General Income'!D22) -> Bungendore | E22: 1565 | F22: 0.14048 | G22: 457 | H22: 0.3746811566 | K22: 849680609 | M22: 1908836.32
C23: Residential | D23: =IF('WK2 - Notional General Income'!D23="","",'WK2 - Notional General Income'!D23) -> Braidwood | E23: 754 | F23: 0.14048 | G23: 457 | H23: 0.4927946551 | K23: 252459013 | M23: 699232.4215
C24: Residential | D24: =IF('WK2 - Notional General Income'!D24="","",'WK2 - Notional General Income'!D24) ->  | H24: . | M24: .
C25: Residential | D25: =IF('WK2 - Notional General Income'!D25="","",'WK2 - Notional General Income'!D25) ->  | H25: . | M25: .
C26: Residential | D26: =IF('WK2 - Notional General Income'!D26="","",'WK2 - Notional General Income'!D26) ->  | H26: . | M26: .
C27: Residential | D27: =IF('WK2 - Notional General Income'!D27="","",'WK2 - Notional General Income'!D27) ->  | H27: . | M27: .
C28: Residential | D28: =IF('WK2 - Notional General Income'!D28="","",'WK2 - Notional General Income'!D28) ->  | H28: . | M28: .
C29: Residential | D29: =IF('WK2 - Notional General Income'!D29="","",'WK2 - Notional General Income'!D29) ->  | H29: . | M29: .
C30: Residential | D30: =IF('WK2 - Notional General Income'!D30="","",'WK2 - Notional General Income'!D30) ->  | H30: . | M30: .
C31: Residential | D31: =IF('WK2 - Notional General Income'!D31="","",'WK2 - Notional General Income'!D31) ->  | H31: . | M31: .
C32: Residential | D32: =IF('WK2 - Notional General Income'!D32="","",'WK2 - Notional General Income'!D32) ->  | H32: . | M32: .
C33: Residential | D33: =IF('WK2 - Notional General Income'!D33="","",'WK2 - Notional General Income'!D33) ->  | H33: . | M33: .
C34: Residential | D34: =IF('WK2 - Notional General Income'!D34="","",'WK2 - Notional General Income'!D34) ->  | H34: . | M34: .
C35: Residential | D35: =IF('WK2 - Notional General Income'!D35="","",'WK2 - Notional General Income'!D35) ->  | H35: . | M35: .
C36: Residential | D36: =IF('WK2 - Notional General Income'!D36="","",'WK2 - Notional General Income'!D36) ->  | H36: . | M36: .
C37: Residential | D37: =IF('WK2 - Notional General Income'!D37="","",'WK2 - Notional General Income'!D37) ->  | H37: . | M37: .
C38: Residential | D38: =IF('WK2 - Notional General Income'!D38="","",'WK2 - Notional General Income'!D38) ->  | H38: . | M38: .
D39: Total Residential | E39: =SUM(E19:E38) -> 26184 | J39: =SUM(J19:J38) -> 0 | K39: =SUM(K19:K38) -> 13521500689 | L39: =SUM(L19:L38) -> 0 | M39: =SUM(M19:M38) -> 39121272.05
C40: Business | D40: =IF('WK2 - Notional General Income'!D40="","",'WK2 - Notional General Income'!D40) -> General | E40: 257 | F40: 0.12379 | G40: 505 | H40: 0.422997865 | K40: 143013878 | M40: =IF(E40="",".",IF(G40<>"",G40*E40+K40*(F40/100),(K40-L40)*(F40/100)+I40*J40)) -> 306821.8796
C41: Business | D41: =IF('WK2 - Notional General Income'!D41="","",'WK2 - Notional General Income'!D41) -> CBD - Queanbeyan | E41: 145 | F41: 1.0804 | G41: 814 | H41: 0.05508365551 | K41: 187403820 | M41: 2142740.871
C42: Business | D42: =IF('WK2 - Notional General Income'!D42="","",'WK2 - Notional General Income'!D42) -> Googong | E42: 33 | F42: 1.0804 | G42: 814 | H42: 0.1193482573 | K42: 18346021 | M42: 225072.4109
C43: Business | D43: =IF('WK2 - Notional General Income'!D43="","",'WK2 - Notional General Income'!D43) -> Poplars Business Park | E43: 6 | F43: 1.0804 | G43: 814 | H43: 0.02350002375 | K43: 18784300 | M43: 207829.5772
C44: Business | D44: =IF('WK2 - Notional General Income'!D44="","",'WK2 - Notional General Income'!D44) -> Queanbeyan urban | E44: 124 | F44: 1.06219 | G44: 555 | H44: 0.04656384097 | K44: 132664670 | M44: 1477970.858
C45: Business | D45: =IF('WK2 - Notional General Income'!D45="","",'WK2 - Notional General Income'!D45) -> Industrial | E45: 792 | F45: 0.60258 | G45: 555 | H45: 0.1162211226 | K45: 554704901 | M45: 3782100.792
C46: Business | D46: =IF('WK2 - Notional General Income'!D46="","",'WK2 - Notional General Income'!D46) ->  | H46: . | M46: .
C47: Business | D47: =IF('WK2 - Notional General Income'!D47="","",'WK2 - Notional General Income'!D47) ->  | H47: . | M47: .
C48: Business | D48: =IF('WK2 - Notional General Income'!D48="","",'WK2 - Notional General Income'!D48) ->  | H48: . | M48: .
C49: Business | D49: =IF('WK2 - Notional General Income'!D49="","",'WK2 - Notional General Income'!D49) ->  | H49: . | M49: .
C50: Business | D50: =IF('WK2 - Notional General Income'!D50="","",'WK2 - Notional General Income'!D50) ->  | H50: . | M50: .
C51: Business | D51: =IF('WK2 - Notional General Income'!D51="","",'WK2 - Notional General Income'!D51) ->  | H51: . | M51: .
C52: Business | D52: =IF('WK2 - Notional General Income'!D52="","",'WK2 - Notional General Income'!D52) ->  | H52: . | M52: .
C53: Business | D53: =IF('WK2 - Notional General Income'!D53="","",'WK2 - Notional General Income'!D53) ->  | H53: . | M53: .
C54: Business | D54: =IF('WK2 - Notional General Income'!D54="","",'WK2 - Notional General Income'!D54) ->  | H54: . | M54: .
C55: Business | D55: =IF('WK2 - Notional General Income'!D55="","",'WK2 - Notional General Income'!D55) ->  | H55: . | M55: .
C56: Business | D56: =IF('WK2 - Notional General Income'!D56="","",'WK2 - Notional General Income'!D56) ->  | H56: . | M56: .
C57: Business | D57: =IF('WK2 - Notional General Income'!D57="","",'WK2 - Notional General Income'!D57) ->  | H57: . | M57: .
C58: Business | D58: =IF('WK2 - Notional General Income'!D58="","",'WK2 - Notional General Income'!D58) ->  | H58: . | M58: .
C59: Business | D59: =IF('WK2 - Notional General Income'!D59="","",'WK2 - Notional General Income'!D59) ->  | H59: . | M59: .
C60: Business | D60: =IF('WK2 - Notional General Income'!D60="","",'WK2 - Notional General Income'!D60) ->  | H60: . | M60: .
C61: Business | D61: =IF('WK2 - Notional General Income'!D61="","",'WK2 - Notional General Income'!D61) ->  | H61: . | M61: .
C62: Business | D62: =IF('WK2 - Notional General Income'!D62="","",'WK2 - Notional General Income'!D62) ->  | H62: . | M62: .
C63: Business | D63: =IF('WK2 - Notional General Income'!D63="","",'WK2 - Notional General Income'!D63) ->  | H63: . | M63: .
C64: Business | D64: =IF('WK2 - Notional General Income'!D64="","",'WK2 - Notional General Income'!D64) ->  | H64: . | M64: .
D65: Total Business | E65: =SUM(E40:E64) -> 1357 | J65: =SUM(J40:J64) -> 0 | K65: =SUM(K40:K64) -> 1054917590 | L65: =SUM(L40:L64) -> 0 | M65: =SUM(M40:M64) -> 8142536.39
C66: Farmland | D66: =IF('WK2 - Notional General Income'!D66="","",'WK2 - Notional General Income'!D66) -> General | E66: 1046 | F66: 0.08826 | G66: 1382 | H66: =IF(G66="",".",E66*G66/M66) -> 0.4482029898 | K66: 2016417223 | M66: =IF(E66="",".",IF(G66<>"",G66*E66+K66*(F66/100),(K66-L66)*(F66/100)+I66*J66)) -> 3225261.841
C67: Farmland | D67: =IF('WK2 - Notional General Income'!D67="","",'WK2 - Notional General Income'!D67) ->  | H67: . | M67: .
C68: Farmland | D68: =IF('WK2 - Notional General Income'!D68="","",'WK2 - Notional General Income'!D68) ->  | H68: . | M68: .
C69: Farmland | D69: =IF('WK2 - Notional General Income'!D69="","",'WK2 - Notional General Income'!D69) ->  | H69: . | M69: .
C70: Farmland | D70: =IF('WK2 - Notional General Income'!D70="","",'WK2 - Notional General Income'!D70) ->  | H70: . | M70: .
C71: Farmland | D71: =IF('WK2 - Notional General Income'!D71="","",'WK2 - Notional General Income'!D71) ->  | H71: . | M71: .
C72: Farmland | D72: =IF('WK2 - Notional General Income'!D72="","",'WK2 - Notional General Income'!D72) ->  | H72: . | M72: .
C73: Farmland | D73: =IF('WK2 - Notional General Income'!D73="","",'WK2 - Notional General Income'!D73) ->  | H73: . | M73: .
C74: Farmland | D74: =IF('WK2 - Notional General Income'!D74="","",'WK2 - Notional General Income'!D74) ->  | H74: . | M74: .
C75: Farmland | D75: =IF('WK2 - Notional General Income'!D75="","",'WK2 - Notional General Income'!D75) ->  | H75: . | M75: .
D76: Total Farmland | E76: =SUM(E66:E75) -> 1046 | J76: =SUM(J66:J75) -> 0 | K76: =SUM(K66:K75) -> 2016417223 | L76: =SUM(L66:L75) -> 0 | M76: =SUM(M66:M75) -> 3225261.841
C77: Mining | D77: =IF('WK2 - Notional General Income'!D77="","",'WK2 - Notional General Income'!D77) -> General | E77: 1 | F77: 0.39716 | G77: 1357 | H77: =IF(G77="",".",E77*G77/M77) -> 0.04718188216 | K77: 6900000 | M77: =IF(E77="",".",IF(G77<>"",G77*E77+K77*(F77/100),(K77-L77)*(F77/100)+I77*J77)) -> 28761.04
C78: Mining | D78: =IF('WK2 - Notional General Income'!D78="","",'WK2 - Notional General Income'!D78) ->  | H78: . | M78: .
C79: Mining | D79: =IF('WK2 - Notional General Income'!D79="","",'WK2 - Notional General Income'!D79) ->  | H79: . | M79: .
C80: Mining | D80: =IF('WK2 - Notional General Income'!D80="","",'WK2 - Notional General Income'!D80) ->  | H80: . | M80: .
C81: Mining | D81: =IF('WK2 - Notional General Income'!D81="","",'WK2 - Notional General Income'!D81) ->  | H81: . | M81: .
C82: Mining | D82: =IF('WK2 - Notional General Income'!D82="","",'WK2 - Notional General Income'!D82) ->  | H82: . | M82: .
C83: Mining | D83: =IF('WK2 - Notional General Income'!D83="","",'WK2 - Notional General Income'!D83) ->  | H83: . | M83: .
C84: Mining | D84: =IF('WK2 - Notional General Income'!D84="","",'WK2 - Notional General Income'!D84) ->  | H84: . | M84: .
C85: Mining | D85: =IF('WK2 - Notional General Income'!D85="","",'WK2 - Notional General Income'!D85) ->  | H85: . | M85: .
C86: Mining | D86: =IF('WK2 - Notional General Income'!D86="","",'WK2 - Notional General Income'!D86) ->  | H86: . | M86: .
D87: Total Mining | E87: =SUM(E77:E86) -> 1 | J87: =SUM(J77:J86) -> 0 | K87: =SUM(K77:K86) -> 6900000 | L87: =SUM(L77:L86) -> 0 | M87: =SUM(M77:M86) -> 28761.04
C88: Total Assessments: | E88: =E39+E65+E76+E87 -> 28588 | H88: Total Rateable Land Value: | K88: =K39+K65+K76+K87 -> 16599735502 | L88: Sub-Total: | M88: =M39+M65+M76+M87 -> 50517831.32
H91: Calculation of Notional General Income - Special Rates
C93: Rating Category (s514-518) | D93: Name of special rate | E93: Number of Assessments | F93: Ad Valorem Rate | G93: Base Amount $ | H93: Base Amount % | I93: Minimum Amount $ | J93: Number on Minimum | K93: Land Value as at start of year | L93: Land Value of Land on Minimum | M93: Notional Income
C94: Residential | D94: =IF('WK2 - Notional General Income'!D94="","",'WK2 - Notional General Income'!D94) ->  | H94: =IF(G94="",".",E94*G94/M94) -> . | M94: =IF(E94="",".",IF(G94<>"",G94*E94+K94*(F94/100),(K94-L94)*(F94/100)+I94*J94)) -> .
C95: Residential | D95: =IF('WK2 - Notional General Income'!D95="","",'WK2 - Notional General Income'!D95) ->  | H95: . | M95: .
C96: Residential | D96: =IF('WK2 - Notional General Income'!D96="","",'WK2 - Notional General Income'!D96) ->  | H96: . | M96: .
C97: Residential | D97: =IF('WK2 - Notional General Income'!D97="","",'WK2 - Notional General Income'!D97) ->  | H97: . | M97: .
C98: Residential | D98: =IF('WK2 - Notional General Income'!D98="","",'WK2 - Notional General Income'!D98) ->  | H98: . | M98: .
C99: Residential | D99: =IF('WK2 - Notional General Income'!D99="","",'WK2 - Notional General Income'!D99) ->  | H99: . | M99: .
C100: Residential | D100: =IF('WK2 - Notional General Income'!D100="","",'WK2 - Notional General Income'!D100) ->  | H100: . | M100: .
C101: Residential | D101: =IF('WK2 - Notional General Income'!D101="","",'WK2 - Notional General Income'!D101) ->  | H101: . | M101: .
C102: Residential | D102: =IF('WK2 - Notional General Income'!D102="","",'WK2 - Notional General Income'!D102) ->  | H102: . | M102: .
C103: Residential | D103: =IF('WK2 - Notional General Income'!D103="","",'WK2 - Notional General Income'!D103) ->  | H103: . | M103: .
C104: Business | D104: =IF('WK2 - Notional General Income'!D104="","",'WK2 - Notional General Income'!D104) ->  | H104: . | M104: .
C105: Business | D105: =IF('WK2 - Notional General Income'!D105="","",'WK2 - Notional General Income'!D105) ->  | H105: . | M105: .
C106: Business | D106: =IF('WK2 - Notional General Income'!D106="","",'WK2 - Notional General Income'!D106) ->  | H106: . | M106: .
C107: Business | D107: =IF('WK2 - Notional General Income'!D107="","",'WK2 - Notional General Income'!D107) ->  | H107: . | M107: .
C108: Business | D108: =IF('WK2 - Notional General Income'!D108="","",'WK2 - Notional General Income'!D108) ->  | H108: . | M108: .
C109: Business | D109: =IF('WK2 - Notional General Income'!D109="","",'WK2 - Notional General Income'!D109) ->  | H109: . | M109: .
C110: Business | D110: =IF('WK2 - Notional General Income'!D110="","",'WK2 - Notional General Income'!D110) ->  | H110: . | M110: .
C111: Business | D111: =IF('WK2 - Notional General Income'!D111="","",'WK2 - Notional General Income'!D111) ->  | H111: . | M111: .
C112: Business | D112: =IF('WK2 - Notional General Income'!D112="","",'WK2 - Notional General Income'!D112) ->  | H112: . | M112: .
C113: Business | D113: =IF('WK2 - Notional General Income'!D113="","",'WK2 - Notional General Income'!D113) ->  | H113: . | M113: .
C114: Business | D114: =IF('WK2 - Notional General Income'!D114="","",'WK2 - Notional General Income'!D114) ->  | H114: . | M114: .
C115: Business | D115: =IF('WK2 - Notional General Income'!D115="","",'WK2 - Notional General Income'!D115) ->  | H115: . | M115: .
C116: Business | D116: =IF('WK2 - Notional General Income'!D116="","",'WK2 - Notional General Income'!D116) ->  | H116: . | M116: .
C117: Business | D117: =IF('WK2 - Notional General Income'!D117="","",'WK2 - Notional General Income'!D117) ->  | H117: . | M117: .
C118: Business | D118: =IF('WK2 - Notional General Income'!D118="","",'WK2 - Notional General Income'!D118) ->  | H118: . | M118: .
C119: Business | D119: =IF('WK2 - Notional General Income'!D119="","",'WK2 - Notional General Income'!D119) ->  | H119: . | M119: .
C120: Business | D120: =IF('WK2 - Notional General Income'!D120="","",'WK2 - Notional General Income'!D120) ->  | H120: . | M120: .
C121: Business | D121: =IF('WK2 - Notional General Income'!D121="","",'WK2 - Notional General Income'!D121) ->  | H121: . | M121: .
C122: Business | D122: =IF('WK2 - Notional General Income'!D122="","",'WK2 - Notional General Income'!D122) ->  | H122: . | M122: .
C123: Business | D123: =IF('WK2 - Notional General Income'!D123="","",'WK2 - Notional General Income'!D123) ->  | H123: . | M123: .
C124: Farmland | D124: =IF('WK2 - Notional General Income'!D124="","",'WK2 - Notional General Income'!D124) ->  | H124: . | M124: .
C125: Farmland | D125: =IF('WK2 - Notional General Income'!D125="","",'WK2 - Notional General Income'!D125) ->  | H125: . | M125: .
C126: Farmland | D126: =IF('WK2 - Notional General Income'!D126="","",'WK2 - Notional General Income'!D126) ->  | H126: =IF(G126="",".",E126*G126/M126) -> . | M126: =IF(E126="",".",IF(G126<>"",G126*E126+K126*(F126/100),(K126-L126)*(F126/100)+I126*J126)) -> .
C127: Farmland | D127: =IF('WK2 - Notional General Income'!D127="","",'WK2 - Notional General Income'!D127) ->  | H127: . | M127: .
C128: Farmland | D128: =IF('WK2 - Notional General Income'!D128="","",'WK2 - Notional General Income'!D128) ->  | H128: . | M128: .
C129: Farmland | D129: =IF('WK2 - Notional General Income'!D129="","",'WK2 - Notional General Income'!D129) ->  | H129: . | M129: .
C130: Farmland | D130: =IF('WK2 - Notional General Income'!D130="","",'WK2 - Notional General Income'!D130) ->  | H130: . | M130: .
C131: Farmland | D131: =IF('WK2 - Notional General Income'!D131="","",'WK2 - Notional General Income'!D131) ->  | H131: . | M131: .
C132: Farmland | D132: =IF('WK2 - Notional General Income'!D132="","",'WK2 - Notional General Income'!D132) ->  | H132: . | M132: .
C133: Farmland | D133: =IF('WK2 - Notional General Income'!D133="","",'WK2 - Notional General Income'!D133) ->  | H133: . | M133: .
C134: Mining | D134: =IF('WK2 - Notional General Income'!D134="","",'WK2 - Notional General Income'!D134) ->  | H134: . | M134: .
C135: Mining | D135: =IF('WK2 - Notional General Income'!D135="","",'WK2 - Notional General Income'!D135) ->  | H135: . | M135: .
C136: Mining | D136: =IF('WK2 - Notional General Income'!D136="","",'WK2 - Notional General Income'!D136) ->  | H136: . | M136: .
C137: Mining | D137: =IF('WK2 - Notional General Income'!D137="","",'WK2 - Notional General Income'!D137) ->  | H137: . | M137: .
C138: Mining | D138: =IF('WK2 - Notional General Income'!D138="","",'WK2 - Notional General Income'!D138) ->  | H138: . | M138: .
C139: Mining | D139: =IF('WK2 - Notional General Income'!D139="","",'WK2 - Notional General Income'!D139) ->  | H139: . | M139: .
C140: Mining | D140: =IF('WK2 - Notional General Income'!D140="","",'WK2 - Notional General Income'!D140) ->  | H140: . | M140: .
C141: Mining | D141: =IF('WK2 - Notional General Income'!D141="","",'WK2 - Notional General Income'!D141) ->  | H141: . | M141: .
C142: Mining | D142: =IF('WK2 - Notional General Income'!D142="","",'WK2 - Notional General Income'!D142) ->  | H142: . | M142: .
C143: Mining | D143: =IF('WK2 - Notional General Income'!D143="","",'WK2 - Notional General Income'!D143) ->  | H143: . | M143: .
L144: Sub-Total: | M144: =SUM(M94:M143) -> 0
H147: Calculation of Notional General Income - Annual Charges
C149: Annual Charges (excluding water supply, sewerage and domestic and non-domestic waste management services) | K149: Number of Assessments | L149: Amount of Charge $ | M149: Notional Income
M150: =IF(C150="",".",K150*L150) -> .
M151: .
M152: .
M153: .
M154: .
M155: .
M156: .
M157: .
L158: Sub-Total: | M158: =SUM(M150:M157) -> 0
G161: Total Notional General Income | M161: =M88+M144+M158 -> 50517831.32
G163: LESS: Valuation Objection Income | M163: =-'WK1 - Identification'!K46 -> 0
G165: NET Notional General Income | M165: =M161+M163 -> 50517831.32
C168: Note: Section 505(a) of the Act provides for those rates and charges that are to be included in general income, including certain section 501 annual charges.

Sheet WK4 - PGI summary
C3: ='WK2 - Notional General Income'!$C$3 -> Queanbeyan-Palerang Regional Council
E5: WORKSHEET 4
E7: ="PERMISSIBLE GENERAL INCOME SUMMARY FOR "&'WK0 - Input data'!$D$45 -> PERMISSIBLE GENERAL INCOME SUMMARY FOR 2023-24
E8: All dollars in nominal terms
E9: Please check all income adjustments and expiring variation amounts with OLG
E10: before submitting the application. | J10: check = 0
C11: Prior year Notional General Income | H11: ='WK2 - Notional General Income'!M161 -> 42811496.07 | J11: =IF(H11=0,0,H11-G45) -> 0
C12: Less: | D12: Expiry of a prior special variation | H12: ='WK1 - Identification'!F74 -> 0 | J12: =IF(H12=0,0,H12-G46) -> 0
C14: Adjusted first year Notional General Income | G14: $ | H14: =H11-H12 -> 42811496.07
C16: Plus: | D16: Rate peg - first year | F16: ='WK1 - Identification'!G62 -> 0.046 | H16: =H$14*F16 -> 1969328.819 | J16: =IF(H16=0,0,H16-G49) -> 0
C17: Plus: | D17: =CHOOSE('WK1 - Identification'!$S$24,"Existing SV above rate peg - first year","na") -> na | F17: ='WK1 - Identification'!G63 -> 0 | H17: =H$14*F17 -> 0
C18: Plus: | D18: =CHOOSE('WK1 - Identification'!$S$35,"Additional increase that is temporary - first year","Additional increase - first year") -> Additional increase - first year | F18: ='WK1 - Identification'!G64 -> 0.134 | H18: 5736740.474 | J18: =IF(H18=0,0,H18-G51) -> 0
C19: Plus: | D19: =CHOOSE('WK1 - Identification'!$S$35,"Additional increase that is permanent - first year","na") -> na | F19: ='WK1 - Identification'!G65 -> 0 | H19: 0
C20: Plus: | D20: Crown Land adjustment - first year | F20: =IF(H14=0,0,H20/H14) -> 0 | H20: ='WK1 - Identification'!K44 -> 0 | J20: =IF(H20=0,0,H20-G53) -> 0
D22: Total special variation - first year | F22: =SUM(F16:F20) -> 0.18 | G22: $ | H22: =H14*F22 -> 7706069.293 | J22: =IF(H22=0,0,H22-G54) -> -1.862645149e-09
J23: =SUM(H16:H20)-H22 -> 0
C24: Other First Year Adjustments:
C25: Plus/Minus: | D25: Prior year Catch-up/(Excess) | H25: ='WK1 - Identification'!K45 -> -14
C26: Minus: | D26: Valuation Objections claimed in prior year | H26: =-'WK1 - Identification'!K46 -> 0
F29: Total Adjustments | H29: =H25+H26 -> -14 | J29: =H29-G57 -> 0
D31: First year Permissible General Income | G31: $ | H31: =H14+H22+H29 -> 50517551.37 | J31: =IF(H31=0,0,H31-G58) -> -7.450580597e-09
B37: ="PERMISSABLE GENERAL INCOME (PGI) OVER PROPOSED SV PERIOD ("&E45&")" -> PERMISSABLE GENERAL INCOME (PGI) OVER PROPOSED SV PERIOD ($ nominal)
B38: Note: PGI estimates for years beyond proposed and/or exisiting SV period shown in light grey font. PGI beyond a temporary SV period = 0
F39: ='WK0 - Input data'!H$55 -> Year 0 | G39: ='WK0 - Input data'!I$55 -> Year 1 | H39: ='WK0 - Input data'!J$55 -> Year 2 | I39: ='WK0 - Input data'!K$55 -> Year 3 | J39: ='WK0 - Input data'!L$55 -> Year 4 | K39: ='WK0 - Input data'!M$55 -> Year 5 | L39: ='WK0 - Input data'!N$55 -> Year 6 | M39: ='WK0 - Input data'!O$55 -> Year 7 | N39: Total | O39: increase
C40: ='WK0 - Input data'!B$58 -> Financial year | E40: units | F40: ='WK0 - Input data'!H$58 -> 2022-23 | G40: ='WK0 - Input data'!I$58 -> 2023-24 | H40: ='WK0 - Input data'!J$58 -> 2024-25 | I40: ='WK0 - Input data'!K$58 -> 2025-26 | J40: ='WK0 - Input data'!L$58 -> 2026-27 | K40: ='WK0 - Input data'!M$58 -> 2027-28 | L40: ='WK0 - Input data'!N$58 -> 2028-29 | M40: ='WK0 - Input data'!O$58 -> 2029-30 | N40: =E45 -> $ nominal | O40: %
G41: =IF('WK1 - Identification'!G57=1,"Proposed SV period",IF(AND('WK1 - Identification'!G57=0,'WK1 - Identification'!G60>0),"Existing SV period","no SV")) -> Proposed SV period | H41: =IF('WK1 - Identification'!H57=1,"Proposed SV period",IF(AND('WK1 - Identification'!H57=0,'WK1 - Identification'!H60>0),"Existing SV period","no SV")) -> Proposed SV period | I41: =IF('WK1 - Identification'!I57=1,"Proposed SV period",IF(AND('WK1 - Identification'!I57=0,'WK1 - Identification'!I60>0),"Existing SV period","no SV")) -> Proposed SV period | J41: =IF('WK1 - Identification'!J57=1,"Proposed SV period",IF(AND('WK1 - Identification'!J57=0,'WK1 - Identification'!J60>0),"Existing SV period","no SV")) -> no SV | K41: =IF('WK1 - Identification'!K57=1,"Proposed SV period",IF(AND('WK1 - Identification'!K57=0,'WK1 - Identification'!K60>0),"Existing SV period","no SV")) -> no SV | L41: =IF('WK1 - Identification'!L57=1,"Proposed SV period",IF(AND('WK1 - Identification'!L57=0,'WK1 - Identification'!L60>0),"Existing SV period","no SV")) -> no SV | M41: =IF('WK1 - Identification'!M57=1,"Proposed SV period",IF(AND('WK1 - Identification'!M57=0,'WK1 - Identification'!M60>0),"Existing SV period","no SV")) -> no SV
C42: ='WK1 - Identification'!C58 -> 0 = beyond temporary SV period | F42: ='WK1 - Identification'!F58 -> 1 | G42: ='WK1 - Identification'!G58 -> 1 | H42: ='WK1 - Identification'!H58 -> 1 | I42: ='WK1 - Identification'!I58 -> 1 | J42: ='WK1 - Identification'!J58 -> 1 | K42: ='WK1 - Identification'!K58 -> 1 | L42: ='WK1 - Identification'!L58 -> 1 | M42: ='WK1 - Identification'!M58 -> 1
C44: PGI with proposed SV
C45: Prior year Notional General Income (NGI) | E45: ='WK0 - Input data'!$C$62 -> $ nominal | G45: =IF(G$42=0,0,F58) -> 42811496.07 | H45: =IF(H$42=0,0,G58) -> 50517551.37 | I45: 59610710.61 | J45: 70340638.52 | K45: 72099154.48 | L45: =IF(L$42=0,0,K58) -> 73901633.35 | M45: =IF(M$42=0,0,L58) -> 75749174.18
C46: less | D46: expiry of a prior special variation | E46: =E45 -> $ nominal | G46: ='WK1 - Identification'!F74 -> 0 | H46: ='WK1 - Identification'!G74 -> 0 | I46: ='WK1 - Identification'!H74 -> 0 | J46: ='WK1 - Identification'!I74 -> 0 | K46: ='WK1 - Identification'!J74 -> 0 | L46: ='WK1 - Identification'!K74 -> 0 | M46: =IF(M$42=0,0,'WK1 - Identification'!L74) -> 0
C47: Adjusted Notional General income | E47: =E46 -> $ nominal | G47: =G45-G46 -> 42811496.07 | H47: =H45-H46 -> 50517551.37 | I47: 59610710.61 | J47: 70340638.52 | K47: 72099154.48 | L47: =L45-L46 -> 73901633.35 | M47: 75749174.18
C49: plus | D49: rate peg increase | E49: =$E$45 -> $ nominal | G49: =G$47*'WK1 - Identification'!G62 -> 1969328.819 | H49: =H$47*'WK1 - Identification'!H62 -> 1262938.784 | I49: =I$47*'WK1 - Identification'!I62 -> 1490267.765 | J49: =J$47*'WK1 - Identification'!J62 -> 1758515.963 | K49: =K$47*'WK1 - Identification'!K62 -> 1802478.862 | L49: =L$47*'WK1 - Identification'!L62 -> 1847540.834 | M49: =M$47*'WK1 - Identification'!M62 -> 1893729.355
C50: plus | D50: =CHOOSE('WK1 - Identification'!$S$24,"existing SV above rate peg","na") -> na | E50: =$E$45 -> $ nominal | G50: =G$47*'WK1 - Identification'!G63 -> 0 | H50: =H$47*'WK1 - Identification'!H63 -> 0 | I50: =I$47*'WK1 - Identification'!I63 -> 0 | J50: =J$47*'WK1 - Identification'!J63 -> 0 | K50: =K$47*'WK1 - Identification'!K63 -> 0 | L50: =L$47*'WK1 - Identification'!L63 -> 0 | M50: =M$47*'WK1 - Identification'!M63 -> 0
C51: =C49 -> plus | D51: =CHOOSE('WK1 - Identification'!$S$35,"additional increase that is temporary","additional increase") -> additional increase | E51: =E49 -> $ nominal | G51: =G$47*'WK1 - Identification'!G64 -> 5736740.474 | H51: =H$47*'WK1 - Identification'!H64 -> 7830220.462 | I51: =I$47*'WK1 - Identification'!I64 -> 9239660.145 | J51: =J$47*'WK1 - Identification'!J64 -> 0 | K51: =K$47*'WK1 - Identification'!K64 -> 0 | L51: =L$47*'WK1 - Identification'!L64 -> 0 | M51: =M$47*'WK1 - Identification'!M64 -> 0
C52: =C50 -> plus | D52: =CHOOSE('WK1 - Identification'!$S$35,"additional increase that is permanent","na") -> na | E52: =E50 -> $ nominal | G52: =G$47*'WK1 - Identification'!G65 -> 0 | H52: =H$47*'WK1 - Identification'!H65 -> 0 | I52: =I$47*'WK1 - Identification'!I65 -> 0 | J52: =J$47*'WK1 - Identification'!J65 -> 0 | K52: =K$47*'WK1 - Identification'!K65 -> 0 | L52: =L$47*'WK1 - Identification'!L65 -> 0 | M52: =M$47*'WK1 - Identification'!M65 -> 0
C53: =C51 -> plus | D53: Crown Land adjustment | E53: $ nominal | G53: =G$47*'WK1 - Identification'!G66 -> 0 | H53: =H$47*'WK1 - Identification'!H66 -> 0 | I53: =I$47*'WK1 - Identification'!I66 -> 0 | J53: =J$47*'WK1 - Identification'!J66 -> 0 | K53: =K$47*'WK1 - Identification'!K66 -> 0 | L53: =L$47*'WK1 - Identification'!L66 -> 0 | M53: =M$47*'WK1 - Identification'!M66 -> 0
C54: Total proposed SV | E54: =E53 -> $ nominal | G54: =SUM(G49:G53) -> 7706069.293 | H54: =SUM(H49:H53) -> 9093159.246 | I54: 10729927.91 | J54: 1758515.963 | K54: 1802478.862 | L54: =SUM(L49:L53) -> 1847540.834 | M54: 1893729.355
C56: Notional General Income after SV applied | E56: =$E$45 -> $ nominal | G56: =G47+G54 -> 50517565.37 | H56: =H47+H54 -> 59610710.61 | I56: 70340638.52 | J56: 72099154.48 | K56: 73901633.35 | L56: =L47+L54 -> 75749174.18 | M56: 77642903.53
C57: =C49 -> plus | D57: other 1st-year adjustments | E57: =E56 -> $ nominal | G57: ='WK1 - Identification'!K45-'WK1 - Identification'!K46 -> -14 | H57: 0 | I57: 0 | J57: 0 | K57: 0 | L57: 0 | M57: 0
C58: PGI with proposed SV | E58: =E57 -> $ nominal | F58: ='WK2 - Notional General Income'!M161 -> 42811496.07 | G58: =G56+G57 -> 50517551.37 | H58: =H56+H57 -> 59610710.61 | I58: 70340638.52 | J58: 72099154.48 | K58: 73901633.35 | L58: =L56+L57 -> 75749174.18 | M58: 77642903.53 | N58: =INDEX(F58:M58,'WK1 - Identification'!$S$31+1)-F58 -> 27529142.45 | O58: =IF(F58=0,0,N58/F58) -> 0.6430315447
C61: =CHOOSE('WK1 - Identification'!$S$24,"PGI if only the existing SV/rate peg applied","PGI if only the rate peg applied") -> PGI if only the rate peg applied
C62: =C45 -> Prior year Notional General Income (NGI) | E62: =$E$45 -> $ nominal | G62: =IF(G$42=0,0,F68) -> 42811496.07 | H62: 44780810.89 | I62: 45900331.16 | J62: 47047839.44 | K62: 48224035.43 | L62: 49429636.32 | M62: =IF(M$42=0,0,L68) -> 50665377.22
C63: =C46 -> less | D63: =D46 -> expiry of a prior special variation | E63: =E62 -> $ nominal | G63: =G46 -> 0 | H63: 0 | I63: 0 | J63: 0 | K63: 0 | L63: 0 | M63: =M46 -> 0
C64: =C47 -> Adjusted Notional General income | E64: =E63 -> $ nominal | G64: =G62-G63 -> 42811496.07 | H64: 44780810.89 | I64: 45900331.16 | J64: 47047839.44 | K64: 48224035.43 | L64: 49429636.32 | M64: =M62-M63 -> 50665377.22
C65: =C49 -> plus | D65: =D49 -> rate peg increase | E65: =$E$45 -> $ nominal | G65: =IF(G$42=0,0,'WK1 - Identification'!G62*G$64) -> 1969328.819 | H65: =IF(H$42=0,0,'WK1 - Identification'!H62*H$64) -> 1119520.272 | I65: =IF(I$42=0,0,'WK1 - Identification'!I62*I$64) -> 1147508.279 | J65: =IF(J$42=0,0,'WK1 - Identification'!J62*J$64) -> 1176195.986 | K65: =IF(K$42=0,0,'WK1 - Identification'!K62*K$64) -> 1205600.886 | L65: =IF(L$42=0,0,'WK1 - Identification'!L62*L$64) -> 1235740.908 | M65: =IF(M$42=0,0,'WK1 - Identification'!M62*M$64) -> 1266634.431
C66: =C50 -> plus | D66: =D50 -> na | E66: =$E$45 -> $ nominal | G66: ='WK1 - Identification'!G63*G$64 -> 0 | H66: ='WK1 - Identification'!H63*H$64 -> 0 | I66: ='WK1 - Identification'!I63*I$64 -> 0 | J66: ='WK1 - Identification'!J63*J$64 -> 0 | K66: ='WK1 - Identification'!K63*K$64 -> 0 | L66: ='WK1 - Identification'!L63*L$64 -> 0 | M66: ='WK1 - Identification'!M63*M$64 -> 0
C67: =C57 -> plus | D67: =D57 -> other 1st-year adjustments | E67: =E65 -> $ nominal | G67: =G57 -> -14 | H67: 0 | I67: 0 | J67: 0 | K67: 0 | L67: 0 | M67: =M57 -> 0
C68: =CHOOSE('WK1 - Identification'!$S$24,"PGI if only the existing SV/rate peg applied","PGI if only the rate peg applied") -> PGI if only the rate peg applied | E68: =E67 -> $ nominal | F68: =F58 -> 42811496.07 | G68: =SUM(G64:G67) -> 44780810.89 | H68: 45900331.16 | I68: 47047839.44 | J68: 48224035.43 | K68: 49429636.32 | L68: 50665377.22 | M68: =SUM(M64:M67) -> 51932011.65 | N68: =INDEX(F68:M68,'WK1 - Identification'!$S$31+1)-F68 -> 4236343.371 | O68: =IF(F68=0,0,N68/F68) -> 0.09895340643
C71: =CHOOSE('WK1 - Identification'!$S$24,"PGI if expiring SV renewed and only existing SV/rate peg applied","PGI if expiring SV renewed and only rate peg applied") -> PGI if expiring SV renewed and only rate peg applied
C72: =C62 -> Prior year Notional General Income (NGI) | E72: =$E$45 -> $ nominal | G72: =IF(G$42=0,0,F76) -> 42811496.07 | H72: 44780810.89 | I72: 45900331.16 | J72: 47047839.44 | K72: 48224035.43 | L72: 49429636.32 | M72: =IF(M$42=0,0,L76) -> 50665377.22
C73: =C65 -> plus | D73: rate peg increase | E73: =E72 -> $ nominal | G73: =G$72*'WK1 - Identification'!G62 -> 1969328.819 | H73: =H$72*'WK1 - Identification'!H62 -> 1119520.272 | I73: =I$72*'WK1 - Identification'!I62 -> 1147508.279 | J73: =J$72*'WK1 - Identification'!J62 -> 1176195.986 | K73: =K$72*'WK1 - Identification'!K62 -> 1205600.886 | L73: =L$72*'WK1 - Identification'!L62 -> 1235740.908 | M73: =M$72*'WK1 - Identification'!M62 -> 1266634.431
C74: plus | D74: na | E74: =E73 -> $ nominal | G74: =G$72*'WK1 - Identification'!G63 -> 0 | H74: =H$72*'WK1 - Identification'!H63 -> 0 | I74: =I$72*'WK1 - Identification'!I63 -> 0 | J74: =J$72*'WK1 - Identification'!J63 -> 0 | K74: =K$72*'WK1 - Identification'!K63 -> 0 | L74: =L$72*'WK1 - Identification'!L63 -> 0 | M74: =M$72*'WK1 - Identification'!M63 -> 0
C75: plus | D75: other 1st-year adjustments | E75: =E73 -> $ nominal | G75: =G57 -> -14 | H75: 0 | I75: 0 | J75: 0 | K75: 0 | L75: 0 | M75: =M57 -> 0
C76: =C71 -> PGI if expiring SV renewed and only rate peg applied | E76: =E75 -> $ nominal | F76: =F58 -> 42811496.07 | G76: =SUM(G72:G75) -> 44780810.89 | H76: 45900331.16 | I76: 47047839.44 | J76: 48224035.43 | K76: 49429636.32 | L76: 50665377.22 | M76: =SUM(M72:M75) -> 51932011.65 | N76: =INDEX(F76:M76,'WK1 - Identification'!$S$31+1)-F76 -> 4236343.371 | O76: =IF(F76=0,0,N76/F76) -> 0.09895340643
B81: INCREASES IN PERMISSABLE GENERAL INCOME (PGI) OVER PROPOSED SV PERIOD (nominal)
B82: =$B$38 -> Note: PGI estimates for years beyond proposed and/or exisiting SV period shown in light grey font. PGI beyond a temporary SV period = 0
F83: =F$39 -> Year 0 | G83: Year 1 | H83: Year 2 | I83: Year 3 | J83: Year 4 | K83: Year 5 | L83: Year 6 | M83: Year 7 | N83: Total | O83: increase | Q83: check = 0
C84: =C$40 -> Financial year | F84: =F$40 -> 2022-23 | G84: 2023-24 | H84: 2024-25 | I84: 2025-26 | J84: 2026-27 | K84: 2027-28 | L84: 2028-29 | M84: 2029-30 | N84: =E92 -> $ nominal | O84: %
C86: Annual % increase in PGI
C87: =$C$58 -> PGI with proposed SV | E87: % | G87: =IF(F$58=0,0,G92/F$58) -> 0.179999673 | H87: =IF(G$58=0,0,H92/G$58) -> 0.18 | I87: =IF(H$58=0,0,I92/H$58) -> 0.18 | J87: 0.025 | K87: =IF(J$58=0,0,K92/J$58) -> 0.025 | L87: =IF(K$58=0,0,L92/K$58) -> 0.025 | M87: =IF(L$58=0,0,M92/L$58) -> 0.025 | O87: =O58 -> 0.6430315447
C88: =$C$68 -> PGI if only the rate peg applied | E88: =E87 -> % | G88: =IF(F$58=0,0,G93/F$58) -> 0.04599967299 | H88: =IF(G$68=0,0,H93/G$68) -> 0.025 | I88: =IF(H$68=0,0,I93/H$68) -> 0.025 | J88: =IF(I$68=0,0,J93/I$68) -> 0.025 | K88: =IF(J$68=0,0,K93/J$68) -> 0.025 | L88: =IF(K$68=0,0,L93/K$68) -> 0.025 | M88: =IF(L$68=0,0,M93/L$68) -> 0.025 | O88: =O68 -> 0.09895340643
C89: =C76 -> PGI if expiring SV renewed and only rate peg applied | E89: =E88 -> % | G89: =IF(F$58=0,0,G94/F$58) -> 0.04599967299 | H89: =IF(G$76=0,0,H94/G$76) -> 0.025 | I89: 0.025 | J89: 0.025 | K89: 0.025 | L89: 0.025 | M89: 0.025 | O89: =O76 -> 0.09895340643
C91: Annual $ increase in PGI
C92: =C87 -> PGI with proposed SV | E92: =$E$45 -> $ nominal | G92: =IF(G$42=0,0,G58-F58) -> 7706055.293 | H92: 9093159.246 | I92: 10729927.91 | J92: 1758515.963 | K92: 1802478.862 | L92: 1847540.834 | M92: 1893729.355 | N92: =SUMPRODUCT(G92:M92,'WK1 - Identification'!$G$57:$M$57) -> 27529142.45 | O92: =IF($F$58=0,0,N92/$F$58) -> 0.6430315447 | Q92: =N92-N58 -> 0
C93: =C88 -> PGI if only the rate peg applied | E93: =E92 -> $ nominal | G93: =IF(G$42=0,0,G68-F68) -> 1969314.819 | H93: 1119520.272 | I93: 1147508.279 | J93: 1176195.986 | K93: 1205600.886 | L93: 1235740.908 | M93: =IF(M$42=0,0,M68-L68) -> 1266634.431 | N93: =SUMPRODUCT(G93:M93,'WK1 - Identification'!$G$57:$M$57) -> 4236343.371 | O93: =IF($F$58=0,0,N93/$F$58) -> 0.09895340643 | Q93: =N93-N68 -> 0
C94: =C89 -> PGI if expiring SV renewed and only rate peg applied | E94: =E93 -> $ nominal | G94: =IF(G$42=0,0,G76-F76) -> 1969314.819 | H94: 1119520.272 | I94: 1147508.279 | J94: 1176195.986 | K94: 1205600.886 | L94: 1235740.908 | M94: =IF(M$42=0,0,M76-L76) -> 1266634.431 | N94: =SUMPRODUCT(G94:M94,'WK1 - Identification'!$G$57:$M$57) -> 4236343.371 | O94: 0.09895340643 | Q94: =N94-N76 -> 0
C96: Annual $ increase in PGI with proposed SV more than:
C97: =C88 -> PGI if only the rate peg applied | E97: =$E$45 -> $ nominal | G97: =G92-G93 -> 5736740.474 | H97: 7973638.974 | I97: 9582419.631 | J97: =J92-J93 -> 582319.977 | K97: 596877.9764 | L97: 611799.9258 | M97: =M92-M93 -> 627094.9239 | N97: =SUMPRODUCT(G97:M97,'WK1 - Identification'!$G$57:$M$57) -> 23292799.08 | O97: =O92-O93 -> 0.5440781382 | Q97: =IF(F68=0,0,(N58-N68)/F68-O97) -> 0
C98: =C89 -> PGI if expiring SV renewed and only rate peg applied | E98: =E97 -> $ nominal | G98: =G92-G94 -> 5736740.474 | H98: 7973638.974 | I98: 9582419.631 | J98: =J92-J94 -> 582319.977 | K98: 596877.9764 | L98: 611799.9258 | M98: =M92-M94 -> 627094.9239 | N98: =SUMPRODUCT(G98:M98,'WK1 - Identification'!$G$57:$M$57) -> 23292799.08 | O98: =O92-O94 -> 0.5440781382 | Q98: =IF(F76=0,0,(N58-N76)/F76-O98) -> 0
Q99: =N93-N92+N97 -> 0
C100: Cumulative PGI | Q100: =N94-N92+N98 -> 0
C101: =$C$58 -> PGI with proposed SV | E101: =E98 -> $ nominal | G101: =IF(G$42=0,0,SUM($G58:G58)) -> 50517551.37 | H101: =IF(H$42=0,0,SUM($G58:H58)) -> 110128262 | I101: =IF(I$42=0,0,SUM($G58:I58)) -> 180468900.5 | J101: =IF(J$42=0,0,SUM($G58:J58)) -> 252568055 | K101: =IF(K$42=0,0,SUM($G58:K58)) -> 326469688.3 | L101: =IF(L$42=0,0,SUM($G58:L58)) -> 402218862.5 | M101: =IF(M$42=0,0,SUM($G58:M58)) -> 479861766 | N101: =SUMPRODUCT(G101:M101,'WK1 - Identification'!$G$57:$M$57) -> 341114713.8
C102: =$C$68 -> PGI if only the rate peg applied | E102: =E101 -> $ nominal | G102: =IF(G$42=0,0,SUM($G68:G68)) -> 44780810.89 | H102: =IF(H$42=0,0,SUM($G68:H68)) -> 90681142.06 | I102: =IF(I$42=0,0,SUM($G68:I68)) -> 137728981.5 | J102: =IF(J$42=0,0,SUM($G68:J68)) -> 185953016.9 | K102: =IF(K$42=0,0,SUM($G68:K68)) -> 235382653.2 | L102: =IF(L$42=0,0,SUM($G68:L68)) -> 286048030.5 | M102: =IF(M$42=0,0,SUM($G68:M68)) -> 337980042.1 | N102: =SUMPRODUCT(G102:M102,'WK1 - Identification'!$G$57:$M$57) -> 273190934.4
C103: =C94 -> PGI if expiring SV renewed and only rate peg applied | E103: =E102 -> $ nominal | G103: =IF(G$42=0,0,SUM($G76:G76)) -> 44780810.89 | H103: =IF(H$42=0,0,SUM($G76:H76)) -> 90681142.06 | I103: =IF(I$42=0,0,SUM($G76:I76)) -> 137728981.5 | J103: =IF(J$42=0,0,SUM($G76:J76)) -> 185953016.9 | K103: =IF(K$42=0,0,SUM($G76:K76)) -> 235382653.2 | L103: =IF(L$42=0,0,SUM($G76:L76)) -> 286048030.5 | M103: =IF(M$42=0,0,SUM($G76:M76)) -> 337980042.1 | N103: =SUMPRODUCT(G103:M103,'WK1 - Identification'!$G$57:$M$57) -> 273190934.4
C105: Increase in cumulative PGI with proposed SV that exceeds the increase in the PGI under
C106: =C88 -> PGI if only the rate peg applied | E106: =$E$45 -> $ nominal | G106: =G$101-G102 -> 5736740.474 | H106: 19447119.92 | I106: 42739919 | J106: 66615038.05 | K106: 91087035.09 | L106: 116170832 | M106: =M$101-M102 -> 141881723.9 | N106: =SUMPRODUCT(G106:M106,'WK1 - Identification'!$G$57:$M$57) -> 67923779.39 | O106: =IF(N102=0,0,N106/N102) -> 0.2486311617 | Q106: =N101-N102-N106 -> 0
C107: =C89 -> PGI if expiring SV renewed and only rate peg applied | E107: =E106 -> $ nominal | G107: =G$101-G103 -> 5736740.474 | H107: 19447119.92 | I107: 42739919 | J107: 66615038.05 | K107: 91087035.09 | L107: 116170832 | M107: =M$101-M103 -> 141881723.9 | N107: =SUMPRODUCT(G107:M107,'WK1 - Identification'!$G$57:$M$57) -> 67923779.39 | O107: =IF(N103=0,0,N107/N103) -> 0.2486311617 | Q107: =N101-N103-N107 -> 0

Sheet WK5a - Impact on Rates
C3: ='WK2 - Notional General Income'!$C$3 -> Queanbeyan-Palerang Regional Council
F5: WORKSHEET 5a
F7: IMPACT ON MINIMUM RATES, AVERAGE RATES AND OTHER CHARGES
F8: All dollars in nominal terms
D10: The aim of this sheet is to show the minimum rate increase (if applicable), the average rate increase per sub-category
D11: (inclusive of all relevant rates) and the proposed annual charges in each year of the proposed special variation.
D12: It also aims to compare average rates with and without the proposed special variation.
D13: All ordinary rates and special rates need to be included.
D14: Note: rate estimates should reflect expected minimum or average rates, inclusive of any expiring variations.
F16: Minimum Rates - with proposed special variation
D17: If the council levies minimum rates for any category or sub-category, these rates should be detailed below.
D18: A separate minimum rates application is not necessary if the council is applying for a special variation
D19: that will have the effect of causing a minimum rate to exceed the statutory limit. | S19: Annual and cumulative increases
C21: Minimum Rates - with proposed special variation | H21: ='WK0 - Input data'!$C$63 -> $ nominal per year | O21: Number of assessments | S21: Annual increases (nominal $ per year) | AA21: Annual increases (%) | AI21: Cumulative increases (nominal $ per year) | AQ21: Cumulative increases (%)
C22: Category | D22: Sub-category or Special Rate name | E22: Current Minimum Rate | F22: Minimum Rate Year 1 | G22: Minimum Rate Year 2 | H22: Minimum Rate Year 3 | I22: Minimum Rate Year 4 | J22: Minimum Rate Year 5 | K22: Minimum Rate Year 6 | L22: Minimum Rate Year 7 | O22: (used to calculate average | S22: =C21 -> Minimum Rates - with proposed special variation | AA22: =$S22 -> Minimum Rates - with proposed special variation | AI22: =$S22 -> Minimum Rates - with proposed special variation | AQ22: =$S22 -> Minimum Rates - with proposed special variation
E23: ='WK1 - Identification'!F$56 -> 2022-23 | F23: ='WK1 - Identification'!G$56 -> 2023-24 | G23: ='WK1 - Identification'!H$56 -> 2024-25 | H23: ='WK1 - Identification'!I$56 -> 2025-26 | I23: ='WK1 - Identification'!J$56 -> 2026-27 | J23: ='WK1 - Identification'!K$56 -> 2027-28 | K23: ='WK1 - Identification'!L$56 -> 2028-29 | L23: ='WK1 - Identification'!M$56 -> 2029-30 | O23: rates) | S23: ='WK0 - Input data'!I55 -> Year 1 | T23: ='WK0 - Input data'!J55 -> Year 2 | U23: ='WK0 - Input data'!K55 -> Year 3 | V23: ='WK0 - Input data'!L55 -> Year 4 | W23: ='WK0 - Input data'!M55 -> Year 5 | X23: ='WK0 - Input data'!N55 -> Year 6 | Y23: ='WK0 - Input data'!O55 -> Year 7 | AA23: =AI23 -> Year 1 | AB23: Year 2 | AC23: Year 3 | AD23: Year 4 | AE23: Year 5 | AF23: Year 6 | AG23: Year 7 | AI23: =S23 -> Year 1 | AJ23: =T23 -> Year 2 | AK23: Year 3 | AL23: Year 4 | AM23: Year 5 | AN23: =X23 -> Year 6 | AO23: =Y23 -> Year 7 | AQ23: =AA23 -> Year 1 | AR23: Year 2 | AS23: Year 3 | AT23: Year 4 | AU23: Year 5 | AV23: Year 6 | AW23: Year 7
C24: ='WK3 - Notional GI Yr1 YIELD'!C19 -> Residential | D24: =IF('WK2 - Notional General Income'!D19="","",'WK2 - Notional General Income'!D19) -> General | S24: =IF(F24=0,".",F24-E24) -> . | T24: =IF(G24="",".",G24-F24) -> . | U24: =IF(H24="",".",H24-G24) -> . | V24: =IF(I24="",".",I24-H24) -> . | W24: =IF(J24="",".",J24-I24) -> . | X24: =IF(K24="",".",K24-J24) -> . | Y24: =IF(L24="",".",L24-K24) -> . | AA24: =IFERROR(F24/E24-1,".") -> . | AB24: =IFERROR(G24/F24-1,".") -> . | AC24: =IFERROR(H24/G24-1,".") -> . | AD24: =IFERROR(I24/H24-1,".") -> . | AE24: =IFERROR(J24/I24-1,".") -> . | AF24: =IFERROR(K24/J24-1,".") -> . | AG24: =IFERROR(L24/K24-1,".") -> . | AI24: =IF(S24=".",".",SUM($S24:S24)) -> . | AJ24: =IF(T24=".",".",SUM($S24:T24)) -> . | AK24: =IF(U24=".",".",SUM($S24:U24)) -> . | AL24: =IF(V24=".",".",SUM($S24:V24)) -> . | AM24: =IF(W24=".",".",SUM($S24:W24)) -> . | AN24: =IF(X24=".",".",SUM($S24:X24)) -> . | AO24: =IF(Y24=".",".",SUM($S24:Y24)) -> . | AQ24: =IFERROR(F24/$E24-1,".") -> . | AR24: =IFERROR(G24/$E24-1,".") -> . | AS24: =IFERROR(H24/$E24-1,".") -> . | AT24: =IFERROR(I24/$E24-1,".") -> . | AU24: =IFERROR(J24/$E24-1,".") -> . | AV24: =IFERROR(K24/$E24-1,".") -> . | AW24: =IFERROR(L24/$E24-1,".") -> .
C25: =C24 -> Residential | D25: =IF('WK2 - Notional General Income'!D20="","",'WK2 - Notional General Income'!D20) -> Queanbeyan- Urban | S25: =IF(F25="",".",F25-E25) -> . | T25: . | U25: . | V25: . | W25: . | X25: . | Y25: . | AA25: =IFERROR(F25/E25-1,".") -> . | AB25: . | AC25: . | AD25: . | AE25: . | AF25: . | AG25: . | AI25: =IF(S25=".",".",SUM($S25:S25)) -> . | AJ25: =IF(T25=".",".",SUM($S25:T25)) -> . | AK25: =IF(U25=".",".",SUM($S25:U25)) -> . | AL25: =IF(V25=".",".",SUM($S25:V25)) -> . | AM25: =IF(W25=".",".",SUM($S25:W25)) -> . | AN25: =IF(X25=".",".",SUM($S25:X25)) -> . | AO25: =IF(Y25=".",".",SUM($S25:Y25)) -> . | AQ25: =IFERROR(F25/$E25-1,".") -> . | AR25: . | AS25: . | AT25: . | AU25: . | AV25: . | AW25: .
C26: =C25 -> Residential | D26: =IF('WK2 - Notional General Income'!D21="","",'WK2 - Notional General Income'!D21) -> Googong | S26: =IF(F26="",".",F26-E26) -> . | T26: . | U26: . | V26: . | W26: . | X26: . | Y26: . | AA26: . | AB26: . | AC26: . | AD26: . | AE26: . | AF26: . | AG26: . | AI26: =IF(S26=".",".",SUM($S26:S26)) -> . | AJ26: =IF(T26=".",".",SUM($S26:T26)) -> . | AK26: =IF(U26=".",".",SUM($S26:U26)) -> . | AL26: =IF(V26=".",".",SUM($S26:V26)) -> . | AM26: =IF(W26=".",".",SUM($S26:W26)) -> . | AN26: =IF(X26=".",".",SUM($S26:X26)) -> . | AO26: =IF(Y26=".",".",SUM($S26:Y26)) -> . | AQ26: . | AR26: . | AS26: . | AT26: . | AU26: . | AV26: . | AW26: .
C27: Residential | D27: =IF('WK2 - Notional General Income'!D22="","",'WK2 - Notional General Income'!D22) -> Bungendore | S27: . | T27: . | U27: . | V27: . | W27: . | X27: . | Y27: . | AA27: . | AB27: . | AC27: . | AD27: . | AE27: . | AF27: . | AG27: . | AI27: =IF(S27=".",".",SUM($S27:S27)) -> . | AJ27: =IF(T27=".",".",SUM($S27:T27)) -> . | AK27: =IF(U27=".",".",SUM($S27:U27)) -> . | AL27: =IF(V27=".",".",SUM($S27:V27)) -> . | AM27: =IF(W27=".",".",SUM($S27:W27)) -> . | AN27: =IF(X27=".",".",SUM($S27:X27)) -> . | AO27: =IF(Y27=".",".",SUM($S27:Y27)) -> . | AQ27: . | AR27: . | AS27: . | AT27: . | AU27: . | AV27: . | AW27: .
C28: Residential | D28: =IF('WK2 - Notional General Income'!D23="","",'WK2 - Notional General Income'!D23) -> Braidwood | S28: . | T28: . | U28: . | V28: . | W28: . | X28: . | Y28: . | AA28: . | AB28: . | AC28: . | AD28: . | AE28: . | AF28: . | AG28: . | AI28: =IF(S28=".",".",SUM($S28:S28)) -> . | AJ28: =IF(T28=".",".",SUM($S28:T28)) -> . | AK28: =IF(U28=".",".",SUM($S28:U28)) -> . | AL28: =IF(V28=".",".",SUM($S28:V28)) -> . | AM28: =IF(W28=".",".",SUM($S28:W28)) -> . | AN28: =IF(X28=".",".",SUM($S28:X28)) -> . | AO28: =IF(Y28=".",".",SUM($S28:Y28)) -> . | AQ28: . | AR28: . | AS28: . | AT28: . | AU28: . | AV28: . | AW28: .
C29: Residential | D29: =IF('WK2 - Notional General Income'!D24="","",'WK2 - Notional General Income'!D24) ->  | S29: =IF(F29="",".",F29-E29) -> . | T29: =IF(G29="",".",G29-F29) -> . | U29: =IF(H29="",".",H29-G29) -> . | V29: =IF(I29="",".",I29-H29) -> . | W29: =IF(J29="",".",J29-I29) -> . | X29: =IF(K29="",".",K29-J29) -> . | Y29: =IF(L29="",".",L29-K29) -> . | AA29: =IFERROR(F29/E29-1,".") -> . | AB29: =IFERROR(G29/F29-1,".") -> . | AC29: =IFERROR(H29/G29-1,".") -> . | AD29: =IFERROR(I29/H29-1,".") -> . | AE29: =IFERROR(J29/I29-1,".") -> . | AF29: =IFERROR(K29/J29-1,".") -> . | AG29: =IFERROR(L29/K29-1,".") -> . | AI29: =IF(S29=".",".",SUM($S29:S29)) -> . | AJ29: =IF(T29=".",".",SUM($S29:T29)) -> . | AK29: =IF(U29=".",".",SUM($S29:U29)) -> . | AL29: =IF(V29=".",".",SUM($S29:V29)) -> . | AM29: =IF(W29=".",".",SUM($S29:W29)) -> . | AN29: =IF(X29=".",".",SUM($S29:X29)) -> . | AO29: =IF(Y29=".",".",SUM($S29:Y29)) -> . | AQ29: =IFERROR(F29/$E29-1,".") -> . | AR29: =IFERROR(G29/$E29-1,".") -> . | AS29: =IFERROR(H29/$E29-1,".") -> . | AT29: =IFERROR(I29/$E29-1,".") -> . | AU29: =IFERROR(J29/$E29-1,".") -> . | AV29: =IFERROR(K29/$E29-1,".") -> . | AW29: =IFERROR(L29/$E29-1,".") -> .
C30: Residential | D30: =IF('WK2 - Notional General Income'!D25="","",'WK2 - Notional General Income'!D25) ->  | S30: . | T30: . | U30: . | V30: . | W30: . | X30: . | Y30: . | AA30: . | AB30: . | AC30: . | AD30: . | AE30: . | AF30: . | AG30: . | AI30: =IF(S30=".",".",SUM($S30:S30)) -> . | AJ30: =IF(T30=".",".",SUM($S30:T30)) -> . | AK30: =IF(U30=".",".",SUM($S30:U30)) -> . | AL30: =IF(V30=".",".",SUM($S30:V30)) -> . | AM30: =IF(W30=".",".",SUM($S30:W30)) -> . | AN30: =IF(X30=".",".",SUM($S30:X30)) -> . | AO30: =IF(Y30=".",".",SUM($S30:Y30)) -> . | AQ30: . | AR30: . | AS30: . | AT30: . | AU30: . | AV30: . | AW30: .
C31: Residential | D31: =IF('WK2 - Notional General Income'!D26="","",'WK2 - Notional General Income'!D26) ->  | S31: . | T31: . | U31: . | V31: . | W31: . | X31: . | Y31: . | AA31: . | AB31: . | AC31: . | AD31: . | AE31: . | AF31: . | AG31: . | AI31: =IF(S31=".",".",SUM($S31:S31)) -> . | AJ31: =IF(T31=".",".",SUM($S31:T31)) -> . | AK31: =IF(U31=".",".",SUM($S31:U31)) -> . | AL31: =IF(V31=".",".",SUM($S31:V31)) -> . | AM31: =IF(W31=".",".",SUM($S31:W31)) -> . | AN31: =IF(X31=".",".",SUM($S31:X31)) -> . | AO31: =IF(Y31=".",".",SUM($S31:Y31)) -> . | AQ31: . | AR31: . | AS31: . | AT31: . | AU31: . | AV31: . | AW31: .
C32: Residential | D32: =IF('WK2 - Notional General Income'!D27="","",'WK2 - Notional General Income'!D27) ->  | S32: . | T32: . | U32: . | V32: . | W32: . | X32: . | Y32: . | AA32: . | AB32: . | AC32: . | AD32: . | AE32: . | AF32: . | AG32: . | AI32: =IF(S32=".",".",SUM($S32:S32)) -> . | AJ32: =IF(T32=".",".",SUM($S32:T32)) -> . | AK32: =IF(U32=".",".",SUM($S32:U32)) -> . | AL32: =IF(V32=".",".",SUM($S32:V32)) -> . | AM32: =IF(W32=".",".",SUM($S32:W32)) -> . | AN32: =IF(X32=".",".",SUM($S32:X32)) -> . | AO32: =IF(Y32=".",".",SUM($S32:Y32)) -> . | AQ32: . | AR32: . | AS32: . | AT32: . | AU32: . | AV32: . | AW32: .
C33: Residential | D33: =IF('WK2 - Notional General Income'!D28="","",'WK2 - Notional General Income'!D28) ->  | S33: . | T33: . | U33: . | V33: . | W33: . | X33: . | Y33: . | AA33: . | AB33: . | AC33: . | AD33: . | AE33: . | AF33: . | AG33: . | AI33: =IF(S33=".",".",SUM($S33:S33)) -> . | AJ33: =IF(T33=".",".",SUM($S33:T33)) -> . | AK33: =IF(U33=".",".",SUM($S33:U33)) -> . | AL33: =IF(V33=".",".",SUM($S33:V33)) -> . | AM33: =IF(W33=".",".",SUM($S33:W33)) -> . | AN33: =IF(X33=".",".",SUM($S33:X33)) -> . | AO33: =IF(Y33=".",".",SUM($S33:Y33)) -> . | AQ33: . | AR33: . | AS33: . | AT33: . | AU33: . | AV33: . | AW33: .
C34: Residential | D34: =IF('WK2 - Notional General Income'!D29="","",'WK2 - Notional General Income'!D29) ->  | S34: . | T34: . | U34: . | V34: . | W34: . | X34: . | Y34: . | AA34: . | AB34: . | AC34: . | AD34: . | AE34: . | AF34: . | AG34: . | AI34: =IF(S34=".",".",SUM($S34:S34)) -> . | AJ34: =IF(T34=".",".",SUM($S34:T34)) -> . | AK34: =IF(U34=".",".",SUM($S34:U34)) -> . | AL34: =IF(V34=".",".",SUM($S34:V34)) -> . | AM34: =IF(W34=".",".",SUM($S34:W34)) -> . | AN34: =IF(X34=".",".",SUM($S34:X34)) -> . | AO34: =IF(Y34=".",".",SUM($S34:Y34)) -> . | AQ34: . | AR34: . | AS34: . | AT34: . | AU34: . | AV34: . | AW34: .
C35: Residential | D35: =IF('WK2 - Notional General Income'!D30="","",'WK2 - Notional General Income'!D30) ->  | S35: . | T35: . | U35: . | V35: . | W35: . | X35: . | Y35: . | AA35: . | AB35: . | AC35: . | AD35: . | AE35: . | AF35: . | AG35: . | AI35: =IF(S35=".",".",SUM($S35:S35)) -> . | AJ35: =IF(T35=".",".",SUM($S35:T35)) -> . | AK35: =IF(U35=".",".",SUM($S35:U35)) -> . | AL35: =IF(V35=".",".",SUM($S35:V35)) -> . | AM35: =IF(W35=".",".",SUM($S35:W35)) -> . | AN35: =IF(X35=".",".",SUM($S35:X35)) -> . | AO35: =IF(Y35=".",".",SUM($S35:Y35)) -> . | AQ35: . | AR35: . | AS35: . | AT35: . | AU35: . | AV35: . | AW35: .
C36: Residential | D36: =IF('WK2 - Notional General Income'!D31="","",'WK2 - Notional General Income'!D31) ->  | S36: . | T36: . | U36: . | V36: . | W36: . | X36: . | Y36: . | AA36: . | AB36: . | AC36: . | AD36: . | AE36: . | AF36: . | AG36: . | AI36: =IF(S36=".",".",SUM($S36:S36)) -> . | AJ36: =IF(T36=".",".",SUM($S36:T36)) -> . | AK36: =IF(U36=".",".",SUM($S36:U36)) -> . | AL36: =IF(V36=".",".",SUM($S36:V36)) -> . | AM36: =IF(W36=".",".",SUM($S36:W36)) -> . | AN36: =IF(X36=".",".",SUM($S36:X36)) -> . | AO36: =IF(Y36=".",".",SUM($S36:Y36)) -> . | AQ36: . | AR36: . | AS36: . | AT36: . | AU36: . | AV36: . | AW36: .
C37: Residential | D37: =IF('WK2 - Notional General Income'!D32="","",'WK2 - Notional General Income'!D32) ->  | S37: . | T37: . | U37: . | V37: . | W37: . | X37: . | Y37: . | AA37: . | AB37: . | AC37: . | AD37: . | AE37: . | AF37: . | AG37: . | AI37: =IF(S37=".",".",SUM($S37:S37)) -> . | AJ37: =IF(T37=".",".",SUM($S37:T37)) -> . | AK37: =IF(U37=".",".",SUM($S37:U37)) -> . | AL37: =IF(V37=".",".",SUM($S37:V37)) -> . | AM37: =IF(W37=".",".",SUM($S37:W37)) -> . | AN37: =IF(X37=".",".",SUM($S37:X37)) -> . | AO37: =IF(Y37=".",".",SUM($S37:Y37)) -> . | AQ37: . | AR37: . | AS37: . | AT37: . | AU37: . | AV37: . | AW37: .
C38: Residential | D38: =IF('WK2 - Notional General Income'!D33="","",'WK2 - Notional General Income'!D33) ->  | S38: . | T38: . | U38: . | V38: . | W38: . | X38: . | Y38: . | AA38: . | AB38: . | AC38: . | AD38: . | AE38: . | AF38: . | AG38: . | AI38: =IF(S38=".",".",SUM($S38:S38)) -> . | AJ38: =IF(T38=".",".",SUM($S38:T38)) -> . | AK38: =IF(U38=".",".",SUM($S38:U38)) -> . | AL38: =IF(V38=".",".",SUM($S38:V38)) -> . | AM38: =IF(W38=".",".",SUM($S38:W38)) -> . | AN38: =IF(X38=".",".",SUM($S38:X38)) -> . | AO38: =IF(Y38=".",".",SUM($S38:Y38)) -> . | AQ38: . | AR38: . | AS38: . | AT38: . | AU38: . | AV38: . | AW38: .
C39: Residential | D39: =IF('WK2 - Notional General Income'!D34="","",'WK2 - Notional General Income'!D34) ->  | S39: . | T39: . | U39: . | V39: . | W39: . | X39: . | Y39: . | AA39: . | AB39: . | AC39: . | AD39: . | AE39: . | AF39: . | AG39: . | AI39: =IF(S39=".",".",SUM($S39:S39)) -> . | AJ39: =IF(T39=".",".",SUM($S39:T39)) -> . | AK39: =IF(U39=".",".",SUM($S39:U39)) -> . | AL39: =IF(V39=".",".",SUM($S39:V39)) -> . | AM39: =IF(W39=".",".",SUM($S39:W39)) -> . | AN39: =IF(X39=".",".",SUM($S39:X39)) -> . | AO39: =IF(Y39=".",".",SUM($S39:Y39)) -> . | AQ39: . | AR39: . | AS39: . | AT39: . | AU39: . | AV39: . | AW39: .
C40: Residential | D40: =IF('WK2 - Notional General Income'!D35="","",'WK2 - Notional General Income'!D35) ->  | S40: . | T40: . | U40: . | V40: . | W40: . | X40: . | Y40: . | AA40: . | AB40: . | AC40: . | AD40: . | AE40: . | AF40: . | AG40: . | AI40: =IF(S40=".",".",SUM($S40:S40)) -> . | AJ40: =IF(T40=".",".",SUM($S40:T40)) -> . | AK40: =IF(U40=".",".",SUM($S40:U40)) -> . | AL40: =IF(V40=".",".",SUM($S40:V40)) -> . | AM40: =IF(W40=".",".",SUM($S40:W40)) -> . | AN40: =IF(X40=".",".",SUM($S40:X40)) -> . | AO40: =IF(Y40=".",".",SUM($S40:Y40)) -> . | AQ40: . | AR40: . | AS40: . | AT40: . | AU40: . | AV40: . | AW40: .
C41: Residential | D41: =IF('WK2 - Notional General Income'!D36="","",'WK2 - Notional General Income'!D36) ->  | S41: . | T41: . | U41: . | V41: . | W41: . | X41: . | Y41: . | AA41: . | AB41: . | AC41: . | AD41: . | AE41: . | AF41: . | AG41: . | AI41: =IF(S41=".",".",SUM($S41:S41)) -> . | AJ41: =IF(T41=".",".",SUM($S41:T41)) -> . | AK41: =IF(U41=".",".",SUM($S41:U41)) -> . | AL41: =IF(V41=".",".",SUM($S41:V41)) -> . | AM41: =IF(W41=".",".",SUM($S41:W41)) -> . | AN41: =IF(X41=".",".",SUM($S41:X41)) -> . | AO41: =IF(Y41=".",".",SUM($S41:Y41)) -> . | AQ41: . | AR41: . | AS41: . | AT41: . | AU41: . | AV41: . | AW41: .
C42: Residential | D42: =IF('WK2 - Notional General Income'!D37="","",'WK2 - Notional General Income'!D37) ->  | S42: . | T42: . | U42: . | V42: . | W42: . | X42: . | Y42: . | AA42: . | AB42: . | AC42: . | AD42: . | AE42: . | AF42: . | AG42: . | AI42: =IF(S42=".",".",SUM($S42:S42)) -> . | AJ42: =IF(T42=".",".",SUM($S42:T42)) -> . | AK42: =IF(U42=".",".",SUM($S42:U42)) -> . | AL42: =IF(V42=".",".",SUM($S42:V42)) -> . | AM42: =IF(W42=".",".",SUM($S42:W42)) -> . | AN42: =IF(X42=".",".",SUM($S42:X42)) -> . | AO42: =IF(Y42=".",".",SUM($S42:Y42)) -> . | AQ42: . | AR42: . | AS42: . | AT42: . | AU42: . | AV42: . | AW42: .
C43: Residential | D43: =IF('WK2 - Notional General Income'!D38="","",'WK2 - Notional General Income'!D38) ->  | S43: . | T43: . | U43: . | V43: . | W43: . | X43: . | Y43: . | AA43: . | AB43: . | AC43: . | AD43: . | AE43: . | AF43: . | AG43: . | AI43: =IF(S43=".",".",SUM($S43:S43)) -> . | AJ43: =IF(T43=".",".",SUM($S43:T43)) -> . | AK43: =IF(U43=".",".",SUM($S43:U43)) -> . | AL43: =IF(V43=".",".",SUM($S43:V43)) -> . | AM43: =IF(W43=".",".",SUM($S43:W43)) -> . | AN43: =IF(X43=".",".",SUM($S43:X43)) -> . | AO43: =IF(Y43=".",".",SUM($S43:Y43)) -> . | AQ43: . | AR43: . | AS43: . | AT43: . | AU43: . | AV43: . | AW43: .
C45: ='WK3 - Notional GI Yr1 YIELD'!C40 -> Business | D45: =IF('WK2 - Notional General Income'!D40="","",'WK2 - Notional General Income'!D40) -> General | S45: . | T45: . | U45: . | V45: . | W45: . | X45: . | Y45: . | AA45: . | AB45: . | AC45: . | AD45: . | AE45: . | AF45: . | AG45: . | AI45: =IF(S45=".",".",SUM($S45:S45)) -> . | AJ45: =IF(T45=".",".",SUM($S45:T45)) -> . | AK45: =IF(U45=".",".",SUM($S45:U45)) -> . | AL45: =IF(V45=".",".",SUM($S45:V45)) -> . | AM45: =IF(W45=".",".",SUM($S45:W45)) -> . | AN45: =IF(X45=".",".",SUM($S45:X45)) -> . | AO45: =IF(Y45=".",".",SUM($S45:Y45)) -> . | AQ45: . | AR45: . | AS45: . | AT45: . | AU45: . | AV45: . | AW45: .
C46: =C45 -> Business | D46: =IF('WK2 - Notional General Income'!D41="","",'WK2 - Notional General Income'!D41) -> CBD - Queanbeyan | S46: . | T46: . | U46: . | V46: . | W46: . | X46: . | Y46: . | AA46: . | AB46: . | AC46: . | AD46: . | AE46: . | AF46: . | AG46: . | AI46: =IF(S46=".",".",SUM($S46:S46)) -> . | AJ46: =IF(T46=".",".",SUM($S46:T46)) -> . | AK46: =IF(U46=".",".",SUM($S46:U46)) -> . | AL46: =IF(V46=".",".",SUM($S46:V46)) -> . | AM46: =IF(W46=".",".",SUM($S46:W46)) -> . | AN46: =IF(X46=".",".",SUM($S46:X46)) -> . | AO46: =IF(Y46=".",".",SUM($S46:Y46)) -> . | AQ46: . | AR46: . | AS46: . | AT46: . | AU46: . | AV46: . | AW46: .
C47: =C46 -> Business | D47: =IF('WK2 - Notional General Income'!D42="","",'WK2 - Notional General Income'!D42) -> Googong | S47: . | T47: . | U47: . | V47: . | W47: . | X47: . | Y47: . | AA47: . | AB47: . | AC47: . | AD47: . | AE47: . | AF47: . | AG47: . | AI47: =IF(S47=".",".",SUM($S47:S47)) -> . | AJ47: =IF(T47=".",".",SUM($S47:T47)) -> . | AK47: =IF(U47=".",".",SUM($S47:U47)) -> . | AL47: =IF(V47=".",".",SUM($S47:V47)) -> . | AM47: =IF(W47=".",".",SUM($S47:W47)) -> . | AN47: =IF(X47=".",".",SUM($S47:X47)) -> . | AO47: =IF(Y47=".",".",SUM($S47:Y47)) -> . | AQ47: . | AR47: . | AS47: . | AT47: . | AU47: . | AV47: . | AW47: .
C48: Business | D48: =IF('WK2 - Notional General Income'!D43="","",'WK2 - Notional General Income'!D43) -> Poplars Business Park | S48: . | T48: . | U48: . | V48: . | W48: . | X48: . | Y48: . | AA48: . | AB48: . | AC48: . | AD48: . | AE48: . | AF48: . | AG48: . | AI48: =IF(S48=".",".",SUM($S48:S48)) -> . | AJ48: =IF(T48=".",".",SUM($S48:T48)) -> . | AK48: =IF(U48=".",".",SUM($S48:U48)) -> . | AL48: =IF(V48=".",".",SUM($S48:V48)) -> . | AM48: =IF(W48=".",".",SUM($S48:W48)) -> . | AN48: =IF(X48=".",".",SUM($S48:X48)) -> . | AO48: =IF(Y48=".",".",SUM($S48:Y48)) -> . | AQ48: . | AR48: . | AS48: . | AT48: . | AU48: . | AV48: . | AW48: .
C49: Business | D49: =IF('WK2 - Notional General Income'!D44="","",'WK2 - Notional General Income'!D44) -> Queanbeyan urban | S49: . | T49: . | U49: . | V49: . | W49: . | X49: . | Y49: . | AA49: . | AB49: . | AC49: . | AD49: . | AE49: . | AF49: . | AG49: . | AI49: =IF(S49=".",".",SUM($S49:S49)) -> . | AJ49: =IF(T49=".",".",SUM($S49:T49)) -> . | AK49: =IF(U49=".",".",SUM($S49:U49)) -> . | AL49: =IF(V49=".",".",SUM($S49:V49)) -> . | AM49: =IF(W49=".",".",SUM($S49:W49)) -> . | AN49: =IF(X49=".",".",SUM($S49:X49)) -> . | AO49: =IF(Y49=".",".",SUM($S49:Y49)) -> . | AQ49: . | AR49: . | AS49: . | AT49: . | AU49: . | AV49: . | AW49: .
C50: Business | D50: =IF('WK2 - Notional General Income'!D45="","",'WK2 - Notional General Income'!D45) -> Industrial | S50: . | T50: . | U50: . | V50: . | W50: . | X50: . | Y50: . | AA50: . | AB50: . | AC50: . | AD50: . | AE50: . | AF50: . | AG50: . | AI50: =IF(S50=".",".",SUM($S50:S50)) -> . | AJ50: =IF(T50=".",".",SUM($S50:T50)) -> . | AK50: =IF(U50=".",".",SUM($S50:U50)) -> . | AL50: =IF(V50=".",".",SUM($S50:V50)) -> . | AM50: =IF(W50=".",".",SUM($S50:W50)) -> . | AN50: =IF(X50=".",".",SUM($S50:X50)) -> . | AO50: =IF(Y50=".",".",SUM($S50:Y50)) -> . | AQ50: . | AR50: . | AS50: . | AT50: . | AU50: . | AV50: . | AW50: .
C51: Business | D51: =IF('WK2 - Notional General Income'!D46="","",'WK2 - Notional General Income'!D46) ->  | S51: . | T51: . | U51: . | V51: . | W51: . | X51: . | Y51: . | AA51: . | AB51: . | AC51: . | AD51: . | AE51: . | AF51: . | AG51: . | AI51: =IF(S51=".",".",SUM($S51:S51)) -> . | AJ51: =IF(T51=".",".",SUM($S51:T51)) -> . | AK51: =IF(U51=".",".",SUM($S51:U51)) -> . | AL51: =IF(V51=".",".",SUM($S51:V51)) -> . | AM51: =IF(W51=".",".",SUM($S51:W51)) -> . | AN51: =IF(X51=".",".",SUM($S51:X51)) -> . | AO51: =IF(Y51=".",".",SUM($S51:Y51)) -> . | AQ51: . | AR51: . | AS51: . | AT51: . | AU51: . | AV51: . | AW51: .
C52: Business | D52: =IF('WK2 - Notional General Income'!D47="","",'WK2 - Notional General Income'!D47) ->  | S52: . | T52: . | U52: . | V52: . | W52: . | X52: . | Y52: . | AA52: . | AB52: . | AC52: . | AD52: . | AE52: . | AF52: . | AG52: . | AI52: =IF(S52=".",".",SUM($S52:S52)) -> . | AJ52: =IF(T52=".",".",SUM($S52:T52)) -> . | AK52: =IF(U52=".",".",SUM($S52:U52)) -> . | AL52: =IF(V52=".",".",SUM($S52:V52)) -> . | AM52: =IF(W52=".",".",SUM($S52:W52)) -> . | AN52: =IF(X52=".",".",SUM($S52:X52)) -> . | AO52: =IF(Y52=".",".",SUM($S52:Y52)) -> . | AQ52: . | AR52: . | AS52: . | AT52: . | AU52: . | AV52: . | AW52: .
C53: Business | D53: =IF('WK2 - Notional General Income'!D48="","",'WK2 - Notional General Income'!D48) ->  | S53: . | T53: . | U53: . | V53: . | W53: . | X53: . | Y53: . | AA53: . | AB53: . | AC53: . | AD53: . | AE53: . | AF53: . | AG53: . | AI53: =IF(S53=".",".",SUM($S53:S53)) -> . | AJ53: =IF(T53=".",".",SUM($S53:T53)) -> . | AK53: =IF(U53=".",".",SUM($S53:U53)) -> . | AL53: =IF(V53=".",".",SUM($S53:V53)) -> . | AM53: =IF(W53=".",".",SUM($S53:W53)) -> . | AN53: =IF(X53=".",".",SUM($S53:X53)) -> . | AO53: =IF(Y53=".",".",SUM($S53:Y53)) -> . | AQ53: . | AR53: . | AS53: . | AT53: . | AU53: . | AV53: . | AW53: .
C54: Business | D54: =IF('WK2 - Notional General Income'!D49="","",'WK2 - Notional General Income'!D49) ->  | S54: . | T54: . | U54: . | V54: . | W54: . | X54: . | Y54: . | AA54: . | AB54: . | AC54: . | AD54: . | AE54: . | AF54: . | AG54: . | AI54: =IF(S54=".",".",SUM($S54:S54)) -> . | AJ54: =IF(T54=".",".",SUM($S54:T54)) -> . | AK54: =IF(U54=".",".",SUM($S54:U54)) -> . | AL54: =IF(V54=".",".",SUM($S54:V54)) -> . | AM54: =IF(W54=".",".",SUM($S54:W54)) -> . | AN54: =IF(X54=".",".",SUM($S54:X54)) -> . | AO54: =IF(Y54=".",".",SUM($S54:Y54)) -> . | AQ54: . | AR54: . | AS54: . | AT54: . | AU54: . | AV54: . | AW54: .
C55: Business | D55: =IF('WK2 - Notional General Income'!D50="","",'WK2 - Notional General Income'!D50) ->  | S55: . | T55: . | U55: . | V55: . | W55: . | X55: . | Y55: . | AA55: . | AB55: . | AC55: . | AD55: . | AE55: . | AF55: . | AG55: . | AI55: =IF(S55=".",".",SUM($S55:S55)) -> . | AJ55: =IF(T55=".",".",SUM($S55:T55)) -> . | AK55: =IF(U55=".",".",SUM($S55:U55)) -> . | AL55: =IF(V55=".",".",SUM($S55:V55)) -> . | AM55: =IF(W55=".",".",SUM($S55:W55)) -> . | AN55: =IF(X55=".",".",SUM($S55:X55)) -> . | AO55: =IF(Y55=".",".",SUM($S55:Y55)) -> . | AQ55: . | AR55: . | AS55: . | AT55: . | AU55: . | AV55: . | AW55: .
C56: Business | D56: =IF('WK2 - Notional General Income'!D51="","",'WK2 - Notional General Income'!D51) ->  | S56: . | T56: . | U56: . | V56: . | W56: . | X56: . | Y56: . | AA56: . | AB56: . | AC56: . | AD56: . | AE56: . | AF56: . | AG56: . | AI56: =IF(S56=".",".",SUM($S56:S56)) -> . | AJ56: =IF(T56=".",".",SUM($S56:T56)) -> . | AK56: =IF(U56=".",".",SUM($S56:U56)) -> . | AL56: =IF(V56=".",".",SUM($S56:V56)) -> . | AM56: =IF(W56=".",".",SUM($S56:W56)) -> . | AN56: =IF(X56=".",".",SUM($S56:X56)) -> . | AO56: =IF(Y56=".",".",SUM($S56:Y56)) -> . | AQ56: . | AR56: . | AS56: . | AT56: . | AU56: . | AV56: . | AW56: .
C57: Business | D57: =IF('WK2 - Notional General Income'!D52="","",'WK2 - Notional General Income'!D52) ->  | S57: . | T57: . | U57: . | V57: . | W57: . | X57: . | Y57: . | AA57: . | AB57: . | AC57: . | AD57: . | AE57: . | AF57: . | AG57: . | AI57: =IF(S57=".",".",SUM($S57:S57)) -> . | AJ57: =IF(T57=".",".",SUM($S57:T57)) -> . | AK57: =IF(U57=".",".",SUM($S57:U57)) -> . | AL57: =IF(V57=".",".",SUM($S57:V57)) -> . | AM57: =IF(W57=".",".",SUM($S57:W57)) -> . | AN57: =IF(X57=".",".",SUM($S57:X57)) -> . | AO57: =IF(Y57=".",".",SUM($S57:Y57)) -> . | AQ57: . | AR57: . | AS57: . | AT57: . | AU57: . | AV57: . | AW57: .
C58: Business | D58: =IF('WK2 - Notional General Income'!D53="","",'WK2 - Notional General Income'!D53) ->  | S58: . | T58: . | U58: . | V58: . | W58: . | X58: . | Y58: . | AA58: . | AB58: . | AC58: . | AD58: . | AE58: . | AF58: . | AG58: . | AI58: =IF(S58=".",".",SUM($S58:S58)) -> . | AJ58: =IF(T58=".",".",SUM($S58:T58)) -> . | AK58: =IF(U58=".",".",SUM($S58:U58)) -> . | AL58: =IF(V58=".",".",SUM($S58:V58)) -> . | AM58: =IF(W58=".",".",SUM($S58:W58)) -> . | AN58: =IF(X58=".",".",SUM($S58:X58)) -> . | AO58: =IF(Y58=".",".",SUM($S58:Y58)) -> . | AQ58: . | AR58: . | AS58: . | AT58: . | AU58: . | AV58: . | AW58: .
C59: Business | D59: =IF('WK2 - Notional General Income'!D54="","",'WK2 - Notional General Income'!D54) ->  | S59: . | T59: . | U59: . | V59: . | W59: . | X59: . | Y59: . | AA59: . | AB59: . | AC59: . | AD59: . | AE59: . | AF59: . | AG59: . | AI59: =IF(S59=".",".",SUM($S59:S59)) -> . | AJ59: =IF(T59=".",".",SUM($S59:T59)) -> . | AK59: =IF(U59=".",".",SUM($S59:U59)) -> . | AL59: =IF(V59=".",".",SUM($S59:V59)) -> . | AM59: =IF(W59=".",".",SUM($S59:W59)) -> . | AN59: =IF(X59=".",".",SUM($S59:X59)) -> . | AO59: =IF(Y59=".",".",SUM($S59:Y59)) -> . | AQ59: . | AR59: . | AS59: . | AT59: . | AU59: . | AV59: . | AW59: .
C60: Business | D60: =IF('WK2 - Notional General Income'!D55="","",'WK2 - Notional General Income'!D55) ->  | S60: . | T60: . | U60: . | V60: . | W60: . | X60: . | Y60: . | AA60: . | AB60: . | AC60: . | AD60: . | AE60: . | AF60: . | AG60: . | AI60: =IF(S60=".",".",SUM($S60:S60)) -> . | AJ60: =IF(T60=".",".",SUM($S60:T60)) -> . | AK60: =IF(U60=".",".",SUM($S60:U60)) -> . | AL60: =IF(V60=".",".",SUM($S60:V60)) -> . | AM60: =IF(W60=".",".",SUM($S60:W60)) -> . | AN60: =IF(X60=".",".",SUM($S60:X60)) -> . | AO60: =IF(Y60=".",".",SUM($S60:Y60)) -> . | AQ60: . | AR60: . | AS60: . | AT60: . | AU60: . | AV60: . | AW60: .
C61: Business | D61: =IF('WK2 - Notional General Income'!D56="","",'WK2 - Notional General Income'!D56) ->  | S61: . | T61: . | U61: . | V61: . | W61: . | X61: . | Y61: . | AA61: . | AB61: . | AC61: . | AD61: . | AE61: . | AF61: . | AG61: . | AI61: =IF(S61=".",".",SUM($S61:S61)) -> . | AJ61: =IF(T61=".",".",SUM($S61:T61)) -> . | AK61: =IF(U61=".",".",SUM($S61:U61)) -> . | AL61: =IF(V61=".",".",SUM($S61:V61)) -> . | AM61: =IF(W61=".",".",SUM($S61:W61)) -> . | AN61: =IF(X61=".",".",SUM($S61:X61)) -> . | AO61: =IF(Y61=".",".",SUM($S61:Y61)) -> . | AQ61: . | AR61: . | AS61: . | AT61: . | AU61: . | AV61: . | AW61: .
C62: Business | D62: =IF('WK2 - Notional General Income'!D57="","",'WK2 - Notional General Income'!D57) ->  | S62: . | T62: . | U62: . | V62: . | W62: . | X62: . | Y62: . | AA62: . | AB62: . | AC62: . | AD62: . | AE62: . | AF62: . | AG62: . | AI62: =IF(S62=".",".",SUM($S62:S62)) -> . | AJ62: =IF(T62=".",".",SUM($S62:T62)) -> . | AK62: =IF(U62=".",".",SUM($S62:U62)) -> . | AL62: =IF(V62=".",".",SUM($S62:V62)) -> . | AM62: =IF(W62=".",".",SUM($S62:W62)) -> . | AN62: =IF(X62=".",".",SUM($S62:X62)) -> . | AO62: =IF(Y62=".",".",SUM($S62:Y62)) -> . | AQ62: . | AR62: . | AS62: . | AT62: . | AU62: . | AV62: . | AW62: .
C63: Business | D63: =IF('WK2 - Notional General Income'!D58="","",'WK2 - Notional General Income'!D58) ->  | S63: . | T63: . | U63: . | V63: . | W63: . | X63: . | Y63: . | AA63: . | AB63: . | AC63: . | AD63: . | AE63: . | AF63: . | AG63: . | AI63: =IF(S63=".",".",SUM($S63:S63)) -> . | AJ63: =IF(T63=".",".",SUM($S63:T63)) -> . | AK63: =IF(U63=".",".",SUM($S63:U63)) -> . | AL63: =IF(V63=".",".",SUM($S63:V63)) -> . | AM63: =IF(W63=".",".",SUM($S63:W63)) -> . | AN63: =IF(X63=".",".",SUM($S63:X63)) -> . | AO63: =IF(Y63=".",".",SUM($S63:Y63)) -> . | AQ63: . | AR63: . | AS63: . | AT63: . | AU63: . | AV63: . | AW63: .
C64: Business | D64: =IF('WK2 - Notional General Income'!D59="","",'WK2 - Notional General Income'!D59) ->  | S64: . | T64: . | U64: . | V64: . | W64: . | X64: . | Y64: . | AA64: . | AB64: . | AC64: . | AD64: . | AE64: . | AF64: . | AG64: . | AI64: =IF(S64=".",".",SUM($S64:S64)) -> . | AJ64: =IF(T64=".",".",SUM($S64:T64)) -> . | AK64: =IF(U64=".",".",SUM($S64:U64)) -> . | AL64: =IF(V64=".",".",SUM($S64:V64)) -> . | AM64: =IF(W64=".",".",SUM($S64:W64)) -> . | AN64: =IF(X64=".",".",SUM($S64:X64)) -> . | AO64: =IF(Y64=".",".",SUM($S64:Y64)) -> . | AQ64: . | AR64: . | AS64: . | AT64: . | AU64: . | AV64: . | AW64: .
C65: Business | D65: =IF('WK2 - Notional General Income'!D60="","",'WK2 - Notional General Income'!D60) ->  | S65: . | T65: . | U65: . | V65: . | W65: . | X65: . | Y65: . | AA65: . | AB65: . | AC65: . | AD65: . | AE65: . | AF65: . | AG65: . | AI65: =IF(S65=".",".",SUM($S65:S65)) -> . | AJ65: =IF(T65=".",".",SUM($S65:T65)) -> . | AK65: =IF(U65=".",".",SUM($S65:U65)) -> . | AL65: =IF(V65=".",".",SUM($S65:V65)) -> . | AM65: =IF(W65=".",".",SUM($S65:W65)) -> . | AN65: =IF(X65=".",".",SUM($S65:X65)) -> . | AO65: =IF(Y65=".",".",SUM($S65:Y65)) -> . | AQ65: . | AR65: . | AS65: . | AT65: . | AU65: . | AV65: . | AW65: .
C66: Business | D66: =IF('WK2 - Notional General Income'!D61="","",'WK2 - Notional General Income'!D61) ->  | S66: . | T66: . | U66: . | V66: . | W66: . | X66: . | Y66: . | AA66: . | AB66: . | AC66: . | AD66: . | AE66: . | AF66: . | AG66: . | AI66: =IF(S66=".",".",SUM($S66:S66)) -> . | AJ66: =IF(T66=".",".",SUM($S66:T66)) -> . | AK66: =IF(U66=".",".",SUM($S66:U66)) -> . | AL66: =IF(V66=".",".",SUM($S66:V66)) -> . | AM66: =IF(W66=".",".",SUM($S66:W66)) -> . | AN66: =IF(X66=".",".",SUM($S66:X66)) -> . | AO66: =IF(Y66=".",".",SUM($S66:Y66)) -> . | AQ66: . | AR66: . | AS66: . | AT66: . | AU66: . | AV66: . | AW66: .
C67: Business | D67: =IF('WK2 - Notional General Income'!D62="","",'WK2 - Notional General Income'!D62) ->  | S67: . | T67: . | U67: . | V67: . | W67: . | X67: . | Y67: . | AA67: . | AB67: . | AC67: . | AD67: . | AE67: . | AF67: . | AG67: . | AI67: =IF(S67=".",".",SUM($S67:S67)) -> . | AJ67: =IF(T67=".",".",SUM($S67:T67)) -> . | AK67: =IF(U67=".",".",SUM($S67:U67)) -> . | AL67: =IF(V67=".",".",SUM($S67:V67)) -> . | AM67: =IF(W67=".",".",SUM($S67:W67)) -> . | AN67: =IF(X67=".",".",SUM($S67:X67)) -> . | AO67: =IF(Y67=".",".",SUM($S67:Y67)) -> . | AQ67: . | AR67: . | AS67: . | AT67: . | AU67: . | AV67: . | AW67: .
C68: Business | D68: =IF('WK2 - Notional General Income'!D63="","",'WK2 - Notional General Income'!D63) ->  | S68: . | T68: . | U68: . | V68: . | W68: . | X68: . | Y68: . | AA68: . | AB68: . | AC68: . | AD68: . | AE68: . | AF68: . | AG68: . | AI68: =IF(S68=".",".",SUM($S68:S68)) -> . | AJ68: =IF(T68=".",".",SUM($S68:T68)) -> . | AK68: =IF(U68=".",".",SUM($S68:U68)) -> . | AL68: =IF(V68=".",".",SUM($S68:V68)) -> . | AM68: =IF(W68=".",".",SUM($S68:W68)) -> . | AN68: =IF(X68=".",".",SUM($S68:X68)) -> . | AO68: =IF(Y68=".",".",SUM($S68:Y68)) -> . | AQ68: . | AR68: . | AS68: . | AT68: . | AU68: . | AV68: . | AW68: .
C69: Business | D69: =IF('WK2 - Notional General Income'!D64="","",'WK2 - Notional General Income'!D64) ->  | S69: . | T69: . | U69: . | V69: . | W69: . | X69: . | Y69: . | AA69: . | AB69: . | AC69: . | AD69: . | AE69: . | AF69: . | AG69: . | AI69: =IF(S69=".",".",SUM($S69:S69)) -> . | AJ69: =IF(T69=".",".",SUM($S69:T69)) -> . | AK69: =IF(U69=".",".",SUM($S69:U69)) -> . | AL69: =IF(V69=".",".",SUM($S69:V69)) -> . | AM69: =IF(W69=".",".",SUM($S69:W69)) -> . | AN69: =IF(X69=".",".",SUM($S69:X69)) -> . | AO69: =IF(Y69=".",".",SUM($S69:Y69)) -> . | AQ69: . | AR69: . | AS69: . | AT69: . | AU69: . | AV69: . | AW69: .
C71: ='WK3 - Notional GI Yr1 YIELD'!C66 -> Farmland | D71: =IF('WK2 - Notional General Income'!D66="","",'WK2 - Notional General Income'!D66) -> General | S71: . | T71: . | U71: . | V71: . | W71: . | X71: . | Y71: . | AA71: . | AB71: . | AC71: . | AD71: . | AE71: . | AF71: . | AG71: . | AI71: =IF(S71=".",".",SUM($S71:S71)) -> . | AJ71: =IF(T71=".",".",SUM($S71:T71)) -> . | AK71: =IF(U71=".",".",SUM($S71:U71)) -> . | AL71: =IF(V71=".",".",SUM($S71:V71)) -> . | AM71: =IF(W71=".",".",SUM($S71:W71)) -> . | AN71: =IF(X71=".",".",SUM($S71:X71)) -> . | AO71: =IF(Y71=".",".",SUM($S71:Y71)) -> . | AQ71: . | AR71: . | AS71: . | AT71: . | AU71: . | AV71: . | AW71: .
C72: =C71 -> Farmland | D72: =IF('WK2 - Notional General Income'!D67="","",'WK2 - Notional General Income'!D67) ->  | S72: . | T72: . | U72: . | V72: . | W72: . | X72: . | Y72: . | AA72: . | AB72: . | AC72: . | AD72: . | AE72: . | AF72: . | AG72: . | AI72: =IF(S72=".",".",SUM($S72:S72)) -> . | AJ72: =IF(T72=".",".",SUM($S72:T72)) -> . | AK72: =IF(U72=".",".",SUM($S72:U72)) -> . | AL72: =IF(V72=".",".",SUM($S72:V72)) -> . | AM72: =IF(W72=".",".",SUM($S72:W72)) -> . | AN72: =IF(X72=".",".",SUM($S72:X72)) -> . | AO72: =IF(Y72=".",".",SUM($S72:Y72)) -> . | AQ72: . | AR72: . | AS72: . | AT72: . | AU72: . | AV72: . | AW72: .
C73: Farmland | D73: =IF('WK2 - Notional General Income'!D68="","",'WK2 - Notional General Income'!D68) ->  | S73: . | T73: . | U73: . | V73: . | W73: . | X73: . | Y73: . | AA73: . | AB73: . | AC73: . | AD73: . | AE73: . | AF73: . | AG73: . | AI73: =IF(S73=".",".",SUM($S73:S73)) -> . | AJ73: =IF(T73=".",".",SUM($S73:T73)) -> . | AK73: =IF(U73=".",".",SUM($S73:U73)) -> . | AL73: =IF(V73=".",".",SUM($S73:V73)) -> . | AM73: =IF(W73=".",".",SUM($S73:W73)) -> . | AN73: =IF(X73=".",".",SUM($S73:X73)) -> . | AO73: =IF(Y73=".",".",SUM($S73:Y73)) -> . | AQ73: . | AR73: . | AS73: . | AT73: . | AU73: . | AV73: . | AW73: .
C74: Farmland | D74: =IF('WK2 - Notional General Income'!D69="","",'WK2 - Notional General Income'!D69) ->  | S74: . | T74: . | U74: . | V74: . | W74: . | X74: . | Y74: . | AA74: . | AB74: . | AC74: . | AD74: . | AE74: . | AF74: . | AG74: . | AI74: =IF(S74=".",".",SUM($S74:S74)) -> . | AJ74: =IF(T74=".",".",SUM($S74:T74)) -> . | AK74: =IF(U74=".",".",SUM($S74:U74)) -> . | AL74: =IF(V74=".",".",SUM($S74:V74)) -> . | AM74: =IF(W74=".",".",SUM($S74:W74)) -> . | AN74: =IF(X74=".",".",SUM($S74:X74)) -> . | AO74: =IF(Y74=".",".",SUM($S74:Y74)) -> . | AQ74: . | AR74: . | AS74: . | AT74: . | AU74: . | AV74: . | AW74: .
C75: Farmland | D75: =IF('WK2 - Notional General Income'!D70="","",'WK2 - Notional General Income'!D70) ->  | S75: . | T75: . | U75: . | V75: . | W75: . | X75: . | Y75: . | AA75: . | AB75: . | AC75: . | AD75: . | AE75: . | AF75: . | AG75: . | AI75: =IF(S75=".",".",SUM($S75:S75)) -> . | AJ75: =IF(T75=".",".",SUM($S75:T75)) -> . | AK75: =IF(U75=".",".",SUM($S75:U75)) -> . | AL75: =IF(V75=".",".",SUM($S75:V75)) -> . | AM75: =IF(W75=".",".",SUM($S75:W75)) -> . | AN75: =IF(X75=".",".",SUM($S75:X75)) -> . | AO75: =IF(Y75=".",".",SUM($S75:Y75)) -> . | AQ75: . | AR75: . | AS75: . | AT75: . | AU75: . | AV75: . | AW75: .
C76: Farmland | D76: =IF('WK2 - Notional General Income'!D71="","",'WK2 - Notional General Income'!D71) ->  | S76: . | T76: . | U76: . | V76: . | W76: . | X76: . | Y76: . | AA76: . | AB76: . | AC76: . | AD76: . | AE76: . | AF76: . | AG76: . | AI76: =IF(S76=".",".",SUM($S76:S76)) -> . | AJ76: =IF(T76=".",".",SUM($S76:T76)) -> . | AK76: =IF(U76=".",".",SUM($S76:U76)) -> . | AL76: =IF(V76=".",".",SUM($S76:V76)) -> . | AM76: =IF(W76=".",".",SUM($S76:W76)) -> . | AN76: =IF(X76=".",".",SUM($S76:X76)) -> . | AO76: =IF(Y76=".",".",SUM($S76:Y76)) -> . | AQ76: . | AR76: . | AS76: . | AT76: . | AU76: . | AV76: . | AW76: .
C77: Farmland | D77: =IF('WK2 - Notional General Income'!D72="","",'WK2 - Notional General Income'!D72) ->  | S77: . | T77: . | U77: . | V77: . | W77: . | X77: . | Y77: . | AA77: . | AB77: . | AC77: . | AD77: . | AE77: . | AF77: . | AG77: . | AI77: =IF(S77=".",".",SUM($S77:S77)) -> . | AJ77: =IF(T77=".",".",SUM($S77:T77)) -> . | AK77: =IF(U77=".",".",SUM($S77:U77)) -> . | AL77: =IF(V77=".",".",SUM($S77:V77)) -> . | AM77: =IF(W77=".",".",SUM($S77:W77)) -> . | AN77: =IF(X77=".",".",SUM($S77:X77)) -> . | AO77: =IF(Y77=".",".",SUM($S77:Y77)) -> . | AQ77: . | AR77: . | AS77: . | AT77: . | AU77: . | AV77: . | AW77: .
C78: Farmland | D78: =IF('WK2 - Notional General Income'!D73="","",'WK2 - Notional General Income'!D73) ->  | S78: . | T78: . | U78: . | V78: . | W78: . | X78: . | Y78: . | AA78: . | AB78: . | AC78: . | AD78: . | AE78: . | AF78: . | AG78: . | AI78: =IF(S78=".",".",SUM($S78:S78)) -> . | AJ78: =IF(T78=".",".",SUM($S78:T78)) -> . | AK78: =IF(U78=".",".",SUM($S78:U78)) -> . | AL78: =IF(V78=".",".",SUM($S78:V78)) -> . | AM78: =IF(W78=".",".",SUM($S78:W78)) -> . | AN78: =IF(X78=".",".",SUM($S78:X78)) -> . | AO78: =IF(Y78=".",".",SUM($S78:Y78)) -> . | AQ78: . | AR78: . | AS78: . | AT78: . | AU78: . | AV78: . | AW78: .
C79: Farmland | D79: =IF('WK2 - Notional General Income'!D74="","",'WK2 - Notional General Income'!D74) ->  | S79: . | T79: . | U79: . | V79: . | W79: . | X79: . | Y79: . | AA79: . | AB79: . | AC79: . | AD79: . | AE79: . | AF79: . | AG79: . | AI79: =IF(S79=".",".",SUM($S79:S79)) -> . | AJ79: =IF(T79=".",".",SUM($S79:T79)) -> . | AK79: =IF(U79=".",".",SUM($S79:U79)) -> . | AL79: =IF(V79=".",".",SUM($S79:V79)) -> . | AM79: =IF(W79=".",".",SUM($S79:W79)) -> . | AN79: =IF(X79=".",".",SUM($S79:X79)) -> . | AO79: =IF(Y79=".",".",SUM($S79:Y79)) -> . | AQ79: . | AR79: . | AS79: . | AT79: . | AU79: . | AV79: . | AW79: .
C80: Farmland | D80: =IF('WK2 - Notional General Income'!D75="","",'WK2 - Notional General Income'!D75) ->  | S80: . | T80: . | U80: . | V80: . | W80: . | X80: . | Y80: . | AA80: . | AB80: . | AC80: . | AD80: . | AE80: . | AF80: . | AG80: . | AI80: =IF(S80=".",".",SUM($S80:S80)) -> . | AJ80: =IF(T80=".",".",SUM($S80:T80)) -> . | AK80: =IF(U80=".",".",SUM($S80:U80)) -> . | AL80: =IF(V80=".",".",SUM($S80:V80)) -> . | AM80: =IF(W80=".",".",SUM($S80:W80)) -> . | AN80: =IF(X80=".",".",SUM($S80:X80)) -> . | AO80: =IF(Y80=".",".",SUM($S80:Y80)) -> . | AQ80: . | AR80: . | AS80: . | AT80: . | AU80: . | AV80: . | AW80: .
C82: ='WK3 - Notional GI Yr1 YIELD'!C77 -> Mining | D82: =IF('WK2 - Notional General Income'!D77="","",'WK2 - Notional General Income'!D77) -> General | S82: . | T82: . | U82: . | V82: . | W82: . | X82: . | Y82: . | AA82: . | AB82: . | AC82: . | AD82: . | AE82: . | AF82: . | AG82: . | AI82: =IF(S82=".",".",SUM($S82:S82)) -> . | AJ82: =IF(T82=".",".",SUM($S82:T82)) -> . | AK82: =IF(U82=".",".",SUM($S82:U82)) -> . | AL82: =IF(V82=".",".",SUM($S82:V82)) -> . | AM82: =IF(W82=".",".",SUM($S82:W82)) -> . | AN82: =IF(X82=".",".",SUM($S82:X82)) -> . | AO82: =IF(Y82=".",".",SUM($S82:Y82)) -> . | AQ82: . | AR82: . | AS82: . | AT82: . | AU82: . | AV82: . | AW82: .
C83: =C82 -> Mining | D83: =IF('WK2 - Notional General Income'!D78="","",'WK2 - Notional General Income'!D78) ->  | S83: . | T83: . | U83: . | V83: . | W83: . | X83: . | Y83: . | AA83: . | AB83: . | AC83: . | AD83: . | AE83: . | AF83: . | AG83: . | AI83: =IF(S83=".",".",SUM($S83:S83)) -> . | AJ83: =IF(T83=".",".",SUM($S83:T83)) -> . | AK83: =IF(U83=".",".",SUM($S83:U83)) -> . | AL83: =IF(V83=".",".",SUM($S83:V83)) -> . | AM83: =IF(W83=".",".",SUM($S83:W83)) -> . | AN83: =IF(X83=".",".",SUM($S83:X83)) -> . | AO83: =IF(Y83=".",".",SUM($S83:Y83)) -> . | AQ83: . | AR83: . | AS83: . | AT83: . | AU83: . | AV83: . | AW83: .
C84: =C83 -> Mining | D84: =IF('WK2 - Notional General Income'!D79="","",'WK2 - Notional General Income'!D79) ->  | S84: . | T84: . | U84: . | V84: . | W84: . | X84: . | Y84: . | AA84: . | AB84: . | AC84: . | AD84: . | AE84: . | AF84: . | AG84: . | AI84: =IF(S84=".",".",SUM($S84:S84)) -> . | AJ84: =IF(T84=".",".",SUM($S84:T84)) -> . | AK84: =IF(U84=".",".",SUM($S84:U84)) -> . | AL84: =IF(V84=".",".",SUM($S84:V84)) -> . | AM84: =IF(W84=".",".",SUM($S84:W84)) -> . | AN84: =IF(X84=".",".",SUM($S84:X84)) -> . | AO84: =IF(Y84=".",".",SUM($S84:Y84)) -> . | AQ84: . | AR84: . | AS84: . | AT84: . | AU84: . | AV84: . | AW84: .
C85: Mining | D85: =IF('WK2 - Notional General Income'!D80="","",'WK2 - Notional General Income'!D80) ->  | S85: . | T85: . | U85: . | V85: . | W85: . | X85: . | Y85: . | AA85: . | AB85: . | AC85: . | AD85: . | AE85: . | AF85: . | AG85: . | AI85: =IF(S85=".",".",SUM($S85:S85)) -> . | AJ85: =IF(T85=".",".",SUM($S85:T85)) -> . | AK85: =IF(U85=".",".",SUM($S85:U85)) -> . | AL85: =IF(V85=".",".",SUM($S85:V85)) -> . | AM85: =IF(W85=".",".",SUM($S85:W85)) -> . | AN85: =IF(X85=".",".",SUM($S85:X85)) -> . | AO85: =IF(Y85=".",".",SUM($S85:Y85)) -> . | AQ85: . | AR85: . | AS85: . | AT85: . | AU85: . | AV85: . | AW85: .
C86: Mining | D86: =IF('WK2 - Notional General Income'!D81="","",'WK2 - Notional General Income'!D81) ->  | S86: . | T86: . | U86: . | V86: . | W86: . | X86: . | Y86: . | AA86: . | AB86: . | AC86: . | AD86: . | AE86: . | AF86: . | AG86: . | AI86: =IF(S86=".",".",SUM($S86:S86)) -> . | AJ86: =IF(T86=".",".",SUM($S86:T86)) -> . | AK86: =IF(U86=".",".",SUM($S86:U86)) -> . | AL86: =IF(V86=".",".",SUM($S86:V86)) -> . | AM86: =IF(W86=".",".",SUM($S86:W86)) -> . | AN86: =IF(X86=".",".",SUM($S86:X86)) -> . | AO86: =IF(Y86=".",".",SUM($S86:Y86)) -> . | AQ86: . | AR86: . | AS86: . | AT86: . | AU86: . | AV86: . | AW86: .
C87: Mining | D87: =IF('WK2 - Notional General Income'!D82="","",'WK2 - Notional General Income'!D82) ->  | S87: . | T87: . | U87: . | V87: . | W87: . | X87: . | Y87: . | AA87: . | AB87: . | AC87: . | AD87: . | AE87: . | AF87: . | AG87: . | AI87: =IF(S87=".",".",SUM($S87:S87)) -> . | AJ87: =IF(T87=".",".",SUM($S87:T87)) -> . | AK87: =IF(U87=".",".",SUM($S87:U87)) -> . | AL87: =IF(V87=".",".",SUM($S87:V87)) -> . | AM87: =IF(W87=".",".",SUM($S87:W87)) -> . | AN87: =IF(X87=".",".",SUM($S87:X87)) -> . | AO87: =IF(Y87=".",".",SUM($S87:Y87)) -> . | AQ87: . | AR87: . | AS87: . | AT87: . | AU87: . | AV87: . | AW87: .
C88: Mining | D88: =IF('WK2 - Notional General Income'!D83="","",'WK2 - Notional General Income'!D83) ->  | S88: . | T88: . | U88: . | V88: . | W88: . | X88: . | Y88: . | AA88: . | AB88: . | AC88: . | AD88: . | AE88: . | AF88: . | AG88: . | AI88: =IF(S88=".",".",SUM($S88:S88)) -> . | AJ88: =IF(T88=".",".",SUM($S88:T88)) -> . | AK88: =IF(U88=".",".",SUM($S88:U88)) -> . | AL88: =IF(V88=".",".",SUM($S88:V88)) -> . | AM88: =IF(W88=".",".",SUM($S88:W88)) -> . | AN88: =IF(X88=".",".",SUM($S88:X88)) -> . | AO88: =IF(Y88=".",".",SUM($S88:Y88)) -> . | AQ88: . | AR88: . | AS88: . | AT88: . | AU88: . | AV88: . | AW88: .
C89: Mining | D89: =IF('WK2 - Notional General Income'!D84="","",'WK2 - Notional General Income'!D84) ->  | S89: . | T89: . | U89: . | V89: . | W89: . | X89: . | Y89: . | AA89: . | AB89: . | AC89: . | AD89: . | AE89: . | AF89: . | AG89: . | AI89: =IF(S89=".",".",SUM($S89:S89)) -> . | AJ89: =IF(T89=".",".",SUM($S89:T89)) -> . | AK89: =IF(U89=".",".",SUM($S89:U89)) -> . | AL89: =IF(V89=".",".",SUM($S89:V89)) -> . | AM89: =IF(W89=".",".",SUM($S89:W89)) -> . | AN89: =IF(X89=".",".",SUM($S89:X89)) -> . | AO89: =IF(Y89=".",".",SUM($S89:Y89)) -> . | AQ89: . | AR89: . | AS89: . | AT89: . | AU89: . | AV89: . | AW89: .
C90: Mining | D90: =IF('WK2 - Notional General Income'!D85="","",'WK2 - Notional General Income'!D85) ->  | S90: . | T90: . | U90: . | V90: . | W90: . | X90: . | Y90: . | AA90: . | AB90: . | AC90: . | AD90: . | AE90: . | AF90: . | AG90: . | AI90: =IF(S90=".",".",SUM($S90:S90)) -> . | AJ90: =IF(T90=".",".",SUM($S90:T90)) -> . | AK90: =IF(U90=".",".",SUM($S90:U90)) -> . | AL90: =IF(V90=".",".",SUM($S90:V90)) -> . | AM90: =IF(W90=".",".",SUM($S90:W90)) -> . | AN90: =IF(X90=".",".",SUM($S90:X90)) -> . | AO90: =IF(Y90=".",".",SUM($S90:Y90)) -> . | AQ90: . | AR90: . | AS90: . | AT90: . | AU90: . | AV90: . | AW90: .
C91: Mining | D91: =IF('WK2 - Notional General Income'!D86="","",'WK2 - Notional General Income'!D86) ->  | S91: . | T91: . | U91: . | V91: . | W91: . | X91: . | Y91: . | AA91: . | AB91: . | AC91: . | AD91: . | AE91: . | AF91: . | AG91: . | AI91: =IF(S91=".",".",SUM($S91:S91)) -> . | AJ91: =IF(T91=".",".",SUM($S91:T91)) -> . | AK91: =IF(U91=".",".",SUM($S91:U91)) -> . | AL91: =IF(V91=".",".",SUM($S91:V91)) -> . | AM91: =IF(W91=".",".",SUM($S91:W91)) -> . | AN91: =IF(X91=".",".",SUM($S91:X91)) -> . | AO91: =IF(Y91=".",".",SUM($S91:Y91)) -> . | AQ91: . | AR91: . | AS91: . | AT91: . | AU91: . | AV91: . | AW91: .
C95: Average Ordinary and Special Rates - with proposed special variation | H95: =$H$21 -> $ nominal per year | S95: =S$21 -> Annual increases (nominal $ per year) | AA95: =AA$21 -> Annual increases (%) | AI95: =AI$21 -> Cumulative increases (nominal $ per year) | AQ95: =AQ$21 -> Cumulative increases (%)
C96: Category | D96: Sub-category or Special Rate name | E96: Current Average Rate | F96: Average Rate Year 1 | G96: Average Rate Year 2 | H96: Average Rate Year 3 | I96: Average Rate Year 4 | J96: Average Rate Year 5 | K96: Average Rate Year 6 | L96: Average Rate Year 7 | O96: ='WK2 - Notional General Income'!$E18 -> Number of Assessments | S96: Average Rates - with proposed special variation | AA96: =$S96 -> Average Rates - with proposed special variation | AI96: =$S96 -> Average Rates - with proposed special variation | AQ96: =$S96 -> Average Rates - with proposed special variation
E97: =E23 -> 2022-23 | F97: 2023-24 | G97: 2024-25 | H97: 2025-26 | I97: 2026-27 | J97: 2027-28 | K97: 2028-29 | L97: 2029-30 | O97: =E97 -> 2022-23 | P97: =F97 -> 2023-24 | S97: =S$23 -> Year 1 | T97: =T$23 -> Year 2 | U97: Year 3 | V97: Year 4 | W97: Year 5 | X97: Year 6 | Y97: Year 7 | AA97: =AA$23 -> Year 1 | AB97: Year 2 | AC97: Year 3 | AD97: Year 4 | AE97: Year 5 | AF97: Year 6 | AG97: Year 7 | AI97: =AI$23 -> Year 1 | AJ97: =AJ$23 -> Year 2 | AK97: Year 3 | AL97: Year 4 | AM97: Year 5 | AN97: Year 6 | AO97: Year 7 | AQ97: =AQ$23 -> Year 1 | AR97: =AR$23 -> Year 2 | AS97: Year 3 | AT97: Year 4 | AU97: Year 5 | AV97: Year 6 | AW97: Year 7
C98: Residential | D98: =IF('WK2 - Notional General Income'!D19="","",'WK2 - Notional General Income'!D19) -> General | E98: =IF('WK2 - Notional General Income'!M19=".",".",'WK2 - Notional General Income'!M19/'WK2 - Notional General Income'!E19) -> 1164.160983 | F98: =IF('WK3 - Notional GI Yr1 YIELD'!M19=".",".",'WK3 - Notional GI Yr1 YIELD'!M19/'WK3 - Notional GI Yr1 YIELD'!E19) -> 1373.695669 | G98: 1621.003942 | H98: 1912.779881 | I98: =H98*1.025 -> 1960.599378 | J98: =I98*1.025 -> 2009.614362 | K98: 2059.854721 | L98: 2111.351089 | O98: ='WK2 - Notional General Income'!$E19 -> 5594 | P98: ='WK3 - Notional GI Yr1 YIELD'!$E19 -> 5594 | S98: =IF(OR(E98=".",F98="."),".",F98-E98) -> 209.5346862 | T98: =IF(OR(F98=".",G98="."),".",G98-F98) -> 247.308273 | U98: =IF(H98="",".",H98-G98) -> 291.7759384 | V98: =IF(I98="",".",I98-H98) -> 47.81949702 | W98: =IF(J98="",".",J98-I98) -> 49.01498444 | X98: =IF(K98="",".",K98-J98) -> 50.24035906 | Y98: =IF(L98="",".",L98-K98) -> 51.49636803 | AA98: =IFERROR(F98/E98-1,".") -> 0.1799877244 | AB98: =IFERROR(G98/F98-1,".") -> 0.1800313406 | AC98: =IFERROR(H98/G98-1,".") -> 0.1799970566 | AD98: =IFERROR(I98/H98-1,".") -> 0.025 | AE98: =IFERROR(J98/I98-1,".") -> 0.025 | AF98: =IFERROR(K98/J98-1,".") -> 0.025 | AG98: =IFERROR(L98/K98-1,".") -> 0.025 | AI98: =IF(S98=".",".",SUM($S98:S98)) -> 209.5346862 | AJ98: =IF(T98=".",".",SUM($S98:T98)) -> 456.8429591 | AK98: =IF(U98=".",".",SUM($S98:U98)) -> 748.6188975 | AL98: =IF(V98=".",".",SUM($S98:V98)) -> 796.4383945 | AM98: =IF(W98=".",".",SUM($S98:W98)) -> 845.453379 | AN98: =IF(X98=".",".",SUM($S98:X98)) -> 895.693738 | AO98: =IF(Y98=".",".",SUM($S98:Y98)) -> 947.1901061 | AQ98: =IFERROR(F98/$E98-1,".") -> 0.1799877244 | AR98: =IFERROR(G98/$E98-1,".") -> 0.3924224963 | AS98: =IFERROR(H98/$E98-1,".") -> 0.6430544472 | AT98: =IFERROR(I98/$E98-1,".") -> 0.6841308084 | AU98: =IFERROR(J98/$E98-1,".") -> 0.7262340786 | AV98: =IFERROR(K98/$E98-1,".") -> 0.7693899306 | AW98: =IFERROR(L98/$E98-1,".") -> 0.8136246788
C99: Residential | D99: =IF('WK2 - Notional General Income'!D20="","",'WK2 - Notional General Income'!D20) -> Queanbeyan- Urban | E99: =IF('WK2 - Notional General Income'!M20=".",".",'WK2 - Notional General Income'!M20/'WK2 - Notional General Income'!E20) -> 1303.679422 | F99: =IF('WK3 - Notional GI Yr1 YIELD'!M20=".",".",'WK3 - Notional GI Yr1 YIELD'!M20/'WK3 - Notional GI Yr1 YIELD'!E20) -> 1527.607494 | G99: 1802.499328 | H99: 2126.869127 | I99: =H99*1.025 -> 2180.040855 | J99: 2234.541877 | K99: 2290.405424 | L99: 2347.665559 | O99: ='WK2 - Notional General Income'!$E20 -> 15567 | P99: ='WK3 - Notional GI Yr1 YIELD'!$E20 -> 15567 | S99: =IF(OR(E99=".",F99="."),".",F99-E99) -> 223.928072 | T99: 274.8918339 | U99: 324.369799 | V99: 53.17172818 | W99: 54.50102139 | X99: 55.86354692 | Y99: 57.26013559 | AA99: 0.1717662089 | AB99: 0.1799492572 | AC99: 0.1799555727 | AD99: 0.025 | AE99: 0.025 | AF99: 0.025 | AG99: 0.025 | AI99: =IF(S99=".",".",SUM($S99:S99)) -> 223.928072 | AJ99: =IF(T99=".",".",SUM($S99:T99)) -> 498.8199059 | AK99: =IF(U99=".",".",SUM($S99:U99)) -> 823.1897049 | AL99: =IF(V99=".",".",SUM($S99:V99)) -> 876.3614331 | AM99: =IF(W99=".",".",SUM($S99:W99)) -> 930.8624545 | AN99: =IF(X99=".",".",SUM($S99:X99)) -> 986.7260014 | AO99: =IF(Y99=".",".",SUM($S99:Y99)) -> 1043.986137 | AQ99: =IFERROR(F99/$E99-1,".") -> 0.1717662089 | AR99: 0.3826246678 | AS99: 0.6314356818 | AT99: 0.6722215738 | AU99: 0.7140271132 | AV99: 0.756877791 | AW99: 0.8007997358
C100: Residential | D100: =IF('WK2 - Notional General Income'!D21="","",'WK2 - Notional General Income'!D21) -> Googong | E100: =IF('WK2 - Notional General Income'!M21=".",".",'WK2 - Notional General Income'!M21/'WK2 - Notional General Income'!E21) -> 1529.751849 | F100: =IF('WK3 - Notional GI Yr1 YIELD'!M21=".",".",'WK3 - Notional GI Yr1 YIELD'!M21/'WK3 - Notional GI Yr1 YIELD'!E21) -> 1867.042852 | G100: 2203.32923 | H100: 2600.357762 | I100: =H100*1.025 -> 2665.366706 | J100: 2732.000874 | K100: 2800.300896 | L100: 2870.308418 | O100: ='WK2 - Notional General Income'!$E21 -> 2704 | P100: ='WK3 - Notional GI Yr1 YIELD'!$E21 -> 2704 | S100: 337.2910028 | T100: 336.2863779 | U100: 397.0285324 | V100: 65.00894405 | W100: 66.63416766 | X100: 68.30002185 | Y100: 70.00752239 | AA100: 0.2204873967 | AB100: 0.1801171181 | AC100: 0.1801948284 | AD100: 0.025 | AE100: 0.025 | AF100: 0.025 | AG100: 0.025 | AI100: =IF(S100=".",".",SUM($S100:S100)) -> 337.2910028 | AJ100: =IF(T100=".",".",SUM($S100:T100)) -> 673.5773806 | AK100: =IF(U100=".",".",SUM($S100:U100)) -> 1070.605913 | AL100: =IF(V100=".",".",SUM($S100:V100)) -> 1135.614857 | AM100: =IF(W100=".",".",SUM($S100:W100)) -> 1202.249025 | AN100: =IF(X100=".",".",SUM($S100:X100)) -> 1270.549047 | AO100: =IF(Y100=".",".",SUM($S100:Y100)) -> 1340.556569 | AQ100: 0.2204873967 | AR100: 0.4403180692 | AS100: 0.6998559365 | AT100: 0.7423523349 | AU100: 0.7859111433 | AV100: 0.8305589219 | AW100: 0.8763228949
C101: Residential | D101: =IF('WK2 - Notional General Income'!D22="","",'WK2 - Notional General Income'!D22) -> Bungendore | E101: =IF('WK2 - Notional General Income'!M22=".",".",'WK2 - Notional General Income'!M22/'WK2 - Notional General Income'!E22) -> 1037.320308 | F101: =IF('WK3 - Notional GI Yr1 YIELD'!M22=".",".",'WK3 - Notional GI Yr1 YIELD'!M22/'WK3 - Notional GI Yr1 YIELD'!E22) -> 1219.703719 | G101: 1439.281397 | H101: 1698.345078 | I101: =H101*1.025 -> 1740.803705 | J101: 1784.323798 | K101: 1828.931893 | L101: 1874.65519 | O101: ='WK2 - Notional General Income'!$E22 -> 1565 | P101: ='WK3 - Notional GI Yr1 YIELD'!$E22 -> 1565 | S101: 182.3834105 | T101: 219.5776782 | U101: 259.0636817 | V101: 42.45862696 | W101: 43.52009263 | X101: 44.60809495 | Y101: 45.72329732 | AA101: 0.1758216909 | AB101: 0.1800254232 | AC101: 0.1799951575 | AD101: 0.025 | AE101: 0.025 | AF101: 0.025 | AG101: 0.025 | AI101: =IF(S101=".",".",SUM($S101:S101)) -> 182.3834105 | AJ101: =IF(T101=".",".",SUM($S101:T101)) -> 401.9610887 | AK101: =IF(U101=".",".",SUM($S101:U101)) -> 661.0247703 | AL101: =IF(V101=".",".",SUM($S101:V101)) -> 703.4833973 | AM101: =IF(W101=".",".",SUM($S101:W101)) -> 747.0034899 | AN101: =IF(X101=".",".",SUM($S101:X101)) -> 791.6115849 | AO101: =IF(Y101=".",".",SUM($S101:Y101)) -> 837.3348822 | AQ101: 0.1758216909 | AR101: 0.3874994884 | AS101: 0.6372426774 | AT101: 0.6781737443 | AU101: 0.7201280879 | AV101: 0.7631312901 | AW101: 0.8072095723
C102: Residential | D102: =IF('WK2 - Notional General Income'!D23="","",'WK2 - Notional General Income'!D23) -> Braidwood | E102: =IF('WK2 - Notional General Income'!M23=".",".",'WK2 - Notional General Income'!M23/'WK2 - Notional General Income'!E23) -> 778.2215038 | F102: =IF('WK3 - Notional GI Yr1 YIELD'!M23=".",".",'WK3 - Notional GI Yr1 YIELD'!M23/'WK3 - Notional GI Yr1 YIELD'!E23) -> 927.3639542 | G102: 1094.208933 | H102: 1291.154577 | I102: =H102*1.025 -> 1323.433441 | J102: 1356.519277 | K102: 1390.432259 | L102: 1425.193065 | O102: ='WK2 - Notional General Income'!$E23 -> 754 | P102: ='WK3 - Notional GI Yr1 YIELD'!$E23 -> 754 | S102: 149.1424503 | T102: 166.8449786 | U102: 196.9456437 | V102: 32.27886441 | W102: 33.08583602 | X102: 33.91298193 | Y102: 34.76080647 | AA102: =IFERROR(F102/E102-1,".") -> 0.1916452445 | AB102: 0.1799131591 | AC102: 0.1799890659 | AD102: 0.025 | AE102: 0.025 | AF102: 0.025 | AG102: 0.025 | AI102: =IF(S102=".",".",SUM($S102:S102)) -> 149.1424503 | AJ102: =IF(T102=".",".",SUM($S102:T102)) -> 315.987429 | AK102: =IF(U102=".",".",SUM($S102:U102)) -> 512.9330727 | AL102: =IF(V102=".",".",SUM($S102:V102)) -> 545.2119371 | AM102: =IF(W102=".",".",SUM($S102:W102)) -> 578.2977732 | AN102: =IF(X102=".",".",SUM($S102:X102)) -> 612.2107551 | AO102: =IF(Y102=".",".",SUM($S102:Y102)) -> 646.9715616 | AQ102: 0.1916452445 | AR102: 0.4060379049 | AS102: 0.6591093541 | AT102: 0.7005870879 | AU102: 0.7431017651 | AV102: 0.7866793092 | AW102: 0.831346292
C103: Residential | D103: =IF('WK2 - Notional General Income'!D24="","",'WK2 - Notional General Income'!D24) ->  | E103: =IF('WK2 - Notional General Income'!M24=".",".",'WK2 - Notional General Income'!M24/'WK2 - Notional General Income'!E24) -> . | F103: =IF('WK3 - Notional GI Yr1 YIELD'!M24=".",".",'WK3 - Notional GI Yr1 YIELD'!M24/'WK3 - Notional GI Yr1 YIELD'!E24) -> . | O103: ='WK2 - Notional General Income'!$E24 -> 0 | P103: ='WK3 - Notional GI Yr1 YIELD'!$E24 -> 0 | S103: . | T103: . | U103: . | V103: . | W103: . | X103: . | Y103: . | AA103: =IFERROR(F103/E103-1,".") -> . | AB103: . | AC103: . | AD103: . | AE103: . | AF103: . | AG103: . | AI103: =IF(S103=".",".",SUM($S103:S103)) -> . | AJ103: =IF(T103=".",".",SUM($S103:T103)) -> . | AK103: =IF(U103=".",".",SUM($S103:U103)) -> . | AL103: =IF(V103=".",".",SUM($S103:V103)) -> . | AM103: =IF(W103=".",".",SUM($S103:W103)) -> . | AN103: =IF(X103=".",".",SUM($S103:X103)) -> . | AO103: =IF(Y103=".",".",SUM($S103:Y103)) -> . | AQ103: . | AR103: . | AS103: . | AT103: . | AU103: . | AV103: . | AW103: .
C104: Residential | D104: =IF('WK2 - Notional General Income'!D25="","",'WK2 - Notional General Income'!D25) ->  | E104: =IF('WK2 - Notional General Income'!M25=".",".",'WK2 - Notional General Income'!M25/'WK2 - Notional General Income'!E25) -> . | F104: =IF('WK3 - Notional GI Yr1 YIELD'!M25=".",".",'WK3 - Notional GI Yr1 YIELD'!M25/'WK3 - Notional GI Yr1 YIELD'!E25) -> . | O104: ='WK2 - Notional General Income'!$E25 -> 0 | P104: ='WK3 - Notional GI Yr1 YIELD'!$E25 -> 0 | S104: . | T104: . | U104: . | V104: . | W104: . | X104: . | Y104: . | AA104: . | AB104: . | AC104: . | AD104: . | AE104: . | AF104: . | AG104: . | AI104: =IF(S104=".",".",SUM($S104:S104)) -> . | AJ104: =IF(T104=".",".",SUM($S104:T104)) -> . | AK104: =IF(U104=".",".",SUM($S104:U104)) -> . | AL104: =IF(V104=".",".",SUM($S104:V104)) -> . | AM104: =IF(W104=".",".",SUM($S104:W104)) -> . | AN104: =IF(X104=".",".",SUM($S104:X104)) -> . | AO104: =IF(Y104=".",".",SUM($S104:Y104)) -> . | AQ104: . | AR104: . | AS104: . | AT104: . | AU104: . | AV104: . | AW104: .
C105: Residential | D105: =IF('WK2 - Notional General Income'!D26="","",'WK2 - Notional General Income'!D26) ->  | E105: =IF('WK2 - Notional General Income'!M26=".",".",'WK2 - Notional General Income'!M26/'WK2 - Notional General Income'!E26) -> . | F105: =IF('WK3 - Notional GI Yr1 YIELD'!M26=".",".",'WK3 - Notional GI Yr1 YIELD'!M26/'WK3 - Notional GI Yr1 YIELD'!E26) -> . | O105: ='WK2 - Notional General Income'!$E26 -> 0 | P105: ='WK3 - Notional GI Yr1 YIELD'!$E26 -> 0 | S105: . | T105: . | U105: . | V105: . | W105: . | X105: . | Y105: . | AA105: . | AB105: . | AC105: . | AD105: . | AE105: . | AF105: . | AG105: . | AI105: =IF(S105=".",".",SUM($S105:S105)) -> . | AJ105: =IF(T105=".",".",SUM($S105:T105)) -> . | AK105: =IF(U105=".",".",SUM($S105:U105)) -> . | AL105: =IF(V105=".",".",SUM($S105:V105)) -> . | AM105: =IF(W105=".",".",SUM($S105:W105)) -> . | AN105: =IF(X105=".",".",SUM($S105:X105)) -> . | AO105: =IF(Y105=".",".",SUM($S105:Y105)) -> . | AQ105: . | AR105: . | AS105: . | AT105: . | AU105: . | AV105: . | AW105: .
C106: Residential | D106: =IF('WK2 - Notional General Income'!D27="","",'WK2 - Notional General Income'!D27) ->  | E106: =IF('WK2 - Notional General Income'!M27=".",".",'WK2 - Notional General Income'!M27/'WK2 - Notional General Income'!E27) -> . | F106: =IF('WK3 - Notional GI Yr1 YIELD'!M27=".",".",'WK3 - Notional GI Yr1 YIELD'!M27/'WK3 - Notional GI Yr1 YIELD'!E27) -> . | O106: ='WK2 - Notional General Income'!$E27 -> 0 | P106: ='WK3 - Notional GI Yr1 YIELD'!$E27 -> 0 | S106: . | T106: . | U106: . | V106: . | W106: . | X106: . | Y106: . | AA106: . | AB106: . | AC106: . | AD106: . | AE106: . | AF106: . | AG106: . | AI106: =IF(S106=".",".",SUM($S106:S106)) -> . | AJ106: =IF(T106=".",".",SUM($S106:T106)) -> . | AK106: =IF(U106=".",".",SUM($S106:U106)) -> . | AL106: =IF(V106=".",".",SUM($S106:V106)) -> . | AM106: =IF(W106=".",".",SUM($S106:W106)) -> . | AN106: =IF(X106=".",".",SUM($S106:X106)) -> . | AO106: =IF(Y106=".",".",SUM($S106:Y106)) -> . | AQ106: . | AR106: . | AS106: . | AT106: . | AU106: . | AV106: . | AW106: .
C107: Residential | D107: =IF('WK2 - Notional General Income'!D28="","",'WK2 - Notional General Income'!D28) ->  | E107: =IF('WK2 - Notional General Income'!M28=".",".",'WK2 - Notional General Income'!M28/'WK2 - Notional General Income'!E28) -> . | F107: =IF('WK3 - Notional GI Yr1 YIELD'!M28=".",".",'WK3 - Notional GI Yr1 YIELD'!M28/'WK3 - Notional GI Yr1 YIELD'!E28) -> . | O107: ='WK2 - Notional General Income'!$E28 -> 0 | P107: ='WK3 - Notional GI Yr1 YIELD'!$E28 -> 0 | S107: . | T107: . | U107: . | V107: . | W107: . | X107: . | Y107: . | AA107: . | AB107: . | AC107: . | AD107: . | AE107: . | AF107: . | AG107: . | AI107: =IF(S107=".",".",SUM($S107:S107)) -> . | AJ107: =IF(T107=".",".",SUM($S107:T107)) -> . | AK107: =IF(U107=".",".",SUM($S107:U107)) -> . | AL107: =IF(V107=".",".",SUM($S107:V107)) -> . | AM107: =IF(W107=".",".",SUM($S107:W107)) -> . | AN107: =IF(X107=".",".",SUM($S107:X107)) -> . | AO107: =IF(Y107=".",".",SUM($S107:Y107)) -> . | AQ107: . | AR107: . | AS107: . | AT107: . | AU107: . | AV107: . | AW107: .
C108: Residential | D108: =IF('WK2 - Notional General Income'!D29="","",'WK2 - Notional General Income'!D29) ->  | E108: =IF('WK2 - Notional General Income'!M29=".",".",'WK2 - Notional General Income'!M29/'WK2 - Notional General Income'!E29) -> . | F108: =IF('WK3 - Notional GI Yr1 YIELD'!M29=".",".",'WK3 - Notional GI Yr1 YIELD'!M29/'WK3 - Notional GI Yr1 YIELD'!E29) -> . | O108: ='WK2 - Notional General Income'!$E29 -> 0 | P108: ='WK3 - Notional GI Yr1 YIELD'!$E29 -> 0 | S108: . | T108: . | U108: . | V108: . | W108: . | X108: . | Y108: . | AA108: . | AB108: . | AC108: . | AD108: . | AE108: . | AF108: . | AG108: . | AI108: =IF(S108=".",".",SUM($S108:S108)) -> . | AJ108: =IF(T108=".",".",SUM($S108:T108)) -> . | AK108: =IF(U108=".",".",SUM($S108:U108)) -> . | AL108: =IF(V108=".",".",SUM($S108:V108)) -> . | AM108: =IF(W108=".",".",SUM($S108:W108)) -> . | AN108: =IF(X108=".",".",SUM($S108:X108)) -> . | AO108: =IF(Y108=".",".",SUM($S108:Y108)) -> . | AQ108: . | AR108: . | AS108: . | AT108: . | AU108: . | AV108: . | AW108: .
C109: Residential | D109: =IF('WK2 - Notional General Income'!D30="","",'WK2 - Notional General Income'!D30) ->  | E109: =IF('WK2 - Notional General Income'!M30=".",".",'WK2 - Notional General Income'!M30/'WK2 - Notional General Income'!E30) -> . | F109: =IF('WK3 - Notional GI Yr1 YIELD'!M30=".",".",'WK3 - Notional GI Yr1 YIELD'!M30/'WK3 - Notional GI Yr1 YIELD'!E30) -> . | O109: ='WK2 - Notional General Income'!$E30 -> 0 | P109: ='WK3 - Notional GI Yr1 YIELD'!$E30 -> 0 | S109: . | T109: . | U109: . | V109: . | W109: . | X109: . | Y109: . | AA109: . | AB109: . | AC109: . | AD109: . | AE109: . | AF109: . | AG109: . | AI109: =IF(S109=".",".",SUM($S109:S109)) -> . | AJ109: =IF(T109=".",".",SUM($S109:T109)) -> . | AK109: =IF(U109=".",".",SUM($S109:U109)) -> . | AL109: =IF(V109=".",".",SUM($S109:V109)) -> . | AM109: =IF(W109=".",".",SUM($S109:W109)) -> . | AN109: =IF(X109=".",".",SUM($S109:X109)) -> . | AO109: =IF(Y109=".",".",SUM($S109:Y109)) -> . | AQ109: . | AR109: . | AS109: . | AT109: . | AU109: . | AV109: . | AW109: .
C110: Residential | D110: =IF('WK2 - Notional General Income'!D31="","",'WK2 - Notional General Income'!D31) ->  | E110: =IF('WK2 - Notional General Income'!M31=".",".",'WK2 - Notional General Income'!M31/'WK2 - Notional General Income'!E31) -> . | F110: =IF('WK3 - Notional GI Yr1 YIELD'!M31=".",".",'WK3 - Notional GI Yr1 YIELD'!M31/'WK3 - Notional GI Yr1 YIELD'!E31) -> . | O110: ='WK2 - Notional General Income'!$E31 -> 0 | P110: ='WK3 - Notional GI Yr1 YIELD'!$E31 -> 0 | S110: . | T110: . | U110: . | V110: . | W110: . | X110: . | Y110: . | AA110: . | AB110: . | AC110: . | AD110: . | AE110: . | AF110: . | AG110: . | AI110: =IF(S110=".",".",SUM($S110:S110)) -> . | AJ110: =IF(T110=".",".",SUM($S110:T110)) -> . | AK110: =IF(U110=".",".",SUM($S110:U110)) -> . | AL110: =IF(V110=".",".",SUM($S110:V110)) -> . | AM110: =IF(W110=".",".",SUM($S110:W110)) -> . | AN110: =IF(X110=".",".",SUM($S110:X110)) -> . | AO110: =IF(Y110=".",".",SUM($S110:Y110)) -> . | AQ110: . | AR110: . | AS110: . | AT110: . | AU110: . | AV110: . | AW110: .
C111: Residential | D111: =IF('WK2 - Notional General Income'!D32="","",'WK2 - Notional General Income'!D32) ->  | E111: =IF('WK2 - Notional General Income'!M32=".",".",'WK2 - Notional General Income'!M32/'WK2 - Notional General Income'!E32) -> . | F111: =IF('WK3 - Notional GI Yr1 YIELD'!M32=".",".",'WK3 - Notional GI Yr1 YIELD'!M32/'WK3 - Notional GI Yr1 YIELD'!E32) -> . | O111: ='WK2 - Notional General Income'!$E32 -> 0 | P111: ='WK3 - Notional GI Yr1 YIELD'!$E32 -> 0 | S111: . | T111: . | U111: . | V111: . | W111: . | X111: . | Y111: . | AA111: =IFERROR(F111/E111-1,".") -> . | AB111: . | AC111: . | AD111: . | AE111: . | AF111: . | AG111: . | AI111: =IF(S111=".",".",SUM($S111:S111)) -> . | AJ111: =IF(T111=".",".",SUM($S111:T111)) -> . | AK111: =IF(U111=".",".",SUM($S111:U111)) -> . | AL111: =IF(V111=".",".",SUM($S111:V111)) -> . | AM111: =IF(W111=".",".",SUM($S111:W111)) -> . | AN111: =IF(X111=".",".",SUM($S111:X111)) -> . | AO111: =IF(Y111=".",".",SUM($S111:Y111)) -> . | AQ111: . | AR111: . | AS111: . | AT111: . | AU111: . | AV111: . | AW111: .
C112: Residential | D112: =IF('WK2 - Notional General Income'!D33="","",'WK2 - Notional General Income'!D33) ->  | E112: =IF('WK2 - Notional General Income'!M33=".",".",'WK2 - Notional General Income'!M33/'WK2 - Notional General Income'!E33) -> . | F112: =IF('WK3 - Notional GI Yr1 YIELD'!M33=".",".",'WK3 - Notional GI Yr1 YIELD'!M33/'WK3 - Notional GI Yr1 YIELD'!E33) -> . | O112: ='WK2 - Notional General Income'!$E33 -> 0 | P112: ='WK3 - Notional GI Yr1 YIELD'!$E33 -> 0 | S112: . | T112: . | U112: . | V112: . | W112: . | X112: . | Y112: . | AA112: . | AB112: . | AC112: . | AD112: . | AE112: . | AF112: . | AG112: . | AI112: =IF(S112=".",".",SUM($S112:S112)) -> . | AJ112: =IF(T112=".",".",SUM($S112:T112)) -> . | AK112: =IF(U112=".",".",SUM($S112:U112)) -> . | AL112: =IF(V112=".",".",SUM($S112:V112)) -> . | AM112: =IF(W112=".",".",SUM($S112:W112)) -> . | AN112: =IF(X112=".",".",SUM($S112:X112)) -> . | AO112: =IF(Y112=".",".",SUM($S112:Y112)) -> . | AQ112: . | AR112: . | AS112: . | AT112: . | AU112: . | AV112: . | AW112: .
C113: Residential | D113: =IF('WK2 - Notional General Income'!D34="","",'WK2 - Notional General Income'!D34) ->  | E113: =IF('WK2 - Notional General Income'!M34=".",".",'WK2 - Notional General Income'!M34/'WK2 - Notional General Income'!E34) -> . | F113: =IF('WK3 - Notional GI Yr1 YIELD'!M34=".",".",'WK3 - Notional GI Yr1 YIELD'!M34/'WK3 - Notional GI Yr1 YIELD'!E34) -> . | O113: ='WK2 - Notional General Income'!$E34 -> 0 | P113: ='WK3 - Notional GI Yr1 YIELD'!$E34 -> 0 | S113: . | T113: . | U113: . | V113: . | W113: . | X113: . | Y113: . | AA113: . | AB113: . | AC113: . | AD113: . | AE113: . | AF113: . | AG113: . | AI113: =IF(S113=".",".",SUM($S113:S113)) -> . | AJ113: =IF(T113=".",".",SUM($S113:T113)) -> . | AK113: =IF(U113=".",".",SUM($S113:U113)) -> . | AL113: =IF(V113=".",".",SUM($S113:V113)) -> . | AM113: =IF(W113=".",".",SUM($S113:W113)) -> . | AN113: =IF(X113=".",".",SUM($S113:X113)) -> . | AO113: =IF(Y113=".",".",SUM($S113:Y113)) -> . | AQ113: . | AR113: . | AS113: . | AT113: . | AU113: . | AV113: . | AW113: .
C114: Residential | D114: =IF('WK2 - Notional General Income'!D35="","",'WK2 - Notional General Income'!D35) ->  | E114: =IF('WK2 - Notional General Income'!M35=".",".",'WK2 - Notional General Income'!M35/'WK2 - Notional General Income'!E35) -> . | F114: =IF('WK3 - Notional GI Yr1 YIELD'!M35=".",".",'WK3 - Notional GI Yr1 YIELD'!M35/'WK3 - Notional GI Yr1 YIELD'!E35) -> . | O114: ='WK2 - Notional General Income'!$E35 -> 0 | P114: ='WK3 - Notional GI Yr1 YIELD'!$E35 -> 0 | S114: . | T114: . | U114: . | V114: . | W114: . | X114: . | Y114: . | AA114: . | AB114: . | AC114: . | AD114: . | AE114: . | AF114: . | AG114: . | AI114: =IF(S114=".",".",SUM($S114:S114)) -> . | AJ114: =IF(T114=".",".",SUM($S114:T114)) -> . | AK114: =IF(U114=".",".",SUM($S114:U114)) -> . | AL114: =IF(V114=".",".",SUM($S114:V114)) -> . | AM114: =IF(W114=".",".",SUM($S114:W114)) -> . | AN114: =IF(X114=".",".",SUM($S114:X114)) -> . | AO114: =IF(Y114=".",".",SUM($S114:Y114)) -> . | AQ114: . | AR114: . | AS114: . | AT114: . | AU114: . | AV114: . | AW114: .
C115: Residential | D115: =IF('WK2 - Notional General Income'!D36="","",'WK2 - Notional General Income'!D36) ->  | E115: =IF('WK2 - Notional General Income'!M36=".",".",'WK2 - Notional General Income'!M36/'WK2 - Notional General Income'!E36) -> . | F115: =IF('WK3 - Notional GI Yr1 YIELD'!M36=".",".",'WK3 - Notional GI Yr1 YIELD'!M36/'WK3 - Notional GI Yr1 YIELD'!E36) -> . | O115: ='WK2 - Notional General Income'!$E36 -> 0 | P115: ='WK3 - Notional GI Yr1 YIELD'!$E36 -> 0 | S115: . | T115: . | U115: . | V115: . | W115: . | X115: . | Y115: . | AA115: . | AB115: . | AC115: . | AD115: . | AE115: . | AF115: . | AG115: . | AI115: =IF(S115=".",".",SUM($S115:S115)) -> . | AJ115: =IF(T115=".",".",SUM($S115:T115)) -> . | AK115: =IF(U115=".",".",SUM($S115:U115)) -> . | AL115: =IF(V115=".",".",SUM($S115:V115)) -> . | AM115: =IF(W115=".",".",SUM($S115:W115)) -> . | AN115: =IF(X115=".",".",SUM($S115:X115)) -> . | AO115: =IF(Y115=".",".",SUM($S115:Y115)) -> . | AQ115: . | AR115: . | AS115: . | AT115: . | AU115: . | AV115: . | AW115: .
C116: Residential | D116: =IF('WK2 - Notional General Income'!D37="","",'WK2 - Notional General Income'!D37) ->  | E116: =IF('WK2 - Notional General Income'!M37=".",".",'WK2 - Notional General Income'!M37/'WK2 - Notional General Income'!E37) -> . | F116: =IF('WK3 - Notional GI Yr1 YIELD'!M37=".",".",'WK3 - Notional GI Yr1 YIELD'!M37/'WK3 - Notional GI Yr1 YIELD'!E37) -> . | O116: ='WK2 - Notional General Income'!$E37 -> 0 | P116: ='WK3 - Notional GI Yr1 YIELD'!$E37 -> 0 | S116: . | T116: . | U116: . | V116: . | W116: . | X116: . | Y116: . | AA116: . | AB116: . | AC116: . | AD116: . | AE116: . | AF116: . | AG116: . | AI116: =IF(S116=".",".",SUM($S116:S116)) -> . | AJ116: =IF(T116=".",".",SUM($S116:T116)) -> . | AK116: =IF(U116=".",".",SUM($S116:U116)) -> . | AL116: =IF(V116=".",".",SUM($S116:V116)) -> . | AM116: =IF(W116=".",".",SUM($S116:W116)) -> . | AN116: =IF(X116=".",".",SUM($S116:X116)) -> . | AO116: =IF(Y116=".",".",SUM($S116:Y116)) -> . | AQ116: . | AR116: . | AS116: . | AT116: . | AU116: . | AV116: . | AW116: .
C117: Residential | D117: =IF('WK2 - Notional General Income'!D38="","",'WK2 - Notional General Income'!D38) ->  | E117: =IF('WK2 - Notional General Income'!M38=".",".",'WK2 - Notional General Income'!M38/'WK2 - Notional General Income'!E38) -> . | F117: =IF('WK3 - Notional GI Yr1 YIELD'!M38=".",".",'WK3 - Notional GI Yr1 YIELD'!M38/'WK3 - Notional GI Yr1 YIELD'!E38) -> . | O117: ='WK2 - Notional General Income'!$E38 -> 0 | P117: ='WK3 - Notional GI Yr1 YIELD'!$E38 -> 0 | S117: . | T117: . | U117: . | V117: . | W117: . | X117: . | Y117: . | AA117: . | AB117: . | AC117: . | AD117: . | AE117: . | AF117: . | AG117: . | AI117: =IF(S117=".",".",SUM($S117:S117)) -> . | AJ117: =IF(T117=".",".",SUM($S117:T117)) -> . | AK117: =IF(U117=".",".",SUM($S117:U117)) -> . | AL117: =IF(V117=".",".",SUM($S117:V117)) -> . | AM117: =IF(W117=".",".",SUM($S117:W117)) -> . | AN117: =IF(X117=".",".",SUM($S117:X117)) -> . | AO117: =IF(Y117=".",".",SUM($S117:Y117)) -> . | AQ117: . | AR117: . | AS117: . | AT117: . | AU117: . | AV117: . | AW117: .
C118: Special rate | D118: =IF('WK2 - Notional General Income'!D94="","",'WK2 - Notional General Income'!D94) ->  | E118: =IF('WK2 - Notional General Income'!M94=".",".",'WK2 - Notional General Income'!M94/'WK2 - Notional General Income'!E94) -> . | F118: =IF('WK3 - Notional GI Yr1 YIELD'!M94=".",".",'WK3 - Notional GI Yr1 YIELD'!M94/'WK3 - Notional GI Yr1 YIELD'!E94) -> . | O118: ='WK2 - Notional General Income'!$E94 -> 0 | P118: ='WK3 - Notional GI Yr1 YIELD'!$E94 -> 0 | S118: . | T118: . | U118: . | V118: . | W118: . | X118: . | Y118: . | AA118: . | AB118: . | AC118: . | AD118: . | AE118: . | AF118: . | AG118: . | AI118: =IF(S118=".",".",SUM($S118:S118)) -> . | AJ118: =IF(T118=".",".",SUM($S118:T118)) -> . | AK118: =IF(U118=".",".",SUM($S118:U118)) -> . | AL118: =IF(V118=".",".",SUM($S118:V118)) -> . | AM118: =IF(W118=".",".",SUM($S118:W118)) -> . | AN118: =IF(X118=".",".",SUM($S118:X118)) -> . | AO118: =IF(Y118=".",".",SUM($S118:Y118)) -> . | AQ118: . | AR118: . | AS118: . | AT118: . | AU118: . | AV118: . | AW118: .
C119: Special rate | D119: =IF('WK2 - Notional General Income'!D95="","",'WK2 - Notional General Income'!D95) ->  | E119: =IF('WK2 - Notional General Income'!M95=".",".",'WK2 - Notional General Income'!M95/'WK2 - Notional General Income'!E95) -> . | F119: =IF('WK3 - Notional GI Yr1 YIELD'!M95=".",".",'WK3 - Notional GI Yr1 YIELD'!M95/'WK3 - Notional GI Yr1 YIELD'!E95) -> . | O119: ='WK2 - Notional General Income'!$E95 -> 0 | P119: ='WK3 - Notional GI Yr1 YIELD'!$E95 -> 0 | S119: . | T119: . | U119: . | V119: . | W119: . | X119: . | Y119: . | AA119: . | AB119: . | AC119: . | AD119: . | AE119: . | AF119: . | AG119: . | AI119: =IF(S119=".",".",SUM($S119:S119)) -> . | AJ119: =IF(T119=".",".",SUM($S119:T119)) -> . | AK119: =IF(U119=".",".",SUM($S119:U119)) -> . | AL119: =IF(V119=".",".",SUM($S119:V119)) -> . | AM119: =IF(W119=".",".",SUM($S119:W119)) -> . | AN119: =IF(X119=".",".",SUM($S119:X119)) -> . | AO119: =IF(Y119=".",".",SUM($S119:Y119)) -> . | AQ119: . | AR119: . | AS119: . | AT119: . | AU119: . | AV119: . | AW119: .
C120: Special rate | D120: =IF('WK2 - Notional General Income'!D96="","",'WK2 - Notional General Income'!D96) ->  | E120: =IF('WK2 - Notional General Income'!M96=".",".",'WK2 - Notional General Income'!M96/'WK2 - Notional General Income'!E96) -> . | F120: =IF('WK3 - Notional GI Yr1 YIELD'!M96=".",".",'WK3 - Notional GI Yr1 YIELD'!M96/'WK3 - Notional GI Yr1 YIELD'!E96) -> . | O120: ='WK2 - Notional General Income'!$E96 -> 0 | P120: ='WK3 - Notional GI Yr1 YIELD'!$E96 -> 0 | S120: . | T120: . | U120: . | V120: . | W120: . | X120: . | Y120: . | AA120: . | AB120: . | AC120: . | AD120: . | AE120: . | AF120: . | AG120: . | AI120: =IF(S120=".",".",SUM($S120:S120)) -> . | AJ120: =IF(T120=".",".",SUM($S120:T120)) -> . | AK120: =IF(U120=".",".",SUM($S120:U120)) -> . | AL120: =IF(V120=".",".",SUM($S120:V120)) -> . | AM120: =IF(W120=".",".",SUM($S120:W120)) -> . | AN120: =IF(X120=".",".",SUM($S120:X120)) -> . | AO120: =IF(Y120=".",".",SUM($S120:Y120)) -> . | AQ120: . | AR120: . | AS120: . | AT120: . | AU120: . | AV120: . | AW120: .
C121: Special rate | D121: =IF('WK2 - Notional General Income'!D97="","",'WK2 - Notional General Income'!D97) ->  | E121: =IF('WK2 - Notional General Income'!M97=".",".",'WK2 - Notional General Income'!M97/'WK2 - Notional General Income'!E97) -> . | F121: =IF('WK3 - Notional GI Yr1 YIELD'!M97=".",".",'WK3 - Notional GI Yr1 YIELD'!M97/'WK3 - Notional GI Yr1 YIELD'!E97) -> . | O121: ='WK2 - Notional General Income'!$E97 -> 0 | P121: ='WK3 - Notional GI Yr1 YIELD'!$E97 -> 0 | S121: . | T121: . | U121: . | V121: . | W121: . | X121: . | Y121: . | AA121: . | AB121: . | AC121: . | AD121: . | AE121: . | AF121: . | AG121: . | AI121: =IF(S121=".",".",SUM($S121:S121)) -> . | AJ121: =IF(T121=".",".",SUM($S121:T121)) -> . | AK121: =IF(U121=".",".",SUM($S121:U121)) -> . | AL121: =IF(V121=".",".",SUM($S121:V121)) -> . | AM121: =IF(W121=".",".",SUM($S121:W121)) -> . | AN121: =IF(X121=".",".",SUM($S121:X121)) -> . | AO121: =IF(Y121=".",".",SUM($S121:Y121)) -> . | AQ121: . | AR121: . | AS121: . | AT121: . | AU121: . | AV121: . | AW121: .
C122: Special rate | D122: =IF('WK2 - Notional General Income'!D98="","",'WK2 - Notional General Income'!D98) ->  | E122: =IF('WK2 - Notional General Income'!M98=".",".",'WK2 - Notional General Income'!M98/'WK2 - Notional General Income'!E98) -> . | F122: =IF('WK3 - Notional GI Yr1 YIELD'!M98=".",".",'WK3 - Notional GI Yr1 YIELD'!M98/'WK3 - Notional GI Yr1 YIELD'!E98) -> . | O122: ='WK2 - Notional General Income'!$E98 -> 0 | P122: ='WK3 - Notional GI Yr1 YIELD'!$E98 -> 0 | S122: . | T122: . | U122: . | V122: . | W122: . | X122: . | Y122: . | AA122: . | AB122: . | AC122: . | AD122: . | AE122: . | AF122: . | AG122: . | AI122: =IF(S122=".",".",SUM($S122:S122)) -> . | AJ122: =IF(T122=".",".",SUM($S122:T122)) -> . | AK122: =IF(U122=".",".",SUM($S122:U122)) -> . | AL122: =IF(V122=".",".",SUM($S122:V122)) -> . | AM122: =IF(W122=".",".",SUM($S122:W122)) -> . | AN122: =IF(X122=".",".",SUM($S122:X122)) -> . | AO122: =IF(Y122=".",".",SUM($S122:Y122)) -> . | AQ122: . | AR122: . | AS122: . | AT122: . | AU122: . | AV122: . | AW122: .
C123: Special rate | D123: =IF('WK2 - Notional General Income'!D99="","",'WK2 - Notional General Income'!D99) ->  | E123: =IF('WK2 - Notional General Income'!M99=".",".",'WK2 - Notional General Income'!M99/'WK2 - Notional General Income'!E99) -> . | F123: =IF('WK3 - Notional GI Yr1 YIELD'!M99=".",".",'WK3 - Notional GI Yr1 YIELD'!M99/'WK3 - Notional GI Yr1 YIELD'!E99) -> . | O123: ='WK2 - Notional General Income'!$E99 -> 0 | P123: ='WK3 - Notional GI Yr1 YIELD'!$E99 -> 0 | S123: . | T123: . | U123: . | V123: . | W123: . | X123: . | Y123: . | AA123: . | AB123: . | AC123: . | AD123: . | AE123: . | AF123: . | AG123: . | AI123: =IF(S123=".",".",SUM($S123:S123)) -> . | AJ123: =IF(T123=".",".",SUM($S123:T123)) -> . | AK123: =IF(U123=".",".",SUM($S123:U123)) -> . | AL123: =IF(V123=".",".",SUM($S123:V123)) -> . | AM123: =IF(W123=".",".",SUM($S123:W123)) -> . | AN123: =IF(X123=".",".",SUM($S123:X123)) -> . | AO123: =IF(Y123=".",".",SUM($S123:Y123)) -> . | AQ123: . | AR123: . | AS123: . | AT123: . | AU123: . | AV123: . | AW123: .
C124: Special rate | D124: =IF('WK2 - Notional General Income'!D100="","",'WK2 - Notional General Income'!D100) ->  | E124: =IF('WK2 - Notional General Income'!M100=".",".",'WK2 - Notional General Income'!M100/'WK2 - Notional General Income'!E100) -> . | F124: =IF('WK3 - Notional GI Yr1 YIELD'!M100=".",".",'WK3 - Notional GI Yr1 YIELD'!M100/'WK3 - Notional GI Yr1 YIELD'!E100) -> . | O124: ='WK2 - Notional General Income'!$E100 -> 0 | P124: ='WK3 - Notional GI Yr1 YIELD'!$E100 -> 0 | S124: . | T124: . | U124: . | V124: . | W124: . | X124: . | Y124: . | AA124: . | AB124: . | AC124: . | AD124: . | AE124: . | AF124: . | AG124: . | AI124: =IF(S124=".",".",SUM($S124:S124)) -> . | AJ124: =IF(T124=".",".",SUM($S124:T124)) -> . | AK124: =IF(U124=".",".",SUM($S124:U124)) -> . | AL124: =IF(V124=".",".",SUM($S124:V124)) -> . | AM124: =IF(W124=".",".",SUM($S124:W124)) -> . | AN124: =IF(X124=".",".",SUM($S124:X124)) -> . | AO124: =IF(Y124=".",".",SUM($S124:Y124)) -> . | AQ124: . | AR124: . | AS124: . | AT124: . | AU124: . | AV124: . | AW124: .
C125: Special rate | D125: =IF('WK2 - Notional General Income'!D101="","",'WK2 - Notional General Income'!D101) ->  | E125: =IF('WK2 - Notional General Income'!M101=".",".",'WK2 - Notional General Income'!M101/'WK2 - Notional General Income'!E101) -> . | F125: =IF('WK3 - Notional GI Yr1 YIELD'!M101=".",".",'WK3 - Notional GI Yr1 YIELD'!M101/'WK3 - Notional GI Yr1 YIELD'!E101) -> . | O125: ='WK2 - Notional General Income'!$E101 -> 0 | P125: ='WK3 - Notional GI Yr1 YIELD'!$E101 -> 0 | S125: . | T125: . | U125: . | V125: . | W125: . | X125: . | Y125: . | AA125: . | AB125: . | AC125: . | AD125: . | AE125: . | AF125: . | AG125: . | AI125: =IF(S125=".",".",SUM($S125:S125)) -> . | AJ125: =IF(T125=".",".",SUM($S125:T125)) -> . | AK125: =IF(U125=".",".",SUM($S125:U125)) -> . | AL125: =IF(V125=".",".",SUM($S125:V125)) -> . | AM125: =IF(W125=".",".",SUM($S125:W125)) -> . | AN125: =IF(X125=".",".",SUM($S125:X125)) -> . | AO125: =IF(Y125=".",".",SUM($S125:Y125)) -> . | AQ125: . | AR125: . | AS125: . | AT125: . | AU125: . | AV125: . | AW125: .
C126: Special rate | D126: =IF('WK2 - Notional General Income'!D102="","",'WK2 - Notional General Income'!D102) ->  | E126: =IF('WK2 - Notional General Income'!M102=".",".",'WK2 - Notional General Income'!M102/'WK2 - Notional General Income'!E102) -> . | F126: =IF('WK3 - Notional GI Yr1 YIELD'!M102=".",".",'WK3 - Notional GI Yr1 YIELD'!M102/'WK3 - Notional GI Yr1 YIELD'!E102) -> . | O126: ='WK2 - Notional General Income'!$E102 -> 0 | P126: ='WK3 - Notional GI Yr1 YIELD'!$E102 -> 0 | S126: . | T126: . | U126: . | V126: . | W126: . | X126: . | Y126: . | AA126: . | AB126: . | AC126: . | AD126: . | AE126: . | AF126: . | AG126: . | AI126: =IF(S126=".",".",SUM($S126:S126)) -> . | AJ126: =IF(T126=".",".",SUM($S126:T126)) -> . | AK126: =IF(U126=".",".",SUM($S126:U126)) -> . | AL126: =IF(V126=".",".",SUM($S126:V126)) -> . | AM126: =IF(W126=".",".",SUM($S126:W126)) -> . | AN126: =IF(X126=".",".",SUM($S126:X126)) -> . | AO126: =IF(Y126=".",".",SUM($S126:Y126)) -> . | AQ126: . | AR126: . | AS126: . | AT126: . | AU126: . | AV126: . | AW126: .
C127: Special rate | D127: =IF('WK2 - Notional General Income'!D103="","",'WK2 - Notional General Income'!D103) ->  | E127: =IF('WK2 - Notional General Income'!M103=".",".",'WK2 - Notional General Income'!M103/'WK2 - Notional General Income'!E103) -> . | F127: =IF('WK3 - Notional GI Yr1 YIELD'!M103=".",".",'WK3 - Notional GI Yr1 YIELD'!M103/'WK3 - Notional GI Yr1 YIELD'!E103) -> . | O127: ='WK2 - Notional General Income'!$E103 -> 0 | P127: ='WK3 - Notional GI Yr1 YIELD'!$E103 -> 0 | S127: . | T127: . | U127: . | V127: . | W127: . | X127: . | Y127: . | AA127: . | AB127: . | AC127: . | AD127: . | AE127: . | AF127: . | AG127: . | AI127: =IF(S127=".",".",SUM($S127:S127)) -> . | AJ127: =IF(T127=".",".",SUM($S127:T127)) -> . | AK127: =IF(U127=".",".",SUM($S127:U127)) -> . | AL127: =IF(V127=".",".",SUM($S127:V127)) -> . | AM127: =IF(W127=".",".",SUM($S127:W127)) -> . | AN127: =IF(X127=".",".",SUM($S127:X127)) -> . | AO127: =IF(Y127=".",".",SUM($S127:Y127)) -> . | AQ127: . | AR127: . | AS127: . | AT127: . | AU127: . | AV127: . | AW127: .
D128: TOTAL AVERAGE | E128: =IF($O128=0,".",SUMPRODUCT(E98:E127,$O98:$O127)/$O128) -> 1266.167446 | F128: =IF($P128=0,".",SUMPRODUCT(F98:F127,$P98:$P127)/$P128) -> 1494.090744 | G128: 1763.012307 | H128: 2080.349463 | I128: 2132.3582 | J128: 2185.667155 | K128: 2240.308834 | L128: 2296.316554 | O128: =SUM(O98:O117) -> 26184 | P128: =SUM(P98:P117) -> 26184 | S128: 227.9232985 | T128: 268.9215629 | U128: =IF(H128=".",".",H128-G128) -> 317.3371559 | V128: 52.00873658 | W128: 53.30895499 | X128: 54.64167887 | Y128: 56.00772084 | AA128: 0.1800103922 | AB128: 0.1799901137 | AC128: 0.1799971302 | AD128: 0.025 | AE128: 0.025 | AF128: 0.025 | AG128: 0.025 | AI128: =IF(S128=".",".",SUM($S128:S128)) -> 227.9232985 | AJ128: =IF(T128=".",".",SUM($S128:T128)) -> 496.8448614 | AK128: =IF(U128=".",".",SUM($S128:U128)) -> 814.1820173 | AL128: =IF(V128=".",".",SUM($S128:V128)) -> 866.1907538 | AM128: =IF(W128=".",".",SUM($S128:W128)) -> 919.4997088 | AN128: =IF(X128=".",".",SUM($S128:X128)) -> 974.1413877 | AO128: =IF(Y128=".",".",SUM($S128:Y128)) -> 1030.149109 | AQ128: 0.1800103922 | AR128: 0.3924005968 | AS128: 0.6430287083 | AT128: 0.684104426 | AU128: 0.7262070367 | AV128: 0.7693622126 | AW128: 0.8135962679
C129: Business | D129: =IF('WK2 - Notional General Income'!D40="","",'WK2 - Notional General Income'!D40) -> General | E129: =IF('WK2 - Notional General Income'!M40=".",".",'WK2 - Notional General Income'!M40/'WK2 - Notional General Income'!E40) -> 1011.75539 | F129: =IF('WK3 - Notional GI Yr1 YIELD'!M40=".",".",'WK3 - Notional GI Yr1 YIELD'!M40/'WK3 - Notional GI Yr1 YIELD'!E40) -> 1193.859454 | G129: 1408.786265 | H129: 1662.361578 | I129: =H129*1.025 -> 1703.920618 | J129: =I129*1.025 -> 1746.518633 | K129: 1790.181599 | L129: 1834.936139 | O129: ='WK2 - Notional General Income'!$E40 -> 257 | P129: ='WK3 - Notional GI Yr1 YIELD'!$E40 -> 257 | S129: 182.1040634 | T129: 214.9268118 | U129: 253.5753131 | V129: 41.55903946 | W129: 42.59801545 | X129: 43.66296584 | Y129: 44.75453998 | AA129: =IFERROR(F129/E129-1,".") -> 0.1799882315 | AB129: 0.1800268961 | AC129: =IFERROR(H129/G129-1,".") -> 0.1799955886 | AD129: 0.025 | AE129: 0.025 | AF129: 0.025 | AG129: 0.025 | AI129: =IF(S129=".",".",SUM($S129:S129)) -> 182.1040634 | AJ129: =IF(T129=".",".",SUM($S129:T129)) -> 397.0308752 | AK129: =IF(U129=".",".",SUM($S129:U129)) -> 650.6061883 | AL129: =IF(V129=".",".",SUM($S129:V129)) -> 692.1652277 | AM129: =IF(W129=".",".",SUM($S129:W129)) -> 734.7632432 | AN129: =IF(X129=".",".",SUM($S129:X129)) -> 778.426209 | AO129: =IF(Y129=".",".",SUM($S129:Y129)) -> 823.180749 | AQ129: 0.1799882315 | AR129: 0.3924178502 | AS129: 0.6430469208 | AT129: 0.6841230938 | AU129: 0.7262261712 | AV129: 0.7693818254 | AW129: 0.8136163711
C130: Business | D130: =IF('WK2 - Notional General Income'!D41="","",'WK2 - Notional General Income'!D41) -> CBD - Queanbeyan | E130: =IF('WK2 - Notional General Income'!M41=".",".",'WK2 - Notional General Income'!M41/'WK2 - Notional General Income'!E41) -> 11557.82845 | F130: =IF('WK3 - Notional GI Yr1 YIELD'!M41=".",".",'WK3 - Notional GI Yr1 YIELD'!M41/'WK3 - Notional GI Yr1 YIELD'!E41) -> 14777.52325 | G130: 17437.54385 | H130: 20576.30624 | I130: =H130*1.025 -> 21090.71389 | J130: 21617.98174 | K130: 22158.43129 | L130: 22712.39207 | O130: ='WK2 - Notional General Income'!$E41 -> 145 | P130: ='WK3 - Notional GI Yr1 YIELD'!$E41 -> 145 | S130: 3219.694802 | T130: 2660.020604 | U130: =IF(H130="",".",H130-G130) -> 3138.762385 | V130: =IF(I130="",".",I130-H130) -> 514.407656 | W130: =IF(J130="",".",J130-I130) -> 527.2678474 | X130: =IF(K130="",".",K130-J130) -> 540.4495436 | Y130: =IF(L130="",".",L130-K130) -> 553.9607821 | AA130: 0.2785726416 | AB130: 0.1800044946 | AC130: 0.1800002575 | AD130: 0.025 | AE130: 0.025 | AF130: 0.025 | AG130: 0.025 | AI130: =IF(S130=".",".",SUM($S130:S130)) -> 3219.694802 | AJ130: =IF(T130=".",".",SUM($S130:T130)) -> 5879.715406 | AK130: =IF(U130=".",".",SUM($S130:U130)) -> 9018.477791 | AL130: =IF(V130=".",".",SUM($S130:V130)) -> 9532.885447 | AM130: =IF(W130=".",".",SUM($S130:W130)) -> 10060.15329 | AN130: =IF(X130=".",".",SUM($S130:X130)) -> 10600.60284 | AO130: =IF(Y130=".",".",SUM($S130:Y130)) -> 11154.56362 | AQ130: 0.2785726416 | AR130: 0.5087214638 | AS130: 0.7802917158 | AT130: 0.8247990087 | AU130: 0.8704189839 | AV130: 0.9171794585 | AW130: 0.965108945
C131: Business | D131: =IF('WK2 - Notional General Income'!D42="","",'WK2 - Notional General Income'!D42) -> Googong | E131: =IF('WK2 - Notional General Income'!M42=".",".",'WK2 - Notional General Income'!M42/'WK2 - Notional General Income'!E42) -> 6526.113745 | F131: =IF('WK3 - Notional GI Yr1 YIELD'!M42=".",".",'WK3 - Notional GI Yr1 YIELD'!M42/'WK3 - Notional GI Yr1 YIELD'!E42) -> 6820.376087 | G131: 8048.345882 | H131: 9497.06147 | I131: =H131*1.025 -> 9734.488007 | J131: 9977.850207 | K131: 10227.29646 | L131: 10482.97887 | O131: ='WK2 - Notional General Income'!$E42 -> 33 | P131: ='WK3 - Notional GI Yr1 YIELD'!$E42 -> 33 | S131: 294.2623428 | T131: 1227.969795 | U131: 1448.715588 | V131: 237.4265367 | W131: 243.3622002 | X131: 249.4462552 | Y131: 255.6824115 | AA131: 0.0450899807 | AB131: 0.1800442936 | AC131: 0.1800016561 | AD131: 0.025 | AE131: 0.025 | AF131: 0.025 | AG131: 0.025 | AI131: =IF(S131=".",".",SUM($S131:S131)) -> 294.2623428 | AJ131: =IF(T131=".",".",SUM($S131:T131)) -> 1522.232138 | AK131: =IF(U131=".",".",SUM($S131:U131)) -> 2970.947725 | AL131: =IF(V131=".",".",SUM($S131:V131)) -> 3208.374262 | AM131: =IF(W131=".",".",SUM($S131:W131)) -> 3451.736462 | AN131: =IF(X131=".",".",SUM($S131:X131)) -> 3701.182717 | AO131: =IF(Y131=".",".",SUM($S131:Y131)) -> 3956.865129 | AQ131: 0.0450899807 | AR131: 0.2332524681 | AS131: 0.4552399547 | AT131: 0.4916209535 | AU131: 0.5289114774 | AV131: 0.5671342643 | AW131: 0.6063126209
C132: Business | D132: =IF('WK2 - Notional General Income'!D43="","",'WK2 - Notional General Income'!D43) -> Poplars Business Park | E132: =IF('WK2 - Notional General Income'!M43=".",".",'WK2 - Notional General Income'!M43/'WK2 - Notional General Income'!E43) -> 48584.66139 | F132: =IF('WK3 - Notional GI Yr1 YIELD'!M43=".",".",'WK3 - Notional GI Yr1 YIELD'!M43/'WK3 - Notional GI Yr1 YIELD'!E43) -> 34638.26287 | G132: 40872.62835 | H132: 48229.68389 | I132: =H132*1.025 -> 49435.42599 | J132: 50671.31164 | K132: 51938.09443 | L132: 53236.54679 | O132: ='WK2 - Notional General Income'!$E43 -> 6 | P132: ='WK3 - Notional GI Yr1 YIELD'!$E43 -> 6 | S132: -13946.39852 | T132: 6234.365487 | U132: 7357.055535 | V132: 1205.742097 | W132: 1235.88565 | X132: 1266.782791 | Y132: 1298.452361 | AA132: -0.2870535293 | AB132: 0.1799849349 | AC132: 0.1799995702 | AD132: 0.025 | AE132: 0.025 | AF132: 0.025 | AG132: 0.025 | AI132: =IF(S132=".",".",SUM($S132:S132)) -> -13946.39852 | AJ132: =IF(T132=".",".",SUM($S132:T132)) -> -7712.033035 | AK132: =IF(U132=".",".",SUM($S132:U132)) -> -354.9775 | AL132: =IF(V132=".",".",SUM($S132:V132)) -> 850.7645972 | AM132: =IF(W132=".",".",SUM($S132:W132)) -> 2086.650247 | AN132: =IF(X132=".",".",SUM($S132:X132)) -> 3353.433038 | AO132: =IF(Y132=".",".",SUM($S132:Y132)) -> 4651.885398 | AQ132: -0.2870535293 | AR132: -0.1587339052 | AS132: -0.007306369744 | AT132: 0.01751097101 | AU132: 0.04294874529 | AV132: 0.06902246392 | AW132: 0.09574802552
C133: Business | D133: =IF('WK2 - Notional General Income'!D44="","",'WK2 - Notional General Income'!D44) -> Queanbeyan urban | E133: =IF('WK2 - Notional General Income'!M44=".",".",'WK2 - Notional General Income'!M44/'WK2 - Notional General Income'!E44) -> 10100.97941 | F133: =IF('WK3 - Notional GI Yr1 YIELD'!M44=".",".",'WK3 - Notional GI Yr1 YIELD'!M44/'WK3 - Notional GI Yr1 YIELD'!E44) -> 11919.11982 | G133: 14064.61646 | H133: 16596.25755 | I133: =H133*1.025 -> 17011.16399 | J133: 17436.44309 | K133: 17872.35417 | L133: 18319.16302 | O133: ='WK2 - Notional General Income'!$E44 -> 124 | P133: ='WK3 - Notional GI Yr1 YIELD'!$E44 -> 124 | S133: 1818.140418 | T133: 2145.496634 | U133: 2531.641093 | V133: 414.9064388 | W133: 425.2790998 | X133: 435.9110772 | Y133: 446.8088542 | AA133: 0.1799964483 | AB133: 0.1800046199 | AC133: 0.1800007203 | AD133: 0.025 | AE133: 0.025 | AF133: 0.025 | AG133: 0.025 | AI133: =IF(S133=".",".",SUM($S133:S133)) -> 1818.140418 | AJ133: =IF(T133=".",".",SUM($S133:T133)) -> 3963.637052 | AK133: =IF(U133=".",".",SUM($S133:U133)) -> 6495.278144 | AL133: =IF(V133=".",".",SUM($S133:V133)) -> 6910.184583 | AM133: =IF(W133=".",".",SUM($S133:W133)) -> 7335.463683 | AN133: =IF(X133=".",".",SUM($S133:X133)) -> 7771.37476 | AO133: =IF(Y133=".",".",SUM($S133:Y133)) -> 8218.183614 | AQ133: 0.1799964483 | AR133: 0.3924012605 | AS133: 0.6430344903 | AT133: 0.6841103526 | AU133: 0.7262131114 | AV133: 0.7693684392 | AW133: 0.8136026501
C134: Business | D134: =IF('WK2 - Notional General Income'!D45="","",'WK2 - Notional General Income'!D45) -> Industrial | E134: =IF('WK2 - Notional General Income'!M45=".",".",'WK2 - Notional General Income'!M45/'WK2 - Notional General Income'!E45) -> 4046.94366 | F134: =IF('WK3 - Notional GI Yr1 YIELD'!M45=".",".",'WK3 - Notional GI Yr1 YIELD'!M45/'WK3 - Notional GI Yr1 YIELD'!E45) -> 4775.379788 | G134: 5634.947295 | H134: 6649.229949 | I134: =H134*1.025 -> 6815.460697 | J134: 6985.847215 | K134: 7160.493395 | L134: 7339.50573 | O134: ='WK2 - Notional General Income'!$E45 -> 792 | P134: ='WK3 - Notional GI Yr1 YIELD'!$E45 -> 792 | S134: 728.4361289 | T134: 859.5675065 | U134: 1014.282654 | V134: 166.2307487 | W134: 170.3865174 | X134: 174.6461804 | Y134: 179.0123349 | AA134: 0.1799966074 | AB134: 0.1799998209 | AC134: 0.1799986053 | AD134: 0.025 | AE134: 0.025 | AF134: 0.025 | AG134: 0.025 | AI134: =IF(S134=".",".",SUM($S134:S134)) -> 728.4361289 | AJ134: =IF(T134=".",".",SUM($S134:T134)) -> 1588.003635 | AK134: =IF(U134=".",".",SUM($S134:U134)) -> 2602.286289 | AL134: =IF(V134=".",".",SUM($S134:V134)) -> 2768.517038 | AM134: =IF(W134=".",".",SUM($S134:W134)) -> 2938.903555 | AN134: =IF(X134=".",".",SUM($S134:X134)) -> 3113.549736 | AO134: =IF(Y134=".",".",SUM($S134:Y134)) -> 3292.562071 | AQ134: 0.1799966074 | AR134: 0.3923957853 | AS134: 0.6430250846 | AT134: 0.6841007117 | AU134: 0.7262032295 | AV134: 0.7693583103 | AW134: 0.813592268
C135: Business | D135: =IF('WK2 - Notional General Income'!D46="","",'WK2 - Notional General Income'!D46) ->  | E135: =IF('WK2 - Notional General Income'!M46=".",".",'WK2 - Notional General Income'!M46/'WK2 - Notional General Income'!E46) -> . | F135: =IF('WK3 - Notional GI Yr1 YIELD'!M46=".",".",'WK3 - Notional GI Yr1 YIELD'!M46/'WK3 - Notional GI Yr1 YIELD'!E46) -> . | O135: ='WK2 - Notional General Income'!$E46 -> 0 | P135: ='WK3 - Notional GI Yr1 YIELD'!$E46 -> 0 | S135: . | T135: . | U135: . | V135: . | W135: . | X135: . | Y135: . | AA135: . | AB135: . | AC135: . | AD135: . | AE135: . | AF135: . | AG135: . | AI135: =IF(S135=".",".",SUM($S135:S135)) -> . | AJ135: =IF(T135=".",".",SUM($S135:T135)) -> . | AK135: =IF(U135=".",".",SUM($S135:U135)) -> . | AL135: =IF(V135=".",".",SUM($S135:V135)) -> . | AM135: =IF(W135=".",".",SUM($S135:W135)) -> . | AN135: =IF(X135=".",".",SUM($S135:X135)) -> . | AO135: =IF(Y135=".",".",SUM($S135:Y135)) -> . | AQ135: . | AR135: . | AS135: . | AT135: . | AU135: . | AV135: . | AW135: .
C136: Business | D136: =IF('WK2 - Notional General Income'!D47="","",'WK2 - Notional General Income'!D47) ->  | E136: =IF('WK2 - Notional General Income'!M47=".",".",'WK2 - Notional General Income'!M47/'WK2 - Notional General Income'!E47) -> . | F136: =IF('WK3 - Notional GI Yr1 YIELD'!M47=".",".",'WK3 - Notional GI Yr1 YIELD'!M47/'WK3 - Notional GI Yr1 YIELD'!E47) -> . | O136: ='WK2 - Notional General Income'!$E47 -> 0 | P136: ='WK3 - Notional GI Yr1 YIELD'!$E47 -> 0 | S136: . | T136: . | U136: . | V136: . | W136: . | X136: . | Y136: . | AA136: . | AB136: . | AC136: . | AD136: . | AE136: . | AF136: . | AG136: . | AI136: =IF(S136=".",".",SUM($S136:S136)) -> . | AJ136: =IF(T136=".",".",SUM($S136:T136)) -> . | AK136: =IF(U136=".",".",SUM($S136:U136)) -> . | AL136: =IF(V136=".",".",SUM($S136:V136)) -> . | AM136: =IF(W136=".",".",SUM($S136:W136)) -> . | AN136: =IF(X136=".",".",SUM($S136:X136)) -> . | AO136: =IF(Y136=".",".",SUM($S136:Y136)) -> . | AQ136: . | AR136: . | AS136: . | AT136: . | AU136: . | AV136: . | AW136: .
C137: Business | D137: =IF('WK2 - Notional General Income'!D48="","",'WK2 - Notional General Income'!D48) ->  | E137: =IF('WK2 - Notional General Income'!M48=".",".",'WK2 - Notional General Income'!M48/'WK2 - Notional General Income'!E48) -> . | F137: =IF('WK3 - Notional GI Yr1 YIELD'!M48=".",".",'WK3 - Notional GI Yr1 YIELD'!M48/'WK3 - Notional GI Yr1 YIELD'!E48) -> . | O137: ='WK2 - Notional General Income'!$E48 -> 0 | P137: ='WK3 - Notional GI Yr1 YIELD'!$E48 -> 0 | S137: . | T137: . | U137: . | V137: . | W137: . | X137: . | Y137: . | AA137: . | AB137: . | AC137: . | AD137: . | AE137: . | AF137: . | AG137: . | AI137: =IF(S137=".",".",SUM($S137:S137)) -> . | AJ137: =IF(T137=".",".",SUM($S137:T137)) -> . | AK137: =IF(U137=".",".",SUM($S137:U137)) -> . | AL137: =IF(V137=".",".",SUM($S137:V137)) -> . | AM137: =IF(W137=".",".",SUM($S137:W137)) -> . | AN137: =IF(X137=".",".",SUM($S137:X137)) -> . | AO137: =IF(Y137=".",".",SUM($S137:Y137)) -> . | AQ137: . | AR137: . | AS137: . | AT137: . | AU137: . | AV137: . | AW137: .
C138: Business | D138: =IF('WK2 - Notional General Income'!D49="","",'WK2 - Notional General Income'!D49) ->  | E138: =IF('WK2 - Notional General Income'!M49=".",".",'WK2 - Notional General Income'!M49/'WK2 - Notional General Income'!E49) -> . | F138: =IF('WK3 - Notional GI Yr1 YIELD'!M49=".",".",'WK3 - Notional GI Yr1 YIELD'!M49/'WK3 - Notional GI Yr1 YIELD'!E49) -> . | O138: ='WK2 - Notional General Income'!$E49 -> 0 | P138: ='WK3 - Notional GI Yr1 YIELD'!$E49 -> 0 | S138: . | T138: . | U138: . | V138: . | W138: . | X138: . | Y138: . | AA138: . | AB138: . | AC138: . | AD138: . | AE138: . | AF138: . | AG138: . | AI138: =IF(S138=".",".",SUM($S138:S138)) -> . | AJ138: =IF(T138=".",".",SUM($S138:T138)) -> . | AK138: =IF(U138=".",".",SUM($S138:U138)) -> . | AL138: =IF(V138=".",".",SUM($S138:V138)) -> . | AM138: =IF(W138=".",".",SUM($S138:W138)) -> . | AN138: =IF(X138=".",".",SUM($S138:X138)) -> . | AO138: =IF(Y138=".",".",SUM($S138:Y138)) -> . | AQ138: . | AR138: . | AS138: . | AT138: . | AU138: . | AV138: . | AW138: .
C139: Business | D139: =IF('WK2 - Notional General Income'!D50="","",'WK2 - Notional General Income'!D50) ->  | E139: =IF('WK2 - Notional General Income'!M50=".",".",'WK2 - Notional General Income'!M50/'WK2 - Notional General Income'!E50) -> . | F139: =IF('WK3 - Notional GI Yr1 YIELD'!M50=".",".",'WK3 - Notional GI Yr1 YIELD'!M50/'WK3 - Notional GI Yr1 YIELD'!E50) -> . | O139: ='WK2 - Notional General Income'!$E50 -> 0 | P139: ='WK3 - Notional GI Yr1 YIELD'!$E50 -> 0 | S139: . | T139: . | U139: . | V139: . | W139: . | X139: . | Y139: . | AA139: . | AB139: . | AC139: . | AD139: . | AE139: . | AF139: . | AG139: . | AI139: =IF(S139=".",".",SUM($S139:S139)) -> . | AJ139: =IF(T139=".",".",SUM($S139:T139)) -> . | AK139: =IF(U139=".",".",SUM($S139:U139)) -> . | AL139: =IF(V139=".",".",SUM($S139:V139)) -> . | AM139: =IF(W139=".",".",SUM($S139:W139)) -> . | AN139: =IF(X139=".",".",SUM($S139:X139)) -> . | AO139: =IF(Y139=".",".",SUM($S139:Y139)) -> . | AQ139: . | AR139: . | AS139: . | AT139: . | AU139: . | AV139: . | AW139: .
C140: Business | D140: =IF('WK2 - Notional General Income'!D51="","",'WK2 - Notional General Income'!D51) ->  | E140: =IF('WK2 - Notional General Income'!M51=".",".",'WK2 - Notional General Income'!M51/'WK2 - Notional General Income'!E51) -> . | F140: =IF('WK3 - Notional GI Yr1 YIELD'!M51=".",".",'WK3 - Notional GI Yr1 YIELD'!M51/'WK3 - Notional GI Yr1 YIELD'!E51) -> . | O140: ='WK2 - Notional General Income'!$E51 -> 0 | P140: ='WK3 - Notional GI Yr1 YIELD'!$E51 -> 0 | S140: . | T140: . | U140: . | V140: . | W140: . | X140: . | Y140: . | AA140: . | AB140: . | AC140: . | AD140: . | AE140: . | AF140: . | AG140: . | AI140: =IF(S140=".",".",SUM($S140:S140)) -> . | AJ140: =IF(T140=".",".",SUM($S140:T140)) -> . | AK140: =IF(U140=".",".",SUM($S140:U140)) -> . | AL140: =IF(V140=".",".",SUM($S140:V140)) -> . | AM140: =IF(W140=".",".",SUM($S140:W140)) -> . | AN140: =IF(X140=".",".",SUM($S140:X140)) -> . | AO140: =IF(Y140=".",".",SUM($S140:Y140)) -> . | AQ140: . | AR140: . | AS140: . | AT140: . | AU140: . | AV140: . | AW140: .
C141: Business | D141: =IF('WK2 - Notional General Income'!D52="","",'WK2 - Notional General Income'!D52) ->  | E141: =IF('WK2 - Notional General Income'!M52=".",".",'WK2 - Notional General Income'!M52/'WK2 - Notional General Income'!E52) -> . | F141: =IF('WK3 - Notional GI Yr1 YIELD'!M52=".",".",'WK3 - Notional GI Yr1 YIELD'!M52/'WK3 - Notional GI Yr1 YIELD'!E52) -> . | O141: ='WK2 - Notional General Income'!$E52 -> 0 | P141: ='WK3 - Notional GI Yr1 YIELD'!$E52 -> 0 | S141: . | T141: . | U141: . | V141: . | W141: . | X141: . | Y141: . | AA141: . | AB141: . | AC141: . | AD141: . | AE141: . | AF141: . | AG141: . | AI141: =IF(S141=".",".",SUM($S141:S141)) -> . | AJ141: =IF(T141=".",".",SUM($S141:T141)) -> . | AK141: =IF(U141=".",".",SUM($S141:U141)) -> . | AL141: =IF(V141=".",".",SUM($S141:V141)) -> . | AM141: =IF(W141=".",".",SUM($S141:W141)) -> . | AN141: =IF(X141=".",".",SUM($S141:X141)) -> . | AO141: =IF(Y141=".",".",SUM($S141:Y141)) -> . | AQ141: . | AR141: . | AS141: . | AT141: . | AU141: . | AV141: . | AW141: .
C142: Business | D142: =IF('WK2 - Notional General Income'!D53="","",'WK2 - Notional General Income'!D53) ->  | E142: =IF('WK2 - Notional General Income'!M53=".",".",'WK2 - Notional General Income'!M53/'WK2 - Notional General Income'!E53) -> . | F142: =IF('WK3 - Notional GI Yr1 YIELD'!M53=".",".",'WK3 - Notional GI Yr1 YIELD'!M53/'WK3 - Notional GI Yr1 YIELD'!E53) -> . | O142: ='WK2 - Notional General Income'!$E53 -> 0 | P142: ='WK3 - Notional GI Yr1 YIELD'!$E53 -> 0 | S142: . | T142: . | U142: . | V142: . | W142: . | X142: . | Y142: . | AA142: . | AB142: . | AC142: . | AD142: . | AE142: . | AF142: . | AG142: . | AI142: =IF(S142=".",".",SUM($S142:S142)) -> . | AJ142: =IF(T142=".",".",SUM($S142:T142)) -> . | AK142: =IF(U142=".",".",SUM($S142:U142)) -> . | AL142: =IF(V142=".",".",SUM($S142:V142)) -> . | AM142: =IF(W142=".",".",SUM($S142:W142)) -> . | AN142: =IF(X142=".",".",SUM($S142:X142)) -> . | AO142: =IF(Y142=".",".",SUM($S142:Y142)) -> . | AQ142: . | AR142: . | AS142: . | AT142: . | AU142: . | AV142: . | AW142: .
C143: Business | D143: =IF('WK2 - Notional General Income'!D54="","",'WK2 - Notional General Income'!D54) ->  | E143: =IF('WK2 - Notional General Income'!M54=".",".",'WK2 - Notional General Income'!M54/'WK2 - Notional General Income'!E54) -> . | F143: =IF('WK3 - Notional GI Yr1 YIELD'!M54=".",".",'WK3 - Notional GI Yr1 YIELD'!M54/'WK3 - Notional GI Yr1 YIELD'!E54) -> . | O143: ='WK2 - Notional General Income'!$E54 -> 0 | P143: ='WK3 - Notional GI Yr1 YIELD'!$E54 -> 0 | S143: . | T143: . | U143: . | V143: . | W143: . | X143: . | Y143: . | AA143: . | AB143: . | AC143: . | AD143: . | AE143: . | AF143: . | AG143: . | AI143: =IF(S143=".",".",SUM($S143:S143)) -> . | AJ143: =IF(T143=".",".",SUM($S143:T143)) -> . | AK143: =IF(U143=".",".",SUM($S143:U143)) -> . | AL143: =IF(V143=".",".",SUM($S143:V143)) -> . | AM143: =IF(W143=".",".",SUM($S143:W143)) -> . | AN143: =IF(X143=".",".",SUM($S143:X143)) -> . | AO143: =IF(Y143=".",".",SUM($S143:Y143)) -> . | AQ143: . | AR143: . | AS143: . | AT143: . | AU143: . | AV143: . | AW143: .
C144: Business | D144: =IF('WK2 - Notional General Income'!D55="","",'WK2 - Notional General Income'!D55) ->  | E144: =IF('WK2 - Notional General Income'!M55=".",".",'WK2 - Notional General Income'!M55/'WK2 - Notional General Income'!E55) -> . | F144: =IF('WK3 - Notional GI Yr1 YIELD'!M55=".",".",'WK3 - Notional GI Yr1 YIELD'!M55/'WK3 - Notional GI Yr1 YIELD'!E55) -> . | O144: ='WK2 - Notional General Income'!$E55 -> 0 | P144: ='WK3 - Notional GI Yr1 YIELD'!$E55 -> 0 | S144: . | T144: . | U144: . | V144: . | W144: . | X144: . | Y144: . | AA144: . | AB144: . | AC144: . | AD144: . | AE144: . | AF144: . | AG144: . | AI144: =IF(S144=".",".",SUM($S144:S144)) -> . | AJ144: =IF(T144=".",".",SUM($S144:T144)) -> . | AK144: =IF(U144=".",".",SUM($S144:U144)) -> . | AL144: =IF(V144=".",".",SUM($S144:V144)) -> . | AM144: =IF(W144=".",".",SUM($S144:W144)) -> . | AN144: =IF(X144=".",".",SUM($S144:X144)) -> . | AO144: =IF(Y144=".",".",SUM($S144:Y144)) -> . | AQ144: . | AR144: . | AS144: . | AT144: . | AU144: . | AV144: . | AW144: .
C145: Business | D145: =IF('WK2 - Notional General Income'!D56="","",'WK2 - Notional General Income'!D56) ->  | E145: =IF('WK2 - Notional General Income'!M56=".",".",'WK2 - Notional General Income'!M56/'WK2 - Notional General Income'!E56) -> . | F145: =IF('WK3 - Notional GI Yr1 YIELD'!M56=".",".",'WK3 - Notional GI Yr1 YIELD'!M56/'WK3 - Notional GI Yr1 YIELD'!E56) -> . | O145: ='WK2 - Notional General Income'!$E56 -> 0 | P145: ='WK3 - Notional GI Yr1 YIELD'!$E56 -> 0 | S145: . | T145: . | U145: . | V145: . | W145: . | X145: . | Y145: . | AA145: . | AB145: . | AC145: . | AD145: . | AE145: . | AF145: . | AG145: . | AI145: =IF(S145=".",".",SUM($S145:S145)) -> . | AJ145: =IF(T145=".",".",SUM($S145:T145)) -> . | AK145: =IF(U145=".",".",SUM($S145:U145)) -> . | AL145: =IF(V145=".",".",SUM($S145:V145)) -> . | AM145: =IF(W145=".",".",SUM($S145:W145)) -> . | AN145: =IF(X145=".",".",SUM($S145:X145)) -> . | AO145: =IF(Y145=".",".",SUM($S145:Y145)) -> . | AQ145: . | AR145: . | AS145: . | AT145: . | AU145: . | AV145: . | AW145: .
C146: Business | D146: =IF('WK2 - Notional General Income'!D57="","",'WK2 - Notional General Income'!D57) ->  | E146: =IF('WK2 - Notional General Income'!M57=".",".",'WK2 - Notional General Income'!M57/'WK2 - Notional General Income'!E57) -> . | F146: =IF('WK3 - Notional GI Yr1 YIELD'!M57=".",".",'WK3 - Notional GI Yr1 YIELD'!M57/'WK3 - Notional GI Yr1 YIELD'!E57) -> . | O146: ='WK2 - Notional General Income'!$E57 -> 0 | P146: ='WK3 - Notional GI Yr1 YIELD'!$E57 -> 0 | S146: . | T146: . | U146: . | V146: . | W146: . | X146: . | Y146: . | AA146: . | AB146: . | AC146: . | AD146: . | AE146: . | AF146: . | AG146: . | AI146: =IF(S146=".",".",SUM($S146:S146)) -> . | AJ146: =IF(T146=".",".",SUM($S146:T146)) -> . | AK146: =IF(U146=".",".",SUM($S146:U146)) -> . | AL146: =IF(V146=".",".",SUM($S146:V146)) -> . | AM146: =IF(W146=".",".",SUM($S146:W146)) -> . | AN146: =IF(X146=".",".",SUM($S146:X146)) -> . | AO146: =IF(Y146=".",".",SUM($S146:Y146)) -> . | AQ146: . | AR146: . | AS146: . | AT146: . | AU146: . | AV146: . | AW146: .
C147: Business | D147: =IF('WK2 - Notional General Income'!D58="","",'WK2 - Notional General Income'!D58) ->  | E147: =IF('WK2 - Notional General Income'!M58=".",".",'WK2 - Notional General Income'!M58/'WK2 - Notional General Income'!E58) -> . | F147: =IF('WK3 - Notional GI Yr1 YIELD'!M58=".",".",'WK3 - Notional GI Yr1 YIELD'!M58/'WK3 - Notional GI Yr1 YIELD'!E58) -> . | O147: ='WK2 - Notional General Income'!$E58 -> 0 | P147: ='WK3 - Notional GI Yr1 YIELD'!$E58 -> 0 | S147: . | T147: . | U147: . | V147: . | W147: . | X147: . | Y147: . | AA147: . | AB147: . | AC147: . | AD147: . | AE147: . | AF147: . | AG147: . | AI147: =IF(S147=".",".",SUM($S147:S147)) -> . | AJ147: =IF(T147=".",".",SUM($S147:T147)) -> . | AK147: =IF(U147=".",".",SUM($S147:U147)) -> . | AL147: =IF(V147=".",".",SUM($S147:V147)) -> . | AM147: =IF(W147=".",".",SUM($S147:W147)) -> . | AN147: =IF(X147=".",".",SUM($S147:X147)) -> . | AO147: =IF(Y147=".",".",SUM($S147:Y147)) -> . | AQ147: . | AR147: . | AS147: . | AT147: . | AU147: . | AV147: . | AW147: .
C148: Business | D148: =IF('WK2 - Notional General Income'!D59="","",'WK2 - Notional General Income'!D59) ->  | E148: =IF('WK2 - Notional General Income'!M59=".",".",'WK2 - Notional General Income'!M59/'WK2 - Notional General Income'!E59) -> . | F148: =IF('WK3 - Notional GI Yr1 YIELD'!M59=".",".",'WK3 - Notional GI Yr1 YIELD'!M59/'WK3 - Notional GI Yr1 YIELD'!E59) -> . | O148: ='WK2 - Notional General Income'!$E59 -> 0 | P148: ='WK3 - Notional GI Yr1 YIELD'!$E59 -> 0 | S148: . | T148: . | U148: . | V148: . | W148: . | X148: . | Y148: . | AA148: . | AB148: . | AC148: . | AD148: . | AE148: . | AF148: . | AG148: . | AI148: =IF(S148=".",".",SUM($S148:S148)) -> . | AJ148: =IF(T148=".",".",SUM($S148:T148)) -> . | AK148: =IF(U148=".",".",SUM($S148:U148)) -> . | AL148: =IF(V148=".",".",SUM($S148:V148)) -> . | AM148: =IF(W148=".",".",SUM($S148:W148)) -> . | AN148: =IF(X148=".",".",SUM($S148:X148)) -> . | AO148: =IF(Y148=".",".",SUM($S148:Y148)) -> . | AQ148: . | AR148: . | AS148: . | AT148: . | AU148: . | AV148: . | AW148: .
C149: Business | D149: =IF('WK2 - Notional General Income'!D60="","",'WK2 - Notional General Income'!D60) ->  | E149: =IF('WK2 - Notional General Income'!M60=".",".",'WK2 - Notional General Income'!M60/'WK2 - Notional General Income'!E60) -> . | F149: =IF('WK3 - Notional GI Yr1 YIELD'!M60=".",".",'WK3 - Notional GI Yr1 YIELD'!M60/'WK3 - Notional GI Yr1 YIELD'!E60) -> . | O149: ='WK2 - Notional General Income'!$E60 -> 0 | P149: ='WK3 - Notional GI Yr1 YIELD'!$E60 -> 0 | S149: . | T149: . | U149: . | V149: . | W149: . | X149: . | Y149: . | AA149: . | AB149: . | AC149: . | AD149: . | AE149: . | AF149: . | AG149: . | AI149: =IF(S149=".",".",SUM($S149:S149)) -> . | AJ149: =IF(T149=".",".",SUM($S149:T149)) -> . | AK149: =IF(U149=".",".",SUM($S149:U149)) -> . | AL149: =IF(V149=".",".",SUM($S149:V149)) -> . | AM149: =IF(W149=".",".",SUM($S149:W149)) -> . | AN149: =IF(X149=".",".",SUM($S149:X149)) -> . | AO149: =IF(Y149=".",".",SUM($S149:Y149)) -> . | AQ149: . | AR149: . | AS149: . | AT149: . | AU149: . | AV149: . | AW149: .
C150: Business | D150: =IF('WK2 - Notional General Income'!D61="","",'WK2 - Notional General Income'!D61) ->  | E150: =IF('WK2 - Notional General Income'!M61=".",".",'WK2 - Notional General Income'!M61/'WK2 - Notional General Income'!E61) -> . | F150: =IF('WK3 - Notional GI Yr1 YIELD'!M61=".",".",'WK3 - Notional GI Yr1 YIELD'!M61/'WK3 - Notional GI Yr1 YIELD'!E61) -> . | O150: ='WK2 - Notional General Income'!$E61 -> 0 | P150: ='WK3 - Notional GI Yr1 YIELD'!$E61 -> 0 | S150: . | T150: . | U150: . | V150: . | W150: . | X150: . | Y150: . | AA150: . | AB150: . | AC150: . | AD150: . | AE150: . | AF150: . | AG150: . | AI150: =IF(S150=".",".",SUM($S150:S150)) -> . | AJ150: =IF(T150=".",".",SUM($S150:T150)) -> . | AK150: =IF(U150=".",".",SUM($S150:U150)) -> . | AL150: =IF(V150=".",".",SUM($S150:V150)) -> . | AM150: =IF(W150=".",".",SUM($S150:W150)) -> . | AN150: =IF(X150=".",".",SUM($S150:X150)) -> . | AO150: =IF(Y150=".",".",SUM($S150:Y150)) -> . | AQ150: . | AR150: . | AS150: . | AT150: . | AU150: . | AV150: . | AW150: .
C151: Business | D151: =IF('WK2 - Notional General Income'!D62="","",'WK2 - Notional General Income'!D62) ->  | E151: =IF('WK2 - Notional General Income'!M62=".",".",'WK2 - Notional General Income'!M62/'WK2 - Notional General Income'!E62) -> . | F151: =IF('WK3 - Notional GI Yr1 YIELD'!M62=".",".",'WK3 - Notional GI Yr1 YIELD'!M62/'WK3 - Notional GI Yr1 YIELD'!E62) -> . | O151: ='WK2 - Notional General Income'!$E62 -> 0 | P151: ='WK3 - Notional GI Yr1 YIELD'!$E62 -> 0 | S151: . | T151: . | U151: . | V151: . | W151: . | X151: . | Y151: . | AA151: . | AB151: . | AC151: . | AD151: . | AE151: . | AF151: . | AG151: . | AI151: =IF(S151=".",".",SUM($S151:S151)) -> . | AJ151: =IF(T151=".",".",SUM($S151:T151)) -> . | AK151: =IF(U151=".",".",SUM($S151:U151)) -> . | AL151: =IF(V151=".",".",SUM($S151:V151)) -> . | AM151: =IF(W151=".",".",SUM($S151:W151)) -> . | AN151: =IF(X151=".",".",SUM($S151:X151)) -> . | AO151: =IF(Y151=".",".",SUM($S151:Y151)) -> . | AQ151: . | AR151: . | AS151: . | AT151: . | AU151: . | AV151: . | AW151: .
C152: Business | D152: =IF('WK2 - Notional General Income'!D63="","",'WK2 - Notional General Income'!D63) ->  | E152: =IF('WK2 - Notional General Income'!M63=".",".",'WK2 - Notional General Income'!M63/'WK2 - Notional General Income'!E63) -> . | F152: =IF('WK3 - Notional GI Yr1 YIELD'!M63=".",".",'WK3 - Notional GI Yr1 YIELD'!M63/'WK3 - Notional GI Yr1 YIELD'!E63) -> . | O152: ='WK2 - Notional General Income'!$E63 -> 0 | P152: ='WK3 - Notional GI Yr1 YIELD'!$E63 -> 0 | S152: . | T152: . | U152: . | V152: . | W152: . | X152: . | Y152: . | AA152: . | AB152: . | AC152: . | AD152: . | AE152: . | AF152: . | AG152: . | AI152: =IF(S152=".",".",SUM($S152:S152)) -> . | AJ152: =IF(T152=".",".",SUM($S152:T152)) -> . | AK152: =IF(U152=".",".",SUM($S152:U152)) -> . | AL152: =IF(V152=".",".",SUM($S152:V152)) -> . | AM152: =IF(W152=".",".",SUM($S152:W152)) -> . | AN152: =IF(X152=".",".",SUM($S152:X152)) -> . | AO152: =IF(Y152=".",".",SUM($S152:Y152)) -> . | AQ152: . | AR152: . | AS152: . | AT152: . | AU152: . | AV152: . | AW152: .
C153: Business | D153: =IF('WK2 - Notional General Income'!D64="","",'WK2 - Notional General Income'!D64) ->  | E153: =IF('WK2 - Notional General Income'!M64=".",".",'WK2 - Notional General Income'!M64/'WK2 - Notional General Income'!E64) -> . | F153: =IF('WK3 - Notional GI Yr1 YIELD'!M64=".",".",'WK3 - Notional GI Yr1 YIELD'!M64/'WK3 - Notional GI Yr1 YIELD'!E64) -> . | O153: ='WK2 - Notional General Income'!$E64 -> 0 | P153: ='WK3 - Notional GI Yr1 YIELD'!$E64 -> 0 | S153: . | T153: . | U153: . | V153: . | W153: . | X153: . | Y153: . | AA153: . | AB153: . | AC153: . | AD153: . | AE153: . | AF153: . | AG153: . | AI153: =IF(S153=".",".",SUM($S153:S153)) -> . | AJ153: =IF(T153=".",".",SUM($S153:T153)) -> . | AK153: =IF(U153=".",".",SUM($S153:U153)) -> . | AL153: =IF(V153=".",".",SUM($S153:V153)) -> . | AM153: =IF(W153=".",".",SUM($S153:W153)) -> . | AN153: =IF(X153=".",".",SUM($S153:X153)) -> . | AO153: =IF(Y153=".",".",SUM($S153:Y153)) -> . | AQ153: . | AR153: . | AS153: . | AT153: . | AU153: . | AV153: . | AW153: .
C154: Special rate | D154: =IF('WK2 - Notional General Income'!D104="","",'WK2 - Notional General Income'!D104) ->  | E154: =IF('WK2 - Notional General Income'!M104=".",".",'WK2 - Notional General Income'!M104/'WK2 - Notional General Income'!E104) -> . | F154: =IF('WK3 - Notional GI Yr1 YIELD'!M104=".",".",'WK3 - Notional GI Yr1 YIELD'!M104/'WK3 - Notional GI Yr1 YIELD'!E104) -> . | O154: ='WK2 - Notional General Income'!$E104 -> 0 | P154: ='WK3 - Notional GI Yr1 YIELD'!$E104 -> 0 | S154: . | T154: . | U154: . | V154: . | W154: . | X154: . | Y154: . | AA154: . | AB154: . | AC154: . | AD154: . | AE154: . | AF154: . | AG154: . | AI154: =IF(S154=".",".",SUM($S154:S154)) -> . | AJ154: =IF(T154=".",".",SUM($S154:T154)) -> . | AK154: =IF(U154=".",".",SUM($S154:U154)) -> . | AL154: =IF(V154=".",".",SUM($S154:V154)) -> . | AM154: =IF(W154=".",".",SUM($S154:W154)) -> . | AN154: =IF(X154=".",".",SUM($S154:X154)) -> . | AO154: =IF(Y154=".",".",SUM($S154:Y154)) -> . | AQ154: . | AR154: . | AS154: . | AT154: . | AU154: . | AV154: . | AW154: .
C155: Special rate | D155: =IF('WK2 - Notional General Income'!D105="","",'WK2 - Notional General Income'!D105) ->  | E155: =IF('WK2 - Notional General Income'!M105=".",".",'WK2 - Notional General Income'!M105/'WK2 - Notional General Income'!E105) -> . | F155: =IF('WK3 - Notional GI Yr1 YIELD'!M105=".",".",'WK3 - Notional GI Yr1 YIELD'!M105/'WK3 - Notional GI Yr1 YIELD'!E105) -> . | O155: ='WK2 - Notional General Income'!$E105 -> 0 | P155: ='WK3 - Notional GI Yr1 YIELD'!$E105 -> 0 | S155: . | T155: . | U155: . | V155: . | W155: . | X155: . | Y155: . | AA155: . | AB155: . | AC155: . | AD155: . | AE155: . | AF155: . | AG155: . | AI155: =IF(S155=".",".",SUM($S155:S155)) -> . | AJ155: =IF(T155=".",".",SUM($S155:T155)) -> . | AK155: =IF(U155=".",".",SUM($S155:U155)) -> . | AL155: =IF(V155=".",".",SUM($S155:V155)) -> . | AM155: =IF(W155=".",".",SUM($S155:W155)) -> . | AN155: =IF(X155=".",".",SUM($S155:X155)) -> . | AO155: =IF(Y155=".",".",SUM($S155:Y155)) -> . | AQ155: . | AR155: . | AS155: . | AT155: . | AU155: . | AV155: . | AW155: .
C156: Special rate | D156: =IF('WK2 - Notional General Income'!D106="","",'WK2 - Notional General Income'!D106) ->  | E156: =IF('WK2 - Notional General Income'!M106=".",".",'WK2 - Notional General Income'!M106/'WK2 - Notional General Income'!E106) -> . | F156: =IF('WK3 - Notional GI Yr1 YIELD'!M106=".",".",'WK3 - Notional GI Yr1 YIELD'!M106/'WK3 - Notional GI Yr1 YIELD'!E106) -> . | O156: ='WK2 - Notional General Income'!$E106 -> 0 | P156: ='WK3 - Notional GI Yr1 YIELD'!$E106 -> 0 | S156: . | T156: . | U156: . | V156: . | W156: . | X156: . | Y156: . | AA156: . | AB156: . | AC156: . | AD156: . | AE156: . | AF156: . | AG156: . | AI156: =IF(S156=".",".",SUM($S156:S156)) -> . | AJ156: =IF(T156=".",".",SUM($S156:T156)) -> . | AK156: =IF(U156=".",".",SUM($S156:U156)) -> . | AL156: =IF(V156=".",".",SUM($S156:V156)) -> . | AM156: =IF(W156=".",".",SUM($S156:W156)) -> . | AN156: =IF(X156=".",".",SUM($S156:X156)) -> . | AO156: =IF(Y156=".",".",SUM($S156:Y156)) -> . | AQ156: . | AR156: . | AS156: . | AT156: . | AU156: . | AV156: . | AW156: .
C157: Special rate | D157: =IF('WK2 - Notional General Income'!D107="","",'WK2 - Notional General Income'!D107) ->  | E157: =IF('WK2 - Notional General Income'!M107=".",".",'WK2 - Notional General Income'!M107/'WK2 - Notional General Income'!E107) -> . | F157: =IF('WK3 - Notional GI Yr1 YIELD'!M107=".",".",'WK3 - Notional GI Yr1 YIELD'!M107/'WK3 - Notional GI Yr1 YIELD'!E107) -> . | O157: ='WK2 - Notional General Income'!$E107 -> 0 | P157: ='WK3 - Notional GI Yr1 YIELD'!$E107 -> 0 | S157: . | T157: . | U157: . | V157: . | W157: . | X157: . | Y157: . | AA157: . | AB157: . | AC157: . | AD157: . | AE157: . | AF157: . | AG157: . | AI157: =IF(S157=".",".",SUM($S157:S157)) -> . | AJ157: =IF(T157=".",".",SUM($S157:T157)) -> . | AK157: =IF(U157=".",".",SUM($S157:U157)) -> . | AL157: =IF(V157=".",".",SUM($S157:V157)) -> . | AM157: =IF(W157=".",".",SUM($S157:W157)) -> . | AN157: =IF(X157=".",".",SUM($S157:X157)) -> . | AO157: =IF(Y157=".",".",SUM($S157:Y157)) -> . | AQ157: . | AR157: . | AS157: . | AT157: . | AU157: . | AV157: . | AW157: .
C158: Special rate | D158: =IF('WK2 - Notional General Income'!D108="","",'WK2 - Notional General Income'!D108) ->  | E158: =IF('WK2 - Notional General Income'!M108=".",".",'WK2 - Notional General Income'!M108/'WK2 - Notional General Income'!E108) -> . | F158: =IF('WK3 - Notional GI Yr1 YIELD'!M108=".",".",'WK3 - Notional GI Yr1 YIELD'!M108/'WK3 - Notional GI Yr1 YIELD'!E108) -> . | O158: ='WK2 - Notional General Income'!$E108 -> 0 | P158: ='WK3 - Notional GI Yr1 YIELD'!$E108 -> 0 | S158: . | T158: . | U158: . | V158: . | W158: . | X158: . | Y158: . | AA158: . | AB158: . | AC158: . | AD158: . | AE158: . | AF158: . | AG158: . | AI158: =IF(S158=".",".",SUM($S158:S158)) -> . | AJ158: =IF(T158=".",".",SUM($S158:T158)) -> . | AK158: =IF(U158=".",".",SUM($S158:U158)) -> . | AL158: =IF(V158=".",".",SUM($S158:V158)) -> . | AM158: =IF(W158=".",".",SUM($S158:W158)) -> . | AN158: =IF(X158=".",".",SUM($S158:X158)) -> . | AO158: =IF(Y158=".",".",SUM($S158:Y158)) -> . | AQ158: . | AR158: . | AS158: . | AT158: . | AU158: . | AV158: . | AW158: .
C159: Special rate | D159: =IF('WK2 - Notional General Income'!D109="","",'WK2 - Notional General Income'!D109) ->  | E159: =IF('WK2 - Notional General Income'!M109=".",".",'WK2 - Notional General Income'!M109/'WK2 - Notional General Income'!E109) -> . | F159: =IF('WK3 - Notional GI Yr1 YIELD'!M109=".",".",'WK3 - Notional GI Yr1 YIELD'!M109/'WK3 - Notional GI Yr1 YIELD'!E109) -> . | O159: ='WK2 - Notional General Income'!$E109 -> 0 | P159: ='WK3 - Notional GI Yr1 YIELD'!$E109 -> 0 | S159: . | T159: . | U159: . | V159: . | W159: . | X159: . | Y159: . | AA159: . | AB159: . | AC159: . | AD159: . | AE159: . | AF159: . | AG159: . | AI159: =IF(S159=".",".",SUM($S159:S159)) -> . | AJ159: =IF(T159=".",".",SUM($S159:T159)) -> . | AK159: =IF(U159=".",".",SUM($S159:U159)) -> . | AL159: =IF(V159=".",".",SUM($S159:V159)) -> . | AM159: =IF(W159=".",".",SUM($S159:W159)) -> . | AN159: =IF(X159=".",".",SUM($S159:X159)) -> . | AO159: =IF(Y159=".",".",SUM($S159:Y159)) -> . | AQ159: . | AR159: . | AS159: . | AT159: . | AU159: . | AV159: . | AW159: .
C160: Special rate | D160: =IF('WK2 - Notional General Income'!D110="","",'WK2 - Notional General Income'!D110) ->  | E160: =IF('WK2 - Notional General Income'!M110=".",".",'WK2 - Notional General Income'!M110/'WK2 - Notional General Income'!E110) -> . | F160: =IF('WK3 - Notional GI Yr1 YIELD'!M110=".",".",'WK3 - Notional GI Yr1 YIELD'!M110/'WK3 - Notional GI Yr1 YIELD'!E110) -> . | O160: ='WK2 - Notional General Income'!$E110 -> 0 | P160: ='WK3 - Notional GI Yr1 YIELD'!$E110 -> 0 | S160: . | T160: . | U160: . | V160: . | W160: . | X160: . | Y160: . | AA160: . | AB160: . | AC160: . | AD160: . | AE160: . | AF160: . | AG160: . | AI160: =IF(S160=".",".",SUM($S160:S160)) -> . | AJ160: =IF(T160=".",".",SUM($S160:T160)) -> . | AK160: =IF(U160=".",".",SUM($S160:U160)) -> . | AL160: =IF(V160=".",".",SUM($S160:V160)) -> . | AM160: =IF(W160=".",".",SUM($S160:W160)) -> . | AN160: =IF(X160=".",".",SUM($S160:X160)) -> . | AO160: =IF(Y160=".",".",SUM($S160:Y160)) -> . | AQ160: . | AR160: . | AS160: . | AT160: . | AU160: . | AV160: . | AW160: .
C161: Special rate | D161: =IF('WK2 - Notional General Income'!D111="","",'WK2 - Notional General Income'!D111) ->  | E161: =IF('WK2 - Notional General Income'!M111=".",".",'WK2 - Notional General Income'!M111/'WK2 - Notional General Income'!E111) -> . | F161: =IF('WK3 - Notional GI Yr1 YIELD'!M111=".",".",'WK3 - Notional GI Yr1 YIELD'!M111/'WK3 - Notional GI Yr1 YIELD'!E111) -> . | O161: ='WK2 - Notional General Income'!$E111 -> 0 | P161: ='WK3 - Notional GI Yr1 YIELD'!$E111 -> 0 | S161: . | T161: . | U161: . | V161: . | W161: . | X161: . | Y161: . | AA161: . | AB161: . | AC161: . | AD161: . | AE161: . | AF161: . | AG161: . | AI161: =IF(S161=".",".",SUM($S161:S161)) -> . | AJ161: =IF(T161=".",".",SUM($S161:T161)) -> . | AK161: =IF(U161=".",".",SUM($S161:U161)) -> . | AL161: =IF(V161=".",".",SUM($S161:V161)) -> . | AM161: =IF(W161=".",".",SUM($S161:W161)) -> . | AN161: =IF(X161=".",".",SUM($S161:X161)) -> . | AO161: =IF(Y161=".",".",SUM($S161:Y161)) -> . | AQ161: . | AR161: . | AS161: . | AT161: . | AU161: . | AV161: . | AW161: .
C162: Special rate | D162: =IF('WK2 - Notional General Income'!D112="","",'WK2 - Notional General Income'!D112) ->  | E162: =IF('WK2 - Notional General Income'!M112=".",".",'WK2 - Notional General Income'!M112/'WK2 - Notional General Income'!E112) -> . | F162: =IF('WK3 - Notional GI Yr1 YIELD'!M112=".",".",'WK3 - Notional GI Yr1 YIELD'!M112/'WK3 - Notional GI Yr1 YIELD'!E112) -> . | O162: ='WK2 - Notional General Income'!$E112 -> 0 | P162: ='WK3 - Notional GI Yr1 YIELD'!$E112 -> 0 | S162: . | T162: =IF(OR(F162=".",G162="."),".",G162-F162) -> . | U162: =IF(H162="",".",H162-G162) -> . | V162: =IF(I162="",".",I162-H162) -> . | W162: =IF(J162="",".",J162-I162) -> . | X162: =IF(K162="",".",K162-J162) -> . | Y162: =IF(L162="",".",L162-K162) -> . | AA162: . | AB162: =IFERROR(G162/F162-1,".") -> . | AC162: . | AD162: =IFERROR(I162/H162-1,".") -> . | AE162: =IFERROR(J162/I162-1,".") -> . | AF162: =IFERROR(K162/J162-1,".") -> . | AG162: =IFERROR(L162/K162-1,".") -> . | AI162: =IF(S162=".",".",SUM($S162:S162)) -> . | AJ162: =IF(T162=".",".",SUM($S162:T162)) -> . | AK162: =IF(U162=".",".",SUM($S162:U162)) -> . | AL162: =IF(V162=".",".",SUM($S162:V162)) -> . | AM162: =IF(W162=".",".",SUM($S162:W162)) -> . | AN162: =IF(X162=".",".",SUM($S162:X162)) -> . | AO162: =IF(Y162=".",".",SUM($S162:Y162)) -> . | AQ162: . | AR162: =IFERROR(G162/$E162-1,".") -> . | AS162: =IFERROR(H162/$E162-1,".") -> . | AT162: =IFERROR(I162/$E162-1,".") -> . | AU162: =IFERROR(J162/$E162-1,".") -> . | AV162: =IFERROR(K162/$E162-1,".") -> . | AW162: =IFERROR(L162/$E162-1,".") -> .
C163: Special rate | D163: =IF('WK2 - Notional General Income'!D113="","",'WK2 - Notional General Income'!D113) ->  | E163: =IF('WK2 - Notional General Income'!M113=".",".",'WK2 - Notional General Income'!M113/'WK2 - Notional General Income'!E113) -> . | F163: =IF('WK3 - Notional GI Yr1 YIELD'!M113=".",".",'WK3 - Notional GI Yr1 YIELD'!M113/'WK3 - Notional GI Yr1 YIELD'!E113) -> . | O163: ='WK2 - Notional General Income'!$E113 -> 0 | P163: ='WK3 - Notional GI Yr1 YIELD'!$E113 -> 0 | S163: =IF(OR(E163=".",F163="."),".",F163-E163) -> . | T163: . | U163: . | V163: . | W163: . | X163: . | Y163: . | AA163: . | AB163: . | AC163: . | AD163: . | AE163: . | AF163: . | AG163: . | AI163: =IF(S163=".",".",SUM($S163:S163)) -> . | AJ163: =IF(T163=".",".",SUM($S163:T163)) -> . | AK163: =IF(U163=".",".",SUM($S163:U163)) -> . | AL163: =IF(V163=".",".",SUM($S163:V163)) -> . | AM163: =IF(W163=".",".",SUM($S163:W163)) -> . | AN163: =IF(X163=".",".",SUM($S163:X163)) -> . | AO163: =IF(Y163=".",".",SUM($S163:Y163)) -> . | AQ163: =IFERROR(F163/$E163-1,".") -> . | AR163: . | AS163: . | AT163: . | AU163: . | AV163: . | AW163: .
C164: Special rate | D164: =IF('WK2 - Notional General Income'!D114="","",'WK2 - Notional General Income'!D114) ->  | E164: =IF('WK2 - Notional General Income'!M114=".",".",'WK2 - Notional General Income'!M114/'WK2 - Notional General Income'!E114) -> . | F164: =IF('WK3 - Notional GI Yr1 YIELD'!M114=".",".",'WK3 - Notional GI Yr1 YIELD'!M114/'WK3 - Notional GI Yr1 YIELD'!E114) -> . | O164: ='WK2 - Notional General Income'!$E114 -> 0 | P164: ='WK3 - Notional GI Yr1 YIELD'!$E114 -> 0 | S164: . | T164: . | U164: . | V164: . | W164: . | X164: . | Y164: . | AA164: . | AB164: . | AC164: . | AD164: . | AE164: . | AF164: . | AG164: . | AI164: =IF(S164=".",".",SUM($S164:S164)) -> . | AJ164: =IF(T164=".",".",SUM($S164:T164)) -> . | AK164: =IF(U164=".",".",SUM($S164:U164)) -> . | AL164: =IF(V164=".",".",SUM($S164:V164)) -> . | AM164: =IF(W164=".",".",SUM($S164:W164)) -> . | AN164: =IF(X164=".",".",SUM($S164:X164)) -> . | AO164: =IF(Y164=".",".",SUM($S164:Y164)) -> . | AQ164: . | AR164: . | AS164: . | AT164: . | AU164: . | AV164: . | AW164: .
C165: Special rate | D165: =IF('WK2 - Notional General Income'!D115="","",'WK2 - Notional General Income'!D115) ->  | E165: =IF('WK2 - Notional General Income'!M115=".",".",'WK2 - Notional General Income'!M115/'WK2 - Notional General Income'!E115) -> . | F165: =IF('WK3 - Notional GI Yr1 YIELD'!M115=".",".",'WK3 - Notional GI Yr1 YIELD'!M115/'WK3 - Notional GI Yr1 YIELD'!E115) -> . | O165: ='WK2 - Notional General Income'!$E115 -> 0 | P165: ='WK3 - Notional GI Yr1 YIELD'!$E115 -> 0 | S165: . | T165: . | U165: . | V165: . | W165: . | X165: . | Y165: . | AA165: . | AB165: . | AC165: . | AD165: . | AE165: . | AF165: . | AG165: . | AI165: =IF(S165=".",".",SUM($S165:S165)) -> . | AJ165: =IF(T165=".",".",SUM($S165:T165)) -> . | AK165: =IF(U165=".",".",SUM($S165:U165)) -> . | AL165: =IF(V165=".",".",SUM($S165:V165)) -> . | AM165: =IF(W165=".",".",SUM($S165:W165)) -> . | AN165: =IF(X165=".",".",SUM($S165:X165)) -> . | AO165: =IF(Y165=".",".",SUM($S165:Y165)) -> . | AQ165: . | AR165: . | AS165: . | AT165: . | AU165: . | AV165: . | AW165: .
C166: Special rate | D166: =IF('WK2 - Notional General Income'!D116="","",'WK2 - Notional General Income'!D116) ->  | E166: =IF('WK2 - Notional General Income'!M116=".",".",'WK2 - Notional General Income'!M116/'WK2 - Notional General Income'!E116) -> . | F166: =IF('WK3 - Notional GI Yr1 YIELD'!M116=".",".",'WK3 - Notional GI Yr1 YIELD'!M116/'WK3 - Notional GI Yr1 YIELD'!E116) -> . | O166: ='WK2 - Notional General Income'!$E116 -> 0 | P166: ='WK3 - Notional GI Yr1 YIELD'!$E116 -> 0 | S166: . | T166: . | U166: . | V166: . | W166: . | X166: . | Y166: . | AA166: . | AB166: . | AC166: . | AD166: . | AE166: . | AF166: . | AG166: . | AI166: =IF(S166=".",".",SUM($S166:S166)) -> . | AJ166: =IF(T166=".",".",SUM($S166:T166)) -> . | AK166: =IF(U166=".",".",SUM($S166:U166)) -> . | AL166: =IF(V166=".",".",SUM($S166:V166)) -> . | AM166: =IF(W166=".",".",SUM($S166:W166)) -> . | AN166: =IF(X166=".",".",SUM($S166:X166)) -> . | AO166: =IF(Y166=".",".",SUM($S166:Y166)) -> . | AQ166: . | AR166: . | AS166: . | AT166: . | AU166: . | AV166: . | AW166: .
C167: Special rate | D167: =IF('WK2 - Notional General Income'!D117="","",'WK2 - Notional General Income'!D117) ->  | E167: =IF('WK2 - Notional General Income'!M117=".",".",'WK2 - Notional General Income'!M117/'WK2 - Notional General Income'!E117) -> . | F167: =IF('WK3 - Notional GI Yr1 YIELD'!M117=".",".",'WK3 - Notional GI Yr1 YIELD'!M117/'WK3 - Notional GI Yr1 YIELD'!E117) -> . | O167: ='WK2 - Notional General Income'!$E117 -> 0 | P167: ='WK3 - Notional GI Yr1 YIELD'!$E117 -> 0 | S167: . | T167: . | U167: . | V167: . | W167: . | X167: . | Y167: . | AA167: . | AB167: . | AC167: . | AD167: . | AE167: . | AF167: . | AG167: . | AI167: =IF(S167=".",".",SUM($S167:S167)) -> . | AJ167: =IF(T167=".",".",SUM($S167:T167)) -> . | AK167: =IF(U167=".",".",SUM($S167:U167)) -> . | AL167: =IF(V167=".",".",SUM($S167:V167)) -> . | AM167: =IF(W167=".",".",SUM($S167:W167)) -> . | AN167: =IF(X167=".",".",SUM($S167:X167)) -> . | AO167: =IF(Y167=".",".",SUM($S167:Y167)) -> . | AQ167: . | AR167: . | AS167: . | AT167: . | AU167: . | AV167: . | AW167: .
C168: Special rate | D168: =IF('WK2 - Notional General Income'!D118="","",'WK2 - Notional General Income'!D118) ->  | E168: =IF('WK2 - Notional General Income'!M118=".",".",'WK2 - Notional General Income'!M118/'WK2 - Notional General Income'!E118) -> . | F168: =IF('WK3 - Notional GI Yr1 YIELD'!M118=".",".",'WK3 - Notional GI Yr1 YIELD'!M118/'WK3 - Notional GI Yr1 YIELD'!E118) -> . | O168: ='WK2 - Notional General Income'!$E118 -> 0 | P168: ='WK3 - Notional GI Yr1 YIELD'!$E118 -> 0 | S168: . | T168: . | U168: . | V168: . | W168: . | X168: . | Y168: . | AA168: . | AB168: . | AC168: . | AD168: . | AE168: . | AF168: . | AG168: . | AI168: =IF(S168=".",".",SUM($S168:S168)) -> . | AJ168: =IF(T168=".",".",SUM($S168:T168)) -> . | AK168: =IF(U168=".",".",SUM($S168:U168)) -> . | AL168: =IF(V168=".",".",SUM($S168:V168)) -> . | AM168: =IF(W168=".",".",SUM($S168:W168)) -> . | AN168: =IF(X168=".",".",SUM($S168:X168)) -> . | AO168: =IF(Y168=".",".",SUM($S168:Y168)) -> . | AQ168: . | AR168: . | AS168: . | AT168: . | AU168: . | AV168: . | AW168: .
C169: Special rate | D169: =IF('WK2 - Notional General Income'!D119="","",'WK2 - Notional General Income'!D119) ->  | E169: =IF('WK2 - Notional General Income'!M119=".",".",'WK2 - Notional General Income'!M119/'WK2 - Notional General Income'!E119) -> . | F169: =IF('WK3 - Notional GI Yr1 YIELD'!M119=".",".",'WK3 - Notional GI Yr1 YIELD'!M119/'WK3 - Notional GI Yr1 YIELD'!E119) -> . | O169: ='WK2 - Notional General Income'!$E119 -> 0 | P169: ='WK3 - Notional GI Yr1 YIELD'!$E119 -> 0 | S169: . | T169: . | U169: . | V169: . | W169: . | X169: . | Y169: . | AA169: . | AB169: . | AC169: . | AD169: . | AE169: . | AF169: . | AG169: . | AI169: =IF(S169=".",".",SUM($S169:S169)) -> . | AJ169: =IF(T169=".",".",SUM($S169:T169)) -> . | AK169: =IF(U169=".",".",SUM($S169:U169)) -> . | AL169: =IF(V169=".",".",SUM($S169:V169)) -> . | AM169: =IF(W169=".",".",SUM($S169:W169)) -> . | AN169: =IF(X169=".",".",SUM($S169:X169)) -> . | AO169: =IF(Y169=".",".",SUM($S169:Y169)) -> . | AQ169: . | AR169: . | AS169: . | AT169: . | AU169: . | AV169: . | AW169: .
C170: Special rate | D170: =IF('WK2 - Notional General Income'!D120="","",'WK2 - Notional General Income'!D120) ->  | E170: =IF('WK2 - Notional General Income'!M120=".",".",'WK2 - Notional General Income'!M120/'WK2 - Notional General Income'!E120) -> . | F170: =IF('WK3 - Notional GI Yr1 YIELD'!M120=".",".",'WK3 - Notional GI Yr1 YIELD'!M120/'WK3 - Notional GI Yr1 YIELD'!E120) -> . | O170: ='WK2 - Notional General Income'!$E120 -> 0 | P170: ='WK3 - Notional GI Yr1 YIELD'!$E120 -> 0 | S170: . | T170: . | U170: . | V170: . | W170: . | X170: . | Y170: . | AA170: . | AB170: . | AC170: . | AD170: . | AE170: . | AF170: . | AG170: . | AI170: =IF(S170=".",".",SUM($S170:S170)) -> . | AJ170: =IF(T170=".",".",SUM($S170:T170)) -> . | AK170: =IF(U170=".",".",SUM($S170:U170)) -> . | AL170: =IF(V170=".",".",SUM($S170:V170)) -> . | AM170: =IF(W170=".",".",SUM($S170:W170)) -> . | AN170: =IF(X170=".",".",SUM($S170:X170)) -> . | AO170: =IF(Y170=".",".",SUM($S170:Y170)) -> . | AQ170: . | AR170: . | AS170: . | AT170: . | AU170: . | AV170: . | AW170: .
C171: Special rate | D171: =IF('WK2 - Notional General Income'!D121="","",'WK2 - Notional General Income'!D121) ->  | E171: =IF('WK2 - Notional General Income'!M121=".",".",'WK2 - Notional General Income'!M121/'WK2 - Notional General Income'!E121) -> . | F171: =IF('WK3 - Notional GI Yr1 YIELD'!M121=".",".",'WK3 - Notional GI Yr1 YIELD'!M121/'WK3 - Notional GI Yr1 YIELD'!E121) -> . | O171: ='WK2 - Notional General Income'!$E121 -> 0 | P171: ='WK3 - Notional GI Yr1 YIELD'!$E121 -> 0 | S171: . | T171: . | U171: . | V171: . | W171: . | X171: . | Y171: . | AA171: . | AB171: . | AC171: . | AD171: . | AE171: . | AF171: . | AG171: . | AI171: =IF(S171=".",".",SUM($S171:S171)) -> . | AJ171: =IF(T171=".",".",SUM($S171:T171)) -> . | AK171: =IF(U171=".",".",SUM($S171:U171)) -> . | AL171: =IF(V171=".",".",SUM($S171:V171)) -> . | AM171: =IF(W171=".",".",SUM($S171:W171)) -> . | AN171: =IF(X171=".",".",SUM($S171:X171)) -> . | AO171: =IF(Y171=".",".",SUM($S171:Y171)) -> . | AQ171: . | AR171: . | AS171: . | AT171: . | AU171: . | AV171: . | AW171: .
C172: Special rate | D172: =IF('WK2 - Notional General Income'!D122="","",'WK2 - Notional General Income'!D122) ->  | E172: =IF('WK2 - Notional General Income'!M122=".",".",'WK2 - Notional General Income'!M122/'WK2 - Notional General Income'!E122) -> . | F172: =IF('WK3 - Notional GI Yr1 YIELD'!M122=".",".",'WK3 - Notional GI Yr1 YIELD'!M122/'WK3 - Notional GI Yr1 YIELD'!E122) -> . | O172: ='WK2 - Notional General Income'!$E122 -> 0 | P172: ='WK3 - Notional GI Yr1 YIELD'!$E122 -> 0 | S172: . | T172: . | U172: . | V172: . | W172: . | X172: . | Y172: . | AA172: . | AB172: . | AC172: . | AD172: . | AE172: . | AF172: . | AG172: . | AI172: =IF(S172=".",".",SUM($S172:S172)) -> . | AJ172: =IF(T172=".",".",SUM($S172:T172)) -> . | AK172: =IF(U172=".",".",SUM($S172:U172)) -> . | AL172: =IF(V172=".",".",SUM($S172:V172)) -> . | AM172: =IF(W172=".",".",SUM($S172:W172)) -> . | AN172: =IF(X172=".",".",SUM($S172:X172)) -> . | AO172: =IF(Y172=".",".",SUM($S172:Y172)) -> . | AQ172: . | AR172: . | AS172: . | AT172: . | AU172: . | AV172: . | AW172: .
C173: Special rate | D173: =IF('WK2 - Notional General Income'!D123="","",'WK2 - Notional General Income'!D123) ->  | E173: =IF('WK2 - Notional General Income'!M123=".",".",'WK2 - Notional General Income'!M123/'WK2 - Notional General Income'!E123) -> . | F173: =IF('WK3 - Notional GI Yr1 YIELD'!M123=".",".",'WK3 - Notional GI Yr1 YIELD'!M123/'WK3 - Notional GI Yr1 YIELD'!E123) -> . | O173: ='WK2 - Notional General Income'!$E123 -> 0 | P173: ='WK3 - Notional GI Yr1 YIELD'!$E123 -> 0 | S173: . | T173: . | U173: . | V173: . | W173: . | X173: . | Y173: . | AA173: . | AB173: . | AC173: . | AD173: . | AE173: . | AF173: . | AG173: . | AI173: =IF(S173=".",".",SUM($S173:S173)) -> . | AJ173: =IF(T173=".",".",SUM($S173:T173)) -> . | AK173: =IF(U173=".",".",SUM($S173:U173)) -> . | AL173: =IF(V173=".",".",SUM($S173:V173)) -> . | AM173: =IF(W173=".",".",SUM($S173:W173)) -> . | AN173: =IF(X173=".",".",SUM($S173:X173)) -> . | AO173: =IF(Y173=".",".",SUM($S173:Y173)) -> . | AQ173: . | AR173: . | AS173: . | AT173: . | AU173: . | AV173: . | AW173: .
D174: TOTAL AVERAGE | E174: =IF($O174=0,".",SUMPRODUCT(E129:E173,$O129:$O173)/$O174) -> 5085.097131 | F174: =IF($P174=0,".",SUMPRODUCT(F129:F173,$P129:$P173)/$P174) -> 6000.395276 | G174: 7080.489176 | H174: 8354.973116 | I174: 8563.847444 | J174: 8777.94363 | K174: 8997.39222 | L174: 9222.327026 | O174: =SUM(O129:O153) -> 1357 | P174: =SUM(P129:P153) -> 1357 | S174: 915.298145 | T174: 1080.0939 | U174: =IF(H174=".",".",H174-G174) -> 1274.48394 | V174: 208.8743279 | W174: 214.0961861 | X174: 219.4485907 | Y174: 224.9348055 | AA174: 0.179996197 | AB174: 0.1800037914 | AC174: 0.1799994193 | AD174: 0.025 | AE174: 0.025 | AF174: 0.025 | AG174: 0.025 | AI174: =IF(S174=".",".",SUM($S174:S174)) -> 915.298145 | AJ174: =IF(T174=".",".",SUM($S174:T174)) -> 1995.392045 | AK174: =IF(U174=".",".",SUM($S174:U174)) -> 3269.875984 | AL174: =IF(V174=".",".",SUM($S174:V174)) -> 3478.750312 | AM174: =IF(W174=".",".",SUM($S174:W174)) -> 3692.846498 | AN174: =IF(X174=".",".",SUM($S174:X174)) -> 3912.295089 | AO174: =IF(Y174=".",".",SUM($S174:Y174)) -> 4137.229895 | AQ174: 0.179996197 | AR174: 0.3923999863 | AS174: 0.6430311752 | AT174: 0.6841069546 | AU174: 0.7262096285 | AV174: 0.7693648692 | AW174: 0.8135989909
